Workbook

Sheet Intro
B5: Sample Budget for Blackberry Production in Tennessee
B6: Version 1.0
B8: Margarita Velandia, Omar Aza, and Riley Denton
B9: Professor and Research Assistants
B10: Office: (865) 974-7409 email: mvelandia@utk.edu
B12: Becky Bowling
B13: Extension Specialist
B14: Office: (865) 974-7016 Email: bowling10@utk.edu
B16: This sample budget spreadsheet tool was developed as a decision aid to assist Tennessee blackberry producers in estimating the cost of production.
B18: General Budget Assumptions
B19: 1. You can select one of two Integrated Pest Management (IPM) scenarios: "Conventional Fungicide Program" and "None". The "None" IPM strategy scenario will imply no chemicals would be applied for disease management.
B20: 2. You can also select three scenarios to market your blackberries: 1) 100% Retail (e.g., on-farm or at Farmers Markets); 2) 50% Pick-your-Own (PYO) AND 50% Ready Picked to be marketed on-farm or at Farmers Markets; 3) 75% Pick-your-Own (PYO) AND 25% Ready Picked to be marketed on-farm or at Farmers Markets.
B22: Labor, Fuel, and Interest
B23: In this spreadsheet, you can change assumptions related to operator, hand labor, and fuel cost, as well as the interest rate.
B25: Yield
B26: In this spreadsheet, you can change assumptions related to yield in Years 3 to 8.
B28: Blackberry Prices
B29: In this spreadsheet, you can change assumptions related to U-Picked and Ready-Picked (e.g., on-farm and Farmers Markets) prices.
B31: Summary Budget
B32: In this spreadsheet, you can see a summary of total costs by year. You will be able to print this summary budget using the print button.
B34: Blackberry Budget Y1 to Y8
B35: The "Blackberry Budget YX" spreadsheets will provide details about costs of production for Year 1 to Year 8. In these spreadsheets, you will be able to change a few operating/durable input costs. The "Summary YX" spreadsheets will provide a summary budget for each year. You will be able to print each year's budget "Summary XY" using the print button. In these spreadsheets, you will be able to change a few operating/durable input costs. The “Summary Budget” spreadsheet will not reflect user changes because the summary budget cost categories do not match each year’s budget cost categories.
B37: Blackberry Budget Year 1
B38: Blackberry Budget Year 2
B39: Blackberry Budget Year 3
B40: Blackberry Budget Year 4
B41: Blackberry Budget Year 5
B42: Blackberry Budget Year 6
B43: Blackberry Budget Year 7
B44: Blackberry Budget Year 8
B46: *Spreadsheet cells highlighted in grey can be modified by users to reflect their specific situation.
B47: *The print button allows the user to print a one page summary of the budget/scenario.
B48: *The Reset Defaults button will allow you to return to default values.
B51: Programs in agriculture and natural resources, 4-H youth development, family and consumer sciences, and resource development.
B52: University of Tennessee Institute of Agriculture, U.S. Department of Agriculture and country governments cooperating.
B53: UT Extension provide equal opportunities in programs and employment.

Sheet General Budget Assumptions
B2: Budget Assumptions
B3: 1. Pest Management Strategy (select IPM strategy from drop down list) | C3: Conventional Fungicide Program
B4: 2. Market outlet (select market outlet combination from drop down list) | C4: 50%PYO 50%Ready_Picked
B5: 3. Space between rows and plants | C5: 3'x12'
B6: 4. Varieties | C6: Natchez and Ouachita
B8: 1. You can select one of two pest management scenarios: None and Conventional Fungicide Program. The "None" scenario assumes there will be no disease control.
B9: 2. You can select three scenarios to market your blackberries: 1) 100% Retail (e.g., on-farm or at Farmers Markets); 2) 50% Pick-your_Own (PYO) AND 50% Ready Picked to be marketed on-farm or at Farmers Markets; 3) 75% Pick-your_Own (PYO) AND 25% Ready Picked to be marketed on-farm or at Farmers Markets.

Sheet Labor_Fuel_Interest
B2: Fuel
B3: Fuel Type | C3: Price/Gallon | D3: FARMER DISCCOUNT | E3: FINAL PRICE/GAL
B4: Diesel | C4: 3.4 | D4: 0.52 | E4: =C4-D4 -> 2.88
B5: Gasoline | D5: 0 | E5: 0
B8: Labor | D8: Details
B9: Labor Type | C9: Wage/Hour
B10: Operator | C10: 17.42 | D10: 2020 Department of Labor
B11: Hand | C11: 13.89 | D11: 2022 Adverse Effect Wage Rate
B13: Interest
B14: Intermediate-term | C14: 0.04
B15: Intermediate-term | C15: 0.0625
B100: Fuel
B101: Fuel Type | C101: Price/Gallon | D101: FARMER DISCCOUNT | E101: FINAL PRICE/GAL
B102: Diesel | C102: 3.4 | D102: 0.52 | E102: =C102-D102 -> 2.88
B103: Gasoline | D103: 0 | E103: 0
B106: Labor | D106: Details
B107: Labor Type | C107: Wage/Hour
B108: Operator | C108: 17.42 | D108: 2020 Department of Labor
B109: Hand | C109: 13.89 | D109: 2022 Adverse Effect Wage Rate
B111: Interest
B112: Intermediate-term | C112: 0.04

Sheet Yield
A1: Estimated Yields
A2: Production Year | B2: qt/acre | C2: % of full production
A3: 1 | B3: 0 | C3: 0
A4: 2 | B4: 0 | C4: 0
A5: 3 | B5: 3000 | C5: =+B$5/B$6 -> 0.6
A6: 4 | B6: 5000 | C6: =+B6/$B$6 -> 1
A7: 5 | B7: 5000 | C7: =+B7/$B$6 -> 1
A8: 6 | B8: 5000 | C8: =+B8/$B$6 -> 1
A9: 7 | B9: 5000 | C9: =+B9/$B$6 -> 1
A10: 8 | B10: 5000 | C10: =+B10/$B$6 -> 1
A100: Estimated Yields
A101: Production Year | B101: qt/acre | C101: % of full production
A102: 1 | B102: 0 | C102: 0
A103: 2 | B103: 0 | C103: 0
A104: 3 | B104: 3000 | C104: =+B$5/B$6 -> 0.6
A105: 4 | B105: 5000 | C105: =+B105/$B$6 -> 1
A106: 5 | B106: 5000 | C106: =+B106/$B$6 -> 1
A107: 6 | B107: 5000 | C107: =+B107/$B$6 -> 1
A108: 7 | B108: 5000 | C108: =+B108/$B$6 -> 1
A109: 8 | B109: 5000 | C109: =+B109/$B$6 -> 1

Sheet Blackberry Prices
A1: Blackberry Prices
B2: U-Pick | C2: Ready-Picked
B3: $/quart
A4: Average prices | B4: 4.995 | C4: 7
A100: Blackberry Prices
B101: U-Pick | C101: Ready-Picked
B102: $/quart
A103: Average prices | B103: 4.995 | C103: 7

Sheet Summary Budget
B2: Year 1 | C2: % | D2: Year 2 | E2: % | F2: Year 3 | G2: % | H2: Year 4 | I2: % | J2: Year 5 | K2: % | L2: Year 6 | M2: % | N2: Year 7 | O2: % | P2: Year 8 | Q2: % | R2: Total | S2: %
A3: Mark Rows | B3: =+'Blackberry Budget Y1'!T$14 -> 13.89 | C3: =+(B3/$B$20) -> 0.02349973594 | D3: 0 | E3: =+D3/$D$20 -> 0 | F3: 0 | G3: =+F3/F$20 -> 0 | H3: 0 | I3: =+H3/H$20 -> 0 | J3: 0 | K3: =+J3/J$20 -> 0 | L3: 0 | M3: =+L3/L$20 -> 0 | N3: 0 | O3: =+N3/N$20 -> 0 | P3: 0 | Q3: =+P3/P$20 -> 0 | R3: =+B3+D3+F3+H3+J3+L3+N3+P3 -> 13.89 | S3: =+R3/R$20 -> 0.0002528515518
A4: Planting | B4: 0 | C4: 0 | D4: =+'Blackberry Budget Y2'!T$10 -> 5473.14 | E4: 0.4664522263 | F4: 0 | G4: =+F4/F$20 -> 0 | H4: 0 | I4: =+H4/H$20 -> 0 | J4: 0 | K4: =+J4/J$20 -> 0 | L4: 0 | M4: 0 | N4: 0 | O4: =+N4/N$20 -> 0 | P4: 0 | Q4: 0 | R4: =+B4+D4+F4+H4+J4+L4+N4+P4 -> 5473.14 | S4: =+R4/R$20 -> 0.09963224925
A5: Tipping/Prune/Remove Canes | B5: 0 | C5: 0 | D5: =+'Blackberry Budget Y2'!T$46 -> 69.45 | E5: 0.005918925355 | F5: =+'Blackberry Budget Y3'!T$32+'Blackberry Budget Y3'!T$51 -> 375.03 | G5: 0.06695274674 | H5: =+'Blackberry Budget Y4'!T$32+'Blackberry Budget Y4'!T$51 -> 375.03 | I5: 0.05066961567 | J5: =+'Blackberry Budget Y5'!T$32+'Blackberry Budget Y5'!T$51 -> 375.03 | K5: =+J5/J$20 -> 0.05066961567 | L5: =+'Blackberry Budget Y6'!T$32+'Blackberry Budget Y6'!T$51 -> 375.03 | M5: 0.05066961567 | N5: =+'Blackberry Budget Y7'!T$32+'Blackberry Budget Y7'!T$51 -> 375.03 | O5: =+N5/N$20 -> 0.05066961567 | P5: =+'Blackberry Budget Y8'!T$32+'Blackberry Budget Y8'!T$51 -> 375.03 | Q5: 0.05066961567 | R5: 2319.63 | S5: 0.04222620915
A6: Disk | B6: ='Blackberry Budget Y1'!T$7 -> 11.025928 | C6: 0.01865416822 | D6: 0 | E6: 0 | F6: 0 | G6: 0 | H6: 0 | I6: 0 | J6: 0 | K6: =+J6/J$20 -> 0 | L6: 0 | M6: 0 | N6: 0 | O6: =+N6/N$20 -> 0 | P6: 0 | Q6: 0 | R6: 11.025928 | S6: 0.0002007143992
A7: Subsoiler | B7: =+'Blackberry Budget Y1'!T$15 -> 8.7873412 | C7: 0.0148668249 | D7: 0 | E7: 0 | F7: 0 | G7: 0 | H7: 0 | I7: 0 | J7: 0 | K7: =+J7/J$20 -> 0 | L7: 0 | M7: 0 | N7: 0 | O7: =+N7/N$20 -> 0 | P7: 0 | Q7: 0 | R7: 8.7873412 | S7: 0.0001599634887
A8: Fertilizer | B8: =+'Blackberry Budget Y1'!T$12 -> 345.7810835 | C8: 0.5850082186 | D8: =+'Blackberry Budget Y2'!T$23+'Blackberry Budget Y2'!T$24+'Blackberry Budget Y2'!T$36+'Blackberry Budget Y2'!T$37+'Blackberry Budget Y2'!T$49+'Blackberry Budget Y2'!T$50 -> 90.59122373 | E8: 0.007720701096 | F8: =+'Blackberry Budget Y3'!T$12+'Blackberry Budget Y3'!T$13+'Blackberry Budget Y3'!T$48+'Blackberry Budget Y3'!T$49 -> 88.66350027 | G8: 0.01582877337 | H8: =+'Blackberry Budget Y4'!T$12+'Blackberry Budget Y4'!T$13+'Blackberry Budget Y4'!T$48+'Blackberry Budget Y4'!T$49 -> 88.66350027 | I8: 0.01197916295 | J8: =+'Blackberry Budget Y5'!T$12+'Blackberry Budget Y5'!T$13+'Blackberry Budget Y5'!T$48+'Blackberry Budget Y5'!T$49 -> 88.66350027 | K8: =+J8/J$20 -> 0.01197916295 | L8: =+'Blackberry Budget Y6'!T$12+'Blackberry Budget Y6'!T$13+'Blackberry Budget Y6'!T$48+'Blackberry Budget Y6'!T$49 -> 88.66350027 | M8: 0.01197916295 | N8: =+'Blackberry Budget Y7'!T$12+'Blackberry Budget Y7'!T$13+'Blackberry Budget Y7'!T$48+'Blackberry Budget Y7'!T$49 -> 88.66350027 | O8: =+N8/N$20 -> 0.01197916295 | P8: =+'Blackberry Budget Y8'!T$12+'Blackberry Budget Y8'!T$13+'Blackberry Budget Y8'!T$48+'Blackberry Budget Y8'!T$49 -> 88.66350027 | Q8: 0.01197916295 | R8: 968.3533088 | S8: 0.01762776363
A9: Weed Spray | B9: =+'Blackberry Budget Y1'!T$11 -> 24.7247784 | C9: 0.04183050854 | D9: =+'Blackberry Budget Y2'!T$9 -> 12.3623892 | E9: 0.001053593361 | F9: 0 | G9: 0 | H9: 0 | I9: 0 | J9: 0 | K9: =+J9/J$20 -> 0 | L9: 0 | M9: 0 | N9: 0 | O9: =+N9/N$20 -> 0 | P9: 0 | Q9: 0 | R9: 37.0871676 | S9: 0.0006751294369
A10: Disease Management | B10: 0 | C10: 0 | D10: =+'Blackberry Budget Y2'!T$26+'Blackberry Budget Y2'!T$27+'Blackberry Budget Y2'!T$28+'Blackberry Budget Y2'!T$39+'Blackberry Budget Y2'!T$40+'Blackberry Budget Y2'!T$41+'Blackberry Budget Y2'!T$52+'Blackberry Budget Y2'!T$53+'Blackberry Budget Y2'!T$54+'Blackberry Budget Y2'!T$61+'Blackberry Budget Y2'!T$62+'Blackberry Budget Y2'!T$63 -> 257.8748486 | E10: 0.0219775663 | F10: =+'Blackberry Budget Y3'!T$15+'Blackberry Budget Y3'!T$16+'Blackberry Budget Y3'!T$17+'Blackberry Budget Y3'!T$25+'Blackberry Budget Y3'!T$26+'Blackberry Budget Y3'!T$27+'Blackberry Budget Y3'!T$35+'Blackberry Budget Y3'!T$36+'Blackberry Budget Y3'!T$37+'Blackberry Budget Y3'!T$44+'Blackberry Budget Y3'!T$45+'Blackberry Budget Y3'!T$46 -> 257.8748486 | G10: 0.04603746214 | H10: =+'Blackberry Budget Y4'!T$15+'Blackberry Budget Y4'!T$16+'Blackberry Budget Y4'!T$17+'Blackberry Budget Y4'!T$25+'Blackberry Budget Y4'!T$26+'Blackberry Budget Y4'!T$27+'Blackberry Budget Y4'!T$35+'Blackberry Budget Y4'!T$36+'Blackberry Budget Y4'!T$37+'Blackberry Budget Y4'!T$44+'Blackberry Budget Y4'!T$45+'Blackberry Budget Y4'!T$46 -> 257.8748486 | I10: 0.03484099797 | J10: =+'Blackberry Budget Y5'!T$15+'Blackberry Budget Y5'!T$16+'Blackberry Budget Y5'!T$17+'Blackberry Budget Y5'!T$25+'Blackberry Budget Y5'!T$26+'Blackberry Budget Y5'!T$27+'Blackberry Budget Y5'!T$35+'Blackberry Budget Y5'!T$36+'Blackberry Budget Y5'!T$37+'Blackberry Budget Y5'!T$44+'Blackberry Budget Y5'!T$45+'Blackberry Budget Y5'!T$46 -> 257.8748486 | K10: =+J10/J$20 -> 0.03484099797 | L10: =+'Blackberry Budget Y6'!T$15+'Blackberry Budget Y6'!T$16+'Blackberry Budget Y6'!T$17+'Blackberry Budget Y6'!T$25+'Blackberry Budget Y6'!T$26+'Blackberry Budget Y6'!T$27+'Blackberry Budget Y6'!T$35+'Blackberry Budget Y6'!T$36+'Blackberry Budget Y6'!T$37+'Blackberry Budget Y6'!T$44+'Blackberry Budget Y6'!T$45+'Blackberry Budget Y6'!T$46 -> 257.8748486 | M10: 0.03484099797 | N10: =+'Blackberry Budget Y7'!T$15+'Blackberry Budget Y7'!T$16+'Blackberry Budget Y7'!T$17+'Blackberry Budget Y7'!T$25+'Blackberry Budget Y7'!T$26+'Blackberry Budget Y7'!T$27+'Blackberry Budget Y7'!T$35+'Blackberry Budget Y7'!T$36+'Blackberry Budget Y6'!T$37+'Blackberry Budget Y7'!T$44+'Blackberry Budget Y7'!T$45+'Blackberry Budget Y7'!T$46 -> 257.8748486 | O10: =+N10/N$20 -> 0.03484099797 | P10: =+'Blackberry Budget Y8'!T$15+'Blackberry Budget Y8'!T$16+'Blackberry Budget Y8'!T$17+'Blackberry Budget Y8'!T$25+'Blackberry Budget Y8'!T$26+'Blackberry Budget Y8'!T$27+'Blackberry Budget Y8'!T$35+'Blackberry Budget Y8'!T$36+'Blackberry Budget Y8'!T$37+'Blackberry Budget Y8'!T$44+'Blackberry Budget Y8'!T45+'Blackberry Budget Y8'!T$46 -> 257.8748486 | Q10: 0.03484099797 | R10: 1805.12394 | S10: 0.03286021522
A11: Construct Trellis | B11: 0 | C11: 0 | D11: ='Blackberry Budget Y2'!T$12+'Blackberry Budget Y2'!T$13+'Blackberry Budget Y2'!T$14+'Blackberry Budget Y2'!T$15+'Blackberry Budget Y2'!T$16+'Blackberry Budget Y2'!T$17 -> 4057.654933 | E11: 0.3458165107 | F11: 0 | G11: 0 | H11: 0 | I11: 0 | J11: 0 | K11: =+J11/J$20 -> 0 | L11: 0 | M11: 0 | N11: 0 | O11: =+N11/N$20 -> 0 | P11: 0 | Q11: 0 | R11: 4057.654933 | S11: 0.07386496375
A12: Hoeing | B12: 0 | C12: 0 | D12: =+'Blackberry Budget Y2'!T$19+'Blackberry Budget Y2'!T$31+'Blackberry Budget Y2'!T$43+'Blackberry Budget Y2'!T$56+'Blackberry Budget Y2'!T$67 -> 902.85 | E12: 0.07694602962 | F12: =+'Blackberry Budget Y3'!T$20+'Blackberry Budget Y3'!T$29+'Blackberry Budget Y3'!T$39 -> 458.37 | G12: 0.0818311349 | H12: =+'Blackberry Budget Y4'!T$20+'Blackberry Budget Y4'!T$29+'Blackberry Budget Y4'!T$39 -> 458.37 | I12: 0.06192953027 | J12: =+'Blackberry Budget Y5'!T$20+'Blackberry Budget Y5'!T$29+'Blackberry Budget Y5'!T$39 -> 458.37 | K12: =+J12/J$20 -> 0.06192953027 | L12: =+'Blackberry Budget Y6'!T$20+'Blackberry Budget Y6'!T$29+'Blackberry Budget Y6'!T$39 -> 458.37 | M12: 0.06192953027 | N12: =+'Blackberry Budget Y7'!T$20+'Blackberry Budget Y7'!T$29+'Blackberry Budget Y7'!T$39 -> 458.37 | O12: =+N12/N$20 -> 0.06192953027 | P12: =+'Blackberry Budget Y8'!T$20+'Blackberry Budget Y8'!T$29+'Blackberry Budget Y8'!T$39 -> 458.37 | Q12: 0.06192953027 | R12: 3653.07 | S12: 0.06649995812
A13: Soil Testing | B13: =+'Blackberry Budget Y1'!T$9+'Blackberry Budget Y1'!T$10+'Blackberry Budget Y1'!T$8 -> 131.0606667 | C13: 0.2217344175 | D13: 0 | E13: 0 | F13: 0 | G13: 0 | H13: 0 | I13: 0 | J13: 0 | K13: =+J13/J$20 -> 0 | L13: 0 | M13: 0 | N13: 0 | O13: =+N13/N$20 -> 0 | P13: 0 | Q13: 0 | R13: 131.0606667 | S13: 0.002385809427
A14: Mowing | B14: 0 | C14: 0 | D14: =+'Blackberry Budget Y2'!T$8+'Blackberry Budget Y2'!T$21+'Blackberry Budget Y2'!T$33+'Blackberry Budget Y2'!T$45+'Blackberry Budget Y2'!T$58+'Blackberry Budget Y2'!T$65+'Blackberry Budget Y2'!T$70+'Blackberry Budget Y2'!T$73 -> 78.5611008 | E14: 0.006695425363 | F14: =+'Blackberry Budget Y3'!T$8+'Blackberry Budget Y3'!T$10+'Blackberry Budget Y3'!T$22+'Blackberry Budget Y3'!T$31+'Blackberry Budget Y3'!T$41+'Blackberry Budget Y3'!T$53+'Blackberry Budget Y3'!T$56+'Blackberry Budget Y3'!T$59 -> 78.5611008 | G14: 0.01402522861 | H14: =+'Blackberry Budget Y4'!T$8+'Blackberry Budget Y4'!T$10+'Blackberry Budget Y4'!T$22+'Blackberry Budget Y4'!T$31+'Blackberry Budget Y4'!T$41+'Blackberry Budget Y4'!T$53+'Blackberry Budget Y4'!T$56+'Blackberry Budget Y4'!T$59 -> 78.5611008 | I14: 0.01061424629 | J14: =+'Blackberry Budget Y5'!T$8+'Blackberry Budget Y5'!T$10+'Blackberry Budget Y5'!T$22+'Blackberry Budget Y5'!T$31+'Blackberry Budget Y5'!T$41+'Blackberry Budget Y5'!T$53+'Blackberry Budget Y5'!T$56+'Blackberry Budget Y5'!T$59 -> 78.5611008 | K14: =+J14/J$20 -> 0.01061424629 | L14: =+'Blackberry Budget Y6'!T$8+'Blackberry Budget Y6'!T$10+'Blackberry Budget Y6'!T$22+'Blackberry Budget Y6'!T$31+'Blackberry Budget Y6'!T$41+'Blackberry Budget Y6'!T$53+'Blackberry Budget Y6'!T$56+'Blackberry Budget Y6'!T$59 -> 78.5611008 | M14: 0.01061424629 | N14: =+'Blackberry Budget Y7'!T$8+'Blackberry Budget Y7'!T$10+'Blackberry Budget Y7'!T$22+'Blackberry Budget Y7'!T$31+'Blackberry Budget Y7'!T$41+'Blackberry Budget Y7'!T$53+'Blackberry Budget Y7'!T$56+'Blackberry Budget Y7'!T$59 -> 78.5611008 | O14: =+N14/N$20 -> 0.01061424629 | P14: =+'Blackberry Budget Y8'!T$8+'Blackberry Budget Y8'!T$10+'Blackberry Budget Y8'!T$22+'Blackberry Budget Y8'!T$31+'Blackberry Budget Y8'!T$41+'Blackberry Budget Y8'!T$53+'Blackberry Budget Y8'!T$56+'Blackberry Budget Y8'!T$59 -> 78.5611008 | Q14: 0.01061424629 | R14: 549.9277056 | S14: 0.01001080444
A15: Seed Grass | B15: =+'Blackberry Budget Y1'!T$17+'Blackberry Budget Y1'!T$18+'Blackberry Budget Y1'!T$19 -> 39.14777538 | C15: 0.0662319931 | D15: 0 | E15: 0 | F15: 0 | G15: 0 | H15: 0 | I15: 0 | J15: 0 | K15: =+J15/J$20 -> 0 | L15: 0 | M15: 0 | N15: 0 | O15: =+N15/N$20 -> 0 | P15: 0 | Q15: 0 | R15: 39.14777538 | S15: 0.0007126404429
A16: Irrigation | B16: 0 | C16: 0 | D16: =+'Blackberry Budget Y2'!T$29+'Blackberry Budget Y2'!T$34+'Blackberry Budget Y2'!T$47+'Blackberry Budget Y2'!T$59+'Blackberry Budget Y2'!T$68+'Blackberry Budget Y2'!T$71+'Blackberry Budget Y2'!T$74 -> 443.597 | E16: 0.03780586797 | F16: =+'Blackberry Budget Y3'!T$18+'Blackberry Budget Y3'!T$23+'Blackberry Budget Y3'!T$33+'Blackberry Budget Y3'!T$42+'Blackberry Budget Y3'!T$54+'Blackberry Budget Y3'!T$57+'Blackberry Budget Y3'!T$60 -> 443.597 | G16: 0.07919376475 | H16: =+'Blackberry Budget Y4'!T$18+'Blackberry Budget Y4'!T$23+'Blackberry Budget Y4'!T$33+'Blackberry Budget Y4'!T$42+'Blackberry Budget Y4'!T$54+'Blackberry Budget Y4'!T$57+'Blackberry Budget Y4'!T$60 -> 443.597 | I16: 0.05993357733 | J16: =+'Blackberry Budget Y5'!T$18+'Blackberry Budget Y5'!T$23+'Blackberry Budget Y5'!T$33+'Blackberry Budget Y5'!T$42+'Blackberry Budget Y5'!T$54+'Blackberry Budget Y5'!T$57+'Blackberry Budget Y5'!T$60 -> 443.597 | K16: =+J16/J$20 -> 0.05993357733 | L16: =+'Blackberry Budget Y6'!T$18+'Blackberry Budget Y6'!T$23+'Blackberry Budget Y6'!T$33+'Blackberry Budget Y6'!T$42+'Blackberry Budget Y6'!T$54+'Blackberry Budget Y6'!T$57+'Blackberry Budget Y6'!T$60 -> 443.597 | M16: 0.05993357733 | N16: =+'Blackberry Budget Y7'!T$18+'Blackberry Budget Y7'!T$23+'Blackberry Budget Y7'!T$33+'Blackberry Budget Y7'!T$42+'Blackberry Budget Y7'!T$54+'Blackberry Budget Y7'!T$57+'Blackberry Budget Y7'!T$60 -> 443.597 | O16: =+N16/N$20 -> 0.05993357733 | P16: =+'Blackberry Budget Y8'!T$18+'Blackberry Budget Y8'!T$23+'Blackberry Budget Y8'!T$33+'Blackberry Budget Y8'!T$42+'Blackberry Budget Y8'!T$54+'Blackberry Budget Y8'!T$57+'Blackberry Budget Y8'!T$60 -> 443.597 | Q16: 0.05993357733 | R16: 3105.179 | S16: 0.05652622957
A17: Harvest | B17: 0 | C17: =+(B$17/$B$20) -> 0 | D17: 0 | E17: 0 | F17: =+'Blackberry Budget Y3'!T$65+'Blackberry Budget Y3'!T$66 -> 918.2083333 | G17: 0.163924406 | H17: =+'Blackberry Budget Y4'!T$65+'Blackberry Budget Y4'!T$66 -> 1518.772222 | I17: 0.2051985302 | J17: =+'Blackberry Budget Y5'!T$65+'Blackberry Budget Y5'!T$66 -> 1518.772222 | K17: =+J17/J$20 -> 0.2051985302 | L17: =+'Blackberry Budget Y6'!T$65+'Blackberry Budget Y6'!T$66 -> 1518.772222 | M17: 0.2051985302 | N17: =+'Blackberry Budget Y7'!T$65+'Blackberry Budget Y7'!T$66 -> 1518.772222 | O17: =+N17/N$20 -> 0.2051985302 | P17: =+'Blackberry Budget Y8'!T$65+'Blackberry Budget Y8'!T$66 -> 1518.772222 | Q17: 0.2051985302 | R17: 8512.069444 | S17: 0.1549524815
A18: Post-harvest | B18: 0 | C18: =+(B18/$B$20) -> 0 | D18: 0 | E18: 0 | F18: =+'Blackberry Budget Y3'!T$67+'Blackberry Budget Y3'!T$68 -> 2935.85 | G18: 0.5241266606 | H18: =+'Blackberry Budget Y4'!T$67+'Blackberry Budget Y4'!T$68 -> 4135.35 | I18: 0.5587195562 | J18: =+'Blackberry Budget Y5'!T$67+'Blackberry Budget Y5'!T$68 -> 4135.35 | K18: =+J18/J$20 -> 0.5587195562 | L18: =+'Blackberry Budget Y6'!T$67+'Blackberry Budget Y6'!T$68 -> 4135.35 | M18: 0.5587195562 | N18: =+'Blackberry Budget Y7'!T$67+'Blackberry Budget Y7'!T$68 -> 4135.35 | O18: =+N18/N$20 -> 0.5587195562 | P18: =+'Blackberry Budget Y8'!T$67+'Blackberry Budget Y8'!T$68 -> 4135.35 | Q18: 0.5587195562 | R18: 23612.6 | S18: 0.4298403565
A19: Financial | B19: ='Blackberry Budget Y1'!T$21 -> 16.65289821 | C19: =+(B19/$B$20) -> 0.02817413323 | D19: =+'Blackberry Budget Y2'!T$76 -> 347.4673889 | E19: 0.0296131539 | F19: =+'Blackberry Budget Y3'!T$62 -> 45.25842655 | G19: 0.008079822869 | H19: =+'Blackberry Budget Y4'!T$62 -> 45.25842655 | I19: 0.006114783029 | J19: =+'Blackberry Budget Y5'!T$62 -> 45.25842655 | K19: =+J19/J$20 -> 0.006114783029 | L19: =+'Blackberry Budget Y6'!T$62 -> 45.25842655 | M19: 0.006114783029 | N19: =+'Blackberry Budget Y7'!T$62 -> 45.25842655 | O19: =+N19/N$20 -> 0.006114783029 | P19: =+'Blackberry Budget Y7'!T$62 -> 45.25842655 | Q19: 0.006114783029 | R19: 635.6708464 | S19: 0.01157166018
A20: Total Costs | B20: =+SUM(B3:B19) -> 591.0704713 | C20: =+SUM(C3:C19) -> 1 | D20: =+SUM(D4:D19) -> 11733.54888 | E20: =+SUM(E4:E19) -> 1 | F20: =SUM(F3:F19) -> 5601.41321 | G20: 1 | H20: 7401.477098 | I20: 1 | J20: 7401.477098 | K20: 1 | L20: 7401.477098 | M20: 1 | N20: 7401.477098 | O20: 1 | P20: 7401.477098 | Q20: 1 | R20: 54933.41806 | S20: 1

Sheet Blackberry Budget Y1
B3: Blackberry Enterprise Budget Year 1 | X3: Summary Budget Year 0
B4: Operation / Operating Input | C4: Size/ Unit | D4: Power Unit Size | E4: # | F4: Perf Rate | G4: Times Over | H4: Month | I4: Power Unit Cost | M4: Equipment Cost | O4: Alloc Labor | Q4: Operating / Durable Input | T4: Total Cost | X4: Items | Y4: unit | Z4: Price | AA4: Quantity | AB4: Amount | AC4: Your Farm
I5: R & M | J5: Fuel | K5: Direct | L5: Fixed | M5: Direct | N5: Fixed | O5: Hours | P5: Cost | Q5: Amount | R5: Price | S5: Cost
X6: Direct expenses
B7: Disk Harrow | C7: 6ft | D7: MFWD 50hp | E7: 4 | F7: =+Equipment!$I$20 -> 0.33 | G7: 1 | H7: June | I7: =+G7*Equipment!$M$20 -> 0.2838 | J7: =+G7*Equipment!$K$20 -> 2.442528 | K7: =SUM(I7:J7) -> 2.726328 | L7: =+G7*Equipment!$P$20 -> 1.881 | M7: =+G7*Equipment!$L$20 -> 0.2 | N7: =+G7*Equipment!$O$20 -> 0.47 | O7: =+F7*G7 -> 0.33 | P7: =+Labor_Fuel_Interest!$C$10*O7 -> 5.7486 | T7: =+K7+L7+M7+N7+P7+S7 -> 11.025928 | U7: =+(K7+M7+P7+S7) -> 8.674928 | X7: Fertilizer
B8: Soil Test Hand labor | C8: hour | G8: 1 | H8: June | O8: =0.6*G8 -> 0.6 | P8: =+Labor_Fuel_Interest!$C$11*O8 -> 8.334 | T8: 8.334 | U8: =+(K8+M8+P8+S8) -> 8.334 | X8: 15-15-15 | Y8: lb. | Z8: =+R12 -> 0.4086833333 | AA8: =+Q12 -> 800 | AB8: =+Z8*AA8 -> 326.9466667
B9: Soil test | C9: each | E9: =+IF(D9="MFWD 50hp", Equipment!$U$5, IF(D9="MFWD 50hp", Equipment!$U$6, IF(D9="4*4", Equipment!$U$7, " "))) ->  | Q9: 1 | R9: =+'Soil test'!$D$11 -> 15 | S9: =+Q9*R9 -> 15 | T9: 15 | U9: =+(K9+M9+P9+S9) -> 15 | X9: Soil test | Y9: each | Z9: =+R9 -> 15 | AA9: =+Q9 -> 1 | AB9: =+Z9*AA9 -> 15
B10: Soil test probe | C10: each | E10: =+IF(D10="MFWD 50hp", Equipment!$U$5, IF(D10="MFWD 50hp", Equipment!$U$6, IF(D10="4*4", Equipment!$U$7, " "))) ->  | Q10: 1 | R10: =+'Soil test'!$D$8 -> 107.7266667 | S10: =+Q10*R10 -> 107.7266667 | T10: 107.7266667 | U10: =+(K10+M10+P10+S10) -> 107.7266667 | X10: Soil test probe | Y10: each | Z10: =+R10 -> 107.7266667 | AA10: =+Q10 -> 1 | AB10: =+Z10*AA10 -> 107.7266667
B11: Weed Spray | C11: 2 qt | D11: MFWD 50hp | E11: 4 | F11: =+Equipment!I$37 -> 0.099 | G11: 1 | H11: June | I11: =+G11*Equipment!$M$37 -> 0.08514 | J11: =+G11*Equipment!$K$37 -> 0.7327584 | K11: =SUM(I11:J11) -> 0.8178984 | L11: =+G11*Equipment!$P$37 -> 0.5643 | M11: =+G11*Equipment!$L$37 -> 0.1 | N11: =+G11*Equipment!$O$37 -> 0.12 | O11: =+F11*G11 -> 0.099 | P11: =+O11*Labor_Fuel_Interest!$C$10 -> 1.72458 | Q11: 2 | R11: =+'Chemical & Fertilizer Costs'!$H$6 -> 10.699 | S11: =+Q11*R11 -> 21.398 | T11: 24.7247784 | X11: Grass seed | Y11: lb. | Z11: =+R19 -> 1.8899 | AA11: =+Q19 -> 10 | AB11: =+Z11*AA11 -> 18.899
B12: Apply Fertilizer (15-15-15) | C12: lb. | D12: MFWD 50hp | E12: 4 | F12: =+Equipment!$I$27 -> 0.846 | G12: 0.5 | H12: June | I12: =+G12*Equipment!$M$27 -> 0.36378 | J12: =+G12*Equipment!$K$27 -> 3.1308768 | K12: =SUM(I12:J12) -> 3.4946568 | L12: =+G12*Equipment!$P$27 -> 2.4111 | M12: =+G12*Equipment!$L$27 -> 1.055 | N12: =+G12*Equipment!$O$27 -> 4.505 | O12: =+F12*G12 -> 0.423 | P12: =+Labor_Fuel_Interest!$C$10*O12 -> 7.36866 | Q12: 800 | R12: =+'Chemical & Fertilizer Costs'!$F$21 -> 0.4086833333 | S12: =+Q12*R12 -> 326.9466667 | T12: 345.7810835 | U12: =+(K12+M12+P12+S12) -> 338.8649835 | X12: Glyphosate | Y12: qt | Z12: =+R11 -> 10.699 | AA12: 2 | AB12: =+Z12*AA12 -> 21.398
B13: Mark of Rows | E13: =+IF(D13="MFWD 50hp", Equipment!$U$5, IF(D13="MFWD 50hp", Equipment!$U$6, IF(D13="4*4", Equipment!$U$7, " "))) ->  | H13: June | U13: 0 | X13: Operator labor
B14: Hand labor | C14: hour | E14: =+IF(D14="MFWD 50hp", Equipment!$U$5, IF(D14="MFWD 50hp", Equipment!$U$6, IF(D14="4*4", Equipment!$U$7, " "))) ->  | O14: 1 | P14: =+Labor_Fuel_Interest!$C$11*O14 -> 13.89 | T14: =+K14+L14+M14+N14+P14+S14 -> 13.89 | U14: 13.89 | X14: Tractors | Y14: hour | Z14: =+Labor_Fuel_Interest!$C$10 -> 17.42 | AA14: =+O7+O12+O15+O17+O11 -> 1.51436 | AB14: =+Z14*AA14 -> 26.3801512
B15: Sub-Soiler | C15: 1 shank | D15: MFWD 50hp | E15: =+IF(D15="MFWD 50hp", Equipment!$U$5, IF(D15="MFWD 50hp", Equipment!$U$6, IF(D15="4*4", Equipment!$U$7, " "))) -> 4 | F15: =+Equipment!$I$38 -> 1.078 | G15: 0.25 | H15: June | I15: =+G15*Equipment!$M$38 -> 0.23177 | J15: =+G15*Equipment!$K$38 -> 1.9947312 | K15: =+SUM(I15:J15) -> 2.2265012 | L15: =+G15*Equipment!$P$38 -> 1.53615 | M15: =+G15*Equipment!$L$38 -> 0.0425 | N15: =+G15*Equipment!$O$38 -> 0.2875 | O15: =+F15*G15 -> 0.2695 | P15: =+Labor_Fuel_Interest!$C$10*O15 -> 4.69469 | T15: =+K15+L15+M15+N15+P15+S15 -> 8.7873412 | U15: 6.9636912 | X15: Hand labor
B16: Seed Between Rows | H16: June | U16: 0 | X16: Special labor | Y16: hour | Z16: =+Labor_Fuel_Interest!$C$11 -> 13.89 | AA16: =+O8+O14+O18 -> 1.78 | AB16: =+Z16*AA16 -> 24.7242
B17: Grain Drill | C17: 6ft | D17: MFWD 50hp | E17: 4 | F17: =+Equipment!$I$24 -> 0.39286 | G17: 1 | I17: =+G17*Equipment!$M$24 -> 0.3378596 | J17: =+G17*Equipment!$K$24 -> 2.907792576 | K17: =SUM(I17:J17) -> 3.245652176 | L17: =+G17*Equipment!$P$24 -> 2.239302 | M17: =+G17*Equipment!$L$24 -> 1.95 | N17: =+G17*Equipment!$O$24 -> 3.47 | O17: =+G17*F17 -> 0.39286 | P17: =+O17*Labor_Fuel_Interest!$C$10 -> 6.8436212 | T17: =+K17+L17+M17+N17+P17+S17 -> 17.74857538 | U17: 12.03927338 | X17: Diesel Fuel
B18: Hand Labor | C18: hour | O18: 0.18 | P18: =+O18*Labor_Fuel_Interest!$C$11 -> 2.5002 | T18: 2.5002 | U18: 2.5002 | X18: Tractors | Y18: gal | Z18: =+Labor_Fuel_Interest!$E$4 -> 2.88 | AA18: =+J20/Labor_Fuel_Interest!$E$4 -> 3.8919052 | AB18: =+Z18*AA18 -> 11.20868698
B19: Grass Seed | C19: lb. | Q19: 10 | R19: =+'Grass seed'!$E$9 -> 1.8899 | S19: =+Q19*R19 -> 18.899 | T19: =+K19+L19+M19+N19+P19+S19 -> 18.899 | U19: 18.899 | X19: Repair & Maintenance
B20: Total | I20: =+SUM(I7:I19) -> 1.3023496 | J20: 11.20868698 | K20: 12.51103658 | L20: =+SUM(L7:L19) -> 8.631852 | M20: =+SUM(M7:M19) -> 3.3475 | N20: =+SUM(N7:N19) -> 8.8525 | P20: =+SUM(P7:P19) -> 51.1043512 | S20: =+SUM(S7:S19) -> 489.9703333 | T20: =+SUM(T7:T19) -> 574.4175731 | U20: =SUM(U7:U19) -> 532.8927427 | X20: Implements | Y20: acre | Z20: =+M20 -> 3.3475 | AA20: 1 | AB20: 3.3475
B21: Interest on Operating Capital | T21: =+(U20*Labor_Fuel_Interest!$C$15)/2 -> 16.65289821 | X21: Tractors | Y21: acre | Z21: =+I20 -> 1.3023496 | AA21: 1 | AB21: 1.3023496
B22: Total Specified Cost | T22: =+SUM(T20:T21) -> 591.0704713 | X22: Interest on OP. CAP. | Y22: acre | Z22: =+T21 -> 16.65289821 | AA22: 1 | AB22: 16.65289821
X23: Total expenses | AB23: =+SUM(AB8:AB22) -> 573.5861193 | AC23: =SUM(AC7:AC22) -> 0
X25: Fixed Expenses
X26: Implements | Y26: acre | Z26: =+N20 -> 8.8525 | AA26: 1 | AB26: =+Z26*AA26 -> 8.8525
X27: Tractors | Y27: acre | Z27: =+L20 -> 8.631852 | AA27: 1 | AB27: =+Z27*AA27 -> 8.631852
X29: Total fixed expenses | AB29: =+AB26+AB27 -> 17.484352 | AC29: =SUM(AC25:AC28) -> 0
X31: Total Specified Expenses | AB31: =+AB23+AB29 -> 591.0704713 | AC31: =+AC29+AC23 -> 0
B200: Blackberry Enterprise Budget Year 1
B201: Operation / Operating Input | C201: Size/ Unit | D201: Power Unit Size | E201: # | F201: Perf Rate | G201: Times Over | H201: Month | I201: Power Unit Cost | M201: Equipment Cost | O201: Alloc Labor | Q201: Operating / Durable Input | T201: Total Cost
I202: R & M | J202: Fuel | K202: Direct | L202: Fixed | M202: Direct | N202: Fixed | O202: Hours | P202: Cost | Q202: Amount | R202: Price | S202: Cost
B204: Disk Harrow | C204: 6ft | D204: MFWD 50hp | E204: 4 | F204: =+Equipment!$I$20 -> 0.33 | G204: 1 | H204: June | I204: =+G204*Equipment!$M$20 -> 0.2838 | J204: =+G204*Equipment!$K$20 -> 2.442528 | K204: =SUM(I204:J204) -> 2.726328 | L204: =+G204*Equipment!$P$20 -> 1.881 | M204: =+G204*Equipment!$L$20 -> 0.2 | N204: =+G204*Equipment!$O$20 -> 0.47 | O204: =+F204*G204 -> 0.33 | P204: =+Labor_Fuel_Interest!$C$10*O204 -> 5.7486 | T204: =+K204+L204+M204+N204+P204+S204 -> 11.025928
B205: Soil Test Hand labor | C205: hour | G205: 1 | H205: June | O205: =0.6*G205 -> 0.6 | P205: =+Labor_Fuel_Interest!$C$11*O205 -> 8.334 | T205: 8.334
B206: Soil test | C206: each | E206: =+IF(D206="MFWD 50hp", Equipment!$U$5, IF(D206="MFWD 50hp", Equipment!$U$6, IF(D206="4*4", Equipment!$U$7, " "))) ->  | Q206: 1 | R206: =+'Soil test'!$D$11 -> 15 | S206: =+Q206*R206 -> 15 | T206: 15
B207: Soil test probe | C207: each | E207: =+IF(D207="MFWD 50hp", Equipment!$U$5, IF(D207="MFWD 50hp", Equipment!$U$6, IF(D207="4*4", Equipment!$U$7, " "))) ->  | Q207: 1 | R207: =+'Soil test'!$D$8 -> 107.7266667 | S207: =+Q207*R207 -> 107.7266667 | T207: 107.7266667
B208: Weed Spray | C208: 2 qt | D208: MFWD 50hp | E208: 4 | F208: =+Equipment!I$37 -> 0.099 | G208: 1 | H208: June | I208: =+G208*Equipment!$M$37 -> 0.08514 | J208: =+G208*Equipment!$K$37 -> 0.7327584 | K208: =SUM(I208:J208) -> 0.8178984 | L208: =+G208*Equipment!$P$37 -> 0.5643 | M208: =+G208*Equipment!$L$37 -> 0.1 | N208: =+G208*Equipment!$O$37 -> 0.12 | O208: =+F208*G208 -> 0.099 | P208: =+O208*Labor_Fuel_Interest!$C$10 -> 1.72458 | Q208: 2 | R208: =+'Chemical & Fertilizer Costs'!$H$6 -> 10.699 | S208: =+Q208*R208 -> 21.398 | T208: 24.7247784
B209: Apply Fertilizer (15-15-15) | C209: lb. | D209: MFWD 50hp | E209: 4 | F209: =+Equipment!$I$27 -> 0.846 | G209: 0.5 | H209: June | I209: =+G209*Equipment!$M$27 -> 0.36378 | J209: =+G209*Equipment!$K$27 -> 3.1308768 | K209: =SUM(I209:J209) -> 3.4946568 | L209: =+G209*Equipment!$P$27 -> 2.4111 | M209: =+G209*Equipment!$L$27 -> 1.055 | N209: =+G209*Equipment!$O$27 -> 4.505 | O209: =+F209*G209 -> 0.423 | P209: =+Labor_Fuel_Interest!$C$10*O209 -> 7.36866 | Q209: 800 | R209: =+'Chemical & Fertilizer Costs'!$F$21 -> 0.4086833333 | S209: =+Q209*R209 -> 326.9466667 | T209: 345.7810835
B210: Mark of Rows | E210: =+IF(D210="MFWD 50hp", Equipment!$U$5, IF(D210="MFWD 50hp", Equipment!$U$6, IF(D210="4*4", Equipment!$U$7, " "))) ->  | H210: June
B211: Hand labor | C211: hour | E211: =+IF(D211="MFWD 50hp", Equipment!$U$5, IF(D211="MFWD 50hp", Equipment!$U$6, IF(D211="4*4", Equipment!$U$7, " "))) ->  | O211: 1 | P211: =+Labor_Fuel_Interest!$C$11*O211 -> 13.89 | T211: =+K211+L211+M211+N211+P211+S211 -> 13.89
B212: Sub-Soiler | C212: 1 shank | D212: MFWD 50hp | E212: =+IF(D212="MFWD 50hp", Equipment!$U$5, IF(D212="MFWD 50hp", Equipment!$U$6, IF(D212="4*4", Equipment!$U$7, " "))) -> 4 | F212: =+Equipment!$I$38 -> 1.078 | G212: 0.25 | H212: June | I212: =+G212*Equipment!$M$38 -> 0.23177 | J212: =+G212*Equipment!$K$38 -> 1.9947312 | K212: =+SUM(I212:J212) -> 2.2265012 | L212: =+G212*Equipment!$P$38 -> 1.53615 | M212: =+G212*Equipment!$L$38 -> 0.0425 | N212: =+G212*Equipment!$O$38 -> 0.2875 | O212: =+F212*G212 -> 0.2695 | P212: =+Labor_Fuel_Interest!$C$10*O212 -> 4.69469 | T212: =+K212+L212+M212+N212+P212+S212 -> 8.7873412
B213: Seed Between Rows | H213: June
B214: Grain Drill | C214: 6ft | D214: MFWD 50hp | E214: 4 | F214: =+Equipment!$I$24 -> 0.39286 | G214: 1 | I214: =+G214*Equipment!$M$24 -> 0.3378596 | J214: =+G214*Equipment!$K$24 -> 2.907792576 | K214: =SUM(I214:J214) -> 3.245652176 | L214: =+G214*Equipment!$P$24 -> 2.239302 | M214: =+G214*Equipment!$L$24 -> 1.95 | N214: =+G214*Equipment!$O$24 -> 3.47 | O214: =+G214*F214 -> 0.39286 | P214: =+O214*Labor_Fuel_Interest!$C$10 -> 6.8436212 | T214: =+K214+L214+M214+N214+P214+S214 -> 17.74857538
B215: Hand Labor | C215: hour | O215: 0.18 | P215: =+O215*Labor_Fuel_Interest!$C$11 -> 2.5002 | T215: 2.5002
B216: Grass Seed | C216: lb. | Q216: 10 | R216: =+'Grass seed'!$E$9 -> 1.8899 | S216: =+Q216*R216 -> 18.899 | T216: =+K216+L216+M216+N216+P216+S216 -> 18.899
B217: Total | I217: =+SUM(I204:I216) -> 1.3023496 | J217: 11.20868698 | K217: 12.51103658 | L217: =+SUM(L204:L216) -> 8.631852 | M217: =+SUM(M204:M216) -> 3.3475 | N217: =+SUM(N204:N216) -> 8.8525 | P217: =+SUM(P204:P216) -> 51.1043512 | S217: =+SUM(S204:S216) -> 489.9703333 | T217: =+SUM(T204:T216) -> 574.4175731
B218: Interest on Operating Capital | T218: =+(U217*Labor_Fuel_Interest!$C$15)/2 -> 0
B219: Total Specified Cost | T219: =+SUM(T217:T218) -> 574.4175731

Sheet Summary Y1
B3: Blackberry Enterprise Budget Year 0 | X3: Summary Budget Year 1
B4: Operation / Operating Input | C4: Size/ Unit | D4: Power Unit Size | E4: # | F4: Perf Rate | G4: Times Over | H4: Month | I4: Power Unit Cost | M4: Equipment Cost | O4: Alloc Labor | Q4: Operating / Durable Input | T4: Total Cost | X4: Items | Y4: Unit | Z4: Price | AA4: Quantity | AB4: Amount | AC4: Your Farm
I5: R & M | J5: Fuel | K5: Direct | L5: Fixed | M5: Direct | N5: Fixed | O5: Hours | P5: Cost | Q5: Amount | R5: Price | S5: Cost
X6: Direct expenses
B7: Disk Harrow | C7: 6ft | D7: MFWD 50hp | E7: 4 | F7: =+Equipment!$I$20 -> 0.33 | G7: 1 | H7: June | I7: =+G7*Equipment!$M$20 -> 0.2838 | J7: =+G7*Equipment!$K$20 -> 2.442528 | K7: =SUM(I7:J7) -> 2.726328 | L7: =+G7*Equipment!$P$20 -> 1.881 | M7: =+G7*Equipment!$L$20 -> 0.2 | N7: =+G7*Equipment!$O$20 -> 0.47 | O7: =+F7*G7 -> 0.33 | P7: =+Labor_Fuel_Interest!$C$10*O7 -> 5.7486 | T7: =+K7+L7+M7+N7+P7+S7 -> 11.025928 | U7: =+(K7+M7+P7+S7) -> 8.674928 | X7: Fertilizer
B8: Soil Test Hand labor | C8: hour | G8: 1 | H8: June | O8: =0.6*G8 -> 0.6 | P8: =+Labor_Fuel_Interest!$C$11*O8 -> 8.334 | T8: 8.334 | U8: =+(K8+M8+P8+S8) -> 8.334 | X8: 15-15-15 | Y8: lb. | Z8: =+'Blackberry Budget Y1'!R$12 -> 0.4086833333 | AA8: =+'Blackberry Budget Y1'!Q$12 -> 800 | AB8: =+Z8*AA8 -> 326.9466667
B9: Soil test | C9: each | E9: =+IF(D9="MFWD 50hp", Equipment!$U$5, IF(D9="MFWD 50hp", Equipment!$U$6, IF(D9="4*4", Equipment!$U$7, " "))) ->  | Q9: 1 | R9: =+'Soil test'!$D$11 -> 15 | S9: =+Q9*R9 -> 15 | T9: 15 | U9: =+(K9+M9+P9+S9) -> 15 | X9: Soil test | Y9: each | Z9: =+'Blackberry Budget Y1'!R$9 -> 15 | AA9: =+'Blackberry Budget Y1'!Q$9 -> 1 | AB9: =+Z9*AA9 -> 15
B10: Soil test probe | C10: each | E10: =+IF(D10="MFWD 50hp", Equipment!$U$5, IF(D10="MFWD 50hp", Equipment!$U$6, IF(D10="4*4", Equipment!$U$7, " "))) ->  | Q10: 1 | R10: =+'Soil test'!$D$8 -> 107.7266667 | S10: =+Q10*R10 -> 107.7266667 | T10: 107.7266667 | U10: =+(K10+M10+P10+S10) -> 107.7266667 | X10: Soil test probe | Y10: each | Z10: =+'Blackberry Budget Y1'!R$10 -> 107.7266667 | AA10: =+'Blackberry Budget Y1'!Q$10 -> 1 | AB10: =+Z10*AA10 -> 107.7266667
B11: Weed Spray | C11: 2 qt | D11: MFWD 50hp | E11: 4 | F11: =+Equipment!I$37 -> 0.099 | G11: 1 | H11: June | I11: =+G11*Equipment!$M$37 -> 0.08514 | J11: =+G11*Equipment!$K$37 -> 0.7327584 | K11: =SUM(I11:J11) -> 0.8178984 | L11: =+G11*Equipment!$P$37 -> 0.5643 | M11: =+G11*Equipment!$L$37 -> 0.1 | N11: =+G11*Equipment!$O$37 -> 0.12 | O11: =+F11*G11 -> 0.099 | P11: =+O11*Labor_Fuel_Interest!$C$10 -> 1.72458 | Q11: 2 | R11: =+'Chemical & Fertilizer Costs'!$H$6 -> 10.699 | S11: =+Q11*R11 -> 21.398 | T11: 24.7247784 | X11: Grass seed | Y11: lb. | Z11: =+'Blackberry Budget Y1'!R$19 -> 1.8899 | AA11: =+'Blackberry Budget Y1'!Q$19 -> 10 | AB11: =+Z11*AA11 -> 18.899
B12: Apply Fertilizer (15-15-15) | C12: lb. | D12: MFWD 50hp | E12: 4 | F12: =+Equipment!$I$27 -> 0.846 | G12: 0.5 | H12: June | I12: =+G12*Equipment!$M$27 -> 0.36378 | J12: =+G12*Equipment!$K$27 -> 3.1308768 | K12: =SUM(I12:J12) -> 3.4946568 | L12: =+G12*Equipment!$P$27 -> 2.4111 | M12: =+G12*Equipment!$L$27 -> 1.055 | N12: =+G12*Equipment!$O$27 -> 4.505 | O12: =+F12*G12 -> 0.423 | P12: =+Labor_Fuel_Interest!$C$10*O12 -> 7.36866 | Q12: 800 | R12: =+'Chemical & Fertilizer Costs'!$F$21 -> 0.4086833333 | S12: =+Q12*R12 -> 326.9466667 | T12: 345.7810835 | U12: =+(K12+M12+P12+S12) -> 338.8649835 | X12: Glyphosate | Y12: qt | Z12: =+'Blackberry Budget Y1'!R$11 -> 10.699 | AA12: =+'Blackberry Budget Y1'!Q$11 -> 2 | AB12: =+Z12*AA12 -> 21.398
B13: Mark of Rows | E13: =+IF(D13="MFWD 50hp", Equipment!$U$5, IF(D13="MFWD 50hp", Equipment!$U$6, IF(D13="4*4", Equipment!$U$7, " "))) ->  | H13: June | U13: 0 | X13: Operator labor
B14: Hand labor | C14: hour | E14: =+IF(D14="MFWD 50hp", Equipment!$U$5, IF(D14="MFWD 50hp", Equipment!$U$6, IF(D14="4*4", Equipment!$U$7, " "))) ->  | O14: 1 | P14: =+Labor_Fuel_Interest!$C$11*O14 -> 13.89 | T14: =+K14+L14+M14+N14+P14+S14 -> 13.89 | U14: 13.89 | X14: Tractors | Y14: hour | Z14: =+Labor_Fuel_Interest!$C$10 -> 17.42 | AA14: =+'Blackberry Budget Y1'!O$7+'Blackberry Budget Y1'!O$12+'Blackberry Budget Y1'!O$15+'Blackberry Budget Y1'!O$17+'Blackberry Budget Y1'!O$11 -> 1.51436 | AB14: =+Z14*AA14 -> 26.3801512
B15: Sub-Soiler | C15: 1 shank | D15: MFWD 50hp | E15: =+IF(D15="MFWD 50hp", Equipment!$U$5, IF(D15="MFWD 50hp", Equipment!$U$6, IF(D15="4*4", Equipment!$U$7, " "))) -> 4 | F15: =+Equipment!$I$38 -> 1.078 | G15: 0.25 | H15: June | I15: =+G15*Equipment!$M$38 -> 0.23177 | J15: =+G15*Equipment!$K$38 -> 1.9947312 | K15: =+SUM(I15:J15) -> 2.2265012 | L15: =+G15*Equipment!$P$38 -> 1.53615 | M15: =+G15*Equipment!$L$38 -> 0.0425 | N15: =+G15*Equipment!$O$38 -> 0.2875 | O15: =+F15*G15 -> 0.2695 | P15: =+Labor_Fuel_Interest!$C$10*O15 -> 4.69469 | T15: =+K15+L15+M15+N15+P15+S15 -> 8.7873412 | U15: 6.9636912 | X15: Hand labor
B16: Seed Between Rows | H16: June | U16: 0 | X16: Special labor | Y16: hour | Z16: =+Labor_Fuel_Interest!$C$11 -> 13.89 | AA16: =+'Blackberry Budget Y1'!O$8+'Blackberry Budget Y1'!O$14+'Blackberry Budget Y1'!O$18 -> 1.78 | AB16: =+Z16*AA16 -> 24.7242
B17: Grain Drill | C17: 6ft | D17: MFWD 50hp | E17: 4 | F17: =+Equipment!$I$24 -> 0.39286 | G17: 1 | I17: =+G17*Equipment!$M$24 -> 0.3378596 | J17: =+G17*Equipment!$K$24 -> 2.907792576 | K17: =SUM(I17:J17) -> 3.245652176 | L17: =+G17*Equipment!$P$24 -> 2.239302 | M17: =+G17*Equipment!$L$24 -> 1.95 | N17: =+G17*Equipment!$O$24 -> 3.47 | O17: =+G17*F17 -> 0.39286 | P17: =+O17*Labor_Fuel_Interest!$C$10 -> 6.8436212 | T17: =+K17+L17+M17+N17+P17+S17 -> 17.74857538 | U17: 12.03927338 | X17: Diesel Fuel
B18: Hand Labor | C18: hour | O18: 0.18 | P18: =+O18*Labor_Fuel_Interest!$C$11 -> 2.5002 | T18: 2.5002 | U18: 2.5002 | X18: Tractors | Y18: gal | Z18: =+Labor_Fuel_Interest!$E$4 -> 2.88 | AA18: =+'Blackberry Budget Y1'!J$20/Labor_Fuel_Interest!$E$4 -> 3.8919052 | AB18: =+Z18*AA18 -> 11.20868698
B19: Grass Seed | C19: lb. | Q19: 10 | R19: =+'Grass seed'!$E$9 -> 1.8899 | S19: =+Q19*R19 -> 18.899 | T19: =+K19+L19+M19+N19+P19+S19 -> 18.899 | U19: 18.899 | X19: Repair & Maintenance
B20: Total | I20: =+SUM(I7:I19) -> 1.3023496 | J20: 11.20868698 | K20: 12.51103658 | L20: =+SUM(L7:L19) -> 8.631852 | M20: 3.3475 | N20: =+SUM(N7:N19) -> 8.8525 | P20: =+SUM(P7:P19) -> 51.1043512 | S20: =+SUM(S7:S19) -> 489.9703333 | T20: =+SUM(T7:T19) -> 574.4175731 | U20: =SUM(U7:U19) -> 532.8927427 | X20: Implements | Y20: acre | Z20: =+'Blackberry Budget Y1'!M$20 -> 3.3475 | AA20: 1 | AB20: =+Z20*AA20 -> 3.3475
B21: Interest on Operating Capital | T21: =+(U20*Labor_Fuel_Interest!$C$15)/2 -> 16.65289821 | X21: Tractors | Y21: acre | Z21: =+'Blackberry Budget Y1'!I$20 -> 1.3023496 | AA21: 1 | AB21: 1.3023496
B22: Total Specified Cost | T22: =+SUM(T20:T21) -> 591.0704713 | X22: Interest on OP. CAP. | Y22: acre | Z22: =+'Blackberry Budget Y1'!T$21 -> 16.65289821 | AA22: 1 | AB22: 16.65289821
X23: Total Expenses | AB23: =+SUM(AB8:AB22) -> 573.5861193 | AC23: =SUM(AC7:AC22) -> 0
X25: Fixed Expenses
X26: Implements | Y26: acre | Z26: =+'Blackberry Budget Y1'!N$20 -> 8.8525 | AA26: 1 | AB26: =+Z26*AA26 -> 8.8525
X27: Tractors | Y27: acre | Z27: =+'Blackberry Budget Y1'!L$20 -> 8.631852 | AA27: 1 | AB27: =+Z27*AA27 -> 8.631852
X29: Total Fixed Expenses | AB29: =+AB26+AB27 -> 17.484352 | AC29: =SUM(AC25:AC28) -> 0
X31: Total Specified Expenses | AB31: =+AB23+AB29 -> 591.0704713 | AC31: =+AC29+AC23 -> 0
X200: Summary Budget Year 1
X201: Items | Y201: Unit | Z201: Price | AA201: Quantity | AB201: Amount | AC201: Your Farm
X203: Direct expenses
X204: Fertilizer
X205: 15-15-15 | Y205: lb. | Z205: =+'Blackberry Budget Y1'!R$12 -> 0.4086833333 | AA205: =+'Blackberry Budget Y1'!Q$12 -> 800 | AB205: =+Z205*AA205 -> 326.9466667
X206: Soil test | Y206: each | Z206: =+'Blackberry Budget Y1'!R$9 -> 15 | AA206: =+'Blackberry Budget Y1'!Q$9 -> 1 | AB206: =+Z206*AA206 -> 15
X207: Soil test probe | Y207: each | Z207: =+'Blackberry Budget Y1'!R$10 -> 107.7266667 | AA207: =+'Blackberry Budget Y1'!Q$10 -> 1 | AB207: =+Z207*AA207 -> 107.7266667
X208: Grass seed | Y208: lb. | Z208: =+'Blackberry Budget Y1'!R$19 -> 1.8899 | AA208: =+'Blackberry Budget Y1'!Q$19 -> 10 | AB208: =+Z208*AA208 -> 18.899
X209: Glyphosate | Y209: qt | Z209: =+'Blackberry Budget Y1'!R$11 -> 10.699 | AA209: =+'Blackberry Budget Y1'!Q$11 -> 2 | AB209: =+Z209*AA209 -> 21.398
X210: Operator labor
X211: Tractors | Y211: hour | Z211: =+Labor_Fuel_Interest!$C$10 -> 17.42 | AA211: =+'Blackberry Budget Y1'!O$7+'Blackberry Budget Y1'!O$12+'Blackberry Budget Y1'!O$15+'Blackberry Budget Y1'!O$17+'Blackberry Budget Y1'!O$11 -> 1.51436 | AB211: =+Z211*AA211 -> 26.3801512
X212: Hand labor
X213: Special labor | Y213: hour | Z213: =+Labor_Fuel_Interest!$C$11 -> 13.89 | AA213: =+'Blackberry Budget Y1'!O$8+'Blackberry Budget Y1'!O$14+'Blackberry Budget Y1'!O$18 -> 1.78 | AB213: =+Z213*AA213 -> 24.7242
X214: Diesel Fuel
X215: Tractors | Y215: gal | Z215: =+Labor_Fuel_Interest!$E$4 -> 2.88 | AA215: =+'Blackberry Budget Y1'!J$20/Labor_Fuel_Interest!$E$4 -> 3.8919052 | AB215: =+Z215*AA215 -> 11.20868698
X216: Repair & Maintenance
X217: Implements | Y217: acre | Z217: =+'Blackberry Budget Y1'!M$20 -> 3.3475 | AA217: 1 | AB217: =+Z217*AA217 -> 3.3475
X218: Tractors | Y218: acre | Z218: =+'Blackberry Budget Y1'!I$20 -> 1.3023496 | AA218: 1 | AB218: 1.3023496
X219: Interest on OP. CAP. | Y219: acre | Z219: =+'Blackberry Budget Y1'!T$21 -> 16.65289821 | AA219: 1 | AB219: 16.65289821
X220: Total Expenses | AB220: =+SUM(AB205:AB219) -> 573.5861193 | AC220: =SUM(AC204:AC219) -> 0
X222: Fixed Expenses
X223: Implements | Y223: acre | Z223: =+'Blackberry Budget Y1'!N$20 -> 8.8525 | AA223: 1 | AB223: =+Z223*AA223 -> 8.8525
X224: Tractors | Y224: acre | Z224: =+'Blackberry Budget Y1'!L$20 -> 8.631852 | AA224: 1 | AB224: =+Z224*AA224 -> 8.631852
X226: Total Fixed Expenses | AB226: =+AB223+AB224 -> 17.484352 | AC226: =SUM(AC222:AC225) -> 0
X228: Total Specified Expenses | AB228: =+AB220+AB226 -> 591.0704713 | AC228: =+AC226+AC220 -> 0

Sheet Blackberry Budget Y2
B3: Blackberry Enterprise Budget Year 2 | X3: Summary Budget Year 1
B4: Operation / Operating Input | C4: Size/ Unit | D4: Power Unit Size | E4: # | F4: Perf Rate | G4: Times Over | H4: Month | I4: Power unit cost | M4: Equipment Cost | O4: Alloc Labor | Q4: Operating / Durable Input | T4: Total Cost | X4: Items | Y4: unit | Z4: Price | AA4: Quantity | AB4: Amount | AC4: Your Farm
I5: R&M | J5: Fuel | K5: Direct | L5: Fixed | M5: Direct | N5: Fixed | O5: Hours | P5: Cost | Q5: Amount | R5: Price | S5: Cost
X6: Direct expenses
B7: Mow between Rows | E7: =+IF(D7="MFWD 50hp", Equipment!$U$5, IF('Blackberry Budget Y2'!D7="MFWD 50hp", Equipment!$U$6, IF(D7="4*4", Equipment!$U$7, " "))) ->  | H7: Mar | X7: Blackberry plants | Y7: each | Z7: =+R$10 -> 4.11 | AA7: =+Q$10 -> 1210 | AB7: =+Z7*AA7 -> 4973.1
B8: Rotary cutter | C8: 6 ft | D8: MFWD 50hp | E8: 4 | F8: =+Equipment!$I$25 -> 0.572 | G8: 0.5 | I8: =+$G$8*Equipment!$M$25 -> 0.24596 | J8: =+G8*Equipment!$K$25 -> 2.1168576 | K8: =+SUM(I8:J8) -> 2.3628176 | L8: =+G8*Equipment!$P$25 -> 1.6302 | M8: =+G8*Equipment!$L$25 -> 0.215 | N8: =+G8*Equipment!$O$25 -> 0.63 | O8: =+F8*G8 -> 0.286 | P8: =+O8*Labor_Fuel_Interest!$C$10 -> 4.98212 | T8: =+S8+P8+N8+M8+L8+K8 -> 9.8201376 | U8: =+(K8+M8+P8+S8) -> 7.5599376 | X8: Fertilizer
B9: Weed Spray | C9: qt | D9: MFWD 50hp | E9: 4 | F9: =+Equipment!$I$37 -> 0.099 | G9: 0.5 | H9: Mar | I9: =+G9*Equipment!$M$37 -> 0.04257 | J9: =+G9*Equipment!$K$37 -> 0.3663792 | K9: =SUM(I9:J9) -> 0.4089492 | L9: =+G9*Equipment!$P$37 -> 0.28215 | M9: =+G9*Equipment!$L$37 -> 0.05 | N9: =+G9*Equipment!$O$37 -> 0.06 | O9: =+F9*G9 -> 0.0495 | P9: =+O9*Labor_Fuel_Interest!$C$10 -> 0.86229 | Q9: 1 | R9: =+'Chemical & Fertilizer Costs'!$H$6 -> 10.699 | S9: =+Q9*R9 -> 10.699 | T9: =+K9+L9+M9+N9+P9+S9 -> 12.3623892 | U9: =+(K9+M9+P9+S9) -> 12.0202392 | X9: Urea | Y9: lb. | Z9: =+R$24 -> 0.3922666667 | AA9: =+Q$24+Q$37+Q$50 -> 86.9 | AB9: =+Z9*AA9 -> 34.08797333
B10: Transplanting Blackberry Plants | C10: each | E10: =+IF(D10="MFWD 50hp", Equipment!$U$5, IF('Blackberry Budget Y2'!D10="MFWD 50hp", Equipment!$U$6, IF(D10="4*4", Equipment!$U$7, " "))) ->  | H10: Mar | O10: 36 | P10: =+O10*Labor_Fuel_Interest!C$11 -> 500.04 | Q10: 1210 | R10: ='Plant costs'!H$15 -> 4.11 | S10: =+Q10*R10 -> 4973.1 | T10: =+S10+P10+N10+M10+L10+K10 -> 5473.14 | U10: =+(K10+M10+P10+S10) -> 5473.14 | X10: Chemicals
B11: Construct Trellis | E11: =+IF(D11="MFWD 50hp", Equipment!$U$5, IF('Blackberry Budget Y2'!D11="MFWD 50hp", Equipment!$U$6, IF(D11="4*4", Equipment!$U$7, " "))) ->  | H11: Mar | X11: Glyphosate | Y11: qt | Z11: =+R$9 -> 10.699 | AA11: =+Q$9 -> 1 | AB11: =+Z11*AA11 -> 10.699
B12: Auger post holes | D12: MFWD 50hp | E12: 4 | F12: =+Equipment!$I$5 -> 2 | G12: 0.5 | I12: =+G12*Equipment!$M$5 -> 0.86 | J12: =+G12*Equipment!$K$5 -> 7.4016 | K12: =+SUM(I12:J12) -> 8.2616 | L12: =+G12*Equipment!$P$5 -> 5.7 | M12: =+G12*Equipment!$L$5 -> 0 | N12: =+G12*Equipment!$O$5 -> 0.34 | O12: 6 | P12: =+O12*Labor_Fuel_Interest!$C$10 -> 104.52 | T12: =+S12+P12+N12+M12+L12+K12 -> 118.8216 | U12: =+(K12+M12+P12+S12) -> 112.7816 | X12: Pristine | Y12: oz | Z12: =+R$27 -> 0.809375 | AA12: =+Q$27 -> 21 | AB12: =+Z12*AA12 -> 16.996875
B13: hand labor | C13: hour | O13: 39 | P13: =+O13*Labor_Fuel_Interest!$C$11 -> 541.71 | T13: =+S13+P13+N13+M13+L13+K13 -> 541.71 | U13: 541.71 | X13: Captane | Y13: lb. | Z13: =+R$28 -> 6.736 | AA13: =+Q$28+Q$41+Q$54+Q$63 -> 10 | AB13: 67.36
B14: Wood post 2.5" x 8' | C14: each | E14: =+IF(D14="MFWD 50hp", Equipment!$U$5, IF('Blackberry Budget Y2'!D14="MFWD 50hp", Equipment!$U$6, IF(D14="4*4", Equipment!$U$7, " "))) ->  | Q14: =+'T-Trellis system'!D10 -> 118 | R14: ='T-Trellis system'!$E$10 -> 19.64333333 | S14: =+Q14*R14 -> 2317.913333 | T14: =+S14+P14+N14+M14+L14+K14 -> 2317.913333 | U14: 2317.913333 | X14: Quilt Xcel | Y14: fl oz | Z14: =+R$40 -> 1.245260417 | AA14: =+Q$40+Q$62 -> 35 | AB14: 43.58411458
B15: Crossarms | C15: each | E15: =+IF(D15="MFWD 50hp", Equipment!$U$5, IF('Blackberry Budget Y2'!D15="MFWD 50hp", Equipment!$U$6, IF(D15="4*4", Equipment!$U$7, " "))) ->  | Q15: 59 | R15: ='T-Trellis system'!E12 -> 8.19 | S15: =+Q15*R15 -> 483.21 | T15: =+S15+P15+N15+M15+L15+K15 -> 483.21 | U15: 483.21 | X15: Luna Tranquility | Y15: fl oz | Z15: =+R$53 -> 3.24984375 | AA15: =+Q$53 -> 20 | AB15: 64.996875
B16: Wire-Blackberry | C16: 8700 ft roll | E16: =+IF(D16="MFWD 50hp", Equipment!$U$5, IF('Blackberry Budget Y2'!D16="MFWD 50hp", Equipment!$U$6, IF(D16="4*4", Equipment!$U$7, " "))) ->  | Q16: =+'T-Trellis system'!D13 -> 2 | R16: ='T-Trellis system'!E13 -> 153.99 | S16: 307.98 | T16: 307.98 | U16: 307.98 | X16: Operator labor
B17: Trellis hardware | C17: acre | Q17: 1 | R17: 288.02 | S17: 288.02 | T17: 288.02 | U17: 288.02 | X17: Tractors | Y17: hour | Z17: =+Labor_Fuel_Interest!$C$10 -> 17.42 | AA17: =+O$8+O$9+O$12+O$21+O$23+O$26+O$33+O$36+O$39+O$45+O$49+O$52+O$58+O$61+O$65+O$70+O$73 -> 10.0965 | AB17: =+Z17*AA17 -> 175.88103
B18: Hoeing | G18: 1 | H18: Apr | U18: 0 | X18: Hand labor
B19: hand labor | C19: hour | O19: 13 | P19: =+O19*Labor_Fuel_Interest!$C$11 -> 180.57 | T19: =+S19+P19+N19+M19+L19+K19 -> 180.57 | U19: 180.57 | X19: Special labor | Y19: hour | Z19: =+Labor_Fuel_Interest!$C$11 -> 13.89 | AA19: =+O$10+O$13+O$19+O$31+O$43+O$46+O$56+O$67 -> 145 | AB19: =+Z19*AA19 -> 2014.05
B20: Mow between Rows | E20: =+IF(D20="MFWD 50hp", Equipment!$U$5, IF('Blackberry Budget Y2'!D20="MFWD 50hp", Equipment!$U$6, IF(D20="4*4", Equipment!$U$7, " "))) ->  | H20: Apr | U20: 0 | X20: Irrigation labor | AB20: =+Z20*AA20 -> 0
B21: Rotary cutter | C21: 6 ft | D21: MFWD 50hp | E21: 4 | F21: =+Equipment!$I$25 -> 0.572 | G21: 0.5 | I21: =+$G$8*Equipment!$M$25 -> 0.24596 | J21: =+G21*Equipment!$K$25 -> 2.1168576 | K21: =+SUM(I21:J21) -> 2.3628176 | L21: =+G21*Equipment!$P$25 -> 1.6302 | M21: =+G21*Equipment!$L$25 -> 0.215 | N21: =+G21*Equipment!$O$25 -> 0.63 | O21: =+F21*G21 -> 0.286 | P21: =+O21*Labor_Fuel_Interest!$C$10 -> 4.98212 | T21: =+S21+P21+N21+M21+L21+K21 -> 9.8201376 | U21: =+(K21+M21+P21+S21) -> 7.5599376 | X21: Special labor | Y21: hour | Z21: =+Labor_Fuel_Interest!$C$10 -> 17.42 | AA21: =+O$29+O$34+O$47+O$59+O$68+O$71+O$74 -> 0.35 | AB21: =+Z21*AA21 -> 6.097
B22: Apply fertilizer | H22: Apr | U22: 0 | X22: Irrigation variable cost | Y22: acre | Z22: =++M$29+M$34+M$47+M$59+M$68+M$71+M$74 -> 247.8 | AA22: 1 | AB22: =+Z22*AA22 -> 247.8
B23: Side dresser | C23: 1R 3ft | D23: MFWD 50hp | E23: 4 | F23: =+Equipment!$I$27 -> 0.846 | G23: 0.5 | H23: Apr | I23: =+G23*Equipment!$M$27 -> 0.36378 | J23: =+G23*Equipment!$K$27 -> 3.1308768 | K23: =SUM(I23:J23) -> 3.4946568 | L23: =+G23*Equipment!$P$27 -> 2.4111 | M23: =+G23*Equipment!$L$27 -> 1.055 | N23: =+G23*Equipment!$O$27 -> 4.505 | O23: =+F23*G23 -> 0.423 | P23: =+Labor_Fuel_Interest!$C$10*O23 -> 7.36866 | T23: =+S23+P23+N23+M23+L23+K23 -> 18.8344168 | U23: 11.9183168 | X23: Diesel Fuel
B24: Urea | C24: lb. | Q24: 43.5 | R24: =+'Chemical & Fertilizer Costs'!$F$25 -> 0.3922666667 | S24: =+R24*Q24 -> 17.0636 | T24: =+S24+P24+N24+M24+L24+K24 -> 17.0636 | U24: 17.0636 | X24: Tractors | Y24: gal | Z24: =+Labor_Fuel_Interest!$E$4 -> 2.88 | AA24: =(J$8+J$9+J$12+J$21+J$23+J$26+J$33+J$36+J$39+J$45+J$49+J$52+J$58+J$61+J$65+J$70+J$73)/Z24 -> 13.098005 | AB24: =+Z24*AA24 -> 37.7222544
B25: Disease management | U25: 0 | X25: Construct Trellis
B26: Sprayer (Air Blast) | D26: MFWD 50hp | E26: 4 | F26: =+Equipment!$I$35 -> 0.245 | G26: 0.5 | H26: Apr | I26: =+IF('General Budget Assumptions'!$C$3="None",0,G$26*Equipment!$M$35) -> 0.10535 | J26: =+IF('General Budget Assumptions'!$C$3="None",0,G$26*Equipment!$K$35) -> 0.906696 | K26: =IF('General Budget Assumptions'!$C$3="None",0,SUM(I26:J26)) -> 1.012046 | L26: =+IF('General Budget Assumptions'!$C$3="None",0,G$26*Equipment!$P$35) -> 0.69825 | M26: =+IF('General Budget Assumptions'!$C$3="None",0,G$26*Equipment!$L$35) -> 5.035 | N26: =+IF('General Budget Assumptions'!$C$3="None",0,G$26*Equipment!$O$35) -> 7.355 | O26: =+IF('General Budget Assumptions'!$C$3="None",0,F26*G26) -> 0.1225 | P26: =+IF('General Budget Assumptions'!$C$3="None",0,O26*Labor_Fuel_Interest!$C$10) -> 2.13395 | T26: =+IF('General Budget Assumptions'!C$3="Conventional Fungicide Program", K26+L26+M26+N26+P26+S26, 0) -> 16.234246 | U26: =+(K26+M26+P26+S26) -> 8.180996 | X26: Wood post 2.5" x 8' | Y26: each | Z26: =+R$14 -> 19.64333333 | AA26: =+Q$14 -> 118 | AB26: =+Z26*AA26 -> 2317.913333
B27: Pristine | C27: oz | Q27: =+IF('General Budget Assumptions'!C$3="Conventional Fungicide Program", 'Chemical & Fertilizer Costs'!F$41,0) -> 21 | R27: =+'Chemical & Fertilizer Costs'!H$10 -> 0.809375 | S27: =+R27*Q27 -> 16.996875 | T27: =+S27+P27+N27+M27+L27+K27 -> 16.996875 | U27: 16.996875 | X27: Crossarms | Y27: each | Z27: =+R$15 -> 8.19 | AA27: =+Q$15 -> 59 | AB27: =+Z27*AA27 -> 483.21
B28: Captan | C28: lb. | Q28: =+IF('General Budget Assumptions'!C$3="Conventional Fungicide Program", 'Chemical & Fertilizer Costs'!F$34,0) -> 2.5 | R28: =+'Chemical & Fertilizer Costs'!H$9 -> 6.736 | S28: =R28*Q28 -> 16.84 | T28: =+S28+P28+N28+M28+L28+K28 -> 16.84 | U28: 16.84 | X28: Wire-Blackberry | Y28: 8700 ft roll | Z28: =+R$16 -> 153.99 | AA28: =+Q$16 -> 2 | AB28: =+Z28*AA28 -> 307.98
B29: Irrigation | H29: Apr | M29: 35.4 | N29: 27.1 | O29: 0.05 | P29: =+O29*Labor_Fuel_Interest!$C$10 -> 0.871 | T29: =+S29+P29+N29+M29+L29+K29 -> 63.371 | U29: 36.271 | X29: Trellis hardware | Y29: acre | Z29: =+T$17 -> 288.02 | AA29: 1 | AB29: =+Z29*AA29 -> 288.02
B30: Hoeing | G30: 1 | H30: May | U30: 0 | X30: Repair & Maintenance
B31: hand labor | C31: hour | O31: 13 | P31: =+O31*Labor_Fuel_Interest!$C$11 -> 180.57 | T31: =+S31+P31+N31+M31+L31+K31 -> 180.57 | U31: 180.57 | X31: Implements | Y31: acre | Z31: =+M$75-(M$29+M$34+M$47+M$59+M$68+M$71+M$74) -> 25.075 | AA31: 1 | AB31: =+Z31*AA31 -> 25.075
B32: Mow between Rows | E32: =+IF(D32="MFWD 50hp", Equipment!$U$5, IF('Blackberry Budget Y2'!D32="MFWD 50hp", Equipment!$U$6, IF(D32="4*4", Equipment!$U$7, " "))) ->  | H32: May | U32: =+(K32+M32+P32+S32) -> 0 | X32: Tractors | Y32: acre | Z32: =+I$75 -> 4.38299 | AA32: 1 | AB32: =+Z32*AA32 -> 4.38299
B33: Rotary cutter | C33: 6 ft | D33: MFWD 50hp | E33: 4 | F33: =+Equipment!$I$25 -> 0.572 | G33: 0.5 | I33: =+$G$8*Equipment!$M$25 -> 0.24596 | J33: =+G33*Equipment!$K$25 -> 2.1168576 | K33: =+SUM(I33:J33) -> 2.3628176 | L33: =+G33*Equipment!$P$25 -> 1.6302 | M33: =+G33*Equipment!$L$25 -> 0.215 | N33: =+G33*Equipment!$O$25 -> 0.63 | O33: =+F33*G33 -> 0.286 | P33: =+O33*Labor_Fuel_Interest!$C$10 -> 4.98212 | T33: =+S33+P33+N33+M33+L33+K33 -> 9.8201376 | U33: =+(K33+M33+P33+S33) -> 7.5599376 | X33: Interest on OP. CAP. | Y33: acre | Z33: =+T$76 -> 347.4673889 | AA33: 1 | AB33: =+Z33*AA33 -> 347.4673889
B34: Irrigation | H34: May | M34: 35.4 | N34: 27.1 | O34: 0.05 | P34: =+O34*Labor_Fuel_Interest!$C$10 -> 0.871 | T34: =+S34+P34+N34+M34+L34+K34 -> 63.371 | U34: 36.271 | X34: Total Direct Expenses | AB34: =+SUM(AB7:AB33) -> 11466.42383 | AC34: =+SUM(AC7:AC33) -> 0
B35: Apply fertilizer | H35: May | U35: 0
B36: Side dresser | C36: 1R 3ft | D36: MFWD 50hp | E36: =+IF(D36="MFWD 50hp", Equipment!$U$5, IF('Blackberry Budget Y2'!D36="MFWD 50hp", Equipment!$U$6, IF(D36="4*4", Equipment!$U$7, " "))) -> 4 | F36: =Equipment!$I$27 -> 0.846 | G36: 0.5 | I36: =+$G$36*Equipment!$M$27 -> 0.36378 | J36: =+G36*Equipment!$K$27 -> 3.1308768 | K36: =+SUM(I36:J36) -> 3.4946568 | L36: =+G36*Equipment!$P$27 -> 2.4111 | M36: =+G36*Equipment!$L$27 -> 1.055 | N36: =+G36*Equipment!$O$27 -> 4.505 | O36: =+F36*G36 -> 0.423 | P36: =+O36*Labor_Fuel_Interest!$C$10 -> 7.36866 | T36: =+S36+P36+N36+M36+L36+K36 -> 18.8344168 | U36: 11.9183168 | X36: Fixed Expenses
B37: Urea | C37: lb. | Q37: 21.7 | R37: =+'Chemical & Fertilizer Costs'!$F$25 -> 0.3922666667 | S37: =+R37*Q37 -> 8.512186667 | T37: =+S37+P37+N37+M37+L37+K37 -> 8.512186667 | U37: 8.512186667 | X37: Implements | Y37: acre | Z37: =+N$75-(N$29+N$34+N$47+N$59+N$68+N$71+N$74) -> 48.375 | AA37: 1 | AB37: =+Z37*AA37 -> 48.375
B38: Disease management | U38: =+(K38+M38+P38+S38) -> 0 | X38: Tractors | Y38: acre | Z38: =+L$75 -> 29.05005 | AA38: 1 | AB38: =+Z38*AA38 -> 29.05005
B39: Sprayer (Air Blast) | D39: MFWD 50hp | E39: 4 | F39: =+Equipment!$I$35 -> 0.245 | G39: 0.5 | H39: May | I39: =+IF('General Budget Assumptions'!$C$3="None",0,G$39*Equipment!$M$35) -> 0.10535 | J39: =+IF('General Budget Assumptions'!$C$3="None",0,G$39*Equipment!$K$35) -> 0.906696 | K39: =IF('General Budget Assumptions'!$C$3="None",0,SUM(I39:J39)) -> 1.012046 | L39: =+IF('General Budget Assumptions'!$C$3="None",0,G$39*Equipment!$P$35) -> 0.69825 | M39: =+IF('General Budget Assumptions'!$C$3="None",0,G$39*Equipment!$L$35) -> 5.035 | N39: =+IF('General Budget Assumptions'!$C$3="None",0,G$39*Equipment!$O$35) -> 7.355 | O39: =+IF('General Budget Assumptions'!$C$3="None",0,F39*G39) -> 0.1225 | P39: =+IF('General Budget Assumptions'!$C$3="None",0,O39*Labor_Fuel_Interest!$C$10) -> 2.13395 | T39: =+IF('General Budget Assumptions'!C$3="Conventional Fungicide Program",K39+L39+M39+N39+P39+S39,0) -> 16.234246 | U39: =+(K39+M39+P39+S39) -> 8.180996 | X39: Irrigation set-up | Y39: acre | Z39: =+N$29+N$34+N$47+N$59+N$68+N$71+N$74 -> 189.7 | AA39: 1 | AB39: =+Z39*AA39 -> 189.7
B40: Quilt Xcel | C40: fl oz | Q40: =+IF('General Budget Assumptions'!C$3="Conventional Fungicide Program", 'Chemical & Fertilizer Costs'!F$44, 0) -> 17.5 | R40: ='Chemical & Fertilizer Costs'!H$7 -> 1.245260417 | S40: =+R40*Q40 -> 21.79205729 | T40: =+S40+P40+N40+M40+L40+K40 -> 21.79205729 | U40: =+(K40+M40+P40+S40) -> 21.79205729
B41: Captan | C41: lb. | Q41: =+IF('General Budget Assumptions'!C$3="Conventional Fungicide Program",'Chemical & Fertilizer Costs'!F$34,0) -> 2.5 | R41: =+'Chemical & Fertilizer Costs'!H$9 -> 6.736 | S41: =R41*Q41 -> 16.84 | T41: =+S41+P41+N41+M41+L41+K41 -> 16.84 | U41: 16.84 | X41: Total Fixed Expenses | AB41: =+SUM(AB37:AB40) -> 267.12505 | AC41: =+SUM(AC37:AC40) -> 0
B42: Hoeing | G42: 1 | H42: Jun | U42: 0
B43: hand labor | C43: hour | O43: 13 | P43: =+O43*Labor_Fuel_Interest!$C$11 -> 180.57 | T43: =+S43+P43+N43+M43+L43+K43 -> 180.57 | U43: 180.57 | X43: Total Specified Expenses | AB43: =+SUM(AB34+AB41) -> 11733.54888 | AC43: =+SUM(AC34+AC41) -> 0
B44: Mow between Rows | E44: =+IF(D44="MFWD 50hp", Equipment!$U$5, IF('Blackberry Budget Y2'!D44="MFWD 50hp", Equipment!$U$6, IF(D44="4*4", Equipment!$U$7, " "))) ->  | H44: Jun | U44: 0
B45: Rotary cutter | C45: 6 ft | D45: MFWD 50hp | E45: 4 | F45: =+Equipment!$I$25 -> 0.572 | G45: 0.5 | I45: =+$G$8*Equipment!$M$25 -> 0.24596 | J45: =+G45*Equipment!$K$25 -> 2.1168576 | K45: =+SUM(I45:J45) -> 2.3628176 | L45: =+G45*Equipment!$P$25 -> 1.6302 | M45: =+G45*Equipment!$L$25 -> 0.215 | N45: =+G45*Equipment!$O$25 -> 0.63 | O45: =+F45*G45 -> 0.286 | P45: =+O45*Labor_Fuel_Interest!$C$10 -> 4.98212 | T45: =+S45+P45+N45+M45+L45+K45 -> 9.8201376 | U45: =+(K45+M45+P45+S45) -> 7.5599376
B46: Tipping Blackberries | C46: hour | G46: 1 | H46: Jun | O46: 5 | P46: =+O46*Labor_Fuel_Interest!$C$11 -> 69.45 | T46: =+S46+P46+N46+M46+L46+K46 -> 69.45 | U46: 69.45
B47: Irrigation | H47: Jun | M47: 35.4 | N47: 27.1 | O47: 0.05 | P47: =+O47*Labor_Fuel_Interest!$C$10 -> 0.871 | T47: =+S47+P47+N47+M47+L47+K47 -> 63.371 | U47: 36.271
B48: Apply fertilizer | H48: Jun | U48: =+(K48+M48+P48+S48) -> 0
B49: Side dresser | C49: 1R 3ft | D49: MFWD 50hp | E49: =+IF(D49="MFWD 50hp", Equipment!$U$5, IF('Blackberry Budget Y2'!D49="MFWD 50hp", Equipment!$U$6, IF(D49="4*4", Equipment!$U$7, " "))) -> 4 | F49: =Equipment!$I$27 -> 0.846 | G49: 0.5 | I49: =+$G$36*Equipment!$M$27 -> 0.36378 | J49: =+G49*Equipment!$K$27 -> 3.1308768 | K49: =+SUM(I49:J49) -> 3.4946568 | L49: =+G49*Equipment!$P$27 -> 2.4111 | M49: =+G49*Equipment!$L$27 -> 1.055 | N49: =+G49*Equipment!$O$27 -> 4.505 | O49: =+F49*G49 -> 0.423 | P49: =+O49*Labor_Fuel_Interest!$C$10 -> 7.36866 | T49: =+S49+P49+N49+M49+L49+K49 -> 18.8344168 | U49: 11.9183168
B50: Urea | C50: lb. | Q50: 21.7 | R50: =+'Chemical & Fertilizer Costs'!$F$25 -> 0.3922666667 | S50: =+R50*Q50 -> 8.512186667 | T50: =+S50+P50+N50+M50+L50+K50 -> 8.512186667 | U50: 8.512186667
B51: Disease management | U51: 0
B52: Sprayer (Air Blast) | D52: MFWD 50hp | E52: 4 | F52: =+Equipment!$I$35 -> 0.245 | G52: 0.5 | H52: Jun | I52: =+IF('General Budget Assumptions'!$C$3="None",0,G$52*Equipment!$M$35) -> 0.10535 | J52: =+IF('General Budget Assumptions'!$C$3="None",0,G$52*Equipment!$K$35) -> 0.906696 | K52: =IF('General Budget Assumptions'!$C$3="None",0,SUM(I52:J52)) -> 1.012046 | L52: =+IF('General Budget Assumptions'!$C$3="None",0,G$52*Equipment!$P$35) -> 0.69825 | M52: =+IF('General Budget Assumptions'!$C$3="None",0,G$52*Equipment!$L$35) -> 5.035 | N52: =+IF('General Budget Assumptions'!$C$3="none",0,G52*Equipment!$O$35) -> 7.355 | O52: =+IF('General Budget Assumptions'!$C$3="none",0,F52*G52) -> 0.1225 | P52: =+IF('General Budget Assumptions'!$C$3="none",0,O52*Labor_Fuel_Interest!$C$10) -> 2.13395 | T52: =+IF('General Budget Assumptions'!C$3="Conventional Fungicide Program", K52+L52+M52+N52+P52+S52, 0) -> 16.234246 | U52: =+(K52+M52+P52+S52) -> 8.180996
B53: Luna Tranquility | C53: fl oz | Q53: =+IF('General Budget Assumptions'!C$3="Conventional Fungicide Program", 'Chemical & Fertilizer Costs'!F$37, 0) -> 20 | R53: ='Chemical & Fertilizer Costs'!H$8 -> 3.24984375 | S53: =+R53*Q53 -> 64.996875 | T53: =+S53+P53+N53+M53+L53+K53 -> 64.996875 | U53: =+(K53+M53+P53+S53) -> 64.996875
B54: Captan | C54: lb. | Q54: =+IF('General Budget Assumptions'!C$3="Conventional Fungicide Program", 'Chemical & Fertilizer Costs'!F$34, 0) -> 2.5 | R54: =+'Chemical & Fertilizer Costs'!H$9 -> 6.736 | S54: =R54*Q54 -> 16.84 | T54: =+S54+P54+N54+M54+L54+K54 -> 16.84 | U54: 16.84
B55: Hoeing | G55: 1 | H55: Jul | U55: 0
B56: hand labor | C56: hour | O56: 13 | P56: =+O56*Labor_Fuel_Interest!$C$11 -> 180.57 | T56: =+S56+P56+N56+M56+L56+K56 -> 180.57 | U56: 180.57
B57: Mow between Rows | E57: =+IF(D57="MFWD 50hp", Equipment!$U$5, IF('Blackberry Budget Y2'!D57="MFWD 50hp", Equipment!$U$6, IF(D57="4*4", Equipment!$U$7, " "))) ->  | H57: Jul | U57: =+(K57+M57+P57+S57) -> 0
B58: Rotary cutter | C58: 6 ft | D58: MFWD 50hp | E58: 4 | F58: =+Equipment!$I$25 -> 0.572 | G58: 0.5 | I58: =+$G$8*Equipment!$M$25 -> 0.24596 | J58: =+G58*Equipment!$K$25 -> 2.1168576 | K58: =+SUM(I58:J58) -> 2.3628176 | L58: =+G58*Equipment!$P$25 -> 1.6302 | M58: =+G58*Equipment!$L$25 -> 0.215 | N58: =+G58*Equipment!$O$25 -> 0.63 | O58: =+F58*G58 -> 0.286 | P58: =+O58*Labor_Fuel_Interest!$C$10 -> 4.98212 | T58: =+S58+P58+N58+M58+L58+K58 -> 9.8201376 | U58: =+(K58+M58+P58+S58) -> 7.5599376
B59: Irrigation | H59: Jul | M59: 35.4 | N59: 27.1 | O59: 0.05 | P59: =+O59*Labor_Fuel_Interest!$C$10 -> 0.871 | T59: =+S59+P59+N59+M59+L59+K59 -> 63.371 | U59: 36.271
B60: Disease management | U60: 0
B61: Sprayer (Air Blast) | D61: MFWD 50hp | E61: 4 | F61: =+Equipment!$I$35 -> 0.245 | G61: 0.5 | H61: Jul | I61: =+IF('General Budget Assumptions'!$C$3="None",0,G$61*Equipment!$M$35) -> 0.10535 | J61: =+IF('General Budget Assumptions'!$C$3="None",0,G$61*Equipment!$K$35) -> 0.906696 | K61: =IF('General Budget Assumptions'!$C$3="None",0,SUM(I61:J61)) -> 1.012046 | L61: =+IF('General Budget Assumptions'!$C$3="None",0,G$61*Equipment!$P$35) -> 0.69825 | M61: =+IF('General Budget Assumptions'!$C$3="None",0,G$61*Equipment!$L$35) -> 5.035 | N61: =+IF('General Budget Assumptions'!$C$3="None",0,G$61*Equipment!$O$35) -> 7.355 | O61: =+IF('General Budget Assumptions'!$C$3="None",0,F61*G61) -> 0.1225 | P61: =+IF('General Budget Assumptions'!$C$3="None",0,O61*Labor_Fuel_Interest!$C$10) -> 2.13395 | T61: =+IF('General Budget Assumptions'!C$3="Conventional Fungicide Program", K61+L61+M61+N61+P61+S61, 0) -> 16.234246 | U61: =+(K61+M61+P61+S61) -> 8.180996
B62: Quilt Xcel | C62: fl oz | Q62: =+IF('General Budget Assumptions'!C$3="Conventional Fungicide Program", 'Chemical & Fertilizer Costs'!F$44,0) -> 17.5 | R62: ='Chemical & Fertilizer Costs'!H$7 -> 1.245260417 | S62: =+R62*Q62 -> 21.79205729 | T62: =+S62+P62+N62+M62+L62+K62 -> 21.79205729 | U62: =+(K62+M62+P62+S62) -> 21.79205729
B63: Captan | C63: lb. | Q63: =+IF('General Budget Assumptions'!C$3="Conventional Fungicide Program", 'Chemical & Fertilizer Costs'!F$34, 0) -> 2.5 | R63: =+'Chemical & Fertilizer Costs'!H$9 -> 6.736 | S63: =R63*Q63 -> 16.84 | T63: =+S63+P63+N63+M63+L63+K63 -> 16.84 | U63: 16.84
B64: Mow between Rows | E64: =+IF(D64="MFWD 50hp", Equipment!$U$5, IF('Blackberry Budget Y2'!D64="MFWD 50hp", Equipment!$U$6, IF(D64="4*4", Equipment!$U$7, " "))) ->  | H64: Aug | U64: 0
B65: Rotary cutter | C65: 6 ft | D65: MFWD 50hp | E65: 4 | F65: =+Equipment!$I$25 -> 0.572 | G65: 0.5 | I65: =+$G$8*Equipment!$M$25 -> 0.24596 | J65: =+G65*Equipment!$K$25 -> 2.1168576 | K65: =+SUM(I65:J65) -> 2.3628176 | L65: =+G65*Equipment!$P$25 -> 1.6302 | M65: =+G65*Equipment!$L$25 -> 0.215 | N65: =+G65*Equipment!$O$25 -> 0.63 | O65: =+F65*G65 -> 0.286 | P65: =+O65*Labor_Fuel_Interest!$C$10 -> 4.98212 | T65: =+S65+P65+N65+M65+L65+K65 -> 9.8201376 | U65: =+(K65+M65+P65+S65) -> 7.5599376
B66: Hoeing | G66: 1 | H66: Aug | U66: 0
B67: hand labor | C67: hour | O67: 13 | P67: =+O67*Labor_Fuel_Interest!$C$11 -> 180.57 | T67: =+S67+P67+N67+M67+L67+K67 -> 180.57 | U67: 180.57
B68: Irrigation | H68: Aug | M68: 35.4 | N68: 27.1 | O68: 0.05 | P68: =+O68*Labor_Fuel_Interest!$C$10 -> 0.871 | T68: 63.371 | U68: =+(K68+M68+P68+S68) -> 36.271
B69: Mow between Rows | E69: =+IF(D69="MFWD 50hp", Equipment!$U$5, IF('Blackberry Budget Y2'!D69="MFWD 50hp", Equipment!$U$6, IF(D69="4*4", Equipment!$U$7, " "))) ->  | H69: Sep | U69: 0
B70: Rotary cutter | C70: 6 ft | D70: MFWD 50hp | E70: 4 | F70: =+Equipment!$I$25 -> 0.572 | G70: 0.5 | I70: =+$G$8*Equipment!$M$25 -> 0.24596 | J70: =+G70*Equipment!$K$25 -> 2.1168576 | K70: =+SUM(I70:J70) -> 2.3628176 | L70: =+G70*Equipment!$P$25 -> 1.6302 | M70: =+G70*Equipment!$L$25 -> 0.215 | N70: =+G70*Equipment!$O$25 -> 0.63 | O70: =+F70*G70 -> 0.286 | P70: =+O70*Labor_Fuel_Interest!$C$10 -> 4.98212 | T70: =+S70+P70+N70+M70+L70+K70 -> 9.8201376 | U70: =+(K70+M70+P70+S70) -> 7.5599376
B71: Irrigation | H71: Sep | M71: 35.4 | N71: 27.1 | O71: 0.05 | P71: =+O71*Labor_Fuel_Interest!$C$10 -> 0.871 | T71: =+S71+P71+N71+M71+L71+K71 -> 63.371 | U71: =+(K71+M71+P71+S71) -> 36.271
B72: Mow between Rows | E72: =+IF(D72="MFWD 50hp", Equipment!$U$5, IF('Blackberry Budget Y2'!D72="MFWD 50hp", Equipment!$U$6, IF(D72="4*4", Equipment!$U$7, " "))) ->  | H72: Oct | U72: =+(K72+M72+P72+S72) -> 0
B73: Rotary cutter | C73: 6 ft | D73: MFWD 50hp | E73: 4 | F73: =+Equipment!$I$25 -> 0.572 | G73: 0.5 | I73: =+$G$8*Equipment!$M$25 -> 0.24596 | J73: =+G73*Equipment!$K$25 -> 2.1168576 | K73: =+SUM(I73:J73) -> 2.3628176 | L73: =+G73*Equipment!$P$25 -> 1.6302 | M73: =+G73*Equipment!$L$25 -> 0.215 | N73: =+G73*Equipment!$O$25 -> 0.63 | O73: =+F73*G73 -> 0.286 | P73: =+O73*Labor_Fuel_Interest!$C$10 -> 4.98212 | T73: =+S73+P73+N73+M73+L73+K73 -> 9.8201376 | U73: =+(K73+M73+P73+S73) -> 7.5599376
B74: Irrigation | H74: Oct | M74: 35.4 | N74: 27.1 | O74: 0.05 | P74: =+O74*Labor_Fuel_Interest!$C$10 -> 0.871 | T74: =+S74+P74+N74+M74+L74+K74 -> 63.371 | U74: =+(K74+M74+P74+S74) -> 36.271
B75: Total | I75: =+SUM(I7:I74) -> 4.38299 | J75: 37.7222544 | K75: 42.1052444 | L75: 29.05005 | M75: 272.875 | N75: 238.075 | O75: 155.4465 | P75: 2196.02803 | S75: =+SUM(S7:S74) -> 8607.948171 | T75: =+SUM(T7:T74) -> 11386.0815 | U75: =SUM(U7:U74) -> 11118.95645
B76: Interest on Operating Capital | T76: =+(U75*Labor_Fuel_Interest!$C$15)/2 -> 347.4673889
B77: Total Specified Cost | T77: =+SUM(T75:T76) -> 11733.54888
B200: Blackberry Enterprise Budget Year 2
B201: Operation / Operating Input | C201: Size/ Unit | D201: Power Unit Size | E201: # | F201: Perf Rate | G201: Times Over | H201: Month | I201: Power unit cost | M201: Equipment Cost | O201: Alloc Labor | Q201: Operating / Durable Input | T201: Total Cost
I202: R&M | J202: Fuel | K202: Direct | L202: Fixed | M202: Direct | N202: Fixed | O202: Hours | P202: Cost | Q202: Amount | R202: Price | S202: Cost
B204: Mow between Rows | E204: =+IF(D204="MFWD 50hp", Equipment!$U$5, IF('Blackberry Budget Y2'!D204="MFWD 50hp", Equipment!$U$6, IF(D204="4*4", Equipment!$U$7, " "))) ->  | H204: Mar
B205: Rotary cutter | C205: 6 ft | D205: MFWD 50hp | E205: 4 | F205: =+Equipment!$I$25 -> 0.572 | G205: 0.5 | I205: =+$G$8*Equipment!$M$25 -> 0.24596 | J205: =+G205*Equipment!$K$25 -> 2.1168576 | K205: =+SUM(I205:J205) -> 2.3628176 | L205: =+G205*Equipment!$P$25 -> 1.6302 | M205: =+G205*Equipment!$L$25 -> 0.215 | N205: =+G205*Equipment!$O$25 -> 0.63 | O205: =+F205*G205 -> 0.286 | P205: =+O205*Labor_Fuel_Interest!$C$10 -> 4.98212 | T205: =+S205+P205+N205+M205+L205+K205 -> 9.8201376 | U205: =+(K205+M205+P205+S205) -> 7.5599376
B206: Weed Spray | C206: qt | D206: MFWD 50hp | E206: 4 | F206: =+Equipment!$I$37 -> 0.099 | G206: 0.5 | H206: Mar | I206: =+G206*Equipment!$M$37 -> 0.04257 | J206: =+G206*Equipment!$K$37 -> 0.3663792 | K206: =SUM(I206:J206) -> 0.4089492 | L206: =+G206*Equipment!$P$37 -> 0.28215 | M206: =+G206*Equipment!$L$37 -> 0.05 | N206: =+G206*Equipment!$O$37 -> 0.06 | O206: =+F206*G206 -> 0.0495 | P206: =+O206*Labor_Fuel_Interest!$C$10 -> 0.86229 | Q206: 1 | R206: =+'Chemical & Fertilizer Costs'!$H$6 -> 10.699 | S206: =+Q206*R206 -> 10.699 | T206: =+K206+L206+M206+N206+P206+S206 -> 12.3623892 | U206: =+(K206+M206+P206+S206) -> 12.0202392
B207: Transplanting Blackberry Plants | C207: each | E207: =+IF(D207="MFWD 50hp", Equipment!$U$5, IF('Blackberry Budget Y2'!D207="MFWD 50hp", Equipment!$U$6, IF(D207="4*4", Equipment!$U$7, " "))) ->  | H207: Mar | O207: 36 | P207: =+O207*Labor_Fuel_Interest!C$11 -> 500.04 | Q207: 1210 | R207: ='Plant costs'!H$15 -> 4.11 | S207: =+Q207*R207 -> 4973.1 | T207: =+S207+P207+N207+M207+L207+K207 -> 5473.14 | U207: =+(K207+M207+P207+S207) -> 5473.14
B208: Construct Trellis | E208: =+IF(D208="MFWD 50hp", Equipment!$U$5, IF('Blackberry Budget Y2'!D208="MFWD 50hp", Equipment!$U$6, IF(D208="4*4", Equipment!$U$7, " "))) ->  | H208: Mar
B209: Auger post holes | D209: MFWD 50hp | E209: 4 | F209: =+Equipment!$I$5 -> 2 | G209: 0.5 | I209: =+G209*Equipment!$M$5 -> 0.86 | J209: =+G209*Equipment!$K$5 -> 7.4016 | K209: =+SUM(I209:J209) -> 8.2616 | L209: =+G209*Equipment!$P$5 -> 5.7 | M209: =+G209*Equipment!$L$5 -> 0 | N209: =+G209*Equipment!$O$5 -> 0.34 | O209: 6 | P209: =+O209*Labor_Fuel_Interest!$C$10 -> 104.52 | T209: =+S209+P209+N209+M209+L209+K209 -> 118.8216 | U209: =+(K209+M209+P209+S209) -> 112.7816
B210: hand labor | C210: hour | O210: 39 | P210: =+O210*Labor_Fuel_Interest!$C$11 -> 541.71 | T210: =+S210+P210+N210+M210+L210+K210 -> 541.71 | U210: 541.71
B211: Wood post 2.5" x 8' | C211: each | E211: =+IF(D211="MFWD 50hp", Equipment!$U$5, IF('Blackberry Budget Y2'!D211="MFWD 50hp", Equipment!$U$6, IF(D211="4*4", Equipment!$U$7, " "))) ->  | Q211: =+'T-Trellis system'!D207 -> 0 | R211: ='T-Trellis system'!$E$10 -> 19.64333333 | S211: =+Q211*R211 -> 0 | T211: =+S211+P211+N211+M211+L211+K211 -> 0 | U211: 0
B212: Crossarms | C212: each | E212: =+IF(D212="MFWD 50hp", Equipment!$U$5, IF('Blackberry Budget Y2'!D212="MFWD 50hp", Equipment!$U$6, IF(D212="4*4", Equipment!$U$7, " "))) ->  | Q212: 59 | R212: ='T-Trellis system'!E209 -> 0 | S212: =+Q212*R212 -> 0 | T212: =+S212+P212+N212+M212+L212+K212 -> 0 | U212: 0
B213: Wire-Blackberry | C213: 8700 ft roll | E213: =+IF(D213="MFWD 50hp", Equipment!$U$5, IF('Blackberry Budget Y2'!D213="MFWD 50hp", Equipment!$U$6, IF(D213="4*4", Equipment!$U$7, " "))) ->  | Q213: =+'T-Trellis system'!D210 -> 0 | R213: ='T-Trellis system'!E210 -> 0 | S213: 0 | T213: 0 | U213: 0
B214: Trellis hardware | C214: acre | Q214: 1 | R214: 288.02 | S214: 288.02 | T214: 288.02 | U214: 288.02
B215: Hoeing | G215: 1 | H215: Apr | U215: 0
B216: hand labor | C216: hour | O216: 13 | P216: =+O216*Labor_Fuel_Interest!$C$11 -> 180.57 | T216: =+S216+P216+N216+M216+L216+K216 -> 180.57 | U216: 180.57
B217: Mow between Rows | E217: =+IF(D217="MFWD 50hp", Equipment!$U$5, IF('Blackberry Budget Y2'!D217="MFWD 50hp", Equipment!$U$6, IF(D217="4*4", Equipment!$U$7, " "))) ->  | H217: Apr | U217: 0
B218: Rotary cutter | C218: 6 ft | D218: MFWD 50hp | E218: 4 | F218: =+Equipment!$I$25 -> 0.572 | G218: 0.5 | I218: =+$G$8*Equipment!$M$25 -> 0.24596 | J218: =+G218*Equipment!$K$25 -> 2.1168576 | K218: =+SUM(I218:J218) -> 2.3628176 | L218: =+G218*Equipment!$P$25 -> 1.6302 | M218: =+G218*Equipment!$L$25 -> 0.215 | N218: =+G218*Equipment!$O$25 -> 0.63 | O218: =+F218*G218 -> 0.286 | P218: =+O218*Labor_Fuel_Interest!$C$10 -> 4.98212 | T218: =+S218+P218+N218+M218+L218+K218 -> 9.8201376 | U218: =+(K218+M218+P218+S218) -> 7.5599376
B219: Apply fertilizer | H219: Apr | U219: 0
B220: Side dresser | C220: 1R 3ft | D220: MFWD 50hp | E220: 4 | F220: =+Equipment!$I$27 -> 0.846 | G220: 0.5 | H220: Apr | I220: =+G220*Equipment!$M$27 -> 0.36378 | J220: =+G220*Equipment!$K$27 -> 3.1308768 | K220: =SUM(I220:J220) -> 3.4946568 | L220: =+G220*Equipment!$P$27 -> 2.4111 | M220: =+G220*Equipment!$L$27 -> 1.055 | N220: =+G220*Equipment!$O$27 -> 4.505 | O220: =+F220*G220 -> 0.423 | P220: =+Labor_Fuel_Interest!$C$10*O220 -> 7.36866 | T220: =+S220+P220+N220+M220+L220+K220 -> 18.8344168 | U220: 11.9183168
B221: Urea | C221: lb. | Q221: 43.5 | R221: =+'Chemical & Fertilizer Costs'!$F$25 -> 0.3922666667 | S221: =+R221*Q221 -> 17.0636 | T221: =+S221+P221+N221+M221+L221+K221 -> 17.0636 | U221: 17.0636
B222: Disease management | U222: 0
B223: Sprayer (Air Blast) | D223: MFWD 50hp | E223: 4 | F223: =+Equipment!$I$35 -> 0.245 | G223: 0.5 | H223: Apr | I223: =+IF('General Budget Assumptions'!$C$3="None",0,G$26*Equipment!$M$35) -> 0.10535 | J223: =+IF('General Budget Assumptions'!$C$3="None",0,G$26*Equipment!$K$35) -> 0.906696 | K223: =IF('General Budget Assumptions'!$C$3="None",0,SUM(I223:J223)) -> 1.012046 | L223: =+IF('General Budget Assumptions'!$C$3="None",0,G$26*Equipment!$P$35) -> 0.69825 | M223: =+IF('General Budget Assumptions'!$C$3="None",0,G$26*Equipment!$L$35) -> 5.035 | N223: =+IF('General Budget Assumptions'!$C$3="None",0,G$26*Equipment!$O$35) -> 7.355 | O223: =+IF('General Budget Assumptions'!$C$3="None",0,F223*G223) -> 0.1225 | P223: =+IF('General Budget Assumptions'!$C$3="None",0,O223*Labor_Fuel_Interest!$C$10) -> 2.13395 | T223: =+IF('General Budget Assumptions'!C$3="Conventional Fungicide Program", K223+L223+M223+N223+P223+S223, 0) -> 16.234246 | U223: =+(K223+M223+P223+S223) -> 8.180996
B224: Pristine | C224: oz | Q224: =+IF('General Budget Assumptions'!C$3="Conventional Fungicide Program", 'Chemical & Fertilizer Costs'!F$41,0) -> 21 | R224: =+'Chemical & Fertilizer Costs'!H$10 -> 0.809375 | S224: =+R224*Q224 -> 16.996875 | T224: =+S224+P224+N224+M224+L224+K224 -> 16.996875 | U224: 16.996875
B225: Captan | C225: lb. | Q225: =+IF('General Budget Assumptions'!C$3="Conventional Fungicide Program", 'Chemical & Fertilizer Costs'!F$34,0) -> 2.5 | R225: =+'Chemical & Fertilizer Costs'!H$9 -> 6.736 | S225: =R225*Q225 -> 16.84 | T225: =+S225+P225+N225+M225+L225+K225 -> 16.84 | U225: 16.84
B226: Irrigation | H226: Apr | M226: 35.4 | N226: 27.1 | O226: 0.05 | P226: =+O226*Labor_Fuel_Interest!$C$10 -> 0.871 | T226: =+S226+P226+N226+M226+L226+K226 -> 63.371 | U226: 36.271
B227: Hoeing | G227: 1 | H227: May | U227: 0
B228: hand labor | C228: hour | O228: 13 | P228: =+O228*Labor_Fuel_Interest!$C$11 -> 180.57 | T228: =+S228+P228+N228+M228+L228+K228 -> 180.57 | U228: 180.57
B229: Mow between Rows | E229: =+IF(D229="MFWD 50hp", Equipment!$U$5, IF('Blackberry Budget Y2'!D229="MFWD 50hp", Equipment!$U$6, IF(D229="4*4", Equipment!$U$7, " "))) ->  | H229: May | U229: 0
B230: Rotary cutter | C230: 6 ft | D230: MFWD 50hp | E230: 4 | F230: =+Equipment!$I$25 -> 0.572 | G230: 0.5 | I230: =+$G$8*Equipment!$M$25 -> 0.24596 | J230: =+G230*Equipment!$K$25 -> 2.1168576 | K230: =+SUM(I230:J230) -> 2.3628176 | L230: =+G230*Equipment!$P$25 -> 1.6302 | M230: =+G230*Equipment!$L$25 -> 0.215 | N230: =+G230*Equipment!$O$25 -> 0.63 | O230: =+F230*G230 -> 0.286 | P230: =+O230*Labor_Fuel_Interest!$C$10 -> 4.98212 | T230: =+S230+P230+N230+M230+L230+K230 -> 9.8201376 | U230: =+(K230+M230+P230+S230) -> 7.5599376
B231: Irrigation | H231: May | M231: 35.4 | N231: 27.1 | O231: 0.05 | P231: =+O231*Labor_Fuel_Interest!$C$10 -> 0.871 | T231: =+S231+P231+N231+M231+L231+K231 -> 63.371 | U231: 36.271
B232: Apply fertilizer | H232: May | U232: 0
B233: Side dresser | C233: 1R 3ft | D233: MFWD 50hp | E233: =+IF(D233="MFWD 50hp", Equipment!$U$5, IF('Blackberry Budget Y2'!D233="MFWD 50hp", Equipment!$U$6, IF(D233="4*4", Equipment!$U$7, " "))) -> 4 | F233: =Equipment!$I$27 -> 0.846 | G233: 0.5 | I233: =+$G$36*Equipment!$M$27 -> 0.36378 | J233: =+G233*Equipment!$K$27 -> 3.1308768 | K233: =+SUM(I233:J233) -> 3.4946568 | L233: =+G233*Equipment!$P$27 -> 2.4111 | M233: =+G233*Equipment!$L$27 -> 1.055 | N233: =+G233*Equipment!$O$27 -> 4.505 | O233: =+F233*G233 -> 0.423 | P233: =+O233*Labor_Fuel_Interest!$C$10 -> 7.36866 | T233: =+S233+P233+N233+M233+L233+K233 -> 18.8344168 | U233: 11.9183168
B234: Urea | C234: lb. | Q234: 21.7 | R234: =+'Chemical & Fertilizer Costs'!$F$25 -> 0.3922666667 | S234: =+R234*Q234 -> 8.512186667 | T234: =+S234+P234+N234+M234+L234+K234 -> 8.512186667 | U234: 8.512186667
B235: Disease management | U235: 0
B236: Sprayer (Air Blast) | D236: MFWD 50hp | E236: 4 | F236: =+Equipment!$I$35 -> 0.245 | G236: 0.5 | H236: May | I236: =+IF('General Budget Assumptions'!$C$3="None",0,G$39*Equipment!$M$35) -> 0.10535 | J236: =+IF('General Budget Assumptions'!$C$3="None",0,G$39*Equipment!$K$35) -> 0.906696 | K236: =IF('General Budget Assumptions'!$C$3="None",0,SUM(I236:J236)) -> 1.012046 | L236: =+IF('General Budget Assumptions'!$C$3="None",0,G$39*Equipment!$P$35) -> 0.69825 | M236: =+IF('General Budget Assumptions'!$C$3="None",0,G$39*Equipment!$L$35) -> 5.035 | N236: =+IF('General Budget Assumptions'!$C$3="None",0,G$39*Equipment!$O$35) -> 7.355 | O236: =+IF('General Budget Assumptions'!$C$3="None",0,F236*G236) -> 0.1225 | P236: =+IF('General Budget Assumptions'!$C$3="None",0,O236*Labor_Fuel_Interest!$C$10) -> 2.13395 | T236: =+IF('General Budget Assumptions'!C$3="Conventional Fungicide Program",K236+L236+M236+N236+P236+S236,0) -> 16.234246 | U236: =+(K236+M236+P236+S236) -> 8.180996
B237: Quilt Xcel | C237: fl oz | Q237: =+IF('General Budget Assumptions'!C$3="Conventional Fungicide Program", 'Chemical & Fertilizer Costs'!F$44, 0) -> 17.5 | R237: ='Chemical & Fertilizer Costs'!H$7 -> 1.245260417 | S237: =+R237*Q237 -> 21.79205729 | T237: =+S237+P237+N237+M237+L237+K237 -> 21.79205729 | U237: =+(K237+M237+P237+S237) -> 21.79205729
B238: Captan | C238: lb. | Q238: =+IF('General Budget Assumptions'!C$3="Conventional Fungicide Program",'Chemical & Fertilizer Costs'!F$34,0) -> 2.5 | R238: =+'Chemical & Fertilizer Costs'!H$9 -> 6.736 | S238: =R238*Q238 -> 16.84 | T238: =+S238+P238+N238+M238+L238+K238 -> 16.84 | U238: 16.84
B239: Hoeing | G239: 1 | H239: Jun | U239: 0
B240: hand labor | C240: hour | O240: 13 | P240: =+O240*Labor_Fuel_Interest!$C$11 -> 180.57 | T240: =+S240+P240+N240+M240+L240+K240 -> 180.57 | U240: 180.57
B241: Mow between Rows | E241: =+IF(D241="MFWD 50hp", Equipment!$U$5, IF('Blackberry Budget Y2'!D241="MFWD 50hp", Equipment!$U$6, IF(D241="4*4", Equipment!$U$7, " "))) ->  | H241: Jun | U241: 0
B242: Rotary cutter | C242: 6 ft | D242: MFWD 50hp | E242: 4 | F242: =+Equipment!$I$25 -> 0.572 | G242: 0.5 | I242: =+$G$8*Equipment!$M$25 -> 0.24596 | J242: =+G242*Equipment!$K$25 -> 2.1168576 | K242: =+SUM(I242:J242) -> 2.3628176 | L242: =+G242*Equipment!$P$25 -> 1.6302 | M242: =+G242*Equipment!$L$25 -> 0.215 | N242: =+G242*Equipment!$O$25 -> 0.63 | O242: =+F242*G242 -> 0.286 | P242: =+O242*Labor_Fuel_Interest!$C$10 -> 4.98212 | T242: =+S242+P242+N242+M242+L242+K242 -> 9.8201376 | U242: =+(K242+M242+P242+S242) -> 7.5599376
B243: Tipping Blackberries | C243: hour | G243: 1 | H243: Jun | O243: 5 | P243: =+O243*Labor_Fuel_Interest!$C$11 -> 69.45 | T243: =+S243+P243+N243+M243+L243+K243 -> 69.45 | U243: 69.45
B244: Irrigation | H244: Jun | M244: 35.4 | N244: 27.1 | O244: 0.05 | P244: =+O244*Labor_Fuel_Interest!$C$10 -> 0.871 | T244: =+S244+P244+N244+M244+L244+K244 -> 63.371 | U244: 36.271
B245: Apply fertilizer | H245: Jun | U245: 0
B246: Side dresser | C246: 1R 3ft | D246: MFWD 50hp | E246: =+IF(D246="MFWD 50hp", Equipment!$U$5, IF('Blackberry Budget Y2'!D246="MFWD 50hp", Equipment!$U$6, IF(D246="4*4", Equipment!$U$7, " "))) -> 4 | F246: =Equipment!$I$27 -> 0.846 | G246: 0.5 | I246: =+$G$36*Equipment!$M$27 -> 0.36378 | J246: =+G246*Equipment!$K$27 -> 3.1308768 | K246: =+SUM(I246:J246) -> 3.4946568 | L246: =+G246*Equipment!$P$27 -> 2.4111 | M246: =+G246*Equipment!$L$27 -> 1.055 | N246: =+G246*Equipment!$O$27 -> 4.505 | O246: =+F246*G246 -> 0.423 | P246: =+O246*Labor_Fuel_Interest!$C$10 -> 7.36866 | T246: =+S246+P246+N246+M246+L246+K246 -> 18.8344168 | U246: 11.9183168
B247: Urea | C247: lb. | Q247: 21.7 | R247: =+'Chemical & Fertilizer Costs'!$F$25 -> 0.3922666667 | S247: =+R247*Q247 -> 8.512186667 | T247: =+S247+P247+N247+M247+L247+K247 -> 8.512186667 | U247: 8.512186667
B248: Disease management | U248: 0
B249: Sprayer (Air Blast) | D249: MFWD 50hp | E249: 4 | F249: =+Equipment!$I$35 -> 0.245 | G249: 0.5 | H249: Jun | I249: =+IF('General Budget Assumptions'!$C$3="None",0,G$52*Equipment!$M$35) -> 0.10535 | J249: =+IF('General Budget Assumptions'!$C$3="None",0,G$52*Equipment!$K$35) -> 0.906696 | K249: =IF('General Budget Assumptions'!$C$3="None",0,SUM(I249:J249)) -> 1.012046 | L249: =+IF('General Budget Assumptions'!$C$3="None",0,G$52*Equipment!$P$35) -> 0.69825 | M249: =+IF('General Budget Assumptions'!$C$3="None",0,G$52*Equipment!$L$35) -> 5.035 | N249: =+IF('General Budget Assumptions'!$C$3="none",0,G249*Equipment!$O$35) -> 7.355 | O249: =+IF('General Budget Assumptions'!$C$3="none",0,F249*G249) -> 0.1225 | P249: =+IF('General Budget Assumptions'!$C$3="none",0,O249*Labor_Fuel_Interest!$C$10) -> 2.13395 | T249: =+IF('General Budget Assumptions'!C$3="Conventional Fungicide Program", K249+L249+M249+N249+P249+S249, 0) -> 16.234246 | U249: =+(K249+M249+P249+S249) -> 8.180996
B250: Luna Tranquility | C250: fl oz | Q250: =+IF('General Budget Assumptions'!C$3="Conventional Fungicide Program", 'Chemical & Fertilizer Costs'!F$37, 0) -> 20 | R250: ='Chemical & Fertilizer Costs'!H$8 -> 3.24984375 | S250: =+R250*Q250 -> 64.996875 | T250: =+S250+P250+N250+M250+L250+K250 -> 64.996875 | U250: =+(K250+M250+P250+S250) -> 64.996875
B251: Captan | C251: lb. | Q251: =+IF('General Budget Assumptions'!C$3="Conventional Fungicide Program", 'Chemical & Fertilizer Costs'!F$34, 0) -> 2.5 | R251: =+'Chemical & Fertilizer Costs'!H$9 -> 6.736 | S251: =R251*Q251 -> 16.84 | T251: =+S251+P251+N251+M251+L251+K251 -> 16.84 | U251: 16.84
B252: Hoeing | G252: 1 | H252: Jul | U252: 0
B253: hand labor | C253: hour | O253: 13 | P253: =+O253*Labor_Fuel_Interest!$C$11 -> 180.57 | T253: =+S253+P253+N253+M253+L253+K253 -> 180.57 | U253: 180.57
B254: Mow between Rows | E254: =+IF(D254="MFWD 50hp", Equipment!$U$5, IF('Blackberry Budget Y2'!D254="MFWD 50hp", Equipment!$U$6, IF(D254="4*4", Equipment!$U$7, " "))) ->  | H254: Jul | U254: 0
B255: Rotary cutter | C255: 6 ft | D255: MFWD 50hp | E255: 4 | F255: =+Equipment!$I$25 -> 0.572 | G255: 0.5 | I255: =+$G$8*Equipment!$M$25 -> 0.24596 | J255: =+G255*Equipment!$K$25 -> 2.1168576 | K255: =+SUM(I255:J255) -> 2.3628176 | L255: =+G255*Equipment!$P$25 -> 1.6302 | M255: =+G255*Equipment!$L$25 -> 0.215 | N255: =+G255*Equipment!$O$25 -> 0.63 | O255: =+F255*G255 -> 0.286 | P255: =+O255*Labor_Fuel_Interest!$C$10 -> 4.98212 | T255: =+S255+P255+N255+M255+L255+K255 -> 9.8201376 | U255: =+(K255+M255+P255+S255) -> 7.5599376
B256: Irrigation | H256: Jul | M256: 35.4 | N256: 27.1 | O256: 0.05 | P256: =+O256*Labor_Fuel_Interest!$C$10 -> 0.871 | T256: =+S256+P256+N256+M256+L256+K256 -> 63.371 | U256: 36.271
B257: Disease management | U257: 0
B258: Sprayer (Air Blast) | D258: MFWD 50hp | E258: 4 | F258: =+Equipment!$I$35 -> 0.245 | G258: 0.5 | H258: Jul | I258: =+IF('General Budget Assumptions'!$C$3="None",0,G$61*Equipment!$M$35) -> 0.10535 | J258: =+IF('General Budget Assumptions'!$C$3="None",0,G$61*Equipment!$K$35) -> 0.906696 | K258: =IF('General Budget Assumptions'!$C$3="None",0,SUM(I258:J258)) -> 1.012046 | L258: =+IF('General Budget Assumptions'!$C$3="None",0,G$61*Equipment!$P$35) -> 0.69825 | M258: =+IF('General Budget Assumptions'!$C$3="None",0,G$61*Equipment!$L$35) -> 5.035 | N258: =+IF('General Budget Assumptions'!$C$3="None",0,G$61*Equipment!$O$35) -> 7.355 | O258: =+IF('General Budget Assumptions'!$C$3="None",0,F258*G258) -> 0.1225 | P258: =+IF('General Budget Assumptions'!$C$3="None",0,O258*Labor_Fuel_Interest!$C$10) -> 2.13395 | T258: =+IF('General Budget Assumptions'!C$3="Conventional Fungicide Program", K258+L258+M258+N258+P258+S258, 0) -> 16.234246 | U258: =+(K258+M258+P258+S258) -> 8.180996
B259: Quilt Xcel | C259: fl oz | Q259: =+IF('General Budget Assumptions'!C$3="Conventional Fungicide Program", 'Chemical & Fertilizer Costs'!F$44,0) -> 17.5 | R259: ='Chemical & Fertilizer Costs'!H$7 -> 1.245260417 | S259: =+R259*Q259 -> 21.79205729 | T259: =+S259+P259+N259+M259+L259+K259 -> 21.79205729 | U259: =+(K259+M259+P259+S259) -> 21.79205729
B260: Captan | C260: lb. | Q260: =+IF('General Budget Assumptions'!C$3="Conventional Fungicide Program", 'Chemical & Fertilizer Costs'!F$34, 0) -> 2.5 | R260: =+'Chemical & Fertilizer Costs'!H$9 -> 6.736 | S260: =R260*Q260 -> 16.84 | T260: =+S260+P260+N260+M260+L260+K260 -> 16.84 | U260: 16.84
B261: Mow between Rows | E261: =+IF(D261="MFWD 50hp", Equipment!$U$5, IF('Blackberry Budget Y2'!D261="MFWD 50hp", Equipment!$U$6, IF(D261="4*4", Equipment!$U$7, " "))) ->  | H261: Aug | U261: 0
B262: Rotary cutter | C262: 6 ft | D262: MFWD 50hp | E262: 4 | F262: =+Equipment!$I$25 -> 0.572 | G262: 0.5 | I262: =+$G$8*Equipment!$M$25 -> 0.24596 | J262: =+G262*Equipment!$K$25 -> 2.1168576 | K262: =+SUM(I262:J262) -> 2.3628176 | L262: =+G262*Equipment!$P$25 -> 1.6302 | M262: =+G262*Equipment!$L$25 -> 0.215 | N262: =+G262*Equipment!$O$25 -> 0.63 | O262: =+F262*G262 -> 0.286 | P262: =+O262*Labor_Fuel_Interest!$C$10 -> 4.98212 | T262: =+S262+P262+N262+M262+L262+K262 -> 9.8201376 | U262: =+(K262+M262+P262+S262) -> 7.5599376
B263: Hoeing | G263: 1 | H263: Aug | U263: 0
B264: hand labor | C264: hour | O264: 13 | P264: =+O264*Labor_Fuel_Interest!$C$11 -> 180.57 | T264: =+S264+P264+N264+M264+L264+K264 -> 180.57 | U264: 180.57
B265: Irrigation | H265: Aug | M265: 35.4 | N265: 27.1 | O265: 0.05 | P265: =+O265*Labor_Fuel_Interest!$C$10 -> 0.871 | T265: 63.371 | U265: 36.271
B266: Mow between Rows | E266: =+IF(D266="MFWD 50hp", Equipment!$U$5, IF('Blackberry Budget Y2'!D266="MFWD 50hp", Equipment!$U$6, IF(D266="4*4", Equipment!$U$7, " "))) ->  | H266: Sep | U266: 0
B267: Rotary cutter | C267: 6 ft | D267: MFWD 50hp | E267: 4 | F267: =+Equipment!$I$25 -> 0.572 | G267: 0.5 | I267: =+$G$8*Equipment!$M$25 -> 0.24596 | J267: =+G267*Equipment!$K$25 -> 2.1168576 | K267: =+SUM(I267:J267) -> 2.3628176 | L267: =+G267*Equipment!$P$25 -> 1.6302 | M267: =+G267*Equipment!$L$25 -> 0.215 | N267: =+G267*Equipment!$O$25 -> 0.63 | O267: =+F267*G267 -> 0.286 | P267: =+O267*Labor_Fuel_Interest!$C$10 -> 4.98212 | T267: =+S267+P267+N267+M267+L267+K267 -> 9.8201376 | U267: =+(K267+M267+P267+S267) -> 7.5599376
B268: Irrigation | H268: Sep | M268: 35.4 | N268: 27.1 | O268: 0.05 | P268: =+O268*Labor_Fuel_Interest!$C$10 -> 0.871 | T268: =+S268+P268+N268+M268+L268+K268 -> 63.371 | U268: =+(K268+M268+P268+S268) -> 36.271
B269: Mow between Rows | E269: =+IF(D269="MFWD 50hp", Equipment!$U$5, IF('Blackberry Budget Y2'!D269="MFWD 50hp", Equipment!$U$6, IF(D269="4*4", Equipment!$U$7, " "))) ->  | H269: Oct | U269: 0
B270: Rotary cutter | C270: 6 ft | D270: MFWD 50hp | E270: 4 | F270: =+Equipment!$I$25 -> 0.572 | G270: 0.5 | I270: =+$G$8*Equipment!$M$25 -> 0.24596 | J270: =+G270*Equipment!$K$25 -> 2.1168576 | K270: =+SUM(I270:J270) -> 2.3628176 | L270: =+G270*Equipment!$P$25 -> 1.6302 | M270: =+G270*Equipment!$L$25 -> 0.215 | N270: =+G270*Equipment!$O$25 -> 0.63 | O270: =+F270*G270 -> 0.286 | P270: =+O270*Labor_Fuel_Interest!$C$10 -> 4.98212 | T270: =+S270+P270+N270+M270+L270+K270 -> 9.8201376 | U270: =+(K270+M270+P270+S270) -> 7.5599376
B271: Irrigation | H271: Oct | M271: 35.4 | N271: 27.1 | O271: 0.05 | P271: =+O271*Labor_Fuel_Interest!$C$10 -> 0.871 | T271: =+S271+P271+N271+M271+L271+K271 -> 63.371 | U271: =+(K271+M271+P271+S271) -> 36.271
B272: Total | I272: =+SUM(I204:I271) -> 4.38299 | J272: 37.7222544 | K272: 42.1052444 | L272: 29.05005 | M272: 272.875 | N272: 238.075 | O272: 155.4465 | P272: 2196.02803 | S272: =+SUM(S204:S271) -> 5498.844838 | T272: =+SUM(T204:T271) -> 8276.978162 | U272: =SUM(U204:U271) -> 8009.853112
B273: Interest on Operating Capital | T273: =+(U272*Labor_Fuel_Interest!$C$15)/2 -> 250.3079098
B274: Total Specified Cost | T274: =+SUM(T272:T273) -> 8527.286072

Sheet Summary Y2
B3: Blackberry Enterprise Budget Year 1 | X3: Summary Budget Year 2
B4: Operation / Operating Input | C4: Size/ Unit | D4: Power Unit Size | E4: # | F4: Perf Rate | G4: Times Over | H4: Month | I4: Power unit cost | M4: Equipment Cost | O4: Alloc Labor | Q4: Operating / Durable Input | T4: total cost | X4: Items | Y4: Unit | Z4: Price | AA4: Quantity | AB4: Amount | AC4: Your Farm
I5: R&M | J5: Fuel | K5: Direct | L5: Fixed | M5: Direct | N5: Fixed | O5: Hours | P5: Cost | Q5: Amount | R5: Price | S5: Cost
X6: Direct expenses
B7: Mow between Rows | E7: =+IF(D7="MFWD 50hp", Equipment!$U$5, IF('Summary Y2'!D7="MFWD 50hp", Equipment!$U$6, IF(D7="4*4", Equipment!$U$7, " "))) ->  | H7: Mar | X7: Blackberry plants | Y7: each | Z7: =+'Blackberry Budget Y2'!R$10 -> 4.11 | AA7: =+'Blackberry Budget Y2'!Q$10 -> 1210 | AB7: =+Z7*AA7 -> 4973.1
B8: Rotary cutter | C8: 6 ft | D8: MFWD 50hp | E8: 4 | F8: =+Equipment!$I$25 -> 0.572 | G8: 0.5 | I8: =+$G$8*Equipment!$M$25 -> 0.24596 | J8: =+G8*Equipment!$K$25 -> 2.1168576 | K8: =+SUM(I8:J8) -> 2.3628176 | L8: =+G8*Equipment!$P$25 -> 1.6302 | M8: =+G8*Equipment!$L$25 -> 0.215 | N8: =+G8*Equipment!$O$25 -> 0.63 | O8: =+F8*G8 -> 0.286 | P8: =+O8*Labor_Fuel_Interest!$C$10 -> 4.98212 | T8: =+S8+P8+N8+M8+L8+K8 -> 9.8201376 | U8: =+(K8+M8+P8+S8) -> 7.5599376 | X8: Fertilizer
B9: Weed Spray | C9: qt | D9: MFWD 50hp | E9: 4 | F9: =+Equipment!$I$37 -> 0.099 | G9: 0.5 | H9: Mar | I9: =+G9*Equipment!$M$37 -> 0.04257 | J9: =+G9*Equipment!$K$37 -> 0.3663792 | K9: =SUM(I9:J9) -> 0.4089492 | L9: =+G9*Equipment!$P$37 -> 0.28215 | M9: =+G9*Equipment!$L$37 -> 0.05 | N9: =+G9*Equipment!$O$37 -> 0.06 | O9: =+F9*G9 -> 0.0495 | P9: =+O9*Labor_Fuel_Interest!$C$10 -> 0.86229 | Q9: 1 | R9: =+'Chemical & Fertilizer Costs'!$H$6 -> 10.699 | S9: =+Q9*R9 -> 10.699 | T9: =+K9+L9+M9+N9+P9+S9 -> 12.3623892 | U9: =+(K9+M9+P9+S9) -> 12.0202392 | X9: Urea | Y9: lb. | Z9: =+'Blackberry Budget Y2'!R$24 -> 0.3922666667 | AA9: =+'Blackberry Budget Y2'!Q$24+'Blackberry Budget Y2'!Q$37+'Blackberry Budget Y2'!Q$50 -> 86.9 | AB9: =+Z9*AA9 -> 34.08797333
B10: Blackberry Plants | C10: each | E10: =+IF(D10="MFWD 50hp", Equipment!$U$5, IF('Summary Y2'!D10="MFWD 50hp", Equipment!$U$6, IF(D10="4*4", Equipment!$U$7, " "))) ->  | H10: Mar | O10: 36 | P10: =+O10*Labor_Fuel_Interest!C11 -> 500.04 | Q10: 1210 | R10: =+IF('General Budget Assumptions'!$C$3="Ouachita",'Plant costs'!H14, 'Plant costs'!H9) -> 4.11 | S10: =+Q10*R10 -> 4973.1 | T10: =+S10+P10+N10+M10+L10+K10 -> 5473.14 | U10: =+(K10+M10+P10+S10) -> 5473.14 | X10: Chemicals
B11: Construct Trellis | E11: =+IF(D11="MFWD 50hp", Equipment!$U$5, IF('Summary Y2'!D11="MFWD 50hp", Equipment!$U$6, IF(D11="4*4", Equipment!$U$7, " "))) ->  | H11: Mar | X11: Glyphosate | Y11: qt | Z11: =+'Blackberry Budget Y2'!R$9 -> 10.699 | AA11: =+'Blackberry Budget Y2'!Q$9 -> 1 | AB11: =+Z11*AA11 -> 10.699
B12: Auger post holes | D12: MFWD 50hp | E12: 4 | F12: =+Equipment!$I$5 -> 2 | G12: 0.5 | I12: =+G12*Equipment!$M$5 -> 0.86 | J12: =+G12*Equipment!$K$5 -> 7.4016 | K12: =+SUM(I12:J12) -> 8.2616 | L12: =+G12*Equipment!$P$5 -> 5.7 | M12: =+G12*Equipment!$L$5 -> 0 | N12: =+G12*Equipment!$O$5 -> 0.34 | O12: 6 | P12: =+O12*Labor_Fuel_Interest!$C$10 -> 104.52 | T12: =+S12+P12+N12+M12+L12+K12 -> 118.8216 | U12: =+(K12+M12+P12+S12) -> 112.7816 | X12: Pristine | Y12: oz | Z12: =+'Blackberry Budget Y2'!R$27 -> 0.809375 | AA12: =+'Blackberry Budget Y2'!Q$27 -> 21 | AB12: =+Z12*AA12 -> 16.996875
B13: hand labor | C13: hour | O13: 39 | P13: =+O13*Labor_Fuel_Interest!$C$11 -> 541.71 | T13: =+S13+P13+N13+M13+L13+K13 -> 541.71 | U13: 541.71 | X13: Captane | Y13: lb. | Z13: =+'Blackberry Budget Y2'!R$28 -> 6.736 | AA13: =+'Blackberry Budget Y2'!Q$28+'Blackberry Budget Y2'!Q$41+'Blackberry Budget Y2'!Q$54+'Blackberry Budget Y2'!Q$63 -> 10 | AB13: 67.36
B14: Wood post 2.5" x 8' | C14: each | E14: =+IF(D14="MFWD 50hp", Equipment!$U$5, IF('Summary Y2'!D14="MFWD 50hp", Equipment!$U$6, IF(D14="4*4", Equipment!$U$7, " "))) ->  | Q14: =+'T-Trellis system'!D10 -> 118 | R14: ='T-Trellis system'!$E$10 -> 19.64333333 | S14: =+Q14*R14 -> 2317.913333 | T14: =+S14+P14+N14+M14+L14+K14 -> 2317.913333 | U14: 2317.913333 | X14: Quilt Xcel | Y14: fl oz | Z14: =+'Blackberry Budget Y2'!R$40 -> 1.245260417 | AA14: =+'Blackberry Budget Y2'!Q$40+'Blackberry Budget Y2'!Q$62 -> 35 | AB14: 43.58411458
B15: Crossarms | C15: each | E15: =+IF(D15="MFWD 50hp", Equipment!$U$5, IF('Summary Y2'!D15="MFWD 50hp", Equipment!$U$6, IF(D15="4*4", Equipment!$U$7, " "))) ->  | Q15: 59 | R15: ='T-Trellis system'!E12 -> 8.19 | S15: =+Q15*R15 -> 483.21 | T15: =+S15+P15+N15+M15+L15+K15 -> 483.21 | U15: 483.21 | X15: Luna Tranquility | Y15: fl oz | Z15: =+'Blackberry Budget Y2'!R$53 -> 3.24984375 | AA15: =+'Blackberry Budget Y2'!Q$53 -> 20 | AB15: 64.996875
B16: Wire-Blackberry | C16: 8700 ft roll | E16: =+IF(D16="MFWD 50hp", Equipment!$U$5, IF('Summary Y2'!D16="MFWD 50hp", Equipment!$U$6, IF(D16="4*4", Equipment!$U$7, " "))) ->  | Q16: =+'T-Trellis system'!D13 -> 2 | R16: ='T-Trellis system'!E13 -> 153.99 | S16: 307.98 | T16: 307.98 | U16: 307.98 | X16: Operator labor
B17: Trellis hardware | C17: acre | Q17: 1 | R17: 288.02 | S17: 288.02 | T17: 288.02 | U17: 288.02 | X17: Tractors | Y17: hour | Z17: =+Labor_Fuel_Interest!$C$10 -> 17.42 | AA17: =+'Blackberry Budget Y2'!O$8+'Blackberry Budget Y2'!O$9+'Blackberry Budget Y2'!O$12+'Blackberry Budget Y2'!O$21+'Blackberry Budget Y2'!O$23+'Blackberry Budget Y2'!O$26+'Blackberry Budget Y2'!O$33+'Blackberry Budget Y2'!O$36+'Blackberry Budget Y2'!O$39+'Blackberry Budget Y2'!O$45+'Blackberry Budget Y2'!O$49+'Blackberry Budget Y2'!O$52+'Blackberry Budget Y2'!O$58+'Blackberry Budget Y2'!O$61+'Blackberry Budget Y2'!O$65+'Blackberry Budget Y2'!O$70+'Blackberry Budget Y2'!O$73 -> 10.0965 | AB17: =+Z17*AA17 -> 175.88103
B18: Hoeing | G18: 1 | H18: Apr | U18: 0 | X18: Hand labor
B19: hand labor | C19: hour | O19: 13 | P19: =+O19*Labor_Fuel_Interest!$C$11 -> 180.57 | T19: =+S19+P19+N19+M19+L19+K19 -> 180.57 | U19: 180.57 | X19: Special labor | Y19: hour | Z19: =+Labor_Fuel_Interest!$C$11 -> 13.89 | AA19: =+'Blackberry Budget Y2'!O$10+'Blackberry Budget Y2'!O$13+'Blackberry Budget Y2'!O$19+'Blackberry Budget Y2'!O$31+'Blackberry Budget Y2'!O$43+'Blackberry Budget Y2'!O$46+'Blackberry Budget Y2'!O$56+'Blackberry Budget Y2'!O$67 -> 145 | AB19: =+Z19*AA19 -> 2014.05
B20: Mow between Rows | E20: =+IF(D20="MFWD 50hp", Equipment!$U$5, IF('Summary Y2'!D20="MFWD 50hp", Equipment!$U$6, IF(D20="4*4", Equipment!$U$7, " "))) ->  | H20: Apr | U20: 0 | X20: Irrigation labor | AB20: =+Z20*AA20 -> 0
B21: Rotary cutter | C21: 6 ft | D21: MFWD 50hp | E21: 4 | F21: =+Equipment!$I$25 -> 0.572 | G21: 0.5 | I21: =+$G$8*Equipment!$M$25 -> 0.24596 | J21: =+G21*Equipment!$K$25 -> 2.1168576 | K21: =+SUM(I21:J21) -> 2.3628176 | L21: =+G21*Equipment!$P$25 -> 1.6302 | M21: =+G21*Equipment!$L$25 -> 0.215 | N21: =+G21*Equipment!$O$25 -> 0.63 | O21: =+F21*G21 -> 0.286 | P21: =+O21*Labor_Fuel_Interest!$C$10 -> 4.98212 | T21: =+S21+P21+N21+M21+L21+K21 -> 9.8201376 | U21: =+(K21+M21+P21+S21) -> 7.5599376 | X21: Special labor | Y21: hour | Z21: =+Labor_Fuel_Interest!$C$10 -> 17.42 | AA21: =+'Blackberry Budget Y2'!O$29+'Blackberry Budget Y2'!O$34+'Blackberry Budget Y2'!O$47+'Blackberry Budget Y2'!O$59+'Blackberry Budget Y2'!O$68+'Blackberry Budget Y2'!O$71+'Blackberry Budget Y2'!O$74 -> 0.35 | AB21: =+Z21*AA21 -> 6.097
B22: Apply fertilizer | H22: Apr | U22: 0 | X22: Irrigation variable cost | Y22: acre | Z22: =++'Blackberry Budget Y2'!M$29+'Blackberry Budget Y2'!M$34+'Blackberry Budget Y2'!M$47+'Blackberry Budget Y2'!M$59+'Blackberry Budget Y2'!M$68+'Blackberry Budget Y2'!M$71+'Blackberry Budget Y2'!M$74 -> 247.8 | AA22: 1 | AB22: =+Z22*AA22 -> 247.8
B23: Side dresser | C23: 1R 3ft | D23: MFWD 50hp | E23: 4 | F23: =+Equipment!$I$27 -> 0.846 | G23: 0.5 | H23: Apr | I23: =+G23*Equipment!$M$27 -> 0.36378 | J23: =+G23*Equipment!$K$27 -> 3.1308768 | K23: =SUM(I23:J23) -> 3.4946568 | L23: =+G23*Equipment!$P$27 -> 2.4111 | M23: =+G23*Equipment!$L$27 -> 1.055 | N23: =+G23*Equipment!$O$27 -> 4.505 | O23: =+F23*G23 -> 0.423 | P23: =+Labor_Fuel_Interest!$C$10*O23 -> 7.36866 | T23: =+S23+P23+N23+M23+L23+K23 -> 18.8344168 | U23: 11.9183168 | X23: Diesel Fuel
B24: Urea | C24: lb. | Q24: 43.5 | R24: =+'Chemical & Fertilizer Costs'!$F$25 -> 0.3922666667 | S24: =+R24*Q24 -> 17.0636 | T24: =+S24+P24+N24+M24+L24+K24 -> 17.0636 | U24: 17.0636 | X24: Tractors | Y24: gal | Z24: =+Labor_Fuel_Interest!$E$4 -> 2.88 | AA24: =('Blackberry Budget Y2'!J$8+'Blackberry Budget Y2'!J$9+'Blackberry Budget Y2'!J$12+'Blackberry Budget Y2'!J$21+'Blackberry Budget Y2'!J$23+'Blackberry Budget Y2'!J$26+'Blackberry Budget Y2'!J$33+'Blackberry Budget Y2'!J$36+'Blackberry Budget Y2'!J$39+'Blackberry Budget Y2'!J$45+'Blackberry Budget Y2'!J$49+'Blackberry Budget Y2'!J$52+'Blackberry Budget Y2'!J$58+'Blackberry Budget Y2'!J$61+'Blackberry Budget Y2'!J$65+'Blackberry Budget Y2'!J$70+'Blackberry Budget Y2'!J$73)/'Blackberry Budget Y2'!Z$24 -> 13.098005 | AB24: =+Z24*AA24 -> 37.7222544
B25: Disease management | U25: 0 | X25: Construct Trellis
B26: Sprayer (Air Blast) | D26: MFWD 50hp | E26: 4 | F26: =+Equipment!$I$35 -> 0.245 | G26: 1 | H26: Apr | I26: =+G26*Equipment!$M$35 -> 0.2107 | J26: =+G26*Equipment!$K$35 -> 1.813392 | K26: =SUM(I26:J26) -> 2.024092 | L26: =+G26*Equipment!$P$35 -> 1.3965 | M26: =+G26*Equipment!$L$35 -> 10.07 | N26: =+G26*Equipment!$O$35 -> 14.71 | O26: =+F26*G26 -> 0.245 | P26: =+O26*Labor_Fuel_Interest!$C$10 -> 4.2679 | T26: =+IF('General Budget Assumptions'!C$3="Conventional Fungicide Program", K26+L26+M26+N26+P26+S26, 0) -> 32.468492 | U26: =+(K26+M26+P26+S26) -> 16.361992 | X26: Wood post 2.5" x 8' | Y26: each | Z26: =+'Blackberry Budget Y2'!R$14 -> 19.64333333 | AA26: =+'Blackberry Budget Y2'!Q$14 -> 118 | AB26: =+Z26*AA26 -> 2317.913333
B27: Pristine | C27: oz | Q27: =+IF('General Budget Assumptions'!C$3="Conventional Fungicide Program", 'Chemical & Fertilizer Costs'!F$41,0) -> 21 | R27: =+'Chemical & Fertilizer Costs'!H$10 -> 0.809375 | S27: =+R27*Q27 -> 16.996875 | T27: =+S27+P27+N27+M27+L27+K27 -> 16.996875 | U27: 16.996875 | X27: Crossarms | Y27: each | Z27: =+'Blackberry Budget Y2'!R$15 -> 8.19 | AA27: =+'Blackberry Budget Y2'!Q$15 -> 59 | AB27: =+Z27*AA27 -> 483.21
B28: Captan | C28: lb. | Q28: =+IF('General Budget Assumptions'!C$3="Conventional Fungicide Program", 'Chemical & Fertilizer Costs'!F$34,0) -> 2.5 | R28: =+'Chemical & Fertilizer Costs'!H$9 -> 6.736 | S28: =R28*Q28 -> 16.84 | T28: =+S28+P28+N28+M28+L28+K28 -> 16.84 | U28: 16.84 | X28: Wire-Blackberry | Y28: 8700 ft roll | Z28: =+'Blackberry Budget Y2'!R$16 -> 153.99 | AA28: =+'Blackberry Budget Y2'!Q$16 -> 2 | AB28: =+Z28*AA28 -> 307.98
B29: Irrigation | H29: Apr | M29: 35.4 | N29: 27.1 | O29: 0.05 | P29: =+O29*Labor_Fuel_Interest!$C$10 -> 0.871 | T29: =+S29+P29+N29+M29+L29+K29 -> 63.371 | U29: 36.271 | X29: Trellis hardware | Y29: acre | Z29: =+'Blackberry Budget Y2'!T$17 -> 288.02 | AA29: 1 | AB29: =+Z29*AA29 -> 288.02
B30: Hoeing | G30: 1 | H30: May | U30: 0 | X30: Repair & Maintenance
B31: hand labor | C31: hour | O31: 13 | P31: =+O31*Labor_Fuel_Interest!$C$11 -> 180.57 | T31: =+S31+P31+N31+M31+L31+K31 -> 180.57 | U31: 180.57 | X31: Implements | Y31: acre | Z31: =+'Blackberry Budget Y2'!M$75-('Blackberry Budget Y2'!M$29+'Blackberry Budget Y2'!M$34+'Blackberry Budget Y2'!M$47+'Blackberry Budget Y2'!M$59+'Blackberry Budget Y2'!M$68+'Blackberry Budget Y2'!M$71+'Blackberry Budget Y2'!M$74) -> 25.075 | AA31: 1 | AB31: =+Z31*AA31 -> 25.075
B32: Mow between Rows | E32: =+IF(D32="MFWD 50hp", Equipment!$U$5, IF('Summary Y2'!D32="MFWD 50hp", Equipment!$U$6, IF(D32="4*4", Equipment!$U$7, " "))) ->  | H32: May | U32: 0 | X32: Tractors | Y32: acre | Z32: =+'Blackberry Budget Y2'!I$75 -> 4.38299 | AA32: 1 | AB32: =+Z32*AA32 -> 4.38299
B33: Rotary cutter | C33: 6 ft | D33: MFWD 50hp | E33: 4 | F33: =+Equipment!$I$25 -> 0.572 | G33: 0.5 | I33: =+$G$8*Equipment!$M$25 -> 0.24596 | J33: =+G33*Equipment!$K$25 -> 2.1168576 | K33: =+SUM(I33:J33) -> 2.3628176 | L33: =+G33*Equipment!$P$25 -> 1.6302 | M33: =+G33*Equipment!$L$25 -> 0.215 | N33: =+G33*Equipment!$O$25 -> 0.63 | O33: =+F33*G33 -> 0.286 | P33: =+O33*Labor_Fuel_Interest!$C$10 -> 4.98212 | T33: =+S33+P33+N33+M33+L33+K33 -> 9.8201376 | U33: =+(K33+M33+P33+S33) -> 7.5599376 | X33: Interest on OP. CAP. | Y33: acre | Z33: =+'Blackberry Budget Y2'!T$76 -> 347.4673889 | AA33: 1 | AB33: =+Z33*AA33 -> 347.4673889
B34: Irrigation | H34: May | M34: 35.4 | N34: 27.1 | O34: 0.05 | P34: =+O34*Labor_Fuel_Interest!$C$10 -> 0.871 | T34: =+S34+P34+N34+M34+L34+K34 -> 63.371 | U34: 36.271 | X34: Total Direct Expenses | AB34: =+SUM(AB7:AB33) -> 11466.42383 | AC34: =+SUM(AC7:AC33) -> 0
B35: Apply fertilizer | H35: May | U35: 0
B36: Side dresser | C36: 1R 3ft | D36: MFWD 50hp | E36: =+IF(D36="MFWD 50hp", Equipment!$U$5, IF('Summary Y2'!D36="MFWD 50hp", Equipment!$U$6, IF(D36="4*4", Equipment!$U$7, " "))) -> 4 | F36: =Equipment!$I$27 -> 0.846 | G36: 0.5 | I36: =+$G$36*Equipment!$M$27 -> 0.36378 | J36: =+G36*Equipment!$K$27 -> 3.1308768 | K36: =+SUM(I36:J36) -> 3.4946568 | L36: =+G36*Equipment!$P$27 -> 2.4111 | M36: =+G36*Equipment!$L$27 -> 1.055 | N36: =+G36*Equipment!$O$27 -> 4.505 | O36: =+F36*G36 -> 0.423 | P36: =+O36*Labor_Fuel_Interest!$C$10 -> 7.36866 | T36: =+S36+P36+N36+M36+L36+K36 -> 18.8344168 | U36: 11.9183168 | X36: Fixed Expenses
B37: Urea | C37: lb. | Q37: 21.7 | R37: =+'Chemical & Fertilizer Costs'!$F$25 -> 0.3922666667 | S37: =+R37*Q37 -> 8.512186667 | T37: =+S37+P37+N37+M37+L37+K37 -> 8.512186667 | U37: 8.512186667 | X37: Implements | Y37: acre | Z37: =+'Blackberry Budget Y2'!N$75-('Blackberry Budget Y2'!N$29+'Blackberry Budget Y2'!N$34+'Blackberry Budget Y2'!N$47+'Blackberry Budget Y2'!N$59+'Blackberry Budget Y2'!N$68+'Blackberry Budget Y2'!N$71+'Blackberry Budget Y2'!N$74) -> 48.375 | AA37: 1 | AB37: =+Z37*AA37 -> 48.375
B38: Disease management | U38: 0 | X38: Tractors | Y38: acre | Z38: =+'Blackberry Budget Y2'!L$75 -> 29.05005 | AA38: 1 | AB38: =+Z38*AA38 -> 29.05005
B39: Sprayer (Air Blast) | D39: MFWD 50hp | E39: 4 | F39: =+Equipment!$I$35 -> 0.245 | G39: 0.5 | H39: May | I39: =+G39*Equipment!$M$35 -> 0.10535 | J39: =+G39*Equipment!$K$35 -> 0.906696 | K39: =SUM(I39:J39) -> 1.012046 | L39: =+G39*Equipment!$P$35 -> 0.69825 | M39: =+G39*Equipment!$L$35 -> 5.035 | N39: =+G39*Equipment!$O$35 -> 7.355 | O39: =+F39*G39 -> 0.1225 | P39: =+O39*Labor_Fuel_Interest!$C$10 -> 2.13395 | T39: =+IF('General Budget Assumptions'!C$3="Conventional Fungicide Program",K39+L39+M39+N39+P39+S39,0) -> 16.234246 | U39: =+(K39+M39+P39+S39) -> 8.180996 | X39: Irrigation set-up | Y39: acre | Z39: =+'Blackberry Budget Y2'!N$29+'Blackberry Budget Y2'!N$34+'Blackberry Budget Y2'!N$47+'Blackberry Budget Y2'!N$59+'Blackberry Budget Y2'!N$68+'Blackberry Budget Y2'!N$71+'Blackberry Budget Y2'!N$74 -> 189.7 | AA39: 1 | AB39: =+Z39*AA39 -> 189.7
B40: Quilt Xcel | C40: fl oz | Q40: =+IF('General Budget Assumptions'!C$3="Conventional Fungicide Program", 'Chemical & Fertilizer Costs'!F$44, 0) -> 17.5 | R40: ='Chemical & Fertilizer Costs'!H$7 -> 1.245260417 | S40: =+R40*Q40 -> 21.79205729 | T40: =+S40+P40+N40+M40+L40+K40 -> 21.79205729 | U40: =+(K40+M40+P40+S40) -> 21.79205729
B41: Captan | C41: lb. | Q41: =+IF('General Budget Assumptions'!C$3="Conventional Fungicide Program",'Chemical & Fertilizer Costs'!F$34,0) -> 2.5 | R41: =+'Chemical & Fertilizer Costs'!H$9 -> 6.736 | S41: =R41*Q41 -> 16.84 | T41: =+S41+P41+N41+M41+L41+K41 -> 16.84 | U41: 16.84 | X41: Total Fixed Expenses | AB41: =+SUM(AB37:AB40) -> 267.12505 | AC41: =+SUM(AC37:AC40) -> 0
B42: Hoeing | G42: 1 | H42: Jun | U42: 0
B43: hand labor | C43: hour | O43: 13 | P43: =+O43*Labor_Fuel_Interest!$C$11 -> 180.57 | T43: =+S43+P43+N43+M43+L43+K43 -> 180.57 | U43: 180.57 | X43: Total Specified Expenses | AB43: =+SUM(AB34+AB41) -> 11733.54888 | AC43: =+SUM(AC34+AC41) -> 0
B44: Mow between Rows | E44: =+IF(D44="MFWD 50hp", Equipment!$U$5, IF('Summary Y2'!D44="MFWD 50hp", Equipment!$U$6, IF(D44="4*4", Equipment!$U$7, " "))) ->  | H44: Jun | U44: 0
B45: Rotary cutter | C45: 6 ft | D45: MFWD 50hp | E45: 4 | F45: =+Equipment!$I$25 -> 0.572 | G45: 0.5 | I45: =+$G$8*Equipment!$M$25 -> 0.24596 | J45: =+G45*Equipment!$K$25 -> 2.1168576 | K45: =+SUM(I45:J45) -> 2.3628176 | L45: =+G45*Equipment!$P$25 -> 1.6302 | M45: =+G45*Equipment!$L$25 -> 0.215 | N45: =+G45*Equipment!$O$25 -> 0.63 | O45: =+F45*G45 -> 0.286 | P45: =+O45*Labor_Fuel_Interest!$C$10 -> 4.98212 | T45: =+S45+P45+N45+M45+L45+K45 -> 9.8201376 | U45: =+(K45+M45+P45+S45) -> 7.5599376
B46: Tipping Blackberries | C46: hour | G46: 1 | H46: Jun | O46: 5 | P46: =+O46*Labor_Fuel_Interest!$C$11 -> 69.45 | T46: =+S46+P46+N46+M46+L46+K46 -> 69.45 | U46: 69.45
B47: Irrigation | H47: Jun | M47: 35.4 | N47: 27.1 | O47: 0.05 | P47: =+O47*Labor_Fuel_Interest!$C$10 -> 0.871 | T47: =+S47+P47+N47+M47+L47+K47 -> 63.371 | U47: 36.271
B48: Apply fertilizer | H48: Jun | U48: 0
B49: Side dresser | C49: 1R 3ft | D49: MFWD 50hp | E49: =+IF(D49="MFWD 50hp", Equipment!$U$5, IF('Summary Y2'!D49="MFWD 50hp", Equipment!$U$6, IF(D49="4*4", Equipment!$U$7, " "))) -> 4 | F49: =Equipment!$I$27 -> 0.846 | G49: 0.5 | I49: =+$G$36*Equipment!$M$27 -> 0.36378 | J49: =+G49*Equipment!$K$27 -> 3.1308768 | K49: =+SUM(I49:J49) -> 3.4946568 | L49: =+G49*Equipment!$P$27 -> 2.4111 | M49: =+G49*Equipment!$L$27 -> 1.055 | N49: =+G49*Equipment!$O$27 -> 4.505 | O49: =+F49*G49 -> 0.423 | P49: =+O49*Labor_Fuel_Interest!$C$10 -> 7.36866 | T49: =+S49+P49+N49+M49+L49+K49 -> 18.8344168 | U49: 11.9183168
B50: Urea | C50: lb. | Q50: 21.7 | R50: =+'Chemical & Fertilizer Costs'!$F$25 -> 0.3922666667 | S50: =+R50*Q50 -> 8.512186667 | T50: =+S50+P50+N50+M50+L50+K50 -> 8.512186667 | U50: 8.512186667
B51: Disease management | U51: 0
B52: Sprayer (Air Blast) | D52: MFWD 50hp | E52: 4 | F52: =+Equipment!$I$35 -> 0.245 | G52: 0.5 | H52: Jun | I52: =+G52*Equipment!$M$35 -> 0.10535 | J52: =+G52*Equipment!$K$35 -> 0.906696 | K52: =SUM(I52:J52) -> 1.012046 | L52: =+G52*Equipment!$P$35 -> 0.69825 | M52: =+G52*Equipment!$L$35 -> 5.035 | N52: =+G52*Equipment!$O$35 -> 7.355 | O52: =+F52*G52 -> 0.1225 | P52: =+O52*Labor_Fuel_Interest!$C$10 -> 2.13395 | T52: =+IF('General Budget Assumptions'!C$3="Conventional Fungicide Program", K52+L52+M52+N52+P52+S52, 0) -> 16.234246 | U52: =+(K52+M52+P52+S52) -> 8.180996
B53: Luna Tranquility | C53: fl oz | Q53: =+IF('General Budget Assumptions'!C$3="Conventional Fungicide Program", 'Chemical & Fertilizer Costs'!F$37, 0) -> 20 | R53: ='Chemical & Fertilizer Costs'!H$8 -> 3.24984375 | S53: =+R53*Q53 -> 64.996875 | T53: =+S53+P53+N53+M53+L53+K53 -> 64.996875 | U53: =+(K53+M53+P53+S53) -> 64.996875
B54: Captan | C54: lb. | Q54: =+IF('General Budget Assumptions'!C$3="Conventional Fungicide Program", 'Chemical & Fertilizer Costs'!F$34, 0) -> 2.5 | R54: =+'Chemical & Fertilizer Costs'!H$9 -> 6.736 | S54: =R54*Q54 -> 16.84 | T54: =+S54+P54+N54+M54+L54+K54 -> 16.84 | U54: 16.84
B55: Hoeing | G55: 1 | H55: Jul | U55: 0
B56: hand labor | C56: hour | O56: 13 | P56: =+O56*Labor_Fuel_Interest!$C$11 -> 180.57 | T56: =+S56+P56+N56+M56+L56+K56 -> 180.57 | U56: 180.57
B57: Mow between Rows | E57: =+IF(D57="MFWD 50hp", Equipment!$U$5, IF('Summary Y2'!D57="MFWD 50hp", Equipment!$U$6, IF(D57="4*4", Equipment!$U$7, " "))) ->  | H57: Jul | U57: 0
B58: Rotary cutter | C58: 6 ft | D58: MFWD 50hp | E58: 4 | F58: =+Equipment!$I$25 -> 0.572 | G58: 0.5 | I58: =+$G$8*Equipment!$M$25 -> 0.24596 | J58: =+G58*Equipment!$K$25 -> 2.1168576 | K58: =+SUM(I58:J58) -> 2.3628176 | L58: =+G58*Equipment!$P$25 -> 1.6302 | M58: =+G58*Equipment!$L$25 -> 0.215 | N58: =+G58*Equipment!$O$25 -> 0.63 | O58: =+F58*G58 -> 0.286 | P58: =+O58*Labor_Fuel_Interest!$C$10 -> 4.98212 | T58: =+S58+P58+N58+M58+L58+K58 -> 9.8201376 | U58: =+(K58+M58+P58+S58) -> 7.5599376
B59: Irrigation | H59: Jul | M59: 35.4 | N59: 27.1 | O59: 0.05 | P59: =+O59*Labor_Fuel_Interest!$C$10 -> 0.871 | T59: =+S59+P59+N59+M59+L59+K59 -> 63.371 | U59: 36.271
B60: Disease management | U60: 0
B61: Sprayer (Air Blast) | D61: MFWD 50hp | E61: 4 | F61: =+Equipment!$I$35 -> 0.245 | G61: 0.5 | H61: Jul | I61: =+G61*Equipment!$M$35 -> 0.10535 | J61: =+G61*Equipment!$K$35 -> 0.906696 | K61: =SUM(I61:J61) -> 1.012046 | L61: =+G61*Equipment!$P$35 -> 0.69825 | M61: =+G61*Equipment!$L$35 -> 5.035 | N61: =+G61*Equipment!$O$35 -> 7.355 | O61: =+F61*G61 -> 0.1225 | P61: =+O61*Labor_Fuel_Interest!$C$10 -> 2.13395 | T61: =+IF('General Budget Assumptions'!C$3="Conventional Fungicide Program", K61+L61+M61+N61+P61+S61, 0) -> 16.234246 | U61: =+(K61+M61+P61+S61) -> 8.180996
B62: Quilt Xcel | C62: fl oz | Q62: =+IF('General Budget Assumptions'!C$3="Conventional Fungicide Program", 'Chemical & Fertilizer Costs'!F$44,0) -> 17.5 | R62: ='Chemical & Fertilizer Costs'!H$7 -> 1.245260417 | S62: =+R62*Q62 -> 21.79205729 | T62: =+S62+P62+N62+M62+L62+K62 -> 21.79205729 | U62: =+(K62+M62+P62+S62) -> 21.79205729
B63: Captan | C63: lb. | Q63: =+IF('General Budget Assumptions'!C$3="Conventional Fungicide Program", 'Chemical & Fertilizer Costs'!F$34, 0) -> 2.5 | R63: =+'Chemical & Fertilizer Costs'!H$9 -> 6.736 | S63: =R63*Q63 -> 16.84 | T63: =+S63+P63+N63+M63+L63+K63 -> 16.84 | U63: 16.84
B64: Mow between Rows | E64: =+IF(D64="MFWD 50hp", Equipment!$U$5, IF('Summary Y2'!D64="MFWD 50hp", Equipment!$U$6, IF(D64="4*4", Equipment!$U$7, " "))) ->  | H64: Aug | U64: 0
B65: Rotary cutter | C65: 6 ft | D65: MFWD 50hp | E65: 4 | F65: =+Equipment!$I$25 -> 0.572 | G65: 0.5 | I65: =+$G$8*Equipment!$M$25 -> 0.24596 | J65: =+G65*Equipment!$K$25 -> 2.1168576 | K65: =+SUM(I65:J65) -> 2.3628176 | L65: =+G65*Equipment!$P$25 -> 1.6302 | M65: =+G65*Equipment!$L$25 -> 0.215 | N65: =+G65*Equipment!$O$25 -> 0.63 | O65: =+F65*G65 -> 0.286 | P65: =+O65*Labor_Fuel_Interest!$C$10 -> 4.98212 | T65: =+S65+P65+N65+M65+L65+K65 -> 9.8201376 | U65: =+(K65+M65+P65+S65) -> 7.5599376
B66: Hoeing | G66: 1 | H66: Aug | U66: 0
B67: hand labor | C67: hour | O67: 13 | P67: =+O67*Labor_Fuel_Interest!$C$11 -> 180.57 | T67: =+S67+P67+N67+M67+L67+K67 -> 180.57 | U67: 180.57
B68: Irrigation | H68: Aug | M68: 35.4 | N68: 27.1 | O68: 0.05 | P68: =+O68*Labor_Fuel_Interest!$C$10 -> 0.871 | T68: 63.371 | U68: 36.271
B69: Mow between Rows | E69: =+IF(D69="MFWD 50hp", Equipment!$U$5, IF('Summary Y2'!D69="MFWD 50hp", Equipment!$U$6, IF(D69="4*4", Equipment!$U$7, " "))) ->  | H69: Sep | U69: 0
B70: Rotary cutter | C70: 6 ft | D70: MFWD 50hp | E70: 4 | F70: =+Equipment!$I$25 -> 0.572 | G70: 0.5 | I70: =+$G$8*Equipment!$M$25 -> 0.24596 | J70: =+G70*Equipment!$K$25 -> 2.1168576 | K70: =+SUM(I70:J70) -> 2.3628176 | L70: =+G70*Equipment!$P$25 -> 1.6302 | M70: =+G70*Equipment!$L$25 -> 0.215 | N70: =+G70*Equipment!$O$25 -> 0.63 | O70: =+F70*G70 -> 0.286 | P70: =+O70*Labor_Fuel_Interest!$C$10 -> 4.98212 | T70: =+S70+P70+N70+M70+L70+K70 -> 9.8201376 | U70: =+(K70+M70+P70+S70) -> 7.5599376
B71: Irrigation | H71: Sep | M71: 35.4 | N71: 27.1 | O71: 0.05 | P71: =+O71*Labor_Fuel_Interest!$C$10 -> 0.871 | T71: =+S71+P71+N71+M71+L71+K71 -> 63.371 | U71: =+(K71+M71+P71+S71) -> 36.271
B72: Mow between Rows | E72: =+IF(D72="MFWD 50hp", Equipment!$U$5, IF('Summary Y2'!D72="MFWD 50hp", Equipment!$U$6, IF(D72="4*4", Equipment!$U$7, " "))) ->  | H72: Oct | U72: 0
B73: Rotary cutter | C73: 6 ft | D73: MFWD 50hp | E73: 4 | F73: =+Equipment!$I$25 -> 0.572 | G73: 0.5 | I73: =+$G$8*Equipment!$M$25 -> 0.24596 | J73: =+G73*Equipment!$K$25 -> 2.1168576 | K73: =+SUM(I73:J73) -> 2.3628176 | L73: =+G73*Equipment!$P$25 -> 1.6302 | M73: =+G73*Equipment!$L$25 -> 0.215 | N73: =+G73*Equipment!$O$25 -> 0.63 | O73: =+F73*G73 -> 0.286 | P73: =+O73*Labor_Fuel_Interest!$C$10 -> 4.98212 | T73: =+S73+P73+N73+M73+L73+K73 -> 9.8201376 | U73: =+(K73+M73+P73+S73) -> 7.5599376
B74: Irrigation | H74: Oct | M74: 35.4 | N74: 27.1 | O74: 0.05 | P74: =+O74*Labor_Fuel_Interest!$C$10 -> 0.871 | T74: =+S74+P74+N74+M74+L74+K74 -> 63.371 | U74: =+(K74+M74+P74+S74) -> 36.271
B75: Total | I75: =+SUM(I7:I74) -> 4.48834 | J75: 38.6289504 | K75: 43.1172904 | L75: 29.7483 | M75: 277.91 | N75: 245.43 | O75: 155.569 | P75: 2198.16198 | S75: =+SUM(S7:S74) -> 8607.948171 | T75: =+SUM(T7:T74) -> 11402.31574 | U75: =SUM(U7:U74) -> 11127.13744
B76: Interest on Operating Capital | T76: =+(U75*Labor_Fuel_Interest!$C$15)/2 -> 347.7230451
B77: Total Specified Cost | T77: =+SUM(T75:T76) -> 11750.03879
X200: Summary Budget Year 2
X201: Items | Y201: Unit | Z201: Price | AA201: Quantity | AB201: Amount | AC201: Your Farm
X203: Direct expenses
X204: Blackberry plants | Y204: each | Z204: =+'Blackberry Budget Y2'!R$10 -> 4.11 | AA204: =+'Blackberry Budget Y2'!Q$10 -> 1210 | AB204: =+Z204*AA204 -> 4973.1
X205: Fertilizer
X206: Urea | Y206: lb. | Z206: =+'Blackberry Budget Y2'!R$24 -> 0.3922666667 | AA206: =+'Blackberry Budget Y2'!Q$24+'Blackberry Budget Y2'!Q$37+'Blackberry Budget Y2'!Q$50 -> 86.9 | AB206: =+Z206*AA206 -> 34.08797333
X207: Chemicals
X208: Glyphosate | Y208: qt | Z208: =+'Blackberry Budget Y2'!R$9 -> 10.699 | AA208: =+'Blackberry Budget Y2'!Q$9 -> 1 | AB208: =+Z208*AA208 -> 10.699
X209: Pristine | Y209: oz | Z209: =+'Blackberry Budget Y2'!R$27 -> 0.809375 | AA209: =+'Blackberry Budget Y2'!Q$27 -> 21 | AB209: =+Z209*AA209 -> 16.996875
X210: Captane | Y210: lb. | Z210: =+'Blackberry Budget Y2'!R$28 -> 6.736 | AA210: =+'Blackberry Budget Y2'!Q$28+'Blackberry Budget Y2'!Q$41+'Blackberry Budget Y2'!Q$54+'Blackberry Budget Y2'!Q$63 -> 10 | AB210: 67.36
X211: Quilt Xcel | Y211: fl oz | Z211: =+'Blackberry Budget Y2'!R$40 -> 1.245260417 | AA211: =+'Blackberry Budget Y2'!Q$40+'Blackberry Budget Y2'!Q$62 -> 35 | AB211: 43.58411458
X212: Luna Tranquility | Y212: fl oz | Z212: =+'Blackberry Budget Y2'!R$53 -> 3.24984375 | AA212: =+'Blackberry Budget Y2'!Q$53 -> 20 | AB212: 64.996875
X213: Operator labor
X214: Tractors | Y214: hour | Z214: =+Labor_Fuel_Interest!$C$10 -> 17.42 | AA214: =+'Blackberry Budget Y2'!O$8+'Blackberry Budget Y2'!O$9+'Blackberry Budget Y2'!O$12+'Blackberry Budget Y2'!O$21+'Blackberry Budget Y2'!O$23+'Blackberry Budget Y2'!O$26+'Blackberry Budget Y2'!O$33+'Blackberry Budget Y2'!O$36+'Blackberry Budget Y2'!O$39+'Blackberry Budget Y2'!O$45+'Blackberry Budget Y2'!O$49+'Blackberry Budget Y2'!O$52+'Blackberry Budget Y2'!O$58+'Blackberry Budget Y2'!O$61+'Blackberry Budget Y2'!O$65+'Blackberry Budget Y2'!O$70+'Blackberry Budget Y2'!O$73 -> 10.0965 | AB214: =+Z214*AA214 -> 175.88103
X215: Hand labor
X216: Special labor | Y216: hour | Z216: =+Labor_Fuel_Interest!$C$11 -> 13.89 | AA216: =+'Blackberry Budget Y2'!O$10+'Blackberry Budget Y2'!O$13+'Blackberry Budget Y2'!O$19+'Blackberry Budget Y2'!O$31+'Blackberry Budget Y2'!O$43+'Blackberry Budget Y2'!O$46+'Blackberry Budget Y2'!O$56+'Blackberry Budget Y2'!O$67 -> 145 | AB216: =+Z216*AA216 -> 2014.05
X217: Irrigation labor | AB217: =+Z217*AA217 -> 0
X218: Special labor | Y218: hour | Z218: =+Labor_Fuel_Interest!$C$10 -> 17.42 | AA218: =+'Blackberry Budget Y2'!O$29+'Blackberry Budget Y2'!O$34+'Blackberry Budget Y2'!O$47+'Blackberry Budget Y2'!O$59+'Blackberry Budget Y2'!O$68+'Blackberry Budget Y2'!O$71+'Blackberry Budget Y2'!O$74 -> 0.35 | AB218: =+Z218*AA218 -> 6.097
X219: Irrigation variable cost | Y219: acre | Z219: =++'Blackberry Budget Y2'!M$29+'Blackberry Budget Y2'!M$34+'Blackberry Budget Y2'!M$47+'Blackberry Budget Y2'!M$59+'Blackberry Budget Y2'!M$68+'Blackberry Budget Y2'!M$71+'Blackberry Budget Y2'!M$74 -> 247.8 | AA219: 1 | AB219: =+Z219*AA219 -> 247.8
X220: Diesel Fuel
X221: Tractors | Y221: gal | Z221: =+Labor_Fuel_Interest!$E$4 -> 2.88 | AA221: =('Blackberry Budget Y2'!J$8+'Blackberry Budget Y2'!J$9+'Blackberry Budget Y2'!J$12+'Blackberry Budget Y2'!J$21+'Blackberry Budget Y2'!J$23+'Blackberry Budget Y2'!J$26+'Blackberry Budget Y2'!J$33+'Blackberry Budget Y2'!J$36+'Blackberry Budget Y2'!J$39+'Blackberry Budget Y2'!J$45+'Blackberry Budget Y2'!J$49+'Blackberry Budget Y2'!J$52+'Blackberry Budget Y2'!J$58+'Blackberry Budget Y2'!J$61+'Blackberry Budget Y2'!J$65+'Blackberry Budget Y2'!J$70+'Blackberry Budget Y2'!J$73)/'Blackberry Budget Y2'!Z$24 -> 13.098005 | AB221: =+Z221*AA221 -> 37.7222544
X222: Construct Trellis
X223: Wood post 2.5" x 8' | Y223: each | Z223: =+'Blackberry Budget Y2'!R$14 -> 19.64333333 | AA223: =+'Blackberry Budget Y2'!Q$14 -> 118 | AB223: =+Z223*AA223 -> 2317.913333
X224: Crossarms | Y224: each | Z224: =+'Blackberry Budget Y2'!R$15 -> 8.19 | AA224: =+'Blackberry Budget Y2'!Q$15 -> 59 | AB224: =+Z224*AA224 -> 483.21
X225: Wire-Blackberry | Y225: 8700 ft roll | Z225: =+'Blackberry Budget Y2'!R$16 -> 153.99 | AA225: =+'Blackberry Budget Y2'!Q$16 -> 2 | AB225: =+Z225*AA225 -> 307.98
X226: Trellis hardware | Y226: acre | Z226: =+'Blackberry Budget Y2'!T$17 -> 288.02 | AA226: 1 | AB226: =+Z226*AA226 -> 288.02
X227: Repair & Maintenance
X228: Implements | Y228: acre | Z228: =+'Blackberry Budget Y2'!M$75-('Blackberry Budget Y2'!M$29+'Blackberry Budget Y2'!M$34+'Blackberry Budget Y2'!M$47+'Blackberry Budget Y2'!M$59+'Blackberry Budget Y2'!M$68+'Blackberry Budget Y2'!M$71+'Blackberry Budget Y2'!M$74) -> 25.075 | AA228: 1 | AB228: =+Z228*AA228 -> 25.075
X229: Tractors | Y229: acre | Z229: =+'Blackberry Budget Y2'!I$75 -> 4.38299 | AA229: 1 | AB229: =+Z229*AA229 -> 4.38299
X230: Interest on OP. CAP. | Y230: acre | Z230: =+'Blackberry Budget Y2'!T$76 -> 347.4673889 | AA230: 1 | AB230: =+Z230*AA230 -> 347.4673889
X231: Total Direct Expenses | AB231: =+SUM(AB204:AB230) -> 11466.42383 | AC231: =+SUM(AC204:AC230) -> 0
X233: Fixed Expenses
X234: Implements | Y234: acre | Z234: =+'Blackberry Budget Y2'!N$75-('Blackberry Budget Y2'!N$29+'Blackberry Budget Y2'!N$34+'Blackberry Budget Y2'!N$47+'Blackberry Budget Y2'!N$59+'Blackberry Budget Y2'!N$68+'Blackberry Budget Y2'!N$71+'Blackberry Budget Y2'!N$74) -> 48.375 | AA234: 1 | AB234: =+Z234*AA234 -> 48.375
X235: Tractors | Y235: acre | Z235: =+'Blackberry Budget Y2'!L$75 -> 29.05005 | AA235: 1 | AB235: =+Z235*AA235 -> 29.05005
X236: Irrigation set-up | Y236: acre | Z236: =+'Blackberry Budget Y2'!N$29+'Blackberry Budget Y2'!N$34+'Blackberry Budget Y2'!N$47+'Blackberry Budget Y2'!N$59+'Blackberry Budget Y2'!N$68+'Blackberry Budget Y2'!N$71+'Blackberry Budget Y2'!N$74 -> 189.7 | AA236: 1 | AB236: =+Z236*AA236 -> 189.7
X238: Total Fixed Expenses | AB238: =+SUM(AB234:AB237) -> 267.12505 | AC238: =+SUM(AC234:AC237) -> 0
X240: Total Specified Expenses | AB240: =+SUM(AB231+AB238) -> 11733.54888 | AC240: =+SUM(AC231+AC238) -> 0

Sheet Blackberry Budget Y3
B3: Blackberry Enterprise Budget Year 3 | X3: Summary Budget Year 2
B4: Operation / Operating Input | C4: Size/ Unit | D4: Power Unit Size | E4: # | F4: Perf Rate | G4: Times Over | H4: Month | I4: Power unit cost | M4: Equipment Cost | O4: Alloc Labor | Q4: Operating / Durable Input | T4: Total Cost | X4: Items | Y4: unit | Z4: Price | AA4: Quantity | AB4: Amount | AC4: Your Farm
I5: R&M | J5: Fuel | K5: Direct | L5: Fixed | M5: Direct | N5: Fixed | O5: Hours | P5: Cost | Q5: Amount | R5: Price | S5: Cost
X6: Direct expenses
B7: Mow between Rows | E7: =+IF(D7="MFWD 50hp", Equipment!$U$5, IF('Blackberry Budget Y3'!D7="MFWD 50hp", Equipment!$U$6, IF(D7="4*4", Equipment!$U$7, " "))) ->  | H7: Mar | X7: Fertilizer
B8: Rotary cutter | C8: 6 ft | D8: MFWD 50hp | E8: 4 | F8: =+Equipment!$I$25 -> 0.572 | G8: 0.5 | I8: =+$G$8*Equipment!$M$25 -> 0.24596 | J8: =+G8*Equipment!$K$25 -> 2.1168576 | K8: =+SUM(I8:J8) -> 2.3628176 | L8: =+G8*Equipment!$P$25 -> 1.6302 | M8: =+G8*Equipment!$L$25 -> 0.215 | N8: =+G8*Equipment!$O$25 -> 0.63 | O8: =+F8*G8 -> 0.286 | P8: =+O8*Labor_Fuel_Interest!$C$10 -> 4.98212 | T8: =+S8+P8+N8+M8+L8+K8 -> 9.8201376 | U8: =+(K8+M8+P8+S8) -> 7.5599376 | X8: Urea | Y8: lb. | Z8: =+R$13 -> 0.3922666667 | AA8: =+Q$13+Q$49 -> 130 | AB8: =+Z8*AA8 -> 50.99466667
B9: Mow between Rows | E9: =+IF(D9="MFWD 50hp", Equipment!$U$5, IF('Blackberry Budget Y3'!D9="MFWD 50hp", Equipment!$U$6, IF(D9="4*4", Equipment!$U$7, " "))) ->  | H9: Apr | U9: =+(K9+M9+P9+S9) -> 0 | X9: Chemicals
B10: Rotary cutter | C10: 6 ft | D10: MFWD 50hp | E10: 4 | F10: =+Equipment!$I$25 -> 0.572 | G10: 0.5 | I10: =+$G$8*Equipment!$M$25 -> 0.24596 | J10: =+G10*Equipment!$K$25 -> 2.1168576 | K10: =+SUM(I10:J10) -> 2.3628176 | L10: =+G10*Equipment!$P$25 -> 1.6302 | M10: =+G10*Equipment!$L$25 -> 0.215 | N10: =+G10*Equipment!$O$25 -> 0.63 | O10: =+F10*G10 -> 0.286 | P10: =+O10*Labor_Fuel_Interest!$C$10 -> 4.98212 | T10: =+S10+P10+N10+M10+L10+K10 -> 9.8201376 | U10: =+(K10+M10+P10+S10) -> 7.5599376 | X10: Pristine | Y10: oz | Z10: =+R$16 -> 0.809375 | AA10: =+Q$16 -> 21 | AB10: =+Z10*AA10 -> 16.996875
B11: Apply fertilizer | H11: Apr | U11: 0 | X11: Captane | Y11: lb. | Z11: =+R$17 -> 6.736 | AA11: =+Q$17+Q$27+Q$37+Q$46 -> 10 | AB11: 67.36
B12: Side dresser | C12: 1R 3ft | D12: MFWD 50hp | E12: 4 | F12: =+Equipment!$I$27 -> 0.846 | G12: 0.5 | I12: =+G12*Equipment!$M$27 -> 0.36378 | J12: =+G12*Equipment!$K$27 -> 3.1308768 | K12: =SUM(I12:J12) -> 3.4946568 | L12: =+G12*Equipment!$P$27 -> 2.4111 | M12: =+G12*Equipment!$L$27 -> 1.055 | N12: =+G12*Equipment!$O$27 -> 4.505 | O12: =+F12*G12 -> 0.423 | P12: =+Labor_Fuel_Interest!$C$10*O12 -> 7.36866 | T12: =+S12+P12+N12+M12+L12+K12 -> 18.8344168 | U12: 11.9183168 | X12: Quilt Xcel | Y12: fl oz | Z12: =+R$26 -> 1.245260417 | AA12: =+Q$26+Q$45 -> 35 | AB12: 43.58411458
B13: Urea | C13: lb. | Q13: 65 | R13: =+'Chemical & Fertilizer Costs'!$F$25 -> 0.3922666667 | S13: =+R13*Q13 -> 25.49733333 | T13: =+S13+P13+N13+M13+L13+K13 -> 25.49733333 | U13: 25.49733333 | X13: Luna Tranquility | Y13: fl oz | Z13: =+R$36 -> 3.24984375 | AA13: =+Q$36 -> 20 | AB13: 64.996875
B14: Disease management | U14: 0 | X14: Operator labor
B15: Sprayer (Air Blast) | D15: MFWD 50hp | E15: 4 | F15: =+Equipment!$I$35 -> 0.245 | G15: 0.5 | H15: Apr | I15: =+IF('General Budget Assumptions'!$C$3="None",0,G$15*Equipment!$M$35) -> 0.10535 | J15: =+IF('General Budget Assumptions'!$C$3="None",0,G$15*Equipment!$K$35) -> 0.906696 | K15: =IF('General Budget Assumptions'!$C$3="None",0,SUM(I15:J15)) -> 1.012046 | L15: =+IF('General Budget Assumptions'!$C$3="None",0,G$15*Equipment!$P$35) -> 0.69825 | M15: =+IF('General Budget Assumptions'!$C$3="None",0,G$15*Equipment!$L$35) -> 5.035 | N15: =+IF('General Budget Assumptions'!$C$3="None",0,G$15*Equipment!$O$35) -> 7.355 | O15: =+IF('General Budget Assumptions'!$C$3="None",0,F15*G15) -> 0.1225 | P15: =+IF('General Budget Assumptions'!$C$3="None",0,O15*Labor_Fuel_Interest!$C$10) -> 2.13395 | T15: =+IF('General Budget Assumptions'!C$3="Conventional Fungicide Program",K15+L15+M15+N15+P15+S15,0) -> 16.234246 | U15: =+(K15+M15+P15+S15) -> 8.180996 | X15: Tractors | Y15: hour | Z15: =+Labor_Fuel_Interest!$C$10 -> 17.42 | AA15: =+O$8+O$10+O$12+O$15+O$22+O$25+O$31+O$35+O$41+O$44+O$53+O$56+O$59+O$48 -> 3.624 | AB15: =+Z15*AA15 -> 63.13008
B16: Pristine | C16: oz | Q16: =+IF('General Budget Assumptions'!C$3="Conventional Fungicide Program", 'Chemical & Fertilizer Costs'!F$41,0) -> 21 | R16: =+'Chemical & Fertilizer Costs'!H$10 -> 0.809375 | S16: =+R16*Q16 -> 16.996875 | T16: =+S16+P16+N16+M16+L16+K16 -> 16.996875 | U16: 16.996875 | X16: Harvest labor
B17: Captan | C17: lb. | Q17: =IF('General Budget Assumptions'!C$3="Conventional Fungicide Program", 'Chemical & Fertilizer Costs'!F$34,0) -> 2.5 | R17: =+'Chemical & Fertilizer Costs'!H$9 -> 6.736 | S17: =R17*Q17 -> 16.84 | T17: =+S17+P17+N17+M17+L17+K17 -> 16.84 | U17: 16.84 | X17: Special labor | Y17: hour | Z17: =+Labor_Fuel_Interest!$C$11 -> 13.89 | AA17: =+O$65 -> 50 | AB17: =+Z17*AA17 -> 694.5
B18: Irrigation | H18: Apr | M18: 35.4 | N18: 27.1 | O18: 0.05 | P18: =+O18*Labor_Fuel_Interest!$C$10 -> 0.871 | T18: =+S18+P18+N18+M18+L18+K18 -> 63.371 | U18: 36.271 | X18: Hand labor
B19: Hoeing | G19: 1 | H19: May | U19: 0 | X19: Special labor | Y19: hour | Z19: =+Labor_Fuel_Interest!$C$11 -> 13.89 | AA19: =+O$20+O$29+O$39 -> 33 | AB19: =+Z19*AA19 -> 458.37
B20: hand labor | C20: hour | O20: 10 | P20: =+O20*Labor_Fuel_Interest!$C$11 -> 138.9 | T20: =+S20+P20+N20+M20+L20+K20 -> 138.9 | U20: 138.9 | X20: Irrigation labor | AB20: =+Z20*AA20 -> 0
B21: Mow between Rows | E21: =+IF(D21="MFWD 50hp", Equipment!$U$5, IF('Blackberry Budget Y3'!D21="MFWD 50hp", Equipment!$U$6, IF(D21="4*4", Equipment!$U$7, " "))) ->  | H21: May | U21: 0 | X21: Special labor | Y21: hour | Z21: =+Labor_Fuel_Interest!$C$10 -> 17.42 | AA21: =+O$18+O$23+O$33+O$42+O$54+O$57+O$60 -> 0.35 | AB21: =+Z21*AA21 -> 6.097
B22: Rotary cutter | C22: 6 ft | D22: MFWD 50hp | E22: 4 | F22: =+Equipment!$I$25 -> 0.572 | G22: 0.5 | I22: =+$G$8*Equipment!$M$25 -> 0.24596 | J22: =+G22*Equipment!$K$25 -> 2.1168576 | K22: =+SUM(I22:J22) -> 2.3628176 | L22: =+G22*Equipment!$P$25 -> 1.6302 | M22: =+G22*Equipment!$L$25 -> 0.215 | N22: =+G22*Equipment!$O$25 -> 0.63 | O22: =+F22*G22 -> 0.286 | P22: =+O22*Labor_Fuel_Interest!$C$10 -> 4.98212 | T22: =+S22+P22+N22+M22+L22+K22 -> 9.8201376 | U22: =+(K22+M22+P22+S22) -> 7.5599376 | X22: Pruning/Cane removal Labor
B23: Irrigation | H23: May | M23: 35.4 | N23: 27.1 | O23: 0.05 | P23: =+O23*Labor_Fuel_Interest!$C$10 -> 0.871 | T23: =+S23+P23+N23+M23+L23+K23 -> 63.371 | U23: 36.271 | X23: Special labor | Y23: hour | Z23: =+Labor_Fuel_Interest!$C$11 -> 13.89 | AA23: =+O$32+O$51 -> 27 | AB23: =+Z23*AA23 -> 375.03
B24: Disease management | U24: 0 | X24: Irrigation variable cost | Y24: acre | Z24: =+M$18+M$23+M$33+M$42+M$54+M$57+M$60 -> 247.8 | AA24: 1 | AB24: =+Z24*AA24 -> 247.8
B25: Sprayer (Air Blast) | D25: MFWD 50hp | E25: 4 | F25: =+Equipment!$I$35 -> 0.245 | G25: 0.5 | H25: May | I25: =+IF('General Budget Assumptions'!$C$3="None",0,G$25*Equipment!$M$35) -> 0.10535 | J25: =+IF('General Budget Assumptions'!$C$3="None",0,G$25*Equipment!$K$35) -> 0.906696 | K25: =IF('General Budget Assumptions'!$C$3="None",0,SUM(I25:J25)) -> 1.012046 | L25: =+IF('General Budget Assumptions'!$C$3="None",0,G$25*Equipment!$P$35) -> 0.69825 | M25: =+IF('General Budget Assumptions'!$C$3="None",0,G$25*Equipment!$L$35) -> 5.035 | N25: =+IF('General Budget Assumptions'!$C$3="None",0,G$25*Equipment!$O$35) -> 7.355 | O25: =+IF('General Budget Assumptions'!$C$3="None",0,F25*G25) -> 0.1225 | P25: =+IF('General Budget Assumptions'!$C$3="None",0,O25*Labor_Fuel_Interest!$C$10) -> 2.13395 | T25: =+IF('General Budget Assumptions'!C$3="Conventional Fungicide Program",K25+L25+M25+N25+P25+S25,0) -> 16.234246 | U25: =+(K25+M25+P25+S25) -> 8.180996 | X25: Diesel Fuel
B26: Quilt Xcel | C26: fl oz | Q26: =+IF('General Budget Assumptions'!C$3="Conventional Fungicide Program", 'Chemical & Fertilizer Costs'!F$44, 0) -> 17.5 | R26: ='Chemical & Fertilizer Costs'!H$7 -> 1.245260417 | S26: =+R26*Q26 -> 21.79205729 | T26: =+S26+P26+N26+M26+L26+K26 -> 21.79205729 | U26: =+(K26+M26+P26+S26) -> 21.79205729 | X26: Tractors | Y26: gal | Z26: =+Labor_Fuel_Interest!$E$4 -> 2.88 | AA26: =(J$8+J$10+J$12+J$15+J$22+J$25+J$31+J$35+J$41+J$44+J$53+J$56+J$59+J$48)/Z26 -> 9.31368 | AB26: =+Z26*AA26 -> 26.8233984
B27: Captan | C27: lb. | Q27: =+IF('General Budget Assumptions'!C$3="Conventional Fungicide Program",'Chemical & Fertilizer Costs'!F$34,0) -> 2.5 | R27: =+'Chemical & Fertilizer Costs'!H$9 -> 6.736 | S27: =R27*Q27 -> 16.84 | T27: =+S27+P27+N27+M27+L27+K27 -> 16.84 | U27: 16.84 | X27: Repair & Maintenance
B28: Hoeing | G28: 1 | H28: Jun | U28: 0 | X28: Implements | Y28: acre | Z28: =+M$61-(M$18+M$23+M$33+M$42+M$54+M$57+M$60) -> 23.97 | AA28: 1 | AB28: =+Z28*AA28 -> 23.97
B29: hand labor | C29: hour | O29: 10 | P29: =+O29*Labor_Fuel_Interest!$C$11 -> 138.9 | T29: =+S29+P29+N29+M29+L29+K29 -> 138.9 | U29: 138.9 | X29: Tractors | Y29: acre | Z29: =+I$61 -> 3.11664 | AA29: 1 | AB29: =+Z29*AA29 -> 3.11664
B30: Mow between Rows | E30: =+IF(D30="MFWD 50hp", Equipment!$U$5, IF('Blackberry Budget Y3'!D30="MFWD 50hp", Equipment!$U$6, IF(D30="4*4", Equipment!$U$7, " "))) ->  | H30: Jun | U30: 0 | X30: Post-harvest Expenses
B31: Rotary cutter | C31: 6 ft | D31: MFWD 50hp | E31: 4 | F31: =+Equipment!$I$25 -> 0.572 | G31: 0.5 | I31: =+$G$8*Equipment!$M$25 -> 0.24596 | J31: =+G31*Equipment!$K$25 -> 2.1168576 | K31: =+SUM(I31:J31) -> 2.3628176 | L31: =+G31*Equipment!$P$25 -> 1.6302 | M31: =+G31*Equipment!$L$25 -> 0.215 | N31: =+G31*Equipment!$O$25 -> 0.63 | O31: =+F31*G31 -> 0.286 | P31: =+O31*Labor_Fuel_Interest!$C$10 -> 4.98212 | T31: =+S31+P31+N31+M31+L31+K31 -> 9.8201376 | U31: =+(K31+M31+P31+S31) -> 7.5599376 | X31: Plastic clamshell containers (qt) | Y31: each | Z31: =+R$66 -> 0.1491388889 | AA31: =+Q$66 -> 1500 | AB31: =+Z31*AA31 -> 223.7083333
B32: Topping Blackberries/Pruning | C32: hour | G32: 1 | H32: Jun | O32: 7 | P32: =+O32*Labor_Fuel_Interest!$C$11 -> 97.23 | T32: =+S32+P32+N32+M32+L32+K32 -> 97.23 | U32: 97.23 | X32: Electricity | Y32: acre | Z32: =+M$67 -> 36.6 | AA32: 1 | AB32: =+Z32*AA32 -> 36.6
B33: Irrigation | H33: Jun | M33: 35.4 | N33: 27.1 | O33: 0.05 | P33: =+O33*Labor_Fuel_Interest!$C$10 -> 0.871 | T33: =+S33+P33+N33+M33+L33+K33 -> 63.371 | U33: 36.271 | X33: Marketing (10% of gross revenue) | Y33: acre | Z33: =+T$68 -> 1799.25 | AA33: 1 | AB33: =+Z33*AA33 -> 1799.25
B34: Disease management | U34: 0 | X34: Interest on OP. CAP. | Y34: acre | Z34: =+T$62 -> 45.25842655 | AA34: 1 | AB34: =+Z34*AA34 -> 45.25842655
B35: Sprayer (Air Blast) | D35: MFWD 50hp | E35: 4 | F35: =+Equipment!$I$35 -> 0.245 | G35: 0.5 | H35: Jun | I35: =+IF('General Budget Assumptions'!$C$3="None",0,G$35*Equipment!$M$35) -> 0.10535 | J35: =+IF('General Budget Assumptions'!$C$3="None",0,G$35*Equipment!$K$35) -> 0.906696 | K35: =IF('General Budget Assumptions'!$C$3="None",0,SUM(I35:J35)) -> 1.012046 | L35: =+IF('General Budget Assumptions'!$C$3="None",0,G$35*Equipment!$P$35) -> 0.69825 | M35: =+IF('General Budget Assumptions'!$C$3="None",0,G$35*Equipment!$L$35) -> 5.035 | N35: =+IF('General Budget Assumptions'!$C$3="None",0,G$35*Equipment!$O$35) -> 7.355 | O35: =+IF('General Budget Assumptions'!$C$3="None",0,F35*G35) -> 0.1225 | P35: =+IF('General Budget Assumptions'!$C$3="None",0,O35*Labor_Fuel_Interest!$C$10) -> 2.13395 | T35: =+IF('General Budget Assumptions'!C$3="Conventional Fungicide Program",K35+L35+M35+N35+P35+S35,0) -> 16.234246 | U35: =+(K35+M35+P35+S35) -> 8.180996 | X35: Total Direct Expenses | AB35: =+SUM(AB7:AB34) -> 4247.58641 | AC35: =+SUM(AC7:AC34) -> 0
B36: Luna Tranquility | C36: fl oz | Q36: =+IF('General Budget Assumptions'!C$3="Conventional Fungicide Program",'Chemical & Fertilizer Costs'!F$37,0) -> 20 | R36: ='Chemical & Fertilizer Costs'!H$8 -> 3.24984375 | S36: =+R36*Q36 -> 64.996875 | T36: =+S36+P36+N36+M36+L36+K36 -> 64.996875 | U36: =+(K36+M36+P36+S36) -> 64.996875
B37: Captan | C37: lb. | Q37: =+IF('General Budget Assumptions'!C$3="Conventional Fungicide Program",'Chemical & Fertilizer Costs'!F$34,0) -> 2.5 | R37: =+'Chemical & Fertilizer Costs'!H$9 -> 6.736 | S37: =R37*Q37 -> 16.84 | T37: =+S37+P37+N37+M37+L37+K37 -> 16.84 | U37: 16.84 | X37: Fixed Expenses
B38: Hoeing | G38: 1 | H38: Jul | U38: 0 | X38: Implements/Refrigerator | Y38: acre | Z38: =+N$61+N$67-(N$18+N$23+N$33+N$42+N$54+N$57+N$60) -> 1143.47 | AA38: 1 | AB38: =+Z38*AA38 -> 1143.47
B39: hand labor | C39: hour | O39: 13 | P39: =+O39*Labor_Fuel_Interest!$C$11 -> 180.57 | T39: =+S39+P39+N39+M39+L39+K39 -> 180.57 | U39: 180.57 | X39: Tractors | Y39: acre | Z39: =+L$61 -> 20.6568 | AA39: 1 | AB39: =+Z39*AA39 -> 20.6568
B40: Mow between Rows | E40: =+IF(D40="MFWD 50hp", Equipment!$U$5, IF('Blackberry Budget Y3'!D40="MFWD 50hp", Equipment!$U$6, IF(D40="4*4", Equipment!$U$7, " "))) ->  | H40: Jul | U40: 0 | X40: Irrigation set-up | Y40: acre | Z40: =+N$18+N$23+N$33+N$42+N$54+N$57+N$60 -> 189.7 | AA40: 1 | AB40: =+Z40*AA40 -> 189.7
B41: Rotary cutter | C41: 6 ft | D41: MFWD 50hp | E41: 4 | F41: =+Equipment!$I$25 -> 0.572 | G41: 0.5 | I41: =+$G$8*Equipment!$M$25 -> 0.24596 | J41: =+G41*Equipment!$K$25 -> 2.1168576 | K41: =+SUM(I41:J41) -> 2.3628176 | L41: =+G41*Equipment!$P$25 -> 1.6302 | M41: =+G41*Equipment!$L$25 -> 0.215 | N41: =+G41*Equipment!$O$25 -> 0.63 | O41: =+F41*G41 -> 0.286 | P41: =+O41*Labor_Fuel_Interest!$C$10 -> 4.98212 | T41: =+S41+P41+N41+M41+L41+K41 -> 9.8201376 | U41: =+(K41+M41+P41+S41) -> 7.5599376
B42: Irrigation | H42: Jul | M42: 35.4 | N42: 27.1 | O42: 0.05 | P42: =+O42*Labor_Fuel_Interest!$C$10 -> 0.871 | T42: =+S42+P42+N42+M42+L42+K42 -> 63.371 | U42: 36.271 | X42: Total Fixed Expenses | AB42: =+SUM(AB38:AB41) -> 1353.8268 | AC42: =+SUM(AC38:AC41) -> 0
B43: Disease management | U43: 0
B44: Sprayer (Air Blast) | D44: MFWD 50hp | E44: 4 | F44: =+Equipment!$I$35 -> 0.245 | G44: 0.5 | H44: Jul | I44: =+IF('General Budget Assumptions'!$C$3="None",0,G$44*Equipment!$M$35) -> 0.10535 | J44: =+IF('General Budget Assumptions'!$C$3="None",0,G$44*Equipment!$K$35) -> 0.906696 | K44: =IF('General Budget Assumptions'!$C$3="None",0,SUM(I44:J44)) -> 1.012046 | L44: =+IF('General Budget Assumptions'!$C$3="None",0,G$44*Equipment!$P$35) -> 0.69825 | M44: =+IF('General Budget Assumptions'!$C$3="None",0,G$44*Equipment!$L$35) -> 5.035 | N44: =+IF('General Budget Assumptions'!$C$3="None",0,G$44*Equipment!$O$35) -> 7.355 | O44: =+IF('General Budget Assumptions'!$C$3="None",0,F44*G44) -> 0.1225 | P44: =+IF('General Budget Assumptions'!$C$3="None",0,O44*Labor_Fuel_Interest!$C$10) -> 2.13395 | T44: =+IF('General Budget Assumptions'!C$3="Conventional Fungicide Program",K44+L44+M44+N44+P44+S44,0) -> 16.234246 | U44: =+(K44+M44+P44+S44) -> 8.180996 | X44: Total Specified Expenses | AB44: =+SUM(AB35+AB42) -> 5601.41321 | AC44: =+SUM(AC35+AC42) -> 0
B45: Quilt Xcel | C45: fl oz | Q45: =+IF('General Budget Assumptions'!C$3="Conventional Fungicide Program",'Chemical & Fertilizer Costs'!F$44,0) -> 17.5 | R45: ='Chemical & Fertilizer Costs'!H$7 -> 1.245260417 | S45: =+R45*Q45 -> 21.79205729 | T45: =+S45+P45+N45+M45+L45+K45 -> 21.79205729 | U45: =+(K45+M45+P45+S45) -> 21.79205729
B46: Captan | C46: lb. | Q46: =+IF('General Budget Assumptions'!C$3="Conventional Fungicide Program",'Chemical & Fertilizer Costs'!F$34,0) -> 2.5 | R46: =+'Chemical & Fertilizer Costs'!H$9 -> 6.736 | S46: =R46*Q46 -> 16.84 | T46: =+S46+P46+N46+M46+L46+K46 -> 16.84 | U46: 16.84
B47: Apply fertilizer | H47: Jul | U47: 0
B48: Side dresser | C48: 1R 3ft | D48: MFWD 50hp | E48: 4 | F48: =+Equipment!$I$27 -> 0.846 | G48: 0.5 | I48: =+G48*Equipment!$M$27 -> 0.36378 | J48: =+G48*Equipment!$K$27 -> 3.1308768 | K48: =SUM(I48:J48) -> 3.4946568 | L48: =+G48*Equipment!$P$27 -> 2.4111 | M48: =+G48*Equipment!$L$27 -> 1.055 | N48: =+G48*Equipment!$O$27 -> 4.505 | O48: =+F48*G48 -> 0.423 | P48: =+Labor_Fuel_Interest!$C$10*O48 -> 7.36866 | T48: =+S48+P48+N48+M48+L48+K48 -> 18.8344168 | U48: 11.9183168
B49: Urea | C49: lb. | Q49: 65 | R49: =+'Chemical & Fertilizer Costs'!$F$25 -> 0.3922666667 | S49: =+R49*Q49 -> 25.49733333 | T49: =+S49+P49+N49+M49+L49+K49 -> 25.49733333 | U49: 25.49733333
B50: Cane Removal
B51: hand labor | O51: 20 | P51: =+O51*Labor_Fuel_Interest!$C$11 -> 277.8 | T51: =+S51+P51+N51+M51+L51+K51 -> 277.8 | U51: 277.8
B52: Mow between Rows | E52: =+IF(D52="MFWD 50hp", Equipment!$U$5, IF('Blackberry Budget Y3'!D52="MFWD 50hp", Equipment!$U$6, IF(D52="4*4", Equipment!$U$7, " "))) ->  | H52: Aug | U52: 0
B53: Rotary cutter | C53: 6 ft | D53: MFWD 50hp | E53: 4 | F53: =+Equipment!$I$25 -> 0.572 | G53: 0.5 | I53: =+$G$8*Equipment!$M$25 -> 0.24596 | J53: =+G53*Equipment!$K$25 -> 2.1168576 | K53: =+SUM(I53:J53) -> 2.3628176 | L53: =+G53*Equipment!$P$25 -> 1.6302 | M53: =+G53*Equipment!$L$25 -> 0.215 | N53: =+G53*Equipment!$O$25 -> 0.63 | O53: =+F53*G53 -> 0.286 | P53: =+O53*Labor_Fuel_Interest!$C$10 -> 4.98212 | T53: =+S53+P53+N53+M53+L53+K53 -> 9.8201376 | U53: =+(K53+M53+P53+S53) -> 7.5599376
B54: Irrigation | H54: Aug | M54: 35.4 | N54: 27.1 | O54: 0.05 | P54: =+O54*Labor_Fuel_Interest!$C$10 -> 0.871 | T54: =+S54+P54+N54+M54+L54+K54 -> 63.371 | U54: 36.271
B55: Mow between Rows | E55: =+IF(D55="MFWD 50hp", Equipment!$U$5, IF('Blackberry Budget Y3'!D55="MFWD 50hp", Equipment!$U$6, IF(D55="4*4", Equipment!$U$7, " "))) ->  | H55: Sep | U55: 0
B56: Rotary cutter | C56: 6 ft | D56: MFWD 50hp | E56: 4 | F56: =+Equipment!$I$25 -> 0.572 | G56: 0.5 | I56: =+$G$8*Equipment!$M$25 -> 0.24596 | J56: =+G56*Equipment!$K$25 -> 2.1168576 | K56: =+SUM(I56:J56) -> 2.3628176 | L56: =+G56*Equipment!$P$25 -> 1.6302 | M56: =+G56*Equipment!$L$25 -> 0.215 | N56: =+G56*Equipment!$O$25 -> 0.63 | O56: =+F56*G56 -> 0.286 | P56: =+O56*Labor_Fuel_Interest!$C$10 -> 4.98212 | T56: =+S56+P56+N56+M56+L56+K56 -> 9.8201376 | U56: =+(K56+M56+P56+S56) -> 7.5599376
B57: Irrigation | H57: Sep | M57: 35.4 | N57: 27.1 | O57: 0.05 | P57: =+O57*Labor_Fuel_Interest!$C$10 -> 0.871 | T57: =+S57+P57+N57+M57+L57+K57 -> 63.371 | U57: =+(K57+M57+P57+S57) -> 36.271
B58: Mow between Rows | E58: =+IF(D58="MFWD 50hp", Equipment!$U$5, IF('Blackberry Budget Y3'!D58="MFWD 50hp", Equipment!$U$6, IF(D58="4*4", Equipment!$U$7, " "))) ->  | H58: Oct | U58: 0
B59: Rotary cutter | C59: 6 ft | D59: MFWD 50hp | E59: 4 | F59: =+Equipment!$I$25 -> 0.572 | G59: 0.5 | I59: =+$G$8*Equipment!$M$25 -> 0.24596 | J59: =+G59*Equipment!$K$25 -> 2.1168576 | K59: =+SUM(I59:J59) -> 2.3628176 | L59: =+G59*Equipment!$P$25 -> 1.6302 | M59: =+G59*Equipment!$L$25 -> 0.215 | N59: =+G59*Equipment!$O$25 -> 0.63 | O59: =+F59*G59 -> 0.286 | P59: =+O59*Labor_Fuel_Interest!$C$10 -> 4.98212 | T59: =+S59+P59+N59+M59+L59+K59 -> 9.8201376 | U59: =+(K59+M59+P59+S59) -> 7.5599376
B60: Irrigation | H60: Oct | M60: 35.4 | N60: 27.1 | O60: 0.05 | P60: =+O60*Labor_Fuel_Interest!$C$10 -> 0.871 | T60: =+S60+P60+N60+M60+L60+K60 -> 63.371 | U60: =+(K60+M60+P60+S60) -> 36.271
B61: Pre-harvest costs | I61: =+SUM(I7:I60) -> 3.11664 | J61: 26.8233984 | K61: 29.9400384 | L61: 20.6568 | M61: 271.77 | N61: 233.17 | O61: 63.974 | P61: 902.62708 | S61: =+SUM(S7:S60) -> 243.9325313 | T61: =+SUM(T7:T60) -> 1702.09645 | U61: =SUM(U7:U60) -> 1448.26965
B62: Interest on Operating Capital | T62: =+(U61*Labor_Fuel_Interest!$C$15)/2 -> 45.25842655
B63: Pre-harvest cost + Interest | T63: =+SUM(T61:T62) -> 1747.354876
B64: HARVESTING
B65: Picking | O65: =+IF('General Budget Assumptions'!C$4="100% Ready_Picked_Retail",100, IF('General Budget Assumptions'!C$4="50%PYO 50%Ready_Picked",(100*0.5),(100*0.25))) -> 50 | P65: =+O65*Labor_Fuel_Interest!C$11 -> 694.5 | T65: =+S65+P65+N65+M65+L65+K65 -> 694.5
B66: Plastic clamshell containers (qt) | Q66: =+IF('General Budget Assumptions'!C$4="100% Ready_Picked_Retail",Yield!B$5, IF('General Budget Assumptions'!C$4="50%PYO 50%Ready_Picked",(Yield!B$5*0.5),(Yield!B$5*0.25))) -> 1500 | R66: =+Marketing!B6 -> 0.1491388889 | S66: =+Q66*R66 -> 223.7083333 | T66: =+S66+P66+N66+M66+L66+K66 -> 223.7083333
B67: Refrigeration | M67: =30*1.22 -> 36.6 | N67: 1100 | T67: =+S67+P67+N67+M67+L67+K67 -> 1136.6
B68: Marketing | Q68: 1 | R68: =IF('General Budget Assumptions'!C$4="100% Ready_Picked_Retail",(Yield!B$5*'Blackberry Prices'!C$4),IF('General Budget Assumptions'!C$4="50%PYO 50%Ready_Picked", ((0.5*Yield!B$5*'Blackberry Prices'!C$4)+(0.5*Yield!B$5*'Blackberry Prices'!B$4)), ((0.75*Yield!B$5*'Blackberry Prices'!B$4)+(0.25*Yield!B$5*'Blackberry Prices'!C$4))))*0.1 -> 1799.25 | S68: =+Q68*R68 -> 1799.25 | T68: =+S68+P68+N68+M68+L68+K68 -> 1799.25
B69: Harvest totals | T69: =SUM(T65:T68) -> 3854.058333
B70: Totals | T70: =+T$63+T$69 -> 5601.41321
B200: Blackberry Enterprise Budget Year 3
B201: Operation / Operating Input | C201: Size/ Unit | D201: Power Unit Size | E201: # | F201: Perf Rate | G201: Times Over | H201: Month | I201: Power unit cost | M201: Equipment Cost | O201: Alloc Labor | Q201: Operating / Durable Input | T201: Total Cost
I202: R&M | J202: Fuel | K202: Direct | L202: Fixed | M202: Direct | N202: Fixed | O202: Hours | P202: Cost | Q202: Amount | R202: Price | S202: Cost
B204: Mow between Rows | E204: =+IF(D204="MFWD 50hp", Equipment!$U$5, IF('Blackberry Budget Y3'!D204="MFWD 50hp", Equipment!$U$6, IF(D204="4*4", Equipment!$U$7, " "))) ->  | H204: Mar
B205: Rotary cutter | C205: 6 ft | D205: MFWD 50hp | E205: 4 | F205: =+Equipment!$I$25 -> 0.572 | G205: 0.5 | I205: =+$G$8*Equipment!$M$25 -> 0.24596 | J205: =+G205*Equipment!$K$25 -> 2.1168576 | K205: =+SUM(I205:J205) -> 2.3628176 | L205: =+G205*Equipment!$P$25 -> 1.6302 | M205: =+G205*Equipment!$L$25 -> 0.215 | N205: =+G205*Equipment!$O$25 -> 0.63 | O205: =+F205*G205 -> 0.286 | P205: =+O205*Labor_Fuel_Interest!$C$10 -> 4.98212 | T205: =+S205+P205+N205+M205+L205+K205 -> 9.8201376 | U205: =+(K205+M205+P205+S205) -> 7.5599376
B206: Mow between Rows | E206: =+IF(D206="MFWD 50hp", Equipment!$U$5, IF('Blackberry Budget Y3'!D206="MFWD 50hp", Equipment!$U$6, IF(D206="4*4", Equipment!$U$7, " "))) ->  | H206: Apr | U206: =+(K206+M206+P206+S206) -> 0
B207: Rotary cutter | C207: 6 ft | D207: MFWD 50hp | E207: 4 | F207: =+Equipment!$I$25 -> 0.572 | G207: 0.5 | I207: =+$G$8*Equipment!$M$25 -> 0.24596 | J207: =+G207*Equipment!$K$25 -> 2.1168576 | K207: =+SUM(I207:J207) -> 2.3628176 | L207: =+G207*Equipment!$P$25 -> 1.6302 | M207: =+G207*Equipment!$L$25 -> 0.215 | N207: =+G207*Equipment!$O$25 -> 0.63 | O207: =+F207*G207 -> 0.286 | P207: =+O207*Labor_Fuel_Interest!$C$10 -> 4.98212 | T207: =+S207+P207+N207+M207+L207+K207 -> 9.8201376 | U207: =+(K207+M207+P207+S207) -> 7.5599376
B208: Apply fertilizer | H208: Apr | U208: 0
B209: Side dresser | C209: 1R 3ft | D209: MFWD 50hp | E209: 4 | F209: =+Equipment!$I$27 -> 0.846 | G209: 0.5 | I209: =+G209*Equipment!$M$27 -> 0.36378 | J209: =+G209*Equipment!$K$27 -> 3.1308768 | K209: =SUM(I209:J209) -> 3.4946568 | L209: =+G209*Equipment!$P$27 -> 2.4111 | M209: =+G209*Equipment!$L$27 -> 1.055 | N209: =+G209*Equipment!$O$27 -> 4.505 | O209: =+F209*G209 -> 0.423 | P209: =+Labor_Fuel_Interest!$C$10*O209 -> 7.36866 | T209: =+S209+P209+N209+M209+L209+K209 -> 18.8344168 | U209: 11.9183168
B210: Urea | C210: lb. | Q210: 65 | R210: =+'Chemical & Fertilizer Costs'!$F$25 -> 0.3922666667 | S210: =+R210*Q210 -> 25.49733333 | T210: =+S210+P210+N210+M210+L210+K210 -> 25.49733333 | U210: 25.49733333
B211: Disease management | U211: 0
B212: Sprayer (Air Blast) | D212: MFWD 50hp | E212: 4 | F212: =+Equipment!$I$35 -> 0.245 | G212: 0.5 | H212: Apr | I212: =+IF('General Budget Assumptions'!$C$3="None",0,G$15*Equipment!$M$35) -> 0.10535 | J212: =+IF('General Budget Assumptions'!$C$3="None",0,G$15*Equipment!$K$35) -> 0.906696 | K212: =IF('General Budget Assumptions'!$C$3="None",0,SUM(I212:J212)) -> 1.012046 | L212: =+IF('General Budget Assumptions'!$C$3="None",0,G$15*Equipment!$P$35) -> 0.69825 | M212: =+IF('General Budget Assumptions'!$C$3="None",0,G$15*Equipment!$L$35) -> 5.035 | N212: =+IF('General Budget Assumptions'!$C$3="None",0,G$15*Equipment!$O$35) -> 7.355 | O212: =+IF('General Budget Assumptions'!$C$3="None",0,F212*G212) -> 0.1225 | P212: =+IF('General Budget Assumptions'!$C$3="None",0,O212*Labor_Fuel_Interest!$C$10) -> 2.13395 | T212: =+IF('General Budget Assumptions'!C$3="Conventional Fungicide Program",K212+L212+M212+N212+P212+S212,0) -> 16.234246 | U212: =+(K212+M212+P212+S212) -> 8.180996
B213: Pristine | C213: oz | Q213: =+IF('General Budget Assumptions'!C$3="Conventional Fungicide Program", 'Chemical & Fertilizer Costs'!F$41,0) -> 21 | R213: =+'Chemical & Fertilizer Costs'!H$10 -> 0.809375 | S213: =+R213*Q213 -> 16.996875 | T213: =+S213+P213+N213+M213+L213+K213 -> 16.996875 | U213: 16.996875
B214: Captan | C214: lb. | Q214: =IF('General Budget Assumptions'!C$3="Conventional Fungicide Program", 'Chemical & Fertilizer Costs'!F$34,0) -> 2.5 | R214: =+'Chemical & Fertilizer Costs'!H$9 -> 6.736 | S214: =R214*Q214 -> 16.84 | T214: =+S214+P214+N214+M214+L214+K214 -> 16.84 | U214: 16.84
B215: Irrigation | H215: Apr | M215: 35.4 | N215: 27.1 | O215: 0.05 | P215: =+O215*Labor_Fuel_Interest!$C$10 -> 0.871 | T215: =+S215+P215+N215+M215+L215+K215 -> 63.371 | U215: 36.271
B216: Hoeing | G216: 1 | H216: May | U216: 0
B217: hand labor | C217: hour | O217: 10 | P217: =+O217*Labor_Fuel_Interest!$C$11 -> 138.9 | T217: =+S217+P217+N217+M217+L217+K217 -> 138.9 | U217: 138.9
B218: Mow between Rows | E218: =+IF(D218="MFWD 50hp", Equipment!$U$5, IF('Blackberry Budget Y3'!D218="MFWD 50hp", Equipment!$U$6, IF(D218="4*4", Equipment!$U$7, " "))) ->  | H218: May | U218: 0
B219: Rotary cutter | C219: 6 ft | D219: MFWD 50hp | E219: 4 | F219: =+Equipment!$I$25 -> 0.572 | G219: 0.5 | I219: =+$G$8*Equipment!$M$25 -> 0.24596 | J219: =+G219*Equipment!$K$25 -> 2.1168576 | K219: =+SUM(I219:J219) -> 2.3628176 | L219: =+G219*Equipment!$P$25 -> 1.6302 | M219: =+G219*Equipment!$L$25 -> 0.215 | N219: =+G219*Equipment!$O$25 -> 0.63 | O219: =+F219*G219 -> 0.286 | P219: =+O219*Labor_Fuel_Interest!$C$10 -> 4.98212 | T219: =+S219+P219+N219+M219+L219+K219 -> 9.8201376 | U219: =+(K219+M219+P219+S219) -> 7.5599376
B220: Irrigation | H220: May | M220: 35.4 | N220: 27.1 | O220: 0.05 | P220: =+O220*Labor_Fuel_Interest!$C$10 -> 0.871 | T220: =+S220+P220+N220+M220+L220+K220 -> 63.371 | U220: 36.271
B221: Disease management | U221: 0
B222: Sprayer (Air Blast) | D222: MFWD 50hp | E222: 4 | F222: =+Equipment!$I$35 -> 0.245 | G222: 0.5 | H222: May | I222: =+IF('General Budget Assumptions'!$C$3="None",0,G$25*Equipment!$M$35) -> 0.10535 | J222: =+IF('General Budget Assumptions'!$C$3="None",0,G$25*Equipment!$K$35) -> 0.906696 | K222: =IF('General Budget Assumptions'!$C$3="None",0,SUM(I222:J222)) -> 1.012046 | L222: =+IF('General Budget Assumptions'!$C$3="None",0,G$25*Equipment!$P$35) -> 0.69825 | M222: =+IF('General Budget Assumptions'!$C$3="None",0,G$25*Equipment!$L$35) -> 5.035 | N222: =+IF('General Budget Assumptions'!$C$3="None",0,G$25*Equipment!$O$35) -> 7.355 | O222: =+IF('General Budget Assumptions'!$C$3="None",0,F222*G222) -> 0.1225 | P222: =+IF('General Budget Assumptions'!$C$3="None",0,O222*Labor_Fuel_Interest!$C$10) -> 2.13395 | T222: =+IF('General Budget Assumptions'!C$3="Conventional Fungicide Program",K222+L222+M222+N222+P222+S222,0) -> 16.234246 | U222: =+(K222+M222+P222+S222) -> 8.180996
B223: Quilt Xcel | C223: fl oz | Q223: =+IF('General Budget Assumptions'!C$3="Conventional Fungicide Program", 'Chemical & Fertilizer Costs'!F$44, 0) -> 17.5 | R223: ='Chemical & Fertilizer Costs'!H$7 -> 1.245260417 | S223: =+R223*Q223 -> 21.79205729 | T223: =+S223+P223+N223+M223+L223+K223 -> 21.79205729 | U223: =+(K223+M223+P223+S223) -> 21.79205729
B224: Captan | C224: lb. | Q224: =+IF('General Budget Assumptions'!C$3="Conventional Fungicide Program",'Chemical & Fertilizer Costs'!F$34,0) -> 2.5 | R224: =+'Chemical & Fertilizer Costs'!H$9 -> 6.736 | S224: =R224*Q224 -> 16.84 | T224: =+S224+P224+N224+M224+L224+K224 -> 16.84 | U224: 16.84
B225: Hoeing | G225: 1 | H225: Jun | U225: 0
B226: hand labor | C226: hour | O226: 10 | P226: =+O226*Labor_Fuel_Interest!$C$11 -> 138.9 | T226: =+S226+P226+N226+M226+L226+K226 -> 138.9 | U226: 138.9
B227: Mow between Rows | E227: =+IF(D227="MFWD 50hp", Equipment!$U$5, IF('Blackberry Budget Y3'!D227="MFWD 50hp", Equipment!$U$6, IF(D227="4*4", Equipment!$U$7, " "))) ->  | H227: Jun | U227: 0
B228: Rotary cutter | C228: 6 ft | D228: MFWD 50hp | E228: 4 | F228: =+Equipment!$I$25 -> 0.572 | G228: 0.5 | I228: =+$G$8*Equipment!$M$25 -> 0.24596 | J228: =+G228*Equipment!$K$25 -> 2.1168576 | K228: =+SUM(I228:J228) -> 2.3628176 | L228: =+G228*Equipment!$P$25 -> 1.6302 | M228: =+G228*Equipment!$L$25 -> 0.215 | N228: =+G228*Equipment!$O$25 -> 0.63 | O228: =+F228*G228 -> 0.286 | P228: =+O228*Labor_Fuel_Interest!$C$10 -> 4.98212 | T228: =+S228+P228+N228+M228+L228+K228 -> 9.8201376 | U228: =+(K228+M228+P228+S228) -> 7.5599376
B229: Topping Blackberries/Pruning | C229: hour | G229: 1 | H229: Jun | O229: 7 | P229: =+O229*Labor_Fuel_Interest!$C$11 -> 97.23 | T229: =+S229+P229+N229+M229+L229+K229 -> 97.23 | U229: 97.23
B230: Irrigation | H230: Jun | M230: 35.4 | N230: 27.1 | O230: 0.05 | P230: =+O230*Labor_Fuel_Interest!$C$10 -> 0.871 | T230: =+S230+P230+N230+M230+L230+K230 -> 63.371 | U230: 36.271
B231: Disease management | U231: 0
B232: Sprayer (Air Blast) | D232: MFWD 50hp | E232: 4 | F232: =+Equipment!$I$35 -> 0.245 | G232: 0.5 | H232: Jun | I232: =+IF('General Budget Assumptions'!$C$3="None",0,G$35*Equipment!$M$35) -> 0.10535 | J232: =+IF('General Budget Assumptions'!$C$3="None",0,G$35*Equipment!$K$35) -> 0.906696 | K232: =IF('General Budget Assumptions'!$C$3="None",0,SUM(I232:J232)) -> 1.012046 | L232: =+IF('General Budget Assumptions'!$C$3="None",0,G$35*Equipment!$P$35) -> 0.69825 | M232: =+IF('General Budget Assumptions'!$C$3="None",0,G$35*Equipment!$L$35) -> 5.035 | N232: =+IF('General Budget Assumptions'!$C$3="None",0,G$35*Equipment!$O$35) -> 7.355 | O232: =+IF('General Budget Assumptions'!$C$3="None",0,F232*G232) -> 0.1225 | P232: =+IF('General Budget Assumptions'!$C$3="None",0,O232*Labor_Fuel_Interest!$C$10) -> 2.13395 | T232: =+IF('General Budget Assumptions'!C$3="Conventional Fungicide Program",K232+L232+M232+N232+P232+S232,0) -> 16.234246 | U232: =+(K232+M232+P232+S232) -> 8.180996
B233: Luna Tranquility | C233: fl oz | Q233: =+IF('General Budget Assumptions'!C$3="Conventional Fungicide Program",'Chemical & Fertilizer Costs'!F$37,0) -> 20 | R233: ='Chemical & Fertilizer Costs'!H$8 -> 3.24984375 | S233: =+R233*Q233 -> 64.996875 | T233: =+S233+P233+N233+M233+L233+K233 -> 64.996875 | U233: =+(K233+M233+P233+S233) -> 64.996875
B234: Captan | C234: lb. | Q234: =+IF('General Budget Assumptions'!C$3="Conventional Fungicide Program",'Chemical & Fertilizer Costs'!F$34,0) -> 2.5 | R234: =+'Chemical & Fertilizer Costs'!H$9 -> 6.736 | S234: =R234*Q234 -> 16.84 | T234: =+S234+P234+N234+M234+L234+K234 -> 16.84 | U234: 16.84
B235: Hoeing | G235: 1 | H235: Jul | U235: 0
B236: hand labor | C236: hour | O236: 13 | P236: =+O236*Labor_Fuel_Interest!$C$11 -> 180.57 | T236: =+S236+P236+N236+M236+L236+K236 -> 180.57 | U236: 180.57
B237: Mow between Rows | E237: =+IF(D237="MFWD 50hp", Equipment!$U$5, IF('Blackberry Budget Y3'!D237="MFWD 50hp", Equipment!$U$6, IF(D237="4*4", Equipment!$U$7, " "))) ->  | H237: Jul | U237: 0
B238: Rotary cutter | C238: 6 ft | D238: MFWD 50hp | E238: 4 | F238: =+Equipment!$I$25 -> 0.572 | G238: 0.5 | I238: =+$G$8*Equipment!$M$25 -> 0.24596 | J238: =+G238*Equipment!$K$25 -> 2.1168576 | K238: =+SUM(I238:J238) -> 2.3628176 | L238: =+G238*Equipment!$P$25 -> 1.6302 | M238: =+G238*Equipment!$L$25 -> 0.215 | N238: =+G238*Equipment!$O$25 -> 0.63 | O238: =+F238*G238 -> 0.286 | P238: =+O238*Labor_Fuel_Interest!$C$10 -> 4.98212 | T238: =+S238+P238+N238+M238+L238+K238 -> 9.8201376 | U238: =+(K238+M238+P238+S238) -> 7.5599376
B239: Irrigation | H239: Jul | M239: 35.4 | N239: 27.1 | O239: 0.05 | P239: =+O239*Labor_Fuel_Interest!$C$10 -> 0.871 | T239: =+S239+P239+N239+M239+L239+K239 -> 63.371 | U239: 36.271
B240: Disease management | U240: 0
B241: Sprayer (Air Blast) | D241: MFWD 50hp | E241: 4 | F241: =+Equipment!$I$35 -> 0.245 | G241: 0.5 | H241: Jul | I241: =+IF('General Budget Assumptions'!$C$3="None",0,G$44*Equipment!$M$35) -> 0.10535 | J241: =+IF('General Budget Assumptions'!$C$3="None",0,G$44*Equipment!$K$35) -> 0.906696 | K241: =IF('General Budget Assumptions'!$C$3="None",0,SUM(I241:J241)) -> 1.012046 | L241: =+IF('General Budget Assumptions'!$C$3="None",0,G$44*Equipment!$P$35) -> 0.69825 | M241: =+IF('General Budget Assumptions'!$C$3="None",0,G$44*Equipment!$L$35) -> 5.035 | N241: =+IF('General Budget Assumptions'!$C$3="None",0,G$44*Equipment!$O$35) -> 7.355 | O241: =+IF('General Budget Assumptions'!$C$3="None",0,F241*G241) -> 0.1225 | P241: =+IF('General Budget Assumptions'!$C$3="None",0,O241*Labor_Fuel_Interest!$C$10) -> 2.13395 | T241: =+IF('General Budget Assumptions'!C$3="Conventional Fungicide Program",K241+L241+M241+N241+P241+S241,0) -> 16.234246 | U241: =+(K241+M241+P241+S241) -> 8.180996
B242: Quilt Xcel | C242: fl oz | Q242: =+IF('General Budget Assumptions'!C$3="Conventional Fungicide Program",'Chemical & Fertilizer Costs'!F$44,0) -> 17.5 | R242: ='Chemical & Fertilizer Costs'!H$7 -> 1.245260417 | S242: =+R242*Q242 -> 21.79205729 | T242: =+S242+P242+N242+M242+L242+K242 -> 21.79205729 | U242: =+(K242+M242+P242+S242) -> 21.79205729
B243: Captan | C243: lb. | Q243: =+IF('General Budget Assumptions'!C$3="Conventional Fungicide Program",'Chemical & Fertilizer Costs'!F$34,0) -> 2.5 | R243: =+'Chemical & Fertilizer Costs'!H$9 -> 6.736 | S243: =R243*Q243 -> 16.84 | T243: =+S243+P243+N243+M243+L243+K243 -> 16.84 | U243: 16.84
B244: Apply fertilizer | H244: Jul | U244: 0
B245: Side dresser | C245: 1R 3ft | D245: MFWD 50hp | E245: 4 | F245: =+Equipment!$I$27 -> 0.846 | G245: 0.5 | I245: =+G245*Equipment!$M$27 -> 0.36378 | J245: =+G245*Equipment!$K$27 -> 3.1308768 | K245: =SUM(I245:J245) -> 3.4946568 | L245: =+G245*Equipment!$P$27 -> 2.4111 | M245: =+G245*Equipment!$L$27 -> 1.055 | N245: =+G245*Equipment!$O$27 -> 4.505 | O245: =+F245*G245 -> 0.423 | P245: =+Labor_Fuel_Interest!$C$10*O245 -> 7.36866 | T245: =+S245+P245+N245+M245+L245+K245 -> 18.8344168 | U245: 11.9183168
B246: Urea | C246: lb. | Q246: 65 | R246: =+'Chemical & Fertilizer Costs'!$F$25 -> 0.3922666667 | S246: =+R246*Q246 -> 25.49733333 | T246: =+S246+P246+N246+M246+L246+K246 -> 25.49733333 | U246: 25.49733333
B247: Cane Removal
B248: hand labor | O248: 20 | P248: =+O248*Labor_Fuel_Interest!$C$11 -> 277.8 | T248: =+S248+P248+N248+M248+L248+K248 -> 277.8 | U248: 277.8
B249: Mow between Rows | E249: =+IF(D249="MFWD 50hp", Equipment!$U$5, IF('Blackberry Budget Y3'!D249="MFWD 50hp", Equipment!$U$6, IF(D249="4*4", Equipment!$U$7, " "))) ->  | H249: Aug | U249: 0
B250: Rotary cutter | C250: 6 ft | D250: MFWD 50hp | E250: 4 | F250: =+Equipment!$I$25 -> 0.572 | G250: 0.5 | I250: =+$G$8*Equipment!$M$25 -> 0.24596 | J250: =+G250*Equipment!$K$25 -> 2.1168576 | K250: =+SUM(I250:J250) -> 2.3628176 | L250: =+G250*Equipment!$P$25 -> 1.6302 | M250: =+G250*Equipment!$L$25 -> 0.215 | N250: =+G250*Equipment!$O$25 -> 0.63 | O250: =+F250*G250 -> 0.286 | P250: =+O250*Labor_Fuel_Interest!$C$10 -> 4.98212 | T250: =+S250+P250+N250+M250+L250+K250 -> 9.8201376 | U250: =+(K250+M250+P250+S250) -> 7.5599376
B251: Irrigation | H251: Aug | M251: 35.4 | N251: 27.1 | O251: 0.05 | P251: =+O251*Labor_Fuel_Interest!$C$10 -> 0.871 | T251: =+S251+P251+N251+M251+L251+K251 -> 63.371 | U251: 36.271
B252: Mow between Rows | E252: =+IF(D252="MFWD 50hp", Equipment!$U$5, IF('Blackberry Budget Y3'!D252="MFWD 50hp", Equipment!$U$6, IF(D252="4*4", Equipment!$U$7, " "))) ->  | H252: Sep | U252: 0
B253: Rotary cutter | C253: 6 ft | D253: MFWD 50hp | E253: 4 | F253: =+Equipment!$I$25 -> 0.572 | G253: 0.5 | I253: =+$G$8*Equipment!$M$25 -> 0.24596 | J253: =+G253*Equipment!$K$25 -> 2.1168576 | K253: =+SUM(I253:J253) -> 2.3628176 | L253: =+G253*Equipment!$P$25 -> 1.6302 | M253: =+G253*Equipment!$L$25 -> 0.215 | N253: =+G253*Equipment!$O$25 -> 0.63 | O253: =+F253*G253 -> 0.286 | P253: =+O253*Labor_Fuel_Interest!$C$10 -> 4.98212 | T253: =+S253+P253+N253+M253+L253+K253 -> 9.8201376 | U253: =+(K253+M253+P253+S253) -> 7.5599376
B254: Irrigation | H254: Sep | M254: 35.4 | N254: 27.1 | O254: 0.05 | P254: =+O254*Labor_Fuel_Interest!$C$10 -> 0.871 | T254: =+S254+P254+N254+M254+L254+K254 -> 63.371 | U254: =+(K254+M254+P254+S254) -> 36.271
B255: Mow between Rows | E255: =+IF(D255="MFWD 50hp", Equipment!$U$5, IF('Blackberry Budget Y3'!D255="MFWD 50hp", Equipment!$U$6, IF(D255="4*4", Equipment!$U$7, " "))) ->  | H255: Oct | U255: 0
B256: Rotary cutter | C256: 6 ft | D256: MFWD 50hp | E256: 4 | F256: =+Equipment!$I$25 -> 0.572 | G256: 0.5 | I256: =+$G$8*Equipment!$M$25 -> 0.24596 | J256: =+G256*Equipment!$K$25 -> 2.1168576 | K256: =+SUM(I256:J256) -> 2.3628176 | L256: =+G256*Equipment!$P$25 -> 1.6302 | M256: =+G256*Equipment!$L$25 -> 0.215 | N256: =+G256*Equipment!$O$25 -> 0.63 | O256: =+F256*G256 -> 0.286 | P256: =+O256*Labor_Fuel_Interest!$C$10 -> 4.98212 | T256: =+S256+P256+N256+M256+L256+K256 -> 9.8201376 | U256: =+(K256+M256+P256+S256) -> 7.5599376
B257: Irrigation | H257: Oct | M257: 35.4 | N257: 27.1 | O257: 0.05 | P257: =+O257*Labor_Fuel_Interest!$C$10 -> 0.871 | T257: =+S257+P257+N257+M257+L257+K257 -> 63.371 | U257: =+(K257+M257+P257+S257) -> 36.271
B258: Pre-harvest costs | I258: =+SUM(I204:I257) -> 3.11664 | J258: 26.8233984 | K258: 29.9400384 | L258: 20.6568 | M258: 271.77 | N258: 233.17 | O258: 63.974 | P258: 902.62708 | S258: =+SUM(S204:S257) -> 243.9325313 | T258: =+SUM(T204:T257) -> 1702.09645 | U258: =SUM(U204:U257) -> 1448.26965
B259: Interest on Operating Capital | T259: =+(U258*Labor_Fuel_Interest!$C$15)/2 -> 45.25842655
B260: Pre-harvest cost + Interest | T260: =+SUM(T258:T259) -> 1747.354876
B261: HARVESTING
B262: Picking | O262: =+IF('General Budget Assumptions'!C$4="100% Ready_Picked_Retail",100, IF('General Budget Assumptions'!C$4="50%PYO 50%Ready_Picked",(100*0.5),(100*0.25))) -> 50 | P262: =+O262*Labor_Fuel_Interest!C$11 -> 694.5 | T262: =+S262+P262+N262+M262+L262+K262 -> 694.5
B263: Plastic clamshell containers (qt) | Q263: =+IF('General Budget Assumptions'!C$4="100% Ready_Picked_Retail",Yield!B$5, IF('General Budget Assumptions'!C$4="50%PYO 50%Ready_Picked",(Yield!B$5*0.5),(Yield!B$5*0.25))) -> 1500 | R263: =+Marketing!B203 -> 0 | S263: =+Q263*R263 -> 0 | T263: =+S263+P263+N263+M263+L263+K263 -> 0
B264: Refrigeration | M264: =30*1.22 -> 36.6 | N264: 1100 | T264: =+S264+P264+N264+M264+L264+K264 -> 1136.6
B265: Marketing | Q265: 1 | R265: =IF('General Budget Assumptions'!C$4="100% Ready_Picked_Retail",(Yield!B$5*'Blackberry Prices'!C$4),IF('General Budget Assumptions'!C$4="50%PYO 50%Ready_Picked", ((0.5*Yield!B$5*'Blackberry Prices'!C$4)+(0.5*Yield!B$5*'Blackberry Prices'!B$4)), ((0.75*Yield!B$5*'Blackberry Prices'!B$4)+(0.25*Yield!B$5*'Blackberry Prices'!C$4))))*0.1 -> 1799.25 | S265: =+Q265*R265 -> 1799.25 | T265: =+S265+P265+N265+M265+L265+K265 -> 1799.25
B266: Harvest totals | T266: =SUM(T262:T265) -> 3630.35
B267: Totals | T267: =+T$63+T$69 -> 5601.41321

Sheet Summary Y3
B3: Blackberry Enterprise Budget Year 1 | X3: Summary Budget Year 3
B4: Operation / Operating Input | C4: Size/ Unit | D4: Power Unit Size | E4: # | F4: Perf Rate | G4: Times Over | H4: Month | I4: Power unit cost | M4: Equipment Cost | O4: Alloc Labor | Q4: Operating / Durable Input | T4: total cost | X4: Items | Y4: Unit | Z4: Price | AA4: Quantity | AB4: Amount | AC4: Your Farm
I5: R&M | J5: Fuel | K5: Direct | L5: Fixed | M5: Direct | N5: Fixed | O5: Hours | P5: Cost | Q5: Amount | R5: Price | S5: Cost
X6: Direct expenses
B7: Mow between Rows | E7: =+IF(D7="MFWD 50hp", Equipment!$U$5, IF('Summary Y3'!D7="MFWD 50hp", Equipment!$U$6, IF(D7="4*4", Equipment!$U$7, " "))) ->  | H7: Mar | X7: Fertilizer
B8: Rotary cutter | C8: 6 ft | D8: MFWD 50hp | E8: 4 | F8: =+Equipment!$I$25 -> 0.572 | G8: 0.5 | I8: =+$G$8*Equipment!$M$25 -> 0.24596 | J8: =+G8*Equipment!$K$25 -> 2.1168576 | K8: =+SUM(I8:J8) -> 2.3628176 | L8: =+G8*Equipment!$P$25 -> 1.6302 | M8: =+G8*Equipment!$L$25 -> 0.215 | N8: =+G8*Equipment!$O$25 -> 0.63 | O8: =+F8*G8 -> 0.286 | P8: =+O8*Labor_Fuel_Interest!$C$10 -> 4.98212 | T8: =+S8+P8+N8+M8+L8+K8 -> 9.8201376 | U8: =+(K8+M8+P8+S8) -> 7.5599376 | X8: Urea | Y8: lb | Z8: =+'Blackberry Budget Y3'!R$13 -> 0.3922666667 | AA8: =+'Blackberry Budget Y3'!Q$13+'Blackberry Budget Y3'!Q$49 -> 130 | AB8: =+Z8*AA8 -> 50.99466667
B9: Mow between Rows | E9: =+IF(D9="MFWD 50hp", Equipment!$U$5, IF('Summary Y3'!D9="MFWD 50hp", Equipment!$U$6, IF(D9="4*4", Equipment!$U$7, " "))) ->  | H9: Apr | U9: =+(K9+M9+P9+S9) -> 0 | X9: Chemicals
B10: Rotary cutter | C10: 6 ft | D10: MFWD 50hp | E10: 4 | F10: =+Equipment!$I$25 -> 0.572 | G10: 0.5 | I10: =+$G$8*Equipment!$M$25 -> 0.24596 | J10: =+G10*Equipment!$K$25 -> 2.1168576 | K10: =+SUM(I10:J10) -> 2.3628176 | L10: =+G10*Equipment!$P$25 -> 1.6302 | M10: =+G10*Equipment!$L$25 -> 0.215 | N10: =+G10*Equipment!$O$25 -> 0.63 | O10: =+F10*G10 -> 0.286 | P10: =+O10*Labor_Fuel_Interest!$C$10 -> 4.98212 | T10: =+S10+P10+N10+M10+L10+K10 -> 9.8201376 | U10: =+(K10+M10+P10+S10) -> 7.5599376 | X10: Pristine | Y10: oz | Z10: =+'Blackberry Budget Y3'!R$16 -> 0.809375 | AA10: =+'Blackberry Budget Y3'!Q$16 -> 21 | AB10: =+Z10*AA10 -> 16.996875
B11: Apply fertilizer | H11: Apr | U11: 0 | X11: Captane | Y11: lb | Z11: =+'Blackberry Budget Y3'!R$17 -> 6.736 | AA11: =+'Blackberry Budget Y3'!Q$17+'Blackberry Budget Y3'!Q$27+'Blackberry Budget Y3'!Q$37+'Blackberry Budget Y3'!Q$46 -> 10 | AB11: 67.36
B12: Side dresser | C12: 1R 3ft | D12: MFWD 50hp | E12: 4 | F12: =+Equipment!$I$27 -> 0.846 | G12: 0.5 | I12: =+G12*Equipment!$M$27 -> 0.36378 | J12: =+G12*Equipment!$K$27 -> 3.1308768 | K12: =SUM(I12:J12) -> 3.4946568 | L12: =+G12*Equipment!$P$27 -> 2.4111 | M12: =+G12*Equipment!$L$27 -> 1.055 | N12: =+G12*Equipment!$O$27 -> 4.505 | O12: =+F12*G12 -> 0.423 | P12: =+Labor_Fuel_Interest!$C$10*O12 -> 7.36866 | T12: =+S12+P12+N12+M12+L12+K12 -> 18.8344168 | U12: 11.9183168 | X12: Quilt Xcel | Y12: fl oz | Z12: =+'Blackberry Budget Y3'!R$26 -> 1.245260417 | AA12: =+'Blackberry Budget Y3'!Q$26+'Blackberry Budget Y3'!Q$45 -> 35 | AB12: 43.58411458
B13: Urea | C13: lb | Q13: 65 | R13: =+'Chemical & Fertilizer Costs'!$F$25 -> 0.3922666667 | S13: =+R13*Q13 -> 25.49733333 | T13: =+S13+P13+N13+M13+L13+K13 -> 25.49733333 | U13: 25.49733333 | X13: Luna Tranquility | Y13: fl oz | Z13: =+'Blackberry Budget Y3'!R$36 -> 3.24984375 | AA13: =+'Blackberry Budget Y3'!Q$36 -> 20 | AB13: 64.996875
B14: Disease management | U14: 0 | X14: Operator labor
B15: Sprayer (Air Blast) | D15: MFWD 50hp | E15: 4 | F15: =+Equipment!$I$35 -> 0.245 | G15: 0.5 | H15: Apr | I15: =+G15*Equipment!$M$35 -> 0.10535 | J15: =+G15*Equipment!$K$35 -> 0.906696 | K15: =SUM(I15:J15) -> 1.012046 | L15: =+G15*Equipment!$P$35 -> 0.69825 | M15: =+G15*Equipment!$L$35 -> 5.035 | N15: =+G15*Equipment!$O$35 -> 7.355 | O15: =+F15*G15 -> 0.1225 | P15: =+O15*Labor_Fuel_Interest!$C$10 -> 2.13395 | T15: =+K15+L15+M15+N15+P15+S15 -> 16.234246 | U15: =+(K15+M15+P15+S15) -> 8.180996 | X15: Tractors | Y15: hour | Z15: =+Labor_Fuel_Interest!$C$10 -> 17.42 | AA15: =+'Blackberry Budget Y3'!O$8+'Blackberry Budget Y3'!O$10+'Blackberry Budget Y3'!O$12+'Blackberry Budget Y3'!O$15+'Blackberry Budget Y3'!O$22+'Blackberry Budget Y3'!O$25+'Blackberry Budget Y3'!O$31+'Blackberry Budget Y3'!O$35+'Blackberry Budget Y3'!O$41+'Blackberry Budget Y3'!O$44+'Blackberry Budget Y3'!O$53+'Blackberry Budget Y3'!O$56+'Blackberry Budget Y3'!O$59+'Blackberry Budget Y3'!O$48 -> 3.624 | AB15: =+Z15*AA15 -> 63.13008
B16: Pristine | C16: oz | Q16: =+'Chemical & Fertilizer Costs'!F$41 -> 21 | R16: =+'Chemical & Fertilizer Costs'!H$10 -> 0.809375 | S16: =+R16*Q16 -> 16.996875 | T16: =+S16+P16+N16+M16+L16+K16 -> 16.996875 | U16: 16.996875 | X16: Harvest labor
B17: Captan | C17: lb | Q17: =+'Chemical & Fertilizer Costs'!F$34 -> 2.5 | R17: =+'Chemical & Fertilizer Costs'!H$9 -> 6.736 | S17: =R17*Q17 -> 16.84 | T17: =+S17+P17+N17+M17+L17+K17 -> 16.84 | U17: 16.84 | X17: Special labor | Y17: hour | Z17: =+Labor_Fuel_Interest!$C$11 -> 13.89 | AA17: =+'Blackberry Budget Y3'!O$65 -> 50 | AB17: =+Z17*AA17 -> 694.5
B18: Irrigation | H18: Apr | M18: 35.4 | N18: 27.1 | O18: 0.05 | P18: =+O18*Labor_Fuel_Interest!$C$10 -> 0.871 | T18: =+S18+P18+N18+M18+L18+K18 -> 63.371 | U18: 36.271 | X18: Hand labor
B19: Hoeing | G19: 1 | H19: May | U19: 0 | X19: Special labor | Y19: hour | Z19: =+Labor_Fuel_Interest!$C$11 -> 13.89 | AA19: =+'Blackberry Budget Y3'!O$20+'Blackberry Budget Y3'!O$29+'Blackberry Budget Y3'!O$39 -> 33 | AB19: =+Z19*AA19 -> 458.37
B20: hand labor | C20: hour | O20: 10 | P20: =+O20*Labor_Fuel_Interest!$C$11 -> 138.9 | T20: =+S20+P20+N20+M20+L20+K20 -> 138.9 | U20: 138.9 | X20: Irrigation labor | AB20: =+Z20*AA20 -> 0
B21: Mow between Rows | E21: =+IF(D21="MFWD 50hp", Equipment!$U$5, IF('Summary Y3'!D21="MFWD 50hp", Equipment!$U$6, IF(D21="4*4", Equipment!$U$7, " "))) ->  | H21: May | U21: 0 | X21: Special labor | Y21: hour | Z21: =+Labor_Fuel_Interest!$C$10 -> 17.42 | AA21: =+'Blackberry Budget Y3'!O$18+'Blackberry Budget Y3'!O$23+'Blackberry Budget Y3'!O$33+'Blackberry Budget Y3'!O$42+'Blackberry Budget Y3'!O$54+'Blackberry Budget Y3'!O$57+'Blackberry Budget Y3'!O$60 -> 0.35 | AB21: =+Z21*AA21 -> 6.097
B22: Rotary cutter | C22: 6 ft | D22: MFWD 50hp | E22: 4 | F22: =+Equipment!$I$25 -> 0.572 | G22: 0.5 | I22: =+$G$8*Equipment!$M$25 -> 0.24596 | J22: =+G22*Equipment!$K$25 -> 2.1168576 | K22: =+SUM(I22:J22) -> 2.3628176 | L22: =+G22*Equipment!$P$25 -> 1.6302 | M22: =+G22*Equipment!$L$25 -> 0.215 | N22: =+G22*Equipment!$O$25 -> 0.63 | O22: =+F22*G22 -> 0.286 | P22: =+O22*Labor_Fuel_Interest!$C$10 -> 4.98212 | T22: =+S22+P22+N22+M22+L22+K22 -> 9.8201376 | U22: =+(K22+M22+P22+S22) -> 7.5599376 | X22: Pruning/Cane removal Labor
B23: Irrigation | H23: May | M23: 35.4 | N23: 27.1 | O23: 0.05 | P23: =+O23*Labor_Fuel_Interest!$C$10 -> 0.871 | T23: =+S23+P23+N23+M23+L23+K23 -> 63.371 | U23: 36.271 | X23: Special labor | Y23: hour | Z23: =+Labor_Fuel_Interest!$C$11 -> 13.89 | AA23: =+'Blackberry Budget Y3'!O$32+'Blackberry Budget Y3'!O$51 -> 27 | AB23: =+Z23*AA23 -> 375.03
B24: Disease management | U24: 0 | X24: Irrigation variable cost | Y24: acre | Z24: =+'Blackberry Budget Y3'!M$18+'Blackberry Budget Y3'!M$23+'Blackberry Budget Y3'!M$33+'Blackberry Budget Y3'!M$42+'Blackberry Budget Y3'!M$54+'Blackberry Budget Y3'!M$57+'Blackberry Budget Y3'!M$60 -> 247.8 | AA24: 1 | AB24: =+Z24*AA24 -> 247.8
B25: Sprayer (Air Blast) | D25: MFWD 50hp | E25: 4 | F25: =+Equipment!$I$35 -> 0.245 | G25: 0.5 | H25: May | I25: =+G25*Equipment!$M$35 -> 0.10535 | J25: =+G25*Equipment!$K$35 -> 0.906696 | K25: =SUM(I25:J25) -> 1.012046 | L25: =+G25*Equipment!$P$35 -> 0.69825 | M25: =+G25*Equipment!$L$35 -> 5.035 | N25: =+G25*Equipment!$O$35 -> 7.355 | O25: =+F25*G25 -> 0.1225 | P25: =+O25*Labor_Fuel_Interest!$C$10 -> 2.13395 | T25: =+K25+L25+M25+N25+P25+S25 -> 16.234246 | U25: =+(K25+M25+P25+S25) -> 8.180996 | X25: Diesel Fuel
B26: Quilt Xcel | C26: fl oz | Q26: =+'Chemical & Fertilizer Costs'!F$44 -> 17.5 | R26: ='Chemical & Fertilizer Costs'!H$7 -> 1.245260417 | S26: =+R26*Q26 -> 21.79205729 | T26: =+S26+P26+N26+M26+L26+K26 -> 21.79205729 | U26: =+(K26+M26+P26+S26) -> 21.79205729 | X26: Tractors | Y26: gal | Z26: =+Labor_Fuel_Interest!$E$4 -> 2.88 | AA26: =('Blackberry Budget Y3'!J$8+'Blackberry Budget Y3'!J$10+'Blackberry Budget Y3'!J$12+'Blackberry Budget Y3'!J$15+'Blackberry Budget Y3'!J$22+'Blackberry Budget Y3'!J$25+'Blackberry Budget Y3'!J$31+'Blackberry Budget Y3'!J$35+'Blackberry Budget Y3'!J$41+'Blackberry Budget Y3'!J$44+'Blackberry Budget Y3'!J$53+'Blackberry Budget Y3'!J$56+'Blackberry Budget Y3'!J$59+'Blackberry Budget Y3'!J$48)/'Blackberry Budget Y3'!Z$26 -> 9.31368 | AB26: =+Z26*AA26 -> 26.8233984
B27: Captan | C27: lb | Q27: =+'Chemical & Fertilizer Costs'!F$34 -> 2.5 | R27: =+'Chemical & Fertilizer Costs'!H$9 -> 6.736 | S27: =R27*Q27 -> 16.84 | T27: =+S27+P27+N27+M27+L27+K27 -> 16.84 | U27: 16.84 | X27: Repair & Maintenance
B28: Hoeing | G28: 1 | H28: Jun | U28: 0 | X28: Implements | Y28: acre | Z28: =+'Blackberry Budget Y3'!M$61-('Blackberry Budget Y3'!M$18+'Blackberry Budget Y3'!M$23+'Blackberry Budget Y3'!M$33+'Blackberry Budget Y3'!M$42+'Blackberry Budget Y3'!M$54+'Blackberry Budget Y3'!M$57+'Blackberry Budget Y3'!M$60) -> 23.97 | AA28: 1 | AB28: =+Z28*AA28 -> 23.97
B29: hand labor | C29: hour | O29: 10 | P29: =+O29*Labor_Fuel_Interest!$C$11 -> 138.9 | T29: =+S29+P29+N29+M29+L29+K29 -> 138.9 | U29: 138.9 | X29: Tractors | Y29: acre | Z29: =+'Blackberry Budget Y3'!I$61 -> 3.11664 | AA29: 1 | AB29: =+Z29*AA29 -> 3.11664
B30: Mow between Rows | E30: =+IF(D30="MFWD 50hp", Equipment!$U$5, IF('Summary Y3'!D30="MFWD 50hp", Equipment!$U$6, IF(D30="4*4", Equipment!$U$7, " "))) ->  | H30: Jun | U30: 0 | X30: Post-harvest Expenses
B31: Rotary cutter | C31: 6 ft | D31: MFWD 50hp | E31: 4 | F31: =+Equipment!$I$25 -> 0.572 | G31: 0.5 | I31: =+$G$8*Equipment!$M$25 -> 0.24596 | J31: =+G31*Equipment!$K$25 -> 2.1168576 | K31: =+SUM(I31:J31) -> 2.3628176 | L31: =+G31*Equipment!$P$25 -> 1.6302 | M31: =+G31*Equipment!$L$25 -> 0.215 | N31: =+G31*Equipment!$O$25 -> 0.63 | O31: =+F31*G31 -> 0.286 | P31: =+O31*Labor_Fuel_Interest!$C$10 -> 4.98212 | T31: =+S31+P31+N31+M31+L31+K31 -> 9.8201376 | U31: =+(K31+M31+P31+S31) -> 7.5599376 | X31: Plastic clamshell containers (qt) | Y31: each | Z31: =+'Blackberry Budget Y3'!R$66 -> 0.1491388889 | AA31: =+'Blackberry Budget Y3'!Q$66 -> 1500 | AB31: =+Z31*AA31 -> 223.7083333
B32: Topping Blackberries/Pruning | C32: hour | G32: 1 | H32: Jun | O32: 7 | P32: =+O32*Labor_Fuel_Interest!$C$11 -> 97.23 | T32: =+S32+P32+N32+M32+L32+K32 -> 97.23 | U32: 97.23 | X32: Electricity | Y32: acre | Z32: =+'Blackberry Budget Y3'!M$67 -> 36.6 | AA32: 1 | AB32: =+Z32*AA32 -> 36.6
B33: Irrigation | H33: Jun | M33: 35.4 | N33: 27.1 | O33: 0.05 | P33: =+O33*Labor_Fuel_Interest!$C$10 -> 0.871 | T33: =+S33+P33+N33+M33+L33+K33 -> 63.371 | U33: 36.271 | X33: Marketing (10% of gross revenue) | Y33: acre | Z33: =+'Blackberry Budget Y3'!T$68 -> 1799.25 | AA33: 1 | AB33: =+Z33*AA33 -> 1799.25
B34: Disease management | U34: 0 | X34: Interest on OP. CAP. | Y34: acre | Z34: =+'Blackberry Budget Y3'!T$62 -> 45.25842655 | AA34: 1 | AB34: =+Z34*AA34 -> 45.25842655
B35: Sprayer (Air Blast) | D35: MFWD 50hp | E35: 4 | F35: =+Equipment!$I$35 -> 0.245 | G35: 0.5 | H35: Jun | I35: =+G35*Equipment!$M$35 -> 0.10535 | J35: =+G35*Equipment!$K$35 -> 0.906696 | K35: =SUM(I35:J35) -> 1.012046 | L35: =+G35*Equipment!$P$35 -> 0.69825 | M35: =+G35*Equipment!$L$35 -> 5.035 | N35: =+G35*Equipment!$O$35 -> 7.355 | O35: =+F35*G35 -> 0.1225 | P35: =+O35*Labor_Fuel_Interest!$C$10 -> 2.13395 | T35: =+K35+L35+M35+N35+P35+S35 -> 16.234246 | U35: =+(K35+M35+P35+S35) -> 8.180996 | X35: Total Direct Expenses | AB35: =+SUM(AB7:AB34) -> 4247.58641 | AC35: =+SUM(AC7:AC34) -> 0
B36: Luna Tranquility | C36: fl oz | Q36: =+'Chemical & Fertilizer Costs'!F$37 -> 20 | R36: ='Chemical & Fertilizer Costs'!H$8 -> 3.24984375 | S36: =+R36*Q36 -> 64.996875 | T36: =+S36+P36+N36+M36+L36+K36 -> 64.996875 | U36: =+(K36+M36+P36+S36) -> 64.996875
B37: Captan | C37: lb | Q37: =+'Chemical & Fertilizer Costs'!F$34 -> 2.5 | R37: =+'Chemical & Fertilizer Costs'!H$9 -> 6.736 | S37: =R37*Q37 -> 16.84 | T37: =+S37+P37+N37+M37+L37+K37 -> 16.84 | U37: 16.84 | X37: Fixed Expenses
B38: Hoeing | G38: 1 | H38: Jul | U38: 0 | X38: Implements/Refrigerator | Y38: acre | Z38: =+'Blackberry Budget Y3'!N$61+'Blackberry Budget Y3'!N$67-('Blackberry Budget Y3'!N$18+'Blackberry Budget Y3'!N$23+'Blackberry Budget Y3'!N$33+'Blackberry Budget Y3'!N$42+'Blackberry Budget Y3'!N$54+'Blackberry Budget Y3'!N$57+'Blackberry Budget Y3'!N$60) -> 1143.47 | AA38: 1 | AB38: =+Z38*AA38 -> 1143.47
B39: hand labor | C39: hour | O39: 13 | P39: =+O39*Labor_Fuel_Interest!$C$11 -> 180.57 | T39: =+S39+P39+N39+M39+L39+K39 -> 180.57 | U39: 180.57 | X39: Tractors | Y39: acre | Z39: =+'Blackberry Budget Y3'!L$61 -> 20.6568 | AA39: 1 | AB39: =+Z39*AA39 -> 20.6568
B40: Mow between Rows | E40: =+IF(D40="MFWD 50hp", Equipment!$U$5, IF('Summary Y3'!D40="MFWD 50hp", Equipment!$U$6, IF(D40="4*4", Equipment!$U$7, " "))) ->  | H40: Jul | U40: 0 | X40: Irrigation set-up | Y40: acre | Z40: =+'Blackberry Budget Y3'!N$18+'Blackberry Budget Y3'!N$23+'Blackberry Budget Y3'!N$33+'Blackberry Budget Y3'!N$42+'Blackberry Budget Y3'!N$54+'Blackberry Budget Y3'!N$57+'Blackberry Budget Y3'!N$60 -> 189.7 | AA40: 1 | AB40: =+Z40*AA40 -> 189.7
B41: Rotary cutter | C41: 6 ft | D41: MFWD 50hp | E41: 4 | F41: =+Equipment!$I$25 -> 0.572 | G41: 0.5 | I41: =+$G$8*Equipment!$M$25 -> 0.24596 | J41: =+G41*Equipment!$K$25 -> 2.1168576 | K41: =+SUM(I41:J41) -> 2.3628176 | L41: =+G41*Equipment!$P$25 -> 1.6302 | M41: =+G41*Equipment!$L$25 -> 0.215 | N41: =+G41*Equipment!$O$25 -> 0.63 | O41: =+F41*G41 -> 0.286 | P41: =+O41*Labor_Fuel_Interest!$C$10 -> 4.98212 | T41: =+S41+P41+N41+M41+L41+K41 -> 9.8201376 | U41: =+(K41+M41+P41+S41) -> 7.5599376
B42: Irrigation | H42: Jul | M42: 35.4 | N42: 27.1 | O42: 0.05 | P42: =+O42*Labor_Fuel_Interest!$C$10 -> 0.871 | T42: =+S42+P42+N42+M42+L42+K42 -> 63.371 | U42: 36.271 | X42: Total Fixed Expenses | AB42: =+SUM(AB38:AB41) -> 1353.8268 | AC42: =+SUM(AC38:AC41) -> 0
B43: Disease management | U43: 0
B44: Sprayer (Air Blast) | D44: MFWD 50hp | E44: 4 | F44: =+Equipment!$I$35 -> 0.245 | G44: 0.5 | H44: Jul | I44: =+G44*Equipment!$M$35 -> 0.10535 | J44: =+G44*Equipment!$K$35 -> 0.906696 | K44: =SUM(I44:J44) -> 1.012046 | L44: =+G44*Equipment!$P$35 -> 0.69825 | M44: =+G44*Equipment!$L$35 -> 5.035 | N44: =+G44*Equipment!$O$35 -> 7.355 | O44: =+F44*G44 -> 0.1225 | P44: =+O44*Labor_Fuel_Interest!$C$10 -> 2.13395 | T44: =+K44+L44+M44+N44+P44+S44 -> 16.234246 | U44: =+(K44+M44+P44+S44) -> 8.180996 | X44: Total Specified Expenses | AB44: =+SUM(AB35+AB42) -> 5601.41321 | AC44: =+SUM(AC35+AC42) -> 0
B45: Quilt Xcel | C45: fl oz | Q45: =+'Chemical & Fertilizer Costs'!F$44 -> 17.5 | R45: ='Chemical & Fertilizer Costs'!H$7 -> 1.245260417 | S45: =+R45*Q45 -> 21.79205729 | T45: =+S45+P45+N45+M45+L45+K45 -> 21.79205729 | U45: =+(K45+M45+P45+S45) -> 21.79205729
B46: Captan | C46: lb | Q46: =+'Chemical & Fertilizer Costs'!F$34 -> 2.5 | R46: =+'Chemical & Fertilizer Costs'!H$9 -> 6.736 | S46: =R46*Q46 -> 16.84 | T46: =+S46+P46+N46+M46+L46+K46 -> 16.84 | U46: 16.84
B47: Apply fertilizer | H47: Jul | U47: 0
B48: Side dresser | C48: 1R 3ft | D48: MFWD 50hp | E48: 4 | F48: =+Equipment!$I$27 -> 0.846 | G48: 0.5 | I48: =+G48*Equipment!$M$27 -> 0.36378 | J48: =+G48*Equipment!$K$27 -> 3.1308768 | K48: =SUM(I48:J48) -> 3.4946568 | L48: =+G48*Equipment!$P$27 -> 2.4111 | M48: =+G48*Equipment!$L$27 -> 1.055 | N48: =+G48*Equipment!$O$27 -> 4.505 | O48: =+F48*G48 -> 0.423 | P48: =+Labor_Fuel_Interest!$C$10*O48 -> 7.36866 | T48: =+S48+P48+N48+M48+L48+K48 -> 18.8344168 | U48: 11.9183168
B49: Urea | C49: lb | Q49: 65 | R49: =+'Chemical & Fertilizer Costs'!$F$25 -> 0.3922666667 | S49: =+R49*Q49 -> 25.49733333 | T49: =+S49+P49+N49+M49+L49+K49 -> 25.49733333 | U49: 25.49733333
B50: Cane Removal
B51: hand labor | O51: 20 | P51: =+O51*Labor_Fuel_Interest!$C$11 -> 277.8 | T51: =+S51+P51+N51+M51+L51+K51 -> 277.8 | U51: 277.8
B52: Mow between Rows | E52: =+IF(D52="MFWD 50hp", Equipment!$U$5, IF('Summary Y3'!D52="MFWD 50hp", Equipment!$U$6, IF(D52="4*4", Equipment!$U$7, " "))) ->  | H52: Aug | U52: 0
B53: Rotary cutter | C53: 6 ft | D53: MFWD 50hp | E53: 4 | F53: =+Equipment!$I$25 -> 0.572 | G53: 0.5 | I53: =+$G$8*Equipment!$M$25 -> 0.24596 | J53: =+G53*Equipment!$K$25 -> 2.1168576 | K53: =+SUM(I53:J53) -> 2.3628176 | L53: =+G53*Equipment!$P$25 -> 1.6302 | M53: =+G53*Equipment!$L$25 -> 0.215 | N53: =+G53*Equipment!$O$25 -> 0.63 | O53: =+F53*G53 -> 0.286 | P53: =+O53*Labor_Fuel_Interest!$C$10 -> 4.98212 | T53: =+S53+P53+N53+M53+L53+K53 -> 9.8201376 | U53: =+(K53+M53+P53+S53) -> 7.5599376
B54: Irrigation | H54: Aug | M54: 35.4 | N54: 27.1 | O54: 0.05 | P54: =+O54*Labor_Fuel_Interest!$C$10 -> 0.871 | T54: =+S54+P54+N54+M54+L54+K54 -> 63.371 | U54: 36.271
B55: Mow between Rows | E55: =+IF(D55="MFWD 50hp", Equipment!$U$5, IF('Summary Y3'!D55="MFWD 50hp", Equipment!$U$6, IF(D55="4*4", Equipment!$U$7, " "))) ->  | H55: Sep | U55: 0
B56: Rotary cutter | C56: 6 ft | D56: MFWD 50hp | E56: 4 | F56: =+Equipment!$I$25 -> 0.572 | G56: 0.5 | I56: =+$G$8*Equipment!$M$25 -> 0.24596 | J56: =+G56*Equipment!$K$25 -> 2.1168576 | K56: =+SUM(I56:J56) -> 2.3628176 | L56: =+G56*Equipment!$P$25 -> 1.6302 | M56: =+G56*Equipment!$L$25 -> 0.215 | N56: =+G56*Equipment!$O$25 -> 0.63 | O56: =+F56*G56 -> 0.286 | P56: =+O56*Labor_Fuel_Interest!$C$10 -> 4.98212 | T56: =+S56+P56+N56+M56+L56+K56 -> 9.8201376 | U56: =+(K56+M56+P56+S56) -> 7.5599376
B57: Irrigation | H57: Sep | M57: 35.4 | N57: 27.1 | O57: 0.05 | P57: =+O57*Labor_Fuel_Interest!$C$10 -> 0.871 | T57: =+S57+P57+N57+M57+L57+K57 -> 63.371 | U57: =+(K57+M57+P57+S57) -> 36.271
B58: Mow between Rows | E58: =+IF(D58="MFWD 50hp", Equipment!$U$5, IF('Summary Y3'!D58="MFWD 50hp", Equipment!$U$6, IF(D58="4*4", Equipment!$U$7, " "))) ->  | H58: Oct | U58: 0
B59: Rotary cutter | C59: 6 ft | D59: MFWD 50hp | E59: 4 | F59: =+Equipment!$I$25 -> 0.572 | G59: 0.5 | I59: =+$G$8*Equipment!$M$25 -> 0.24596 | J59: =+G59*Equipment!$K$25 -> 2.1168576 | K59: =+SUM(I59:J59) -> 2.3628176 | L59: =+G59*Equipment!$P$25 -> 1.6302 | M59: =+G59*Equipment!$L$25 -> 0.215 | N59: =+G59*Equipment!$O$25 -> 0.63 | O59: =+F59*G59 -> 0.286 | P59: =+O59*Labor_Fuel_Interest!$C$10 -> 4.98212 | T59: =+S59+P59+N59+M59+L59+K59 -> 9.8201376 | U59: =+(K59+M59+P59+S59) -> 7.5599376
B60: Irrigation | H60: Oct | M60: 35.4 | N60: 27.1 | O60: 0.05 | P60: =+O60*Labor_Fuel_Interest!$C$10 -> 0.871 | T60: =+S60+P60+N60+M60+L60+K60 -> 63.371 | U60: =+(K60+M60+P60+S60) -> 36.271
B61: Pre-harvest costs | I61: =+SUM(I7:I60) -> 3.11664 | J61: 26.8233984 | K61: 29.9400384 | L61: 20.6568 | M61: 271.77 | N61: 233.17 | O61: 63.974 | P61: 902.62708 | S61: =+SUM(S7:S60) -> 243.9325313 | T61: =+SUM(T7:T60) -> 1702.09645 | U61: =SUM(U7:U60) -> 1448.26965
B62: Interest on Operating Capital | T62: =+(U61*Labor_Fuel_Interest!$C$15)/2 -> 45.25842655
B63: Pre-harvest cost + Interest | T63: =+SUM(T61:T62) -> 1747.354876
B64: HARVESTING
B65: Picking | O65: =+IF('General Budget Assumptions'!C$4="100% Ready_Picked_Retail",100, IF('General Budget Assumptions'!C$4="50%PYO 50%Ready_Picked",(100*0.5),(100*0.25))) -> 50 | P65: =+O65*Labor_Fuel_Interest!C$11 -> 694.5 | T65: =+S65+P65+N65+M65+L65+K65 -> 694.5
B66: Plastic clamshell containers (qt) | Q66: =+IF('General Budget Assumptions'!C$4="100% Ready_Picked_Retail",Yield!B$5, IF('General Budget Assumptions'!C$4="50%PYO 50%Ready_Picked",(Yield!B$5*0.5),(Yield!B$5*0.25))) -> 1500 | R66: =+Marketing!B6 -> 0.1491388889 | S66: =+Q66*R66 -> 223.7083333 | T66: =+S66+P66+N66+M66+L66+K66 -> 223.7083333
B67: Refrigeration | M67: =30*1.22 -> 36.6 | N67: 1100 | T67: =+S67+P67+N67+M67+L67+K67 -> 1136.6
B68: Marketing | Q68: 1 | R68: =IF('General Budget Assumptions'!C$4="100% Ready_Picked_Retail",(Yield!B$5*'Blackberry Prices'!C$4),IF('General Budget Assumptions'!C$4="50%PYO 50%Ready_Picked", ((0.5*Yield!B$5*'Blackberry Prices'!C$4)+(0.5*Yield!B$5*'Blackberry Prices'!B$4)), ((0.75*Yield!B$5*'Blackberry Prices'!B$4)+(0.25*Yield!B$5*'Blackberry Prices'!C$4))))*0.1 -> 1799.25 | S68: =+Q68*R68 -> 1799.25 | T68: =+S68+P68+N68+M68+L68+K68 -> 1799.25
B69: Harvest totals | T69: =SUM(T65:T68) -> 3854.058333
B70: Totals | T70: =+T$63+T$69 -> 5601.41321
X200: Summary Budget Year 3
X201: Items | Y201: Unit | Z201: Price | AA201: Quantity | AB201: Amount | AC201: Your Farm
X203: Direct expenses
X204: Fertilizer
X205: Urea | Y205: lb | Z205: =+'Blackberry Budget Y3'!R$13 -> 0.3922666667 | AA205: =+'Blackberry Budget Y3'!Q$13+'Blackberry Budget Y3'!Q$49 -> 130 | AB205: =+Z205*AA205 -> 50.99466667
X206: Chemicals
X207: Pristine | Y207: oz | Z207: =+'Blackberry Budget Y3'!R$16 -> 0.809375 | AA207: =+'Blackberry Budget Y3'!Q$16 -> 21 | AB207: =+Z207*AA207 -> 16.996875
X208: Captane | Y208: lb | Z208: =+'Blackberry Budget Y3'!R$17 -> 6.736 | AA208: =+'Blackberry Budget Y3'!Q$17+'Blackberry Budget Y3'!Q$27+'Blackberry Budget Y3'!Q$37+'Blackberry Budget Y3'!Q$46 -> 10 | AB208: 67.36
X209: Quilt Xcel | Y209: fl oz | Z209: =+'Blackberry Budget Y3'!R$26 -> 1.245260417 | AA209: =+'Blackberry Budget Y3'!Q$26+'Blackberry Budget Y3'!Q$45 -> 35 | AB209: 43.58411458
X210: Luna Tranquility | Y210: fl oz | Z210: =+'Blackberry Budget Y3'!R$36 -> 3.24984375 | AA210: =+'Blackberry Budget Y3'!Q$36 -> 20 | AB210: 64.996875
X211: Operator labor
X212: Tractors | Y212: hour | Z212: =+Labor_Fuel_Interest!$C$10 -> 17.42 | AA212: =+'Blackberry Budget Y3'!O$8+'Blackberry Budget Y3'!O$10+'Blackberry Budget Y3'!O$12+'Blackberry Budget Y3'!O$15+'Blackberry Budget Y3'!O$22+'Blackberry Budget Y3'!O$25+'Blackberry Budget Y3'!O$31+'Blackberry Budget Y3'!O$35+'Blackberry Budget Y3'!O$41+'Blackberry Budget Y3'!O$44+'Blackberry Budget Y3'!O$53+'Blackberry Budget Y3'!O$56+'Blackberry Budget Y3'!O$59+'Blackberry Budget Y3'!O$48 -> 3.624 | AB212: =+Z212*AA212 -> 63.13008
X213: Harvest labor
X214: Special labor | Y214: hour | Z214: =+Labor_Fuel_Interest!$C$11 -> 13.89 | AA214: =+'Blackberry Budget Y3'!O$65 -> 50 | AB214: =+Z214*AA214 -> 694.5
X215: Hand labor
X216: Special labor | Y216: hour | Z216: =+Labor_Fuel_Interest!$C$11 -> 13.89 | AA216: =+'Blackberry Budget Y3'!O$20+'Blackberry Budget Y3'!O$29+'Blackberry Budget Y3'!O$39 -> 33 | AB216: =+Z216*AA216 -> 458.37
X217: Irrigation labor | AB217: =+Z217*AA217 -> 0
X218: Special labor | Y218: hour | Z218: =+Labor_Fuel_Interest!$C$10 -> 17.42 | AA218: =+'Blackberry Budget Y3'!O$18+'Blackberry Budget Y3'!O$23+'Blackberry Budget Y3'!O$33+'Blackberry Budget Y3'!O$42+'Blackberry Budget Y3'!O$54+'Blackberry Budget Y3'!O$57+'Blackberry Budget Y3'!O$60 -> 0.35 | AB218: =+Z218*AA218 -> 6.097
X219: Pruning/Cane removal Labor
X220: Special labor | Y220: hour | Z220: =+Labor_Fuel_Interest!$C$11 -> 13.89 | AA220: =+'Blackberry Budget Y3'!O$32+'Blackberry Budget Y3'!O$51 -> 27 | AB220: =+Z220*AA220 -> 375.03
X221: Irrigation variable cost | Y221: acre | Z221: =+'Blackberry Budget Y3'!M$18+'Blackberry Budget Y3'!M$23+'Blackberry Budget Y3'!M$33+'Blackberry Budget Y3'!M$42+'Blackberry Budget Y3'!M$54+'Blackberry Budget Y3'!M$57+'Blackberry Budget Y3'!M$60 -> 247.8 | AA221: 1 | AB221: =+Z221*AA221 -> 247.8
X222: Diesel Fuel
X223: Tractors | Y223: gal | Z223: =+Labor_Fuel_Interest!$E$4 -> 2.88 | AA223: =('Blackberry Budget Y3'!J$8+'Blackberry Budget Y3'!J$10+'Blackberry Budget Y3'!J$12+'Blackberry Budget Y3'!J$15+'Blackberry Budget Y3'!J$22+'Blackberry Budget Y3'!J$25+'Blackberry Budget Y3'!J$31+'Blackberry Budget Y3'!J$35+'Blackberry Budget Y3'!J$41+'Blackberry Budget Y3'!J$44+'Blackberry Budget Y3'!J$53+'Blackberry Budget Y3'!J$56+'Blackberry Budget Y3'!J$59+'Blackberry Budget Y3'!J$48)/'Blackberry Budget Y3'!Z$26 -> 9.31368 | AB223: =+Z223*AA223 -> 26.8233984
X224: Repair & Maintenance
X225: Implements | Y225: acre | Z225: =+'Blackberry Budget Y3'!M$61-('Blackberry Budget Y3'!M$18+'Blackberry Budget Y3'!M$23+'Blackberry Budget Y3'!M$33+'Blackberry Budget Y3'!M$42+'Blackberry Budget Y3'!M$54+'Blackberry Budget Y3'!M$57+'Blackberry Budget Y3'!M$60) -> 23.97 | AA225: 1 | AB225: =+Z225*AA225 -> 23.97
X226: Tractors | Y226: acre | Z226: =+'Blackberry Budget Y3'!I$61 -> 3.11664 | AA226: 1 | AB226: =+Z226*AA226 -> 3.11664
X227: Post-harvest Expenses
X228: Plastic clamshell containers (qt) | Y228: each | Z228: =+'Blackberry Budget Y3'!R$66 -> 0.1491388889 | AA228: =+'Blackberry Budget Y3'!Q$66 -> 1500 | AB228: =+Z228*AA228 -> 223.7083333
X229: Electricity | Y229: acre | Z229: =+'Blackberry Budget Y3'!M$67 -> 36.6 | AA229: 1 | AB229: =+Z229*AA229 -> 36.6
X230: Marketing (10% of gross revenue) | Y230: acre | Z230: =+'Blackberry Budget Y3'!T$68 -> 1799.25 | AA230: 1 | AB230: =+Z230*AA230 -> 1799.25
X231: Interest on OP. CAP. | Y231: acre | Z231: =+'Blackberry Budget Y3'!T$62 -> 45.25842655 | AA231: 1 | AB231: =+Z231*AA231 -> 45.25842655
X232: Total Direct Expenses | AB232: =+SUM(AB204:AB231) -> 4247.58641 | AC232: =+SUM(AC204:AC231) -> 0
X234: Fixed Expenses
X235: Implements/Refrigerator | Y235: acre | Z235: =+'Blackberry Budget Y3'!N$61+'Blackberry Budget Y3'!N$67-('Blackberry Budget Y3'!N$18+'Blackberry Budget Y3'!N$23+'Blackberry Budget Y3'!N$33+'Blackberry Budget Y3'!N$42+'Blackberry Budget Y3'!N$54+'Blackberry Budget Y3'!N$57+'Blackberry Budget Y3'!N$60) -> 1143.47 | AA235: 1 | AB235: =+Z235*AA235 -> 1143.47
X236: Tractors | Y236: acre | Z236: =+'Blackberry Budget Y3'!L$61 -> 20.6568 | AA236: 1 | AB236: =+Z236*AA236 -> 20.6568
X237: Irrigation set-up | Y237: acre | Z237: =+'Blackberry Budget Y3'!N$18+'Blackberry Budget Y3'!N$23+'Blackberry Budget Y3'!N$33+'Blackberry Budget Y3'!N$42+'Blackberry Budget Y3'!N$54+'Blackberry Budget Y3'!N$57+'Blackberry Budget Y3'!N$60 -> 189.7 | AA237: 1 | AB237: =+Z237*AA237 -> 189.7
X239: Total Fixed Expenses | AB239: =+SUM(AB235:AB238) -> 1353.8268 | AC239: =+SUM(AC235:AC238) -> 0
X241: Total Specified Expenses | AB241: =+SUM(AB232+AB239) -> 5601.41321 | AC241: =+SUM(AC232+AC239) -> 0

Sheet Blackberry Budget Y4
B3: Blackberry Enterprise Budget Year 4 | X3: Summary Budget Year 3
B4: Operation / Operating Input | C4: Size/ Unit | D4: Power Unit Size | E4: # | F4: Perf Rate | G4: Times Over | H4: Month | I4: Power unit cost | M4: Equipment Cost | O4: Alloc Labor | Q4: Operating / Durable Input | T4: Total Cost | X4: Items | Y4: unit | Z4: Price | AA4: Quantity | AB4: Amount | AC4: Your Farm
I5: R&M | J5: Fuel | K5: Direct | L5: Fixed | M5: Direct | N5: Fixed | O5: Hours | P5: Cost | Q5: Amount | R5: Price | S5: Cost
X6: Direct expenses
B7: Mow between Rows | E7: =+IF(D7="MFWD 50hp", Equipment!$U$5, IF('Blackberry Budget Y4'!D7="MFWD 50hp", Equipment!$U$6, IF(D7="4*4", Equipment!$U$7, " "))) ->  | H7: Mar | X7: Fertilizer
B8: Rotary cutter | C8: 6 ft | D8: MFWD 50hp | E8: 4 | F8: =+Equipment!$I$25 -> 0.572 | G8: 0.5 | I8: =+$G$8*Equipment!$M$25 -> 0.24596 | J8: =+G8*Equipment!$K$25 -> 2.1168576 | K8: =+SUM(I8:J8) -> 2.3628176 | L8: =+G8*Equipment!$P$25 -> 1.6302 | M8: =+G8*Equipment!$L$25 -> 0.215 | N8: =+G8*Equipment!$O$25 -> 0.63 | O8: =+F8*G8 -> 0.286 | P8: =+O8*Labor_Fuel_Interest!$C$10 -> 4.98212 | T8: =+S8+P8+N8+M8+L8+K8 -> 9.8201376 | U8: =+(K8+M8+P8+S8) -> 7.5599376 | X8: Urea | Y8: lb. | Z8: =+R$13 -> 0.3922666667 | AA8: =+Q$13+Q$49 -> 130 | AB8: =+Z8*AA8 -> 50.99466667
B9: Mow between Rows | E9: =+IF(D9="MFWD 50hp", Equipment!$U$5, IF('Blackberry Budget Y4'!D9="MFWD 50hp", Equipment!$U$6, IF(D9="4*4", Equipment!$U$7, " "))) ->  | H9: Apr | U9: =+(K9+M9+P9+S9) -> 0 | X9: Chemicals
B10: Rotary cutter | C10: 6 ft | D10: MFWD 50hp | E10: 4 | F10: =+Equipment!$I$25 -> 0.572 | G10: 0.5 | I10: =+$G$8*Equipment!$M$25 -> 0.24596 | J10: =+G10*Equipment!$K$25 -> 2.1168576 | K10: =+SUM(I10:J10) -> 2.3628176 | L10: =+G10*Equipment!$P$25 -> 1.6302 | M10: =+G10*Equipment!$L$25 -> 0.215 | N10: =+G10*Equipment!$O$25 -> 0.63 | O10: =+F10*G10 -> 0.286 | P10: =+O10*Labor_Fuel_Interest!$C$10 -> 4.98212 | T10: =+S10+P10+N10+M10+L10+K10 -> 9.8201376 | U10: =+(K10+M10+P10+S10) -> 7.5599376 | X10: Pristine | Y10: oz | Z10: =+R$16 -> 0.809375 | AA10: =+Q$16 -> 21 | AB10: =+Z10*AA10 -> 16.996875
B11: Apply fertilizer | H11: Apr | U11: 0 | X11: Captane | Y11: lb. | Z11: =+R$17 -> 6.736 | AA11: =+Q$17+Q$27+Q$37+Q$46 -> 10 | AB11: 67.36
B12: Side dresser | C12: 1R 3ft | D12: MFWD 50hp | E12: 4 | F12: =+Equipment!$I$27 -> 0.846 | G12: 0.5 | I12: =+G12*Equipment!$M$27 -> 0.36378 | J12: =+G12*Equipment!$K$27 -> 3.1308768 | K12: =SUM(I12:J12) -> 3.4946568 | L12: =+G12*Equipment!$P$27 -> 2.4111 | M12: =+G12*Equipment!$L$27 -> 1.055 | N12: =+G12*Equipment!$O$27 -> 4.505 | O12: =+F12*G12 -> 0.423 | P12: =+Labor_Fuel_Interest!$C$10*O12 -> 7.36866 | T12: =+S12+P12+N12+M12+L12+K12 -> 18.8344168 | U12: 11.9183168 | X12: Quilt Xcel | Y12: fl oz | Z12: =+R$26 -> 1.245260417 | AA12: =+Q$26+Q$45 -> 35 | AB12: 43.58411458
B13: Urea | C13: lb. | Q13: 65 | R13: =+'Chemical & Fertilizer Costs'!$F$25 -> 0.3922666667 | S13: =+R13*Q13 -> 25.49733333 | T13: =+S13+P13+N13+M13+L13+K13 -> 25.49733333 | U13: 25.49733333 | X13: Luna Tranquility | Y13: fl oz | Z13: =+R$36 -> 3.24984375 | AA13: =+Q$36 -> 20 | AB13: 64.996875
B14: Disease management | U14: 0 | X14: Operator labor
B15: Sprayer (Air Blast) | D15: MFWD 50hp | E15: 4 | F15: =+Equipment!$I$35 -> 0.245 | G15: 0.5 | H15: Apr | I15: =+IF('General Budget Assumptions'!$C$3="None",0,G$15*Equipment!$M$35) -> 0.10535 | J15: =+IF('General Budget Assumptions'!$C$3="None",0,G$15*Equipment!$K$35) -> 0.906696 | K15: =IF('General Budget Assumptions'!$C$3="None",0,SUM(I15:J15)) -> 1.012046 | L15: =+IF('General Budget Assumptions'!$C$3="None",0,G$15*Equipment!$P$35) -> 0.69825 | M15: =+IF('General Budget Assumptions'!$C$3="None",0,G$15*Equipment!$L$35) -> 5.035 | N15: =+IF('General Budget Assumptions'!$C$3="None",0,G$15*Equipment!$O$35) -> 7.355 | O15: =+IF('General Budget Assumptions'!$C$3="None",0,F15*G15) -> 0.1225 | P15: =+IF('General Budget Assumptions'!$C$3="None",0,O15*Labor_Fuel_Interest!$C$10) -> 2.13395 | T15: =+IF('General Budget Assumptions'!C$3="Conventional Fungicide Program",K15+L15+M15+N15+P15+S15,0) -> 16.234246 | U15: =+(K15+M15+P15+S15) -> 8.180996 | X15: Tractors | Y15: hour | Z15: =+Labor_Fuel_Interest!$C$10 -> 17.42 | AA15: =+O$8+O$10+O$12+O$15+O$22+O$25+O$31+O$35+O$41+O$44+O$53+O$56+O$59+O$48 -> 3.624 | AB15: =+Z15*AA15 -> 63.13008
B16: Pristine | C16: oz | Q16: =+IF('General Budget Assumptions'!C$3="Conventional Fungicide Program",'Chemical & Fertilizer Costs'!F$41,0) -> 21 | R16: =+'Chemical & Fertilizer Costs'!H$10 -> 0.809375 | S16: =+R16*Q16 -> 16.996875 | T16: =+S16+P16+N16+M16+L16+K16 -> 16.996875 | U16: 16.996875 | X16: Harvest labor
B17: Captan | C17: lb. | Q17: =+IF('General Budget Assumptions'!C$3="Conventional Fungicide Program",'Chemical & Fertilizer Costs'!F$34,0) -> 2.5 | R17: =+'Chemical & Fertilizer Costs'!H$9 -> 6.736 | S17: =R17*Q17 -> 16.84 | T17: =+S17+P17+N17+M17+L17+K17 -> 16.84 | U17: 16.84 | X17: Special labor | Y17: hour | Z17: =+Labor_Fuel_Interest!$C$11 -> 13.89 | AA17: =+O$65 -> 82.5 | AB17: =+Z17*AA17 -> 1145.925
B18: Irrigation | H18: Apr | M18: 35.4 | N18: 27.1 | O18: 0.05 | P18: =+O18*Labor_Fuel_Interest!$C$10 -> 0.871 | T18: =+S18+P18+N18+M18+L18+K18 -> 63.371 | U18: 36.271 | X18: Hand labor
B19: Hoeing | G19: 1 | H19: May | U19: 0 | X19: Special labor | Y19: hour | Z19: =+Labor_Fuel_Interest!$C$11 -> 13.89 | AA19: =+O$20+O$29+O$39 -> 33 | AB19: =+Z19*AA19 -> 458.37
B20: hand labor | C20: hour | O20: 10 | P20: =+O20*Labor_Fuel_Interest!$C$11 -> 138.9 | T20: =+S20+P20+N20+M20+L20+K20 -> 138.9 | U20: 138.9 | X20: Irrigation labor | AB20: =+Z20*AA20 -> 0
B21: Mow between Rows | E21: =+IF(D21="MFWD 50hp", Equipment!$U$5, IF('Blackberry Budget Y4'!D21="MFWD 50hp", Equipment!$U$6, IF(D21="4*4", Equipment!$U$7, " "))) ->  | H21: May | U21: 0 | X21: Special labor | Y21: hour | Z21: =+Labor_Fuel_Interest!$C$10 -> 17.42 | AA21: =+O$18+O$23+O$33+O$42+O$54+O$57+O$60 -> 0.35 | AB21: =+Z21*AA21 -> 6.097
B22: Rotary cutter | C22: 6 ft | D22: MFWD 50hp | E22: 4 | F22: =+Equipment!$I$25 -> 0.572 | G22: 0.5 | I22: =+$G$8*Equipment!$M$25 -> 0.24596 | J22: =+G22*Equipment!$K$25 -> 2.1168576 | K22: =+SUM(I22:J22) -> 2.3628176 | L22: =+G22*Equipment!$P$25 -> 1.6302 | M22: =+G22*Equipment!$L$25 -> 0.215 | N22: =+G22*Equipment!$O$25 -> 0.63 | O22: =+F22*G22 -> 0.286 | P22: =+O22*Labor_Fuel_Interest!$C$10 -> 4.98212 | T22: =+S22+P22+N22+M22+L22+K22 -> 9.8201376 | U22: =+(K22+M22+P22+S22) -> 7.5599376 | X22: Pruning/Cane removal Labor
B23: Irrigation | H23: May | M23: 35.4 | N23: 27.1 | O23: 0.05 | P23: =+O23*Labor_Fuel_Interest!$C$10 -> 0.871 | T23: =+S23+P23+N23+M23+L23+K23 -> 63.371 | U23: 36.271 | X23: Special labor | Y23: hour | Z23: =+Labor_Fuel_Interest!$C$11 -> 13.89 | AA23: =+O$32+O$51 -> 27 | AB23: =+Z23*AA23 -> 375.03
B24: Disease management | U24: 0 | X24: Irrigation variable cost | Y24: acre | Z24: =+M$18+M$23+M$33+M$42+M$54+M$57+M$60 -> 247.8 | AA24: 1 | AB24: =+Z24*AA24 -> 247.8
B25: Sprayer (Air Blast) | D25: MFWD 50hp | E25: 4 | F25: =+Equipment!$I$35 -> 0.245 | G25: 0.5 | H25: May | I25: =+IF('General Budget Assumptions'!$C$3="None",0,G$25*Equipment!$M$35) -> 0.10535 | J25: =+IF('General Budget Assumptions'!$C$3="None",0,G$25*Equipment!$K$35) -> 0.906696 | K25: =IF('General Budget Assumptions'!$C$3="None",0,SUM(I25:J25)) -> 1.012046 | L25: =+IF('General Budget Assumptions'!$C$3="None",0,G$25*Equipment!$P$35) -> 0.69825 | M25: =+IF('General Budget Assumptions'!$C$3="None",0,G$25*Equipment!$L$35) -> 5.035 | N25: =+IF('General Budget Assumptions'!$C$3="None",0,G$25*Equipment!$O$35) -> 7.355 | O25: =+IF('General Budget Assumptions'!$C$3="None",0,F25*G25) -> 0.1225 | P25: =+IF('General Budget Assumptions'!$C$3="None",0,O25*Labor_Fuel_Interest!$C$10) -> 2.13395 | T25: =+IF('General Budget Assumptions'!C$3="Conventional Fungicide Program",K25+L25+M25+N25+P25+S25,0) -> 16.234246 | U25: =+(K25+M25+P25+S25) -> 8.180996 | X25: Diesel Fuel
B26: Quilt Xcel | C26: fl oz | Q26: =+IF('General Budget Assumptions'!C$3="Conventional Fungicide Program",'Chemical & Fertilizer Costs'!F$44,0) -> 17.5 | R26: ='Chemical & Fertilizer Costs'!H$7 -> 1.245260417 | S26: =+R26*Q26 -> 21.79205729 | T26: =+S26+P26+N26+M26+L26+K26 -> 21.79205729 | U26: =+(K26+M26+P26+S26) -> 21.79205729 | X26: Tractors | Y26: gal | Z26: =+Labor_Fuel_Interest!$E$4 -> 2.88 | AA26: =(J$8+J$10+J$12+J$15+J$22+J$25+J$31+J$35+J$41+J$44+J$53+J$56+J$59+J$48)/Z26 -> 9.31368 | AB26: =+Z26*AA26 -> 26.8233984
B27: Captan | C27: lb. | Q27: =+IF('General Budget Assumptions'!C$3="Conventional Fungicide Program",'Chemical & Fertilizer Costs'!F$34,0) -> 2.5 | R27: =+'Chemical & Fertilizer Costs'!H$9 -> 6.736 | S27: =R27*Q27 -> 16.84 | T27: =+S27+P27+N27+M27+L27+K27 -> 16.84 | U27: 16.84 | X27: Repair & Maintenance
B28: Hoeing | G28: 1 | H28: Jun | U28: 0 | X28: Implements | Y28: acre | Z28: =+M$61-(M$18+M$23+M$33+M$42+M$54+M$57+M$60) -> 23.97 | AA28: 1 | AB28: =+Z28*AA28 -> 23.97
B29: hand labor | C29: hour | O29: 10 | P29: =+O29*Labor_Fuel_Interest!$C$11 -> 138.9 | T29: =+S29+P29+N29+M29+L29+K29 -> 138.9 | U29: 138.9 | X29: Tractors | Y29: acre | Z29: =+I$61 -> 3.11664 | AA29: 1 | AB29: =+Z29*AA29 -> 3.11664
B30: Mow between Rows | E30: =+IF(D30="MFWD 50hp", Equipment!$U$5, IF('Blackberry Budget Y4'!D30="MFWD 50hp", Equipment!$U$6, IF(D30="4*4", Equipment!$U$7, " "))) ->  | H30: Jun | U30: 0 | X30: Post-harvest Expenses
B31: Rotary cutter | C31: 6 ft | D31: MFWD 50hp | E31: 4 | F31: =+Equipment!$I$25 -> 0.572 | G31: 0.5 | I31: =+$G$8*Equipment!$M$25 -> 0.24596 | J31: =+G31*Equipment!$K$25 -> 2.1168576 | K31: =+SUM(I31:J31) -> 2.3628176 | L31: =+G31*Equipment!$P$25 -> 1.6302 | M31: =+G31*Equipment!$L$25 -> 0.215 | N31: =+G31*Equipment!$O$25 -> 0.63 | O31: =+F31*G31 -> 0.286 | P31: =+O31*Labor_Fuel_Interest!$C$10 -> 4.98212 | T31: =+S31+P31+N31+M31+L31+K31 -> 9.8201376 | U31: =+(K31+M31+P31+S31) -> 7.5599376 | X31: Plastic clamshell containers (qt) | Y31: each | Z31: =+R$66 -> 0.1491388889 | AA31: =+Q$66 -> 2500 | AB31: =+Z31*AA31 -> 372.8472222
B32: Topping Blackberries/Pruning | C32: hour | G32: 1 | H32: Jun | O32: 7 | P32: =+O32*Labor_Fuel_Interest!$C$11 -> 97.23 | T32: =+S32+P32+N32+M32+L32+K32 -> 97.23 | U32: 97.23 | X32: Electricity | Y32: acre | Z32: =+M$67 -> 36.6 | AA32: 1 | AB32: =+Z32*AA32 -> 36.6
B33: Irrigation | H33: Jun | M33: 35.4 | N33: 27.1 | O33: 0.05 | P33: =+O33*Labor_Fuel_Interest!$C$10 -> 0.871 | T33: =+S33+P33+N33+M33+L33+K33 -> 63.371 | U33: 36.271 | X33: Marketing (10% of gross revenue) | Y33: acre | Z33: =+T$68 -> 2998.75 | AA33: 1 | AB33: =+Z33*AA33 -> 2998.75
B34: Disease management | U34: 0 | X34: Interest on OP. CAP. | Y34: acre | Z34: =+T$62 -> 45.25842655 | AA34: 1 | AB34: =+Z34*AA34 -> 45.25842655
B35: Sprayer (Air Blast) | D35: MFWD 50hp | E35: 4 | F35: =+Equipment!$I$35 -> 0.245 | G35: 0.5 | H35: Jun | I35: =+IF('General Budget Assumptions'!$C$3="None",0,G$35*Equipment!$M$35) -> 0.10535 | J35: =+IF('General Budget Assumptions'!$C$3="None",0,G$35*Equipment!$K$35) -> 0.906696 | K35: =IF('General Budget Assumptions'!$C$3="None",0,SUM(I35:J35)) -> 1.012046 | L35: =+IF('General Budget Assumptions'!$C$3="None",0,G$35*Equipment!$P$35) -> 0.69825 | M35: =+IF('General Budget Assumptions'!$C$3="None",0,G$35*Equipment!$L$35) -> 5.035 | N35: =+IF('General Budget Assumptions'!$C$3="None",0,G$35*Equipment!$O$35) -> 7.355 | O35: =+IF('General Budget Assumptions'!$C$3="None",0,F35*G35) -> 0.1225 | P35: =+IF('General Budget Assumptions'!$C$3="None",0,O35*Labor_Fuel_Interest!$C$10) -> 2.13395 | T35: =+IF('General Budget Assumptions'!C$3="Conventional Fungicide Program",K35+L35+M35+N35+P35+S35,0) -> 16.234246 | U35: =+(K35+M35+P35+S35) -> 8.180996 | X35: Total Direct Expenses | AB35: =+SUM(AB7:AB34) -> 6047.650298 | AC35: =+SUM(AC7:AC34) -> 0
B36: Luna Tranquility | C36: fl oz | Q36: =+IF('General Budget Assumptions'!C$3="Conventional Fungicide Program",'Chemical & Fertilizer Costs'!F$37,0) -> 20 | R36: ='Chemical & Fertilizer Costs'!H$8 -> 3.24984375 | S36: =+R36*Q36 -> 64.996875 | T36: =+S36+P36+N36+M36+L36+K36 -> 64.996875 | U36: =+(K36+M36+P36+S36) -> 64.996875
B37: Captan | C37: lb. | Q37: =+IF('General Budget Assumptions'!C$3="Conventional Fungicide Program",'Chemical & Fertilizer Costs'!F$34,0) -> 2.5 | R37: =+'Chemical & Fertilizer Costs'!H$9 -> 6.736 | S37: =R37*Q37 -> 16.84 | T37: =+S37+P37+N37+M37+L37+K37 -> 16.84 | U37: 16.84 | X37: Fixed Expenses
B38: Hoeing | G38: 1 | H38: Jul | U38: 0 | X38: Implements/Refrigerator | Y38: acre | Z38: =+N$61+N$67-(N$18+N$23+N$33+N$42+N$54+N$57+N$60) -> 1143.47 | AA38: 1 | AB38: =+Z38*AA38 -> 1143.47
B39: hand labor | C39: hour | O39: 13 | P39: =+O39*Labor_Fuel_Interest!$C$11 -> 180.57 | T39: =+S39+P39+N39+M39+L39+K39 -> 180.57 | U39: 180.57 | X39: Tractors | Y39: acre | Z39: =+L$61 -> 20.6568 | AA39: 1 | AB39: =+Z39*AA39 -> 20.6568
B40: Mow between Rows | E40: =+IF(D40="MFWD 50hp", Equipment!$U$5, IF('Blackberry Budget Y4'!D40="MFWD 50hp", Equipment!$U$6, IF(D40="4*4", Equipment!$U$7, " "))) ->  | H40: Jul | U40: 0 | X40: Irrigation set-up | Y40: acre | Z40: =+N$18+N$23+N$33+N$42+N$54+N$57+N$60 -> 189.7 | AA40: 1 | AB40: =+Z40*AA40 -> 189.7
B41: Rotary cutter | C41: 6 ft | D41: MFWD 50hp | E41: 4 | F41: =+Equipment!$I$25 -> 0.572 | G41: 0.5 | I41: =+$G$8*Equipment!$M$25 -> 0.24596 | J41: =+G41*Equipment!$K$25 -> 2.1168576 | K41: =+SUM(I41:J41) -> 2.3628176 | L41: =+G41*Equipment!$P$25 -> 1.6302 | M41: =+G41*Equipment!$L$25 -> 0.215 | N41: =+G41*Equipment!$O$25 -> 0.63 | O41: =+F41*G41 -> 0.286 | P41: =+O41*Labor_Fuel_Interest!$C$10 -> 4.98212 | T41: =+S41+P41+N41+M41+L41+K41 -> 9.8201376 | U41: =+(K41+M41+P41+S41) -> 7.5599376
B42: Irrigation | H42: Jul | M42: 35.4 | N42: 27.1 | O42: 0.05 | P42: =+O42*Labor_Fuel_Interest!$C$10 -> 0.871 | T42: =+S42+P42+N42+M42+L42+K42 -> 63.371 | U42: 36.271 | X42: Total Fixed Expenses | AB42: =+SUM(AB38:AB41) -> 1353.8268 | AC42: =+SUM(AC38:AC41) -> 0
B43: Disease management | U43: 0
B44: Sprayer (Air Blast) | D44: MFWD 50hp | E44: 4 | F44: =+Equipment!$I$35 -> 0.245 | G44: 0.5 | H44: Jul | I44: =+IF('General Budget Assumptions'!$C$3="None",0,G$44*Equipment!$M$35) -> 0.10535 | J44: =+IF('General Budget Assumptions'!$C$3="None",0,G$44*Equipment!$K$35) -> 0.906696 | K44: =IF('General Budget Assumptions'!$C$3="None",0,SUM(I44:J44)) -> 1.012046 | L44: =+IF('General Budget Assumptions'!$C$3="None",0,G$44*Equipment!$P$35) -> 0.69825 | M44: =+IF('General Budget Assumptions'!$C$3="None",0,G$44*Equipment!$L$35) -> 5.035 | N44: =+IF('General Budget Assumptions'!$C$3="None",0,G$44*Equipment!$O$35) -> 7.355 | O44: =+IF('General Budget Assumptions'!$C$3="None",0,F44*G44) -> 0.1225 | P44: =+IF('General Budget Assumptions'!$C$3="None",0,O44*Labor_Fuel_Interest!$C$10) -> 2.13395 | T44: =+IF('General Budget Assumptions'!C$3="Conventional Fungicide Program",K44+L44+M44+N44+P44+S44,0) -> 16.234246 | U44: =+(K44+M44+P44+S44) -> 8.180996 | X44: Total Specified Expenses | AB44: =+SUM(AB35+AB42) -> 7401.477098 | AC44: =+SUM(AC35+AC42) -> 0
B45: Quilt Xcel | C45: fl oz | Q45: =+IF('General Budget Assumptions'!C$3="Conventional Fungicide Program",'Chemical & Fertilizer Costs'!F$44,0) -> 17.5 | R45: ='Chemical & Fertilizer Costs'!H$7 -> 1.245260417 | S45: =+R45*Q45 -> 21.79205729 | T45: =+S45+P45+N45+M45+L45+K45 -> 21.79205729 | U45: =+(K45+M45+P45+S45) -> 21.79205729
B46: Captan | C46: lb. | Q46: =+IF('General Budget Assumptions'!C$3="Conventional Fungicide Program",'Chemical & Fertilizer Costs'!F$34,0) -> 2.5 | R46: =+'Chemical & Fertilizer Costs'!H$9 -> 6.736 | S46: =R46*Q46 -> 16.84 | T46: =+S46+P46+N46+M46+L46+K46 -> 16.84 | U46: 16.84
B47: Apply fertilizer | H47: Jul | U47: 0
B48: Side dresser | C48: 1R 3ft | D48: MFWD 50hp | E48: 4 | F48: =+Equipment!$I$27 -> 0.846 | G48: 0.5 | I48: =+G48*Equipment!$M$27 -> 0.36378 | J48: =+G48*Equipment!$K$27 -> 3.1308768 | K48: =SUM(I48:J48) -> 3.4946568 | L48: =+G48*Equipment!$P$27 -> 2.4111 | M48: =+G48*Equipment!$L$27 -> 1.055 | N48: =+G48*Equipment!$O$27 -> 4.505 | O48: =+F48*G48 -> 0.423 | P48: =+Labor_Fuel_Interest!$C$10*O48 -> 7.36866 | T48: =+S48+P48+N48+M48+L48+K48 -> 18.8344168 | U48: 11.9183168
B49: Urea | C49: lb. | Q49: 65 | R49: =+'Chemical & Fertilizer Costs'!$F$25 -> 0.3922666667 | S49: =+R49*Q49 -> 25.49733333 | T49: =+S49+P49+N49+M49+L49+K49 -> 25.49733333 | U49: 25.49733333
B50: Cane Removal
B51: hand labor | O51: 20 | P51: =+O51*Labor_Fuel_Interest!$C$11 -> 277.8 | T51: =+S51+P51+N51+M51+L51+K51 -> 277.8 | U51: 277.8
B52: Mow between Rows | E52: =+IF(D52="MFWD 50hp", Equipment!$U$5, IF('Blackberry Budget Y4'!D52="MFWD 50hp", Equipment!$U$6, IF(D52="4*4", Equipment!$U$7, " "))) ->  | H52: Aug | U52: 0
B53: Rotary cutter | C53: 6 ft | D53: MFWD 50hp | E53: 4 | F53: =+Equipment!$I$25 -> 0.572 | G53: 0.5 | I53: =+$G$8*Equipment!$M$25 -> 0.24596 | J53: =+G53*Equipment!$K$25 -> 2.1168576 | K53: =+SUM(I53:J53) -> 2.3628176 | L53: =+G53*Equipment!$P$25 -> 1.6302 | M53: =+G53*Equipment!$L$25 -> 0.215 | N53: =+G53*Equipment!$O$25 -> 0.63 | O53: =+F53*G53 -> 0.286 | P53: =+O53*Labor_Fuel_Interest!$C$10 -> 4.98212 | T53: =+S53+P53+N53+M53+L53+K53 -> 9.8201376 | U53: =+(K53+M53+P53+S53) -> 7.5599376
B54: Irrigation | H54: Aug | M54: 35.4 | N54: 27.1 | O54: 0.05 | P54: =+O54*Labor_Fuel_Interest!$C$10 -> 0.871 | T54: =+S54+P54+N54+M54+L54+K54 -> 63.371 | U54: 36.271
B55: Mow between Rows | E55: =+IF(D55="MFWD 50hp", Equipment!$U$5, IF('Blackberry Budget Y4'!D55="MFWD 50hp", Equipment!$U$6, IF(D55="4*4", Equipment!$U$7, " "))) ->  | H55: Sep | U55: 0
B56: Rotary cutter | C56: 6 ft | D56: MFWD 50hp | E56: 4 | F56: =+Equipment!$I$25 -> 0.572 | G56: 0.5 | I56: =+$G$8*Equipment!$M$25 -> 0.24596 | J56: =+G56*Equipment!$K$25 -> 2.1168576 | K56: =+SUM(I56:J56) -> 2.3628176 | L56: =+G56*Equipment!$P$25 -> 1.6302 | M56: =+G56*Equipment!$L$25 -> 0.215 | N56: =+G56*Equipment!$O$25 -> 0.63 | O56: =+F56*G56 -> 0.286 | P56: =+O56*Labor_Fuel_Interest!$C$10 -> 4.98212 | T56: =+S56+P56+N56+M56+L56+K56 -> 9.8201376 | U56: =+(K56+M56+P56+S56) -> 7.5599376
B57: Irrigation | H57: Sep | M57: 35.4 | N57: 27.1 | O57: 0.05 | P57: =+O57*Labor_Fuel_Interest!$C$10 -> 0.871 | T57: =+S57+P57+N57+M57+L57+K57 -> 63.371 | U57: =+(K57+M57+P57+S57) -> 36.271
B58: Mow between Rows | E58: =+IF(D58="MFWD 50hp", Equipment!$U$5, IF('Blackberry Budget Y4'!D58="MFWD 50hp", Equipment!$U$6, IF(D58="4*4", Equipment!$U$7, " "))) ->  | H58: Oct | U58: 0
B59: Rotary cutter | C59: 6 ft | D59: MFWD 50hp | E59: 4 | F59: =+Equipment!$I$25 -> 0.572 | G59: 0.5 | I59: =+$G$8*Equipment!$M$25 -> 0.24596 | J59: =+G59*Equipment!$K$25 -> 2.1168576 | K59: =+SUM(I59:J59) -> 2.3628176 | L59: =+G59*Equipment!$P$25 -> 1.6302 | M59: =+G59*Equipment!$L$25 -> 0.215 | N59: =+G59*Equipment!$O$25 -> 0.63 | O59: =+F59*G59 -> 0.286 | P59: =+O59*Labor_Fuel_Interest!$C$10 -> 4.98212 | T59: =+S59+P59+N59+M59+L59+K59 -> 9.8201376 | U59: =+(K59+M59+P59+S59) -> 7.5599376
B60: Irrigation | H60: Oct | M60: 35.4 | N60: 27.1 | O60: 0.05 | P60: =+O60*Labor_Fuel_Interest!$C$10 -> 0.871 | T60: =+S60+P60+N60+M60+L60+K60 -> 63.371 | U60: =+(K60+M60+P60+S60) -> 36.271
B61: Pre-harvest costs | I61: =+SUM(I7:I60) -> 3.11664 | J61: 26.8233984 | K61: 29.9400384 | L61: 20.6568 | M61: 271.77 | N61: 233.17 | O61: 63.974 | P61: 902.62708 | S61: =+SUM(S7:S60) -> 243.9325313 | T61: =+SUM(T7:T60) -> 1702.09645 | U61: =SUM(U7:U60) -> 1448.26965
B62: Interest on Operating Capital | T62: =+(U61*Labor_Fuel_Interest!$C$15)/2 -> 45.25842655
B63: Pre-harvest cost + Interest | T63: =+SUM(T61:T62) -> 1747.354876
B64: HARVESTING
B65: Picking | O65: =+IF('General Budget Assumptions'!C$4="100% Ready_Picked_Retail",165, IF('General Budget Assumptions'!C$4="50%PYO 50%Ready_Picked",(165*0.5),(165*0.25))) -> 82.5 | P65: =+O65*Labor_Fuel_Interest!C$11 -> 1145.925 | T65: =+S65+P65+N65+M65+L65+K65 -> 1145.925
B66: Plastic clamshell containers (qt) | Q66: =+IF('General Budget Assumptions'!C$4="100% Ready_Picked_Retail",Yield!B$6, IF('General Budget Assumptions'!C$4="50%PYO 50%Ready_Picked",(Yield!B$6*0.5),(Yield!B$6*0.25))) -> 2500 | R66: =+Marketing!B6 -> 0.1491388889 | S66: =+Q66*R66 -> 372.8472222 | T66: =+S66+P66+N66+M66+L66+K66 -> 372.8472222
B67: Refrigeration | M67: =30*1.22 -> 36.6 | N67: 1100 | T67: =+S67+P67+N67+M67+L67+K67 -> 1136.6
B68: Marketing | Q68: 1 | R68: =IF('General Budget Assumptions'!C$4="100% Ready_Picked_Retail",(Yield!B$6*'Blackberry Prices'!C$4),IF('General Budget Assumptions'!C$4="50%PYO 50%Ready_Picked", ((0.5*Yield!B$6*'Blackberry Prices'!C$4)+(0.5*Yield!B$6*'Blackberry Prices'!B$4)), ((0.75*Yield!B$6*'Blackberry Prices'!B$4)+(0.25*Yield!B$6*'Blackberry Prices'!C$4))))*0.1 -> 2998.75 | S68: =+Q68*R68 -> 2998.75 | T68: =+S68+P68+N68+M68+L68+K68 -> 2998.75
B69: Harvest totals | T69: =SUM(T65:T68) -> 5654.122222
B70: Totals | T70: =+T$63+T$69 -> 7401.477098
B200: Blackberry Enterprise Budget Year 4
B201: Operation / Operating Input | C201: Size/ Unit | D201: Power Unit Size | E201: # | F201: Perf Rate | G201: Times Over | H201: Month | I201: Power unit cost | M201: Equipment Cost | O201: Alloc Labor | Q201: Operating / Durable Input | T201: Total Cost
I202: R&M | J202: Fuel | K202: Direct | L202: Fixed | M202: Direct | N202: Fixed | O202: Hours | P202: Cost | Q202: Amount | R202: Price | S202: Cost
B204: Mow between Rows | E204: =+IF(D204="MFWD 50hp", Equipment!$U$5, IF('Blackberry Budget Y4'!D204="MFWD 50hp", Equipment!$U$6, IF(D204="4*4", Equipment!$U$7, " "))) ->  | H204: Mar
B205: Rotary cutter | C205: 6 ft | D205: MFWD 50hp | E205: 4 | F205: =+Equipment!$I$25 -> 0.572 | G205: 0.5 | I205: =+$G$8*Equipment!$M$25 -> 0.24596 | J205: =+G205*Equipment!$K$25 -> 2.1168576 | K205: =+SUM(I205:J205) -> 2.3628176 | L205: =+G205*Equipment!$P$25 -> 1.6302 | M205: =+G205*Equipment!$L$25 -> 0.215 | N205: =+G205*Equipment!$O$25 -> 0.63 | O205: =+F205*G205 -> 0.286 | P205: =+O205*Labor_Fuel_Interest!$C$10 -> 4.98212 | T205: =+S205+P205+N205+M205+L205+K205 -> 9.8201376 | U205: =+(K205+M205+P205+S205) -> 7.5599376
B206: Mow between Rows | E206: =+IF(D206="MFWD 50hp", Equipment!$U$5, IF('Blackberry Budget Y4'!D206="MFWD 50hp", Equipment!$U$6, IF(D206="4*4", Equipment!$U$7, " "))) ->  | H206: Apr | U206: =+(K206+M206+P206+S206) -> 0
B207: Rotary cutter | C207: 6 ft | D207: MFWD 50hp | E207: 4 | F207: =+Equipment!$I$25 -> 0.572 | G207: 0.5 | I207: =+$G$8*Equipment!$M$25 -> 0.24596 | J207: =+G207*Equipment!$K$25 -> 2.1168576 | K207: =+SUM(I207:J207) -> 2.3628176 | L207: =+G207*Equipment!$P$25 -> 1.6302 | M207: =+G207*Equipment!$L$25 -> 0.215 | N207: =+G207*Equipment!$O$25 -> 0.63 | O207: =+F207*G207 -> 0.286 | P207: =+O207*Labor_Fuel_Interest!$C$10 -> 4.98212 | T207: =+S207+P207+N207+M207+L207+K207 -> 9.8201376 | U207: =+(K207+M207+P207+S207) -> 7.5599376
B208: Apply fertilizer | H208: Apr | U208: 0
B209: Side dresser | C209: 1R 3ft | D209: MFWD 50hp | E209: 4 | F209: =+Equipment!$I$27 -> 0.846 | G209: 0.5 | I209: =+G209*Equipment!$M$27 -> 0.36378 | J209: =+G209*Equipment!$K$27 -> 3.1308768 | K209: =SUM(I209:J209) -> 3.4946568 | L209: =+G209*Equipment!$P$27 -> 2.4111 | M209: =+G209*Equipment!$L$27 -> 1.055 | N209: =+G209*Equipment!$O$27 -> 4.505 | O209: =+F209*G209 -> 0.423 | P209: =+Labor_Fuel_Interest!$C$10*O209 -> 7.36866 | T209: =+S209+P209+N209+M209+L209+K209 -> 18.8344168 | U209: 11.9183168
B210: Urea | C210: lb. | Q210: 65 | R210: =+'Chemical & Fertilizer Costs'!$F$25 -> 0.3922666667 | S210: =+R210*Q210 -> 25.49733333 | T210: =+S210+P210+N210+M210+L210+K210 -> 25.49733333 | U210: 25.49733333
B211: Disease management | U211: 0
B212: Sprayer (Air Blast) | D212: MFWD 50hp | E212: 4 | F212: =+Equipment!$I$35 -> 0.245 | G212: 0.5 | H212: Apr | I212: =+IF('General Budget Assumptions'!$C$3="None",0,G$15*Equipment!$M$35) -> 0.10535 | J212: =+IF('General Budget Assumptions'!$C$3="None",0,G$15*Equipment!$K$35) -> 0.906696 | K212: =IF('General Budget Assumptions'!$C$3="None",0,SUM(I212:J212)) -> 1.012046 | L212: =+IF('General Budget Assumptions'!$C$3="None",0,G$15*Equipment!$P$35) -> 0.69825 | M212: =+IF('General Budget Assumptions'!$C$3="None",0,G$15*Equipment!$L$35) -> 5.035 | N212: =+IF('General Budget Assumptions'!$C$3="None",0,G$15*Equipment!$O$35) -> 7.355 | O212: =+IF('General Budget Assumptions'!$C$3="None",0,F212*G212) -> 0.1225 | P212: =+IF('General Budget Assumptions'!$C$3="None",0,O212*Labor_Fuel_Interest!$C$10) -> 2.13395 | T212: =+IF('General Budget Assumptions'!C$3="Conventional Fungicide Program",K212+L212+M212+N212+P212+S212,0) -> 16.234246 | U212: =+(K212+M212+P212+S212) -> 8.180996
B213: Pristine | C213: oz | Q213: =+IF('General Budget Assumptions'!C$3="Conventional Fungicide Program",'Chemical & Fertilizer Costs'!F$41,0) -> 21 | R213: =+'Chemical & Fertilizer Costs'!H$10 -> 0.809375 | S213: =+R213*Q213 -> 16.996875 | T213: =+S213+P213+N213+M213+L213+K213 -> 16.996875 | U213: 16.996875
B214: Captan | C214: lb. | Q214: =+IF('General Budget Assumptions'!C$3="Conventional Fungicide Program",'Chemical & Fertilizer Costs'!F$34,0) -> 2.5 | R214: =+'Chemical & Fertilizer Costs'!H$9 -> 6.736 | S214: =R214*Q214 -> 16.84 | T214: =+S214+P214+N214+M214+L214+K214 -> 16.84 | U214: 16.84
B215: Irrigation | H215: Apr | M215: 35.4 | N215: 27.1 | O215: 0.05 | P215: =+O215*Labor_Fuel_Interest!$C$10 -> 0.871 | T215: =+S215+P215+N215+M215+L215+K215 -> 63.371 | U215: 36.271
B216: Hoeing | G216: 1 | H216: May | U216: 0
B217: hand labor | C217: hour | O217: 10 | P217: =+O217*Labor_Fuel_Interest!$C$11 -> 138.9 | T217: =+S217+P217+N217+M217+L217+K217 -> 138.9 | U217: 138.9
B218: Mow between Rows | E218: =+IF(D218="MFWD 50hp", Equipment!$U$5, IF('Blackberry Budget Y4'!D218="MFWD 50hp", Equipment!$U$6, IF(D218="4*4", Equipment!$U$7, " "))) ->  | H218: May | U218: 0
B219: Rotary cutter | C219: 6 ft | D219: MFWD 50hp | E219: 4 | F219: =+Equipment!$I$25 -> 0.572 | G219: 0.5 | I219: =+$G$8*Equipment!$M$25 -> 0.24596 | J219: =+G219*Equipment!$K$25 -> 2.1168576 | K219: =+SUM(I219:J219) -> 2.3628176 | L219: =+G219*Equipment!$P$25 -> 1.6302 | M219: =+G219*Equipment!$L$25 -> 0.215 | N219: =+G219*Equipment!$O$25 -> 0.63 | O219: =+F219*G219 -> 0.286 | P219: =+O219*Labor_Fuel_Interest!$C$10 -> 4.98212 | T219: =+S219+P219+N219+M219+L219+K219 -> 9.8201376 | U219: =+(K219+M219+P219+S219) -> 7.5599376
B220: Irrigation | H220: May | M220: 35.4 | N220: 27.1 | O220: 0.05 | P220: =+O220*Labor_Fuel_Interest!$C$10 -> 0.871 | T220: =+S220+P220+N220+M220+L220+K220 -> 63.371 | U220: 36.271
B221: Disease management | U221: 0
B222: Sprayer (Air Blast) | D222: MFWD 50hp | E222: 4 | F222: =+Equipment!$I$35 -> 0.245 | G222: 0.5 | H222: May | I222: =+IF('General Budget Assumptions'!$C$3="None",0,G$25*Equipment!$M$35) -> 0.10535 | J222: =+IF('General Budget Assumptions'!$C$3="None",0,G$25*Equipment!$K$35) -> 0.906696 | K222: =IF('General Budget Assumptions'!$C$3="None",0,SUM(I222:J222)) -> 1.012046 | L222: =+IF('General Budget Assumptions'!$C$3="None",0,G$25*Equipment!$P$35) -> 0.69825 | M222: =+IF('General Budget Assumptions'!$C$3="None",0,G$25*Equipment!$L$35) -> 5.035 | N222: =+IF('General Budget Assumptions'!$C$3="None",0,G$25*Equipment!$O$35) -> 7.355 | O222: =+IF('General Budget Assumptions'!$C$3="None",0,F222*G222) -> 0.1225 | P222: =+IF('General Budget Assumptions'!$C$3="None",0,O222*Labor_Fuel_Interest!$C$10) -> 2.13395 | T222: =+IF('General Budget Assumptions'!C$3="Conventional Fungicide Program",K222+L222+M222+N222+P222+S222,0) -> 16.234246 | U222: =+(K222+M222+P222+S222) -> 8.180996
B223: Quilt Xcel | C223: fl oz | Q223: =+IF('General Budget Assumptions'!C$3="Conventional Fungicide Program",'Chemical & Fertilizer Costs'!F$44,0) -> 17.5 | R223: ='Chemical & Fertilizer Costs'!H$7 -> 1.245260417 | S223: =+R223*Q223 -> 21.79205729 | T223: =+S223+P223+N223+M223+L223+K223 -> 21.79205729 | U223: =+(K223+M223+P223+S223) -> 21.79205729
B224: Captan | C224: lb. | Q224: =+IF('General Budget Assumptions'!C$3="Conventional Fungicide Program",'Chemical & Fertilizer Costs'!F$34,0) -> 2.5 | R224: =+'Chemical & Fertilizer Costs'!H$9 -> 6.736 | S224: =R224*Q224 -> 16.84 | T224: =+S224+P224+N224+M224+L224+K224 -> 16.84 | U224: 16.84
B225: Hoeing | G225: 1 | H225: Jun | U225: 0
B226: hand labor | C226: hour | O226: 10 | P226: =+O226*Labor_Fuel_Interest!$C$11 -> 138.9 | T226: =+S226+P226+N226+M226+L226+K226 -> 138.9 | U226: 138.9
B227: Mow between Rows | E227: =+IF(D227="MFWD 50hp", Equipment!$U$5, IF('Blackberry Budget Y4'!D227="MFWD 50hp", Equipment!$U$6, IF(D227="4*4", Equipment!$U$7, " "))) ->  | H227: Jun | U227: 0
B228: Rotary cutter | C228: 6 ft | D228: MFWD 50hp | E228: 4 | F228: =+Equipment!$I$25 -> 0.572 | G228: 0.5 | I228: =+$G$8*Equipment!$M$25 -> 0.24596 | J228: =+G228*Equipment!$K$25 -> 2.1168576 | K228: =+SUM(I228:J228) -> 2.3628176 | L228: =+G228*Equipment!$P$25 -> 1.6302 | M228: =+G228*Equipment!$L$25 -> 0.215 | N228: =+G228*Equipment!$O$25 -> 0.63 | O228: =+F228*G228 -> 0.286 | P228: =+O228*Labor_Fuel_Interest!$C$10 -> 4.98212 | T228: =+S228+P228+N228+M228+L228+K228 -> 9.8201376 | U228: =+(K228+M228+P228+S228) -> 7.5599376
B229: Topping Blackberries/Pruning | C229: hour | G229: 1 | H229: Jun | O229: 7 | P229: =+O229*Labor_Fuel_Interest!$C$11 -> 97.23 | T229: =+S229+P229+N229+M229+L229+K229 -> 97.23 | U229: 97.23
B230: Irrigation | H230: Jun | M230: 35.4 | N230: 27.1 | O230: 0.05 | P230: =+O230*Labor_Fuel_Interest!$C$10 -> 0.871 | T230: =+S230+P230+N230+M230+L230+K230 -> 63.371 | U230: 36.271
B231: Disease management | U231: 0
B232: Sprayer (Air Blast) | D232: MFWD 50hp | E232: 4 | F232: =+Equipment!$I$35 -> 0.245 | G232: 0.5 | H232: Jun | I232: =+IF('General Budget Assumptions'!$C$3="None",0,G$35*Equipment!$M$35) -> 0.10535 | J232: =+IF('General Budget Assumptions'!$C$3="None",0,G$35*Equipment!$K$35) -> 0.906696 | K232: =IF('General Budget Assumptions'!$C$3="None",0,SUM(I232:J232)) -> 1.012046 | L232: =+IF('General Budget Assumptions'!$C$3="None",0,G$35*Equipment!$P$35) -> 0.69825 | M232: =+IF('General Budget Assumptions'!$C$3="None",0,G$35*Equipment!$L$35) -> 5.035 | N232: =+IF('General Budget Assumptions'!$C$3="None",0,G$35*Equipment!$O$35) -> 7.355 | O232: =+IF('General Budget Assumptions'!$C$3="None",0,F232*G232) -> 0.1225 | P232: =+IF('General Budget Assumptions'!$C$3="None",0,O232*Labor_Fuel_Interest!$C$10) -> 2.13395 | T232: =+IF('General Budget Assumptions'!C$3="Conventional Fungicide Program",K232+L232+M232+N232+P232+S232,0) -> 16.234246 | U232: =+(K232+M232+P232+S232) -> 8.180996
B233: Luna Tranquility | C233: fl oz | Q233: =+IF('General Budget Assumptions'!C$3="Conventional Fungicide Program",'Chemical & Fertilizer Costs'!F$37,0) -> 20 | R233: ='Chemical & Fertilizer Costs'!H$8 -> 3.24984375 | S233: =+R233*Q233 -> 64.996875 | T233: =+S233+P233+N233+M233+L233+K233 -> 64.996875 | U233: =+(K233+M233+P233+S233) -> 64.996875
B234: Captan | C234: lb. | Q234: =+IF('General Budget Assumptions'!C$3="Conventional Fungicide Program",'Chemical & Fertilizer Costs'!F$34,0) -> 2.5 | R234: =+'Chemical & Fertilizer Costs'!H$9 -> 6.736 | S234: =R234*Q234 -> 16.84 | T234: =+S234+P234+N234+M234+L234+K234 -> 16.84 | U234: 16.84
B235: Hoeing | G235: 1 | H235: Jul | U235: 0
B236: hand labor | C236: hour | O236: 13 | P236: =+O236*Labor_Fuel_Interest!$C$11 -> 180.57 | T236: =+S236+P236+N236+M236+L236+K236 -> 180.57 | U236: 180.57
B237: Mow between Rows | E237: =+IF(D237="MFWD 50hp", Equipment!$U$5, IF('Blackberry Budget Y4'!D237="MFWD 50hp", Equipment!$U$6, IF(D237="4*4", Equipment!$U$7, " "))) ->  | H237: Jul | U237: 0
B238: Rotary cutter | C238: 6 ft | D238: MFWD 50hp | E238: 4 | F238: =+Equipment!$I$25 -> 0.572 | G238: 0.5 | I238: =+$G$8*Equipment!$M$25 -> 0.24596 | J238: =+G238*Equipment!$K$25 -> 2.1168576 | K238: =+SUM(I238:J238) -> 2.3628176 | L238: =+G238*Equipment!$P$25 -> 1.6302 | M238: =+G238*Equipment!$L$25 -> 0.215 | N238: =+G238*Equipment!$O$25 -> 0.63 | O238: =+F238*G238 -> 0.286 | P238: =+O238*Labor_Fuel_Interest!$C$10 -> 4.98212 | T238: =+S238+P238+N238+M238+L238+K238 -> 9.8201376 | U238: =+(K238+M238+P238+S238) -> 7.5599376
B239: Irrigation | H239: Jul | M239: 35.4 | N239: 27.1 | O239: 0.05 | P239: =+O239*Labor_Fuel_Interest!$C$10 -> 0.871 | T239: =+S239+P239+N239+M239+L239+K239 -> 63.371 | U239: 36.271
B240: Disease management | U240: 0
B241: Sprayer (Air Blast) | D241: MFWD 50hp | E241: 4 | F241: =+Equipment!$I$35 -> 0.245 | G241: 0.5 | H241: Jul | I241: =+IF('General Budget Assumptions'!$C$3="None",0,G$44*Equipment!$M$35) -> 0.10535 | J241: =+IF('General Budget Assumptions'!$C$3="None",0,G$44*Equipment!$K$35) -> 0.906696 | K241: =IF('General Budget Assumptions'!$C$3="None",0,SUM(I241:J241)) -> 1.012046 | L241: =+IF('General Budget Assumptions'!$C$3="None",0,G$44*Equipment!$P$35) -> 0.69825 | M241: =+IF('General Budget Assumptions'!$C$3="None",0,G$44*Equipment!$L$35) -> 5.035 | N241: =+IF('General Budget Assumptions'!$C$3="None",0,G$44*Equipment!$O$35) -> 7.355 | O241: =+IF('General Budget Assumptions'!$C$3="None",0,F241*G241) -> 0.1225 | P241: =+IF('General Budget Assumptions'!$C$3="None",0,O241*Labor_Fuel_Interest!$C$10) -> 2.13395 | T241: =+IF('General Budget Assumptions'!C$3="Conventional Fungicide Program",K241+L241+M241+N241+P241+S241,0) -> 16.234246 | U241: =+(K241+M241+P241+S241) -> 8.180996
B242: Quilt Xcel | C242: fl oz | Q242: =+IF('General Budget Assumptions'!C$3="Conventional Fungicide Program",'Chemical & Fertilizer Costs'!F$44,0) -> 17.5 | R242: ='Chemical & Fertilizer Costs'!H$7 -> 1.245260417 | S242: =+R242*Q242 -> 21.79205729 | T242: =+S242+P242+N242+M242+L242+K242 -> 21.79205729 | U242: =+(K242+M242+P242+S242) -> 21.79205729
B243: Captan | C243: lb. | Q243: =+IF('General Budget Assumptions'!C$3="Conventional Fungicide Program",'Chemical & Fertilizer Costs'!F$34,0) -> 2.5 | R243: =+'Chemical & Fertilizer Costs'!H$9 -> 6.736 | S243: =R243*Q243 -> 16.84 | T243: =+S243+P243+N243+M243+L243+K243 -> 16.84 | U243: 16.84
B244: Apply fertilizer | H244: Jul | U244: 0
B245: Side dresser | C245: 1R 3ft | D245: MFWD 50hp | E245: 4 | F245: =+Equipment!$I$27 -> 0.846 | G245: 0.5 | I245: =+G245*Equipment!$M$27 -> 0.36378 | J245: =+G245*Equipment!$K$27 -> 3.1308768 | K245: =SUM(I245:J245) -> 3.4946568 | L245: =+G245*Equipment!$P$27 -> 2.4111 | M245: =+G245*Equipment!$L$27 -> 1.055 | N245: =+G245*Equipment!$O$27 -> 4.505 | O245: =+F245*G245 -> 0.423 | P245: =+Labor_Fuel_Interest!$C$10*O245 -> 7.36866 | T245: =+S245+P245+N245+M245+L245+K245 -> 18.8344168 | U245: 11.9183168
B246: Urea | C246: lb. | Q246: 65 | R246: =+'Chemical & Fertilizer Costs'!$F$25 -> 0.3922666667 | S246: =+R246*Q246 -> 25.49733333 | T246: =+S246+P246+N246+M246+L246+K246 -> 25.49733333 | U246: 25.49733333
B247: Cane Removal
B248: hand labor | O248: 20 | P248: =+O248*Labor_Fuel_Interest!$C$11 -> 277.8 | T248: =+S248+P248+N248+M248+L248+K248 -> 277.8 | U248: 277.8
B249: Mow between Rows | E249: =+IF(D249="MFWD 50hp", Equipment!$U$5, IF('Blackberry Budget Y4'!D249="MFWD 50hp", Equipment!$U$6, IF(D249="4*4", Equipment!$U$7, " "))) ->  | H249: Aug | U249: 0
B250: Rotary cutter | C250: 6 ft | D250: MFWD 50hp | E250: 4 | F250: =+Equipment!$I$25 -> 0.572 | G250: 0.5 | I250: =+$G$8*Equipment!$M$25 -> 0.24596 | J250: =+G250*Equipment!$K$25 -> 2.1168576 | K250: =+SUM(I250:J250) -> 2.3628176 | L250: =+G250*Equipment!$P$25 -> 1.6302 | M250: =+G250*Equipment!$L$25 -> 0.215 | N250: =+G250*Equipment!$O$25 -> 0.63 | O250: =+F250*G250 -> 0.286 | P250: =+O250*Labor_Fuel_Interest!$C$10 -> 4.98212 | T250: =+S250+P250+N250+M250+L250+K250 -> 9.8201376 | U250: =+(K250+M250+P250+S250) -> 7.5599376
B251: Irrigation | H251: Aug | M251: 35.4 | N251: 27.1 | O251: 0.05 | P251: =+O251*Labor_Fuel_Interest!$C$10 -> 0.871 | T251: =+S251+P251+N251+M251+L251+K251 -> 63.371 | U251: 36.271
B252: Mow between Rows | E252: =+IF(D252="MFWD 50hp", Equipment!$U$5, IF('Blackberry Budget Y4'!D252="MFWD 50hp", Equipment!$U$6, IF(D252="4*4", Equipment!$U$7, " "))) ->  | H252: Sep | U252: 0
B253: Rotary cutter | C253: 6 ft | D253: MFWD 50hp | E253: 4 | F253: =+Equipment!$I$25 -> 0.572 | G253: 0.5 | I253: =+$G$8*Equipment!$M$25 -> 0.24596 | J253: =+G253*Equipment!$K$25 -> 2.1168576 | K253: =+SUM(I253:J253) -> 2.3628176 | L253: =+G253*Equipment!$P$25 -> 1.6302 | M253: =+G253*Equipment!$L$25 -> 0.215 | N253: =+G253*Equipment!$O$25 -> 0.63 | O253: =+F253*G253 -> 0.286 | P253: =+O253*Labor_Fuel_Interest!$C$10 -> 4.98212 | T253: =+S253+P253+N253+M253+L253+K253 -> 9.8201376 | U253: =+(K253+M253+P253+S253) -> 7.5599376
B254: Irrigation | H254: Sep | M254: 35.4 | N254: 27.1 | O254: 0.05 | P254: =+O254*Labor_Fuel_Interest!$C$10 -> 0.871 | T254: =+S254+P254+N254+M254+L254+K254 -> 63.371 | U254: =+(K254+M254+P254+S254) -> 36.271
B255: Mow between Rows | E255: =+IF(D255="MFWD 50hp", Equipment!$U$5, IF('Blackberry Budget Y4'!D255="MFWD 50hp", Equipment!$U$6, IF(D255="4*4", Equipment!$U$7, " "))) ->  | H255: Oct | U255: 0
B256: Rotary cutter | C256: 6 ft | D256: MFWD 50hp | E256: 4 | F256: =+Equipment!$I$25 -> 0.572 | G256: 0.5 | I256: =+$G$8*Equipment!$M$25 -> 0.24596 | J256: =+G256*Equipment!$K$25 -> 2.1168576 | K256: =+SUM(I256:J256) -> 2.3628176 | L256: =+G256*Equipment!$P$25 -> 1.6302 | M256: =+G256*Equipment!$L$25 -> 0.215 | N256: =+G256*Equipment!$O$25 -> 0.63 | O256: =+F256*G256 -> 0.286 | P256: =+O256*Labor_Fuel_Interest!$C$10 -> 4.98212 | T256: =+S256+P256+N256+M256+L256+K256 -> 9.8201376 | U256: =+(K256+M256+P256+S256) -> 7.5599376
B257: Irrigation | H257: Oct | M257: 35.4 | N257: 27.1 | O257: 0.05 | P257: =+O257*Labor_Fuel_Interest!$C$10 -> 0.871 | T257: =+S257+P257+N257+M257+L257+K257 -> 63.371 | U257: =+(K257+M257+P257+S257) -> 36.271
B258: Pre-harvest costs | I258: =+SUM(I204:I257) -> 3.11664 | J258: 26.8233984 | K258: 29.9400384 | L258: 20.6568 | M258: 271.77 | N258: 233.17 | O258: 63.974 | P258: 902.62708 | S258: =+SUM(S204:S257) -> 243.9325313 | T258: =+SUM(T204:T257) -> 1702.09645 | U258: =SUM(U204:U257) -> 1448.26965
B259: Interest on Operating Capital | T259: =+(U258*Labor_Fuel_Interest!$C$15)/2 -> 45.25842655
B260: Pre-harvest cost + Interest | T260: =+SUM(T258:T259) -> 1747.354876
B261: HARVESTING
B262: Picking | O262: =+IF('General Budget Assumptions'!C$4="100% Ready_Picked_Retail",165, IF('General Budget Assumptions'!C$4="50%PYO 50%Ready_Picked",(165*0.5),(165*0.25))) -> 82.5 | P262: =+O262*Labor_Fuel_Interest!C$11 -> 1145.925 | T262: =+S262+P262+N262+M262+L262+K262 -> 1145.925
B263: Plastic clamshell containers (qt) | Q263: =+IF('General Budget Assumptions'!C$4="100% Ready_Picked_Retail",Yield!B$6, IF('General Budget Assumptions'!C$4="50%PYO 50%Ready_Picked",(Yield!B$6*0.5),(Yield!B$6*0.25))) -> 2500 | R263: =+Marketing!B203 -> 0 | S263: =+Q263*R263 -> 0 | T263: =+S263+P263+N263+M263+L263+K263 -> 0
B264: Refrigeration | M264: =30*1.22 -> 36.6 | N264: 1100 | T264: =+S264+P264+N264+M264+L264+K264 -> 1136.6
B265: Marketing | Q265: 1 | R265: =IF('General Budget Assumptions'!C$4="100% Ready_Picked_Retail",(Yield!B$6*'Blackberry Prices'!C$4),IF('General Budget Assumptions'!C$4="50%PYO 50%Ready_Picked", ((0.5*Yield!B$6*'Blackberry Prices'!C$4)+(0.5*Yield!B$6*'Blackberry Prices'!B$4)), ((0.75*Yield!B$6*'Blackberry Prices'!B$4)+(0.25*Yield!B$6*'Blackberry Prices'!C$4))))*0.1 -> 2998.75 | S265: =+Q265*R265 -> 2998.75 | T265: =+S265+P265+N265+M265+L265+K265 -> 2998.75
B266: Harvest totals | T266: =SUM(T262:T265) -> 5281.275
B267: Totals | T267: =+T$63+T$69 -> 7401.477098

Sheet Summary Y4
B3: Blackberry Enterprise Budget Year 1 | X3: Summary Budget Year 4
B4: Operation / Operating Input | C4: Size/ Unit | D4: Power Unit Size | E4: # | F4: Perf Rate | G4: Times Over | H4: Month | I4: Power unit cost | M4: Equipment Cost | O4: Alloc Labor | Q4: Operating / Durable Input | T4: total cost | X4: Items | Y4: Unit | Z4: Price | AA4: Quantity | AB4: Amount | AC4: Your Farm
I5: R&M | J5: Fuel | K5: Direct | L5: Fixed | M5: Direct | N5: Fixed | O5: Hours | P5: Cost | Q5: Amount | R5: Price | S5: Cost
X6: Direct expenses
B7: Mow between Rows | E7: =+IF(D7="MFWD 50hp", Equipment!$U$5, IF('Summary Y4'!D7="MFWD 50hp", Equipment!$U$6, IF(D7="4*4", Equipment!$U$7, " "))) ->  | H7: Mar | X7: Fertilizer
B8: Rotary cutter | C8: 6 ft | D8: MFWD 50hp | E8: 4 | F8: =+Equipment!$I$25 -> 0.572 | G8: 0.5 | I8: =+$G$8*Equipment!$M$25 -> 0.24596 | J8: =+G8*Equipment!$K$25 -> 2.1168576 | K8: =+SUM(I8:J8) -> 2.3628176 | L8: =+G8*Equipment!$P$25 -> 1.6302 | M8: =+G8*Equipment!$L$25 -> 0.215 | N8: =+G8*Equipment!$O$25 -> 0.63 | O8: =+F8*G8 -> 0.286 | P8: =+O8*Labor_Fuel_Interest!$C$10 -> 4.98212 | T8: =+S8+P8+N8+M8+L8+K8 -> 9.8201376 | U8: =+(K8+M8+P8+S8) -> 7.5599376 | X8: Urea | Y8: lb. | Z8: =+'Blackberry Budget Y4'!R$13 -> 0.3922666667 | AA8: =+'Blackberry Budget Y4'!Q$13+'Blackberry Budget Y4'!Q$49 -> 130 | AB8: =+Z8*AA8 -> 50.99466667
B9: Mow between Rows | E9: =+IF(D9="MFWD 50hp", Equipment!$U$5, IF('Summary Y4'!D9="MFWD 50hp", Equipment!$U$6, IF(D9="4*4", Equipment!$U$7, " "))) ->  | H9: Apr | U9: =+(K9+M9+P9+S9) -> 0 | X9: Chemicals
B10: Rotary cutter | C10: 6 ft | D10: MFWD 50hp | E10: 4 | F10: =+Equipment!$I$25 -> 0.572 | G10: 0.5 | I10: =+$G$8*Equipment!$M$25 -> 0.24596 | J10: =+G10*Equipment!$K$25 -> 2.1168576 | K10: =+SUM(I10:J10) -> 2.3628176 | L10: =+G10*Equipment!$P$25 -> 1.6302 | M10: =+G10*Equipment!$L$25 -> 0.215 | N10: =+G10*Equipment!$O$25 -> 0.63 | O10: =+F10*G10 -> 0.286 | P10: =+O10*Labor_Fuel_Interest!$C$10 -> 4.98212 | T10: =+S10+P10+N10+M10+L10+K10 -> 9.8201376 | U10: =+(K10+M10+P10+S10) -> 7.5599376 | X10: Pristine | Y10: oz | Z10: =+'Blackberry Budget Y4'!R$16 -> 0.809375 | AA10: =+'Blackberry Budget Y4'!Q$16 -> 21 | AB10: =+Z10*AA10 -> 16.996875
B11: Apply fertilizer | H11: Apr | U11: 0 | X11: Captane | Y11: lb. | Z11: =+'Blackberry Budget Y4'!R$17 -> 6.736 | AA11: =+'Blackberry Budget Y4'!Q$17+'Blackberry Budget Y4'!Q$27+'Blackberry Budget Y4'!Q$37+'Blackberry Budget Y4'!Q$46 -> 10 | AB11: 67.36
B12: Side dresser | C12: 1R 3ft | D12: MFWD 50hp | E12: 4 | F12: =+Equipment!$I$27 -> 0.846 | G12: 0.5 | I12: =+G12*Equipment!$M$27 -> 0.36378 | J12: =+G12*Equipment!$K$27 -> 3.1308768 | K12: =SUM(I12:J12) -> 3.4946568 | L12: =+G12*Equipment!$P$27 -> 2.4111 | M12: =+G12*Equipment!$L$27 -> 1.055 | N12: =+G12*Equipment!$O$27 -> 4.505 | O12: =+F12*G12 -> 0.423 | P12: =+Labor_Fuel_Interest!$C$10*O12 -> 7.36866 | T12: =+S12+P12+N12+M12+L12+K12 -> 18.8344168 | U12: 11.9183168 | X12: Quilt Xcel | Y12: fl oz | Z12: =+'Blackberry Budget Y4'!R$26 -> 1.245260417 | AA12: =+'Blackberry Budget Y4'!Q$26+'Blackberry Budget Y4'!Q$45 -> 35 | AB12: 43.58411458
B13: Urea | C13: lb. | Q13: 65 | R13: =+'Chemical & Fertilizer Costs'!$F$25 -> 0.3922666667 | S13: =+R13*Q13 -> 25.49733333 | T13: =+S13+P13+N13+M13+L13+K13 -> 25.49733333 | U13: 25.49733333 | X13: Luna Tranquility | Y13: fl oz | Z13: =+'Blackberry Budget Y4'!R$36 -> 3.24984375 | AA13: =+'Blackberry Budget Y4'!Q$36 -> 20 | AB13: 64.996875
B14: Disease management | U14: 0 | X14: Operator labor
B15: Sprayer (Air Blast) | D15: MFWD 50hp | E15: 4 | F15: =+Equipment!$I$35 -> 0.245 | G15: 0.5 | H15: Apr | I15: =+G15*Equipment!$M$35 -> 0.10535 | J15: =+G15*Equipment!$K$35 -> 0.906696 | K15: =SUM(I15:J15) -> 1.012046 | L15: =+G15*Equipment!$P$35 -> 0.69825 | M15: =+G15*Equipment!$L$35 -> 5.035 | N15: =+G15*Equipment!$O$35 -> 7.355 | O15: =+F15*G15 -> 0.1225 | P15: =+O15*Labor_Fuel_Interest!$C$10 -> 2.13395 | T15: =+K15+L15+M15+N15+P15+S15 -> 16.234246 | U15: =+(K15+M15+P15+S15) -> 8.180996 | X15: Tractors | Y15: hour | Z15: =+Labor_Fuel_Interest!$C$10 -> 17.42 | AA15: =+'Blackberry Budget Y4'!O$8+'Blackberry Budget Y4'!O$10+'Blackberry Budget Y4'!O$12+'Blackberry Budget Y4'!O$15+'Blackberry Budget Y4'!O$22+'Blackberry Budget Y4'!O$25+'Blackberry Budget Y4'!O$31+'Blackberry Budget Y4'!O$35+'Blackberry Budget Y4'!O$41+'Blackberry Budget Y4'!O$44+'Blackberry Budget Y4'!O$53+'Blackberry Budget Y4'!O$56+'Blackberry Budget Y4'!O$59+'Blackberry Budget Y4'!O$48 -> 3.624 | AB15: =+Z15*AA15 -> 63.13008
B16: Pristine | C16: oz | Q16: =+'Chemical & Fertilizer Costs'!F$41 -> 21 | R16: =+'Chemical & Fertilizer Costs'!H$10 -> 0.809375 | S16: =+R16*Q16 -> 16.996875 | T16: =+S16+P16+N16+M16+L16+K16 -> 16.996875 | U16: 16.996875 | X16: Harvest labor
B17: Captan | C17: lb. | Q17: =+'Chemical & Fertilizer Costs'!F$34 -> 2.5 | R17: =+'Chemical & Fertilizer Costs'!H$9 -> 6.736 | S17: =R17*Q17 -> 16.84 | T17: =+S17+P17+N17+M17+L17+K17 -> 16.84 | U17: 16.84 | X17: Special labor | Y17: hour | Z17: =+Labor_Fuel_Interest!$C$11 -> 13.89 | AA17: =+'Blackberry Budget Y4'!O$65 -> 82.5 | AB17: =+Z17*AA17 -> 1145.925
B18: Irrigation | H18: Apr | M18: 35.4 | N18: 27.1 | O18: 0.05 | P18: =+O18*Labor_Fuel_Interest!$C$10 -> 0.871 | T18: =+S18+P18+N18+M18+L18+K18 -> 63.371 | U18: 36.271 | X18: Hand labor
B19: Hoeing | G19: 1 | H19: May | U19: 0 | X19: Special labor | Y19: hour | Z19: =+Labor_Fuel_Interest!$C$11 -> 13.89 | AA19: =+'Blackberry Budget Y4'!O$20+'Blackberry Budget Y4'!O$29+'Blackberry Budget Y4'!O$39 -> 33 | AB19: =+Z19*AA19 -> 458.37
B20: hand labor | C20: hour | O20: 10 | P20: =+O20*Labor_Fuel_Interest!$C$11 -> 138.9 | T20: =+S20+P20+N20+M20+L20+K20 -> 138.9 | U20: 138.9 | X20: Irrigation labor | AB20: =+Z20*AA20 -> 0
B21: Mow between Rows | E21: =+IF(D21="MFWD 50hp", Equipment!$U$5, IF('Summary Y4'!D21="MFWD 50hp", Equipment!$U$6, IF(D21="4*4", Equipment!$U$7, " "))) ->  | H21: May | U21: 0 | X21: Special labor | Y21: hour | Z21: =+Labor_Fuel_Interest!$C$10 -> 17.42 | AA21: =+'Blackberry Budget Y4'!O$18+'Blackberry Budget Y4'!O$23+'Blackberry Budget Y4'!O$33+'Blackberry Budget Y4'!O$42+'Blackberry Budget Y4'!O$54+'Blackberry Budget Y4'!O$57+'Blackberry Budget Y4'!O$60 -> 0.35 | AB21: =+Z21*AA21 -> 6.097
B22: Rotary cutter | C22: 6 ft | D22: MFWD 50hp | E22: 4 | F22: =+Equipment!$I$25 -> 0.572 | G22: 0.5 | I22: =+$G$8*Equipment!$M$25 -> 0.24596 | J22: =+G22*Equipment!$K$25 -> 2.1168576 | K22: =+SUM(I22:J22) -> 2.3628176 | L22: =+G22*Equipment!$P$25 -> 1.6302 | M22: =+G22*Equipment!$L$25 -> 0.215 | N22: =+G22*Equipment!$O$25 -> 0.63 | O22: =+F22*G22 -> 0.286 | P22: =+O22*Labor_Fuel_Interest!$C$10 -> 4.98212 | T22: =+S22+P22+N22+M22+L22+K22 -> 9.8201376 | U22: =+(K22+M22+P22+S22) -> 7.5599376 | X22: Pruning/Cane removal Labor
B23: Irrigation | H23: May | M23: 35.4 | N23: 27.1 | O23: 0.05 | P23: =+O23*Labor_Fuel_Interest!$C$10 -> 0.871 | T23: =+S23+P23+N23+M23+L23+K23 -> 63.371 | U23: 36.271 | X23: Special labor | Y23: hour | Z23: =+Labor_Fuel_Interest!$C$11 -> 13.89 | AA23: =+'Blackberry Budget Y4'!O$32+'Blackberry Budget Y4'!O$51 -> 27 | AB23: =+Z23*AA23 -> 375.03
B24: Disease management | U24: 0 | X24: Irrigation variable cost | Y24: acre | Z24: =+'Blackberry Budget Y4'!M$18+'Blackberry Budget Y4'!M$23+'Blackberry Budget Y4'!M$33+'Blackberry Budget Y4'!M$42+'Blackberry Budget Y4'!M$54+'Blackberry Budget Y4'!M$57+'Blackberry Budget Y4'!M$60 -> 247.8 | AA24: 1 | AB24: =+Z24*AA24 -> 247.8
B25: Sprayer (Air Blast) | D25: MFWD 50hp | E25: 4 | F25: =+Equipment!$I$35 -> 0.245 | G25: 0.5 | H25: May | I25: =+G25*Equipment!$M$35 -> 0.10535 | J25: =+G25*Equipment!$K$35 -> 0.906696 | K25: =SUM(I25:J25) -> 1.012046 | L25: =+G25*Equipment!$P$35 -> 0.69825 | M25: =+G25*Equipment!$L$35 -> 5.035 | N25: =+G25*Equipment!$O$35 -> 7.355 | O25: =+F25*G25 -> 0.1225 | P25: =+O25*Labor_Fuel_Interest!$C$10 -> 2.13395 | T25: =+K25+L25+M25+N25+P25+S25 -> 16.234246 | U25: =+(K25+M25+P25+S25) -> 8.180996 | X25: Diesel Fuel
B26: Quilt Xcel | C26: fl oz | Q26: =+'Chemical & Fertilizer Costs'!F$44 -> 17.5 | R26: ='Chemical & Fertilizer Costs'!H$7 -> 1.245260417 | S26: =+R26*Q26 -> 21.79205729 | T26: =+S26+P26+N26+M26+L26+K26 -> 21.79205729 | U26: =+(K26+M26+P26+S26) -> 21.79205729 | X26: Tractors | Y26: gal | Z26: =+Labor_Fuel_Interest!$E$4 -> 2.88 | AA26: =('Blackberry Budget Y4'!J$8+'Blackberry Budget Y4'!J$10+'Blackberry Budget Y4'!J$12+'Blackberry Budget Y4'!J$15+'Blackberry Budget Y4'!J$22+'Blackberry Budget Y4'!J$25+'Blackberry Budget Y4'!J$31+'Blackberry Budget Y4'!J$35+'Blackberry Budget Y4'!J$41+'Blackberry Budget Y4'!J$44+'Blackberry Budget Y4'!J$53+'Blackberry Budget Y4'!J$56+'Blackberry Budget Y4'!J$59+'Blackberry Budget Y4'!J$48)/'Blackberry Budget Y4'!Z$26 -> 9.31368 | AB26: =+Z26*AA26 -> 26.8233984
B27: Captan | C27: lb. | Q27: =+'Chemical & Fertilizer Costs'!F$34 -> 2.5 | R27: =+'Chemical & Fertilizer Costs'!H$9 -> 6.736 | S27: =R27*Q27 -> 16.84 | T27: =+S27+P27+N27+M27+L27+K27 -> 16.84 | U27: 16.84 | X27: Repair & Maintenance
B28: Hoeing | G28: 1 | H28: Jun | U28: 0 | X28: Implements | Y28: acre | Z28: =+'Blackberry Budget Y4'!M$61-('Blackberry Budget Y4'!M$18+'Blackberry Budget Y4'!M$23+'Blackberry Budget Y4'!M$33+'Blackberry Budget Y4'!M$42+'Blackberry Budget Y4'!M$54+'Blackberry Budget Y4'!M$57+'Blackberry Budget Y4'!M$60) -> 23.97 | AA28: 1 | AB28: =+Z28*AA28 -> 23.97
B29: hand labor | C29: hour | O29: 10 | P29: =+O29*Labor_Fuel_Interest!$C$11 -> 138.9 | T29: =+S29+P29+N29+M29+L29+K29 -> 138.9 | U29: 138.9 | X29: Tractors | Y29: acre | Z29: =+'Blackberry Budget Y4'!I$61 -> 3.11664 | AA29: 1 | AB29: =+Z29*AA29 -> 3.11664
B30: Mow between Rows | E30: =+IF(D30="MFWD 50hp", Equipment!$U$5, IF('Summary Y4'!D30="MFWD 50hp", Equipment!$U$6, IF(D30="4*4", Equipment!$U$7, " "))) ->  | H30: Jun | U30: 0 | X30: Post-harvest Expenses
B31: Rotary cutter | C31: 6 ft | D31: MFWD 50hp | E31: 4 | F31: =+Equipment!$I$25 -> 0.572 | G31: 0.5 | I31: =+$G$8*Equipment!$M$25 -> 0.24596 | J31: =+G31*Equipment!$K$25 -> 2.1168576 | K31: =+SUM(I31:J31) -> 2.3628176 | L31: =+G31*Equipment!$P$25 -> 1.6302 | M31: =+G31*Equipment!$L$25 -> 0.215 | N31: =+G31*Equipment!$O$25 -> 0.63 | O31: =+F31*G31 -> 0.286 | P31: =+O31*Labor_Fuel_Interest!$C$10 -> 4.98212 | T31: =+S31+P31+N31+M31+L31+K31 -> 9.8201376 | U31: =+(K31+M31+P31+S31) -> 7.5599376 | X31: Plastic clamshell containers (qt) | Y31: each | Z31: =+'Blackberry Budget Y4'!R$66 -> 0.1491388889 | AA31: =+'Blackberry Budget Y4'!Q$66 -> 2500 | AB31: =+Z31*AA31 -> 372.8472222
B32: Topping Blackberries/Pruning | C32: hour | G32: 1 | H32: Jun | O32: 7 | P32: =+O32*Labor_Fuel_Interest!$C$11 -> 97.23 | T32: =+S32+P32+N32+M32+L32+K32 -> 97.23 | U32: 97.23 | X32: Electricity | Y32: acre | Z32: =+'Blackberry Budget Y4'!M$67 -> 36.6 | AA32: 1 | AB32: =+Z32*AA32 -> 36.6
B33: Irrigation | H33: Jun | M33: 35.4 | N33: 27.1 | O33: 0.05 | P33: =+O33*Labor_Fuel_Interest!$C$10 -> 0.871 | T33: =+S33+P33+N33+M33+L33+K33 -> 63.371 | U33: 36.271 | X33: Marketing (10% of gross revenue) | Y33: acre | Z33: =+'Blackberry Budget Y4'!T$68 -> 2998.75 | AA33: 1 | AB33: =+Z33*AA33 -> 2998.75
B34: Disease management | U34: 0 | X34: Interest on OP. CAP. | Y34: acre | Z34: =+'Blackberry Budget Y4'!T$62 -> 45.25842655 | AA34: 1 | AB34: =+Z34*AA34 -> 45.25842655
B35: Sprayer (Air Blast) | D35: MFWD 50hp | E35: 4 | F35: =+Equipment!$I$35 -> 0.245 | G35: 0.5 | H35: Jun | I35: =+G35*Equipment!$M$35 -> 0.10535 | J35: =+G35*Equipment!$K$35 -> 0.906696 | K35: =SUM(I35:J35) -> 1.012046 | L35: =+G35*Equipment!$P$35 -> 0.69825 | M35: =+G35*Equipment!$L$35 -> 5.035 | N35: =+G35*Equipment!$O$35 -> 7.355 | O35: =+F35*G35 -> 0.1225 | P35: =+O35*Labor_Fuel_Interest!$C$10 -> 2.13395 | T35: =+K35+L35+M35+N35+P35+S35 -> 16.234246 | U35: =+(K35+M35+P35+S35) -> 8.180996 | X35: Total Direct Expenses | AB35: =+SUM(AB7:AB34) -> 6047.650298 | AC35: =+SUM(AC7:AC34) -> 0
B36: Luna Tranquility | C36: fl oz | Q36: =+'Chemical & Fertilizer Costs'!F$37 -> 20 | R36: ='Chemical & Fertilizer Costs'!H$8 -> 3.24984375 | S36: =+R36*Q36 -> 64.996875 | T36: =+S36+P36+N36+M36+L36+K36 -> 64.996875 | U36: =+(K36+M36+P36+S36) -> 64.996875
B37: Captan | C37: lb. | Q37: =+'Chemical & Fertilizer Costs'!F$34 -> 2.5 | R37: =+'Chemical & Fertilizer Costs'!H$9 -> 6.736 | S37: =R37*Q37 -> 16.84 | T37: =+S37+P37+N37+M37+L37+K37 -> 16.84 | U37: 16.84 | X37: Fixed Expenses
B38: Hoeing | G38: 1 | H38: Jul | U38: 0 | X38: Implements/Refrigerator | Y38: acre | Z38: =+'Blackberry Budget Y4'!N$61+'Blackberry Budget Y4'!N$67-('Blackberry Budget Y4'!N$18+'Blackberry Budget Y4'!N$23+'Blackberry Budget Y4'!N$33+'Blackberry Budget Y4'!N$42+'Blackberry Budget Y4'!N$54+'Blackberry Budget Y4'!N$57+'Blackberry Budget Y4'!N$60) -> 1143.47 | AA38: 1 | AB38: =+Z38*AA38 -> 1143.47
B39: hand labor | C39: hour | O39: 13 | P39: =+O39*Labor_Fuel_Interest!$C$11 -> 180.57 | T39: =+S39+P39+N39+M39+L39+K39 -> 180.57 | U39: 180.57 | X39: Tractors | Y39: acre | Z39: =+'Blackberry Budget Y4'!L$61 -> 20.6568 | AA39: 1 | AB39: =+Z39*AA39 -> 20.6568
B40: Mow between Rows | E40: =+IF(D40="MFWD 50hp", Equipment!$U$5, IF('Summary Y4'!D40="MFWD 50hp", Equipment!$U$6, IF(D40="4*4", Equipment!$U$7, " "))) ->  | H40: Jul | U40: 0 | X40: Irrigation set-up | Y40: acre | Z40: =+'Blackberry Budget Y4'!N$18+'Blackberry Budget Y4'!N$23+'Blackberry Budget Y4'!N$33+'Blackberry Budget Y4'!N$42+'Blackberry Budget Y4'!N$54+'Blackberry Budget Y4'!N$57+'Blackberry Budget Y4'!N$60 -> 189.7 | AA40: 1 | AB40: =+Z40*AA40 -> 189.7
B41: Rotary cutter | C41: 6 ft | D41: MFWD 50hp | E41: 4 | F41: =+Equipment!$I$25 -> 0.572 | G41: 0.5 | I41: =+$G$8*Equipment!$M$25 -> 0.24596 | J41: =+G41*Equipment!$K$25 -> 2.1168576 | K41: =+SUM(I41:J41) -> 2.3628176 | L41: =+G41*Equipment!$P$25 -> 1.6302 | M41: =+G41*Equipment!$L$25 -> 0.215 | N41: =+G41*Equipment!$O$25 -> 0.63 | O41: =+F41*G41 -> 0.286 | P41: =+O41*Labor_Fuel_Interest!$C$10 -> 4.98212 | T41: =+S41+P41+N41+M41+L41+K41 -> 9.8201376 | U41: =+(K41+M41+P41+S41) -> 7.5599376
B42: Irrigation | H42: Jul | M42: 35.4 | N42: 27.1 | O42: 0.05 | P42: =+O42*Labor_Fuel_Interest!$C$10 -> 0.871 | T42: =+S42+P42+N42+M42+L42+K42 -> 63.371 | U42: 36.271 | X42: Total Fixed Expenses | AB42: =+SUM(AB38:AB41) -> 1353.8268 | AC42: =+SUM(AC38:AC41) -> 0
B43: Disease management | U43: 0
B44: Sprayer (Air Blast) | D44: MFWD 50hp | E44: 4 | F44: =+Equipment!$I$35 -> 0.245 | G44: 0.5 | H44: Jul | I44: =+G44*Equipment!$M$35 -> 0.10535 | J44: =+G44*Equipment!$K$35 -> 0.906696 | K44: =SUM(I44:J44) -> 1.012046 | L44: =+G44*Equipment!$P$35 -> 0.69825 | M44: =+G44*Equipment!$L$35 -> 5.035 | N44: =+G44*Equipment!$O$35 -> 7.355 | O44: =+F44*G44 -> 0.1225 | P44: =+O44*Labor_Fuel_Interest!$C$10 -> 2.13395 | T44: =+K44+L44+M44+N44+P44+S44 -> 16.234246 | U44: =+(K44+M44+P44+S44) -> 8.180996 | X44: Total Specified Expenses | AB44: =+SUM(AB35+AB42) -> 7401.477098 | AC44: =+SUM(AC35+AC42) -> 0
B45: Quilt Xcel | C45: fl oz | Q45: =+'Chemical & Fertilizer Costs'!F$44 -> 17.5 | R45: ='Chemical & Fertilizer Costs'!H$7 -> 1.245260417 | S45: =+R45*Q45 -> 21.79205729 | T45: =+S45+P45+N45+M45+L45+K45 -> 21.79205729 | U45: =+(K45+M45+P45+S45) -> 21.79205729
B46: Captan | C46: lb. | Q46: =+'Chemical & Fertilizer Costs'!F$34 -> 2.5 | R46: =+'Chemical & Fertilizer Costs'!H$9 -> 6.736 | S46: =R46*Q46 -> 16.84 | T46: =+S46+P46+N46+M46+L46+K46 -> 16.84 | U46: 16.84
B47: Apply fertilizer | H47: Jul | U47: 0
B48: Side dresser | C48: 1R 3ft | D48: MFWD 50hp | E48: 4 | F48: =+Equipment!$I$27 -> 0.846 | G48: 0.5 | I48: =+G48*Equipment!$M$27 -> 0.36378 | J48: =+G48*Equipment!$K$27 -> 3.1308768 | K48: =SUM(I48:J48) -> 3.4946568 | L48: =+G48*Equipment!$P$27 -> 2.4111 | M48: =+G48*Equipment!$L$27 -> 1.055 | N48: =+G48*Equipment!$O$27 -> 4.505 | O48: =+F48*G48 -> 0.423 | P48: =+Labor_Fuel_Interest!$C$10*O48 -> 7.36866 | T48: =+S48+P48+N48+M48+L48+K48 -> 18.8344168 | U48: 11.9183168
B49: Urea | C49: lb. | Q49: 65 | R49: =+'Chemical & Fertilizer Costs'!$F$25 -> 0.3922666667 | S49: =+R49*Q49 -> 25.49733333 | T49: =+S49+P49+N49+M49+L49+K49 -> 25.49733333 | U49: 25.49733333
B50: Cane Removal
B51: hand labor | O51: 20 | P51: =+O51*Labor_Fuel_Interest!$C$11 -> 277.8 | T51: =+S51+P51+N51+M51+L51+K51 -> 277.8 | U51: 277.8
B52: Mow between Rows | E52: =+IF(D52="MFWD 50hp", Equipment!$U$5, IF('Summary Y4'!D52="MFWD 50hp", Equipment!$U$6, IF(D52="4*4", Equipment!$U$7, " "))) ->  | H52: Aug | U52: 0
B53: Rotary cutter | C53: 6 ft | D53: MFWD 50hp | E53: 4 | F53: =+Equipment!$I$25 -> 0.572 | G53: 0.5 | I53: =+$G$8*Equipment!$M$25 -> 0.24596 | J53: =+G53*Equipment!$K$25 -> 2.1168576 | K53: =+SUM(I53:J53) -> 2.3628176 | L53: =+G53*Equipment!$P$25 -> 1.6302 | M53: =+G53*Equipment!$L$25 -> 0.215 | N53: =+G53*Equipment!$O$25 -> 0.63 | O53: =+F53*G53 -> 0.286 | P53: =+O53*Labor_Fuel_Interest!$C$10 -> 4.98212 | T53: =+S53+P53+N53+M53+L53+K53 -> 9.8201376 | U53: =+(K53+M53+P53+S53) -> 7.5599376
B54: Irrigation | H54: Aug | M54: 35.4 | N54: 27.1 | O54: 0.05 | P54: =+O54*Labor_Fuel_Interest!$C$10 -> 0.871 | T54: =+S54+P54+N54+M54+L54+K54 -> 63.371 | U54: 36.271
B55: Mow between Rows | E55: =+IF(D55="MFWD 50hp", Equipment!$U$5, IF('Summary Y4'!D55="MFWD 50hp", Equipment!$U$6, IF(D55="4*4", Equipment!$U$7, " "))) ->  | H55: Sep | U55: 0
B56: Rotary cutter | C56: 6 ft | D56: MFWD 50hp | E56: 4 | F56: =+Equipment!$I$25 -> 0.572 | G56: 0.5 | I56: =+$G$8*Equipment!$M$25 -> 0.24596 | J56: =+G56*Equipment!$K$25 -> 2.1168576 | K56: =+SUM(I56:J56) -> 2.3628176 | L56: =+G56*Equipment!$P$25 -> 1.6302 | M56: =+G56*Equipment!$L$25 -> 0.215 | N56: =+G56*Equipment!$O$25 -> 0.63 | O56: =+F56*G56 -> 0.286 | P56: =+O56*Labor_Fuel_Interest!$C$10 -> 4.98212 | T56: =+S56+P56+N56+M56+L56+K56 -> 9.8201376 | U56: =+(K56+M56+P56+S56) -> 7.5599376
B57: Irrigation | H57: Sep | M57: 35.4 | N57: 27.1 | O57: 0.05 | P57: =+O57*Labor_Fuel_Interest!$C$10 -> 0.871 | T57: =+S57+P57+N57+M57+L57+K57 -> 63.371 | U57: =+(K57+M57+P57+S57) -> 36.271
B58: Mow between Rows | E58: =+IF(D58="MFWD 50hp", Equipment!$U$5, IF('Summary Y4'!D58="MFWD 50hp", Equipment!$U$6, IF(D58="4*4", Equipment!$U$7, " "))) ->  | H58: Oct | U58: 0
B59: Rotary cutter | C59: 6 ft | D59: MFWD 50hp | E59: 4 | F59: =+Equipment!$I$25 -> 0.572 | G59: 0.5 | I59: =+$G$8*Equipment!$M$25 -> 0.24596 | J59: =+G59*Equipment!$K$25 -> 2.1168576 | K59: =+SUM(I59:J59) -> 2.3628176 | L59: =+G59*Equipment!$P$25 -> 1.6302 | M59: =+G59*Equipment!$L$25 -> 0.215 | N59: =+G59*Equipment!$O$25 -> 0.63 | O59: =+F59*G59 -> 0.286 | P59: =+O59*Labor_Fuel_Interest!$C$10 -> 4.98212 | T59: =+S59+P59+N59+M59+L59+K59 -> 9.8201376 | U59: =+(K59+M59+P59+S59) -> 7.5599376
B60: Irrigation | H60: Oct | M60: 35.4 | N60: 27.1 | O60: 0.05 | P60: =+O60*Labor_Fuel_Interest!$C$10 -> 0.871 | T60: =+S60+P60+N60+M60+L60+K60 -> 63.371 | U60: =+(K60+M60+P60+S60) -> 36.271
B61: Pre-harvest costs | I61: =+SUM(I7:I60) -> 3.11664 | J61: 26.8233984 | K61: 29.9400384 | L61: 20.6568 | M61: 271.77 | N61: 233.17 | O61: 63.974 | P61: 902.62708 | S61: =+SUM(S7:S60) -> 243.9325313 | T61: =+SUM(T7:T60) -> 1702.09645 | U61: =SUM(U7:U60) -> 1448.26965
B62: Interest on Operating Capital | T62: =+(U61*Labor_Fuel_Interest!$C$15)/2 -> 45.25842655
B63: Pre-harvest cost + Interest | T63: =+SUM(T61:T62) -> 1747.354876
B64: HARVESTING
B65: Picking | O65: =+IF('General Budget Assumptions'!C$4="100% Ready_Picked_Retail",165, IF('General Budget Assumptions'!C$4="50%PYO 50%Ready_Picked",(165*0.5),(165*0.25))) -> 82.5 | P65: =+O65*Labor_Fuel_Interest!C$11 -> 1145.925 | T65: =+S65+P65+N65+M65+L65+K65 -> 1145.925
B66: Plastic clamshell containers (qt) | Q66: =+IF('General Budget Assumptions'!C$4="100% Ready_Picked_Retail",Yield!B$6, IF('General Budget Assumptions'!C$4="50%PYO 50%Ready_Picked",(Yield!B$6*0.5),(Yield!B$6*0.25))) -> 2500 | R66: =+Marketing!B6 -> 0.1491388889 | S66: =+Q66*R66 -> 372.8472222 | T66: =+S66+P66+N66+M66+L66+K66 -> 372.8472222
B67: Refrigeration | M67: =30*1.22 -> 36.6 | N67: 1100 | T67: =+S67+P67+N67+M67+L67+K67 -> 1136.6
B68: Marketing | Q68: 1 | R68: =IF('General Budget Assumptions'!C$4="100% Ready_Picked_Retail",(Yield!B$6*'Blackberry Prices'!C$4),IF('General Budget Assumptions'!C$4="50%PYO 50%Ready_Picked", ((0.5*Yield!B$6*'Blackberry Prices'!C$4)+(0.5*Yield!B$6*'Blackberry Prices'!B$4)), ((0.75*Yield!B$6*'Blackberry Prices'!B$4)+(0.25*Yield!B$6*'Blackberry Prices'!C$4))))*0.1 -> 2998.75 | S68: =+Q68*R68 -> 2998.75 | T68: =+S68+P68+N68+M68+L68+K68 -> 2998.75
B69: Harvest totals | T69: =SUM(T65:T68) -> 5654.122222
B70: Totals | T70: =+T$63+T$69 -> 7401.477098
X200: Summary Budget Year 4
X201: Items | Y201: Unit | Z201: Price | AA201: Quantity | AB201: Amount | AC201: Your Farm
X203: Direct expenses
X204: Fertilizer
X205: Urea | Y205: lb. | Z205: =+'Blackberry Budget Y4'!R$13 -> 0.3922666667 | AA205: =+'Blackberry Budget Y4'!Q$13+'Blackberry Budget Y4'!Q$49 -> 130 | AB205: =+Z205*AA205 -> 50.99466667
X206: Chemicals
X207: Pristine | Y207: oz | Z207: =+'Blackberry Budget Y4'!R$16 -> 0.809375 | AA207: =+'Blackberry Budget Y4'!Q$16 -> 21 | AB207: =+Z207*AA207 -> 16.996875
X208: Captane | Y208: lb. | Z208: =+'Blackberry Budget Y4'!R$17 -> 6.736 | AA208: =+'Blackberry Budget Y4'!Q$17+'Blackberry Budget Y4'!Q$27+'Blackberry Budget Y4'!Q$37+'Blackberry Budget Y4'!Q$46 -> 10 | AB208: 67.36
X209: Quilt Xcel | Y209: fl oz | Z209: =+'Blackberry Budget Y4'!R$26 -> 1.245260417 | AA209: =+'Blackberry Budget Y4'!Q$26+'Blackberry Budget Y4'!Q$45 -> 35 | AB209: 43.58411458
X210: Luna Tranquility | Y210: fl oz | Z210: =+'Blackberry Budget Y4'!R$36 -> 3.24984375 | AA210: =+'Blackberry Budget Y4'!Q$36 -> 20 | AB210: 64.996875
X211: Operator labor
X212: Tractors | Y212: hour | Z212: =+Labor_Fuel_Interest!$C$10 -> 17.42 | AA212: =+'Blackberry Budget Y4'!O$8+'Blackberry Budget Y4'!O$10+'Blackberry Budget Y4'!O$12+'Blackberry Budget Y4'!O$15+'Blackberry Budget Y4'!O$22+'Blackberry Budget Y4'!O$25+'Blackberry Budget Y4'!O$31+'Blackberry Budget Y4'!O$35+'Blackberry Budget Y4'!O$41+'Blackberry Budget Y4'!O$44+'Blackberry Budget Y4'!O$53+'Blackberry Budget Y4'!O$56+'Blackberry Budget Y4'!O$59+'Blackberry Budget Y4'!O$48 -> 3.624 | AB212: =+Z212*AA212 -> 63.13008
X213: Harvest labor
X214: Special labor | Y214: hour | Z214: =+Labor_Fuel_Interest!$C$11 -> 13.89 | AA214: =+'Blackberry Budget Y4'!O$65 -> 82.5 | AB214: =+Z214*AA214 -> 1145.925
X215: Hand labor
X216: Special labor | Y216: hour | Z216: =+Labor_Fuel_Interest!$C$11 -> 13.89 | AA216: =+'Blackberry Budget Y4'!O$20+'Blackberry Budget Y4'!O$29+'Blackberry Budget Y4'!O$39 -> 33 | AB216: =+Z216*AA216 -> 458.37
X217: Irrigation labor | AB217: =+Z217*AA217 -> 0
X218: Special labor | Y218: hour | Z218: =+Labor_Fuel_Interest!$C$10 -> 17.42 | AA218: =+'Blackberry Budget Y4'!O$18+'Blackberry Budget Y4'!O$23+'Blackberry Budget Y4'!O$33+'Blackberry Budget Y4'!O$42+'Blackberry Budget Y4'!O$54+'Blackberry Budget Y4'!O$57+'Blackberry Budget Y4'!O$60 -> 0.35 | AB218: =+Z218*AA218 -> 6.097
X219: Pruning/Cane removal Labor
X220: Special labor | Y220: hour | Z220: =+Labor_Fuel_Interest!$C$11 -> 13.89 | AA220: =+'Blackberry Budget Y4'!O$32+'Blackberry Budget Y4'!O$51 -> 27 | AB220: =+Z220*AA220 -> 375.03
X221: Irrigation variable cost | Y221: acre | Z221: =+'Blackberry Budget Y4'!M$18+'Blackberry Budget Y4'!M$23+'Blackberry Budget Y4'!M$33+'Blackberry Budget Y4'!M$42+'Blackberry Budget Y4'!M$54+'Blackberry Budget Y4'!M$57+'Blackberry Budget Y4'!M$60 -> 247.8 | AA221: 1 | AB221: =+Z221*AA221 -> 247.8
X222: Diesel Fuel
X223: Tractors | Y223: gal | Z223: =+Labor_Fuel_Interest!$E$4 -> 2.88 | AA223: =('Blackberry Budget Y4'!J$8+'Blackberry Budget Y4'!J$10+'Blackberry Budget Y4'!J$12+'Blackberry Budget Y4'!J$15+'Blackberry Budget Y4'!J$22+'Blackberry Budget Y4'!J$25+'Blackberry Budget Y4'!J$31+'Blackberry Budget Y4'!J$35+'Blackberry Budget Y4'!J$41+'Blackberry Budget Y4'!J$44+'Blackberry Budget Y4'!J$53+'Blackberry Budget Y4'!J$56+'Blackberry Budget Y4'!J$59+'Blackberry Budget Y4'!J$48)/'Blackberry Budget Y4'!Z$26 -> 9.31368 | AB223: =+Z223*AA223 -> 26.8233984
X224: Repair & Maintenance
X225: Implements | Y225: acre | Z225: =+'Blackberry Budget Y4'!M$61-('Blackberry Budget Y4'!M$18+'Blackberry Budget Y4'!M$23+'Blackberry Budget Y4'!M$33+'Blackberry Budget Y4'!M$42+'Blackberry Budget Y4'!M$54+'Blackberry Budget Y4'!M$57+'Blackberry Budget Y4'!M$60) -> 23.97 | AA225: 1 | AB225: =+Z225*AA225 -> 23.97
X226: Tractors | Y226: acre | Z226: =+'Blackberry Budget Y4'!I$61 -> 3.11664 | AA226: 1 | AB226: =+Z226*AA226 -> 3.11664
X227: Post-harvest Expenses
X228: Plastic clamshell containers (qt) | Y228: each | Z228: =+'Blackberry Budget Y4'!R$66 -> 0.1491388889 | AA228: =+'Blackberry Budget Y4'!Q$66 -> 2500 | AB228: =+Z228*AA228 -> 372.8472222
X229: Electricity | Y229: acre | Z229: =+'Blackberry Budget Y4'!M$67 -> 36.6 | AA229: 1 | AB229: =+Z229*AA229 -> 36.6
X230: Marketing (10% of gross revenue) | Y230: acre | Z230: =+'Blackberry Budget Y4'!T$68 -> 2998.75 | AA230: 1 | AB230: =+Z230*AA230 -> 2998.75
X231: Interest on OP. CAP. | Y231: acre | Z231: =+'Blackberry Budget Y4'!T$62 -> 45.25842655 | AA231: 1 | AB231: =+Z231*AA231 -> 45.25842655
X232: Total Direct Expenses | AB232: =+SUM(AB204:AB231) -> 6047.650298 | AC232: =+SUM(AC204:AC231) -> 0
X234: Fixed Expenses
X235: Implements/Refrigerator | Y235: acre | Z235: =+'Blackberry Budget Y4'!N$61+'Blackberry Budget Y4'!N$67-('Blackberry Budget Y4'!N$18+'Blackberry Budget Y4'!N$23+'Blackberry Budget Y4'!N$33+'Blackberry Budget Y4'!N$42+'Blackberry Budget Y4'!N$54+'Blackberry Budget Y4'!N$57+'Blackberry Budget Y4'!N$60) -> 1143.47 | AA235: 1 | AB235: =+Z235*AA235 -> 1143.47
X236: Tractors | Y236: acre | Z236: =+'Blackberry Budget Y4'!L$61 -> 20.6568 | AA236: 1 | AB236: =+Z236*AA236 -> 20.6568
X237: Irrigation set-up | Y237: acre | Z237: =+'Blackberry Budget Y4'!N$18+'Blackberry Budget Y4'!N$23+'Blackberry Budget Y4'!N$33+'Blackberry Budget Y4'!N$42+'Blackberry Budget Y4'!N$54+'Blackberry Budget Y4'!N$57+'Blackberry Budget Y4'!N$60 -> 189.7 | AA237: 1 | AB237: =+Z237*AA237 -> 189.7
X239: Total Fixed Expenses | AB239: =+SUM(AB235:AB238) -> 1353.8268 | AC239: =+SUM(AC235:AC238) -> 0
X241: Total Specified Expenses | AB241: =+SUM(AB232+AB239) -> 7401.477098 | AC241: =+SUM(AC232+AC239) -> 0

Sheet Blackberry Budget Y5
B3: Blackberry Enterprise Budget Year 5 | X3: Summary Budget Year 3
B4: Operation / Operating Input | C4: Size/ Unit | D4: Power Unit Size | E4: # | F4: Perf Rate | G4: Times Over | H4: Month | I4: Power unit cost | M4: Equipment Cost | O4: Alloc Labor | Q4: Operating / Durable Input | T4: Total Cost | X4: Items | Y4: unit | Z4: Price | AA4: Quantity | AB4: Amount | AC4: Your Farm
I5: R&M | J5: Fuel | K5: Direct | L5: Fixed | M5: Direct | N5: Fixed | O5: Hours | P5: Cost | Q5: Amount | R5: Price | S5: Cost
X6: Direct expenses
B7: Mow between Rows | E7: =+IF(D7="MFWD 50hp", Equipment!$U$5, IF('Blackberry Budget Y5'!D7="MFWD 50hp", Equipment!$U$6, IF(D7="4*4", Equipment!$U$7, " "))) ->  | H7: Mar | X7: Fertilizer
B8: Rotary cutter | C8: 6 ft | D8: MFWD 50hp | E8: 4 | F8: =+Equipment!$I$25 -> 0.572 | G8: 0.5 | I8: =+$G$8*Equipment!$M$25 -> 0.24596 | J8: =+G8*Equipment!$K$25 -> 2.1168576 | K8: =+SUM(I8:J8) -> 2.3628176 | L8: =+G8*Equipment!$P$25 -> 1.6302 | M8: =+G8*Equipment!$L$25 -> 0.215 | N8: =+G8*Equipment!$O$25 -> 0.63 | O8: =+F8*G8 -> 0.286 | P8: =+O8*Labor_Fuel_Interest!$C$10 -> 4.98212 | T8: =+S8+P8+N8+M8+L8+K8 -> 9.8201376 | U8: =+(K8+M8+P8+S8) -> 7.5599376 | X8: Urea | Y8: lb. | Z8: =+R$13 -> 0.3922666667 | AA8: =+Q$13+Q$49 -> 130 | AB8: =+Z8*AA8 -> 50.99466667
B9: Mow between Rows | E9: =+IF(D9="MFWD 50hp", Equipment!$U$5, IF('Blackberry Budget Y5'!D9="MFWD 50hp", Equipment!$U$6, IF(D9="4*4", Equipment!$U$7, " "))) ->  | H9: Apr | U9: =+(K9+M9+P9+S9) -> 0 | X9: Chemicals
B10: Rotary cutter | C10: 6 ft | D10: MFWD 50hp | E10: 4 | F10: =+Equipment!$I$25 -> 0.572 | G10: 0.5 | I10: =+$G$8*Equipment!$M$25 -> 0.24596 | J10: =+G10*Equipment!$K$25 -> 2.1168576 | K10: =+SUM(I10:J10) -> 2.3628176 | L10: =+G10*Equipment!$P$25 -> 1.6302 | M10: =+G10*Equipment!$L$25 -> 0.215 | N10: =+G10*Equipment!$O$25 -> 0.63 | O10: =+F10*G10 -> 0.286 | P10: =+O10*Labor_Fuel_Interest!$C$10 -> 4.98212 | T10: =+S10+P10+N10+M10+L10+K10 -> 9.8201376 | U10: =+(K10+M10+P10+S10) -> 7.5599376 | X10: Pristine | Y10: oz | Z10: =+R$16 -> 0.809375 | AA10: =+Q$16 -> 21 | AB10: =+Z10*AA10 -> 16.996875
B11: Apply fertilizer | H11: Apr | U11: 0 | X11: Captane | Y11: lb. | Z11: =+R$17 -> 6.736 | AA11: =+Q$17+Q$27+Q$37+Q$46 -> 10 | AB11: 67.36
B12: Side dresser | C12: 1R 3ft | D12: MFWD 50hp | E12: 4 | F12: =+Equipment!$I$27 -> 0.846 | G12: 0.5 | I12: =+G12*Equipment!$M$27 -> 0.36378 | J12: =+G12*Equipment!$K$27 -> 3.1308768 | K12: =SUM(I12:J12) -> 3.4946568 | L12: =+G12*Equipment!$P$27 -> 2.4111 | M12: =+G12*Equipment!$L$27 -> 1.055 | N12: =+G12*Equipment!$O$27 -> 4.505 | O12: =+F12*G12 -> 0.423 | P12: =+Labor_Fuel_Interest!$C$10*O12 -> 7.36866 | T12: =+S12+P12+N12+M12+L12+K12 -> 18.8344168 | U12: 11.9183168 | X12: Quilt Xcel | Y12: fl oz | Z12: =+R$26 -> 1.245260417 | AA12: =+Q$26+Q$45 -> 35 | AB12: 43.58411458
B13: Urea | C13: lb. | Q13: 65 | R13: =+'Chemical & Fertilizer Costs'!$F$25 -> 0.3922666667 | S13: =+R13*Q13 -> 25.49733333 | T13: =+S13+P13+N13+M13+L13+K13 -> 25.49733333 | U13: 25.49733333 | X13: Luna Tranquility | Y13: fl oz | Z13: =+R$36 -> 3.24984375 | AA13: =+Q$36 -> 20 | AB13: 64.996875
B14: Disease management | U14: 0 | X14: Operator labor
B15: Sprayer (Air Blast) | D15: MFWD 50hp | E15: 4 | F15: =+Equipment!$I$35 -> 0.245 | G15: 0.5 | H15: Apr | I15: =+IF('General Budget Assumptions'!$C$3="None",0,G$15*Equipment!$M$35) -> 0.10535 | J15: =+IF('General Budget Assumptions'!$C$3="none",0,G15*Equipment!$K$35) -> 0.906696 | K15: =IF('General Budget Assumptions'!$C$3="none",0,SUM(I15:J15)) -> 1.012046 | L15: =+IF('General Budget Assumptions'!$C$3="none",0,G15*Equipment!$P$35) -> 0.69825 | M15: =+IF('General Budget Assumptions'!$C$3="none",0,G15*Equipment!$L$35) -> 5.035 | N15: =+IF('General Budget Assumptions'!$C$3="none",0,G15*Equipment!$O$35) -> 7.355 | O15: =+IF('General Budget Assumptions'!$C$3="none",0,F15*G15) -> 0.1225 | P15: =+IF('General Budget Assumptions'!$C$3="none",0,O15*Labor_Fuel_Interest!$C$10) -> 2.13395 | T15: =+IF('General Budget Assumptions'!C$3="Conventional Fungicide Program",K15+L15+M15+N15+P15+S15,0) -> 16.234246 | U15: =+(K15+M15+P15+S15) -> 8.180996 | X15: Tractors | Y15: hour | Z15: =+Labor_Fuel_Interest!$C$10 -> 17.42 | AA15: =+O$8+O$10+O$12+O$15+O$22+O$25+O$31+O$35+O$41+O$44+O$53+O$56+O$59+O$48 -> 3.624 | AB15: =+Z15*AA15 -> 63.13008
B16: Pristine | C16: oz | Q16: =+IF('General Budget Assumptions'!C$3="Conventional Fungicide Program",'Chemical & Fertilizer Costs'!F$41,0) -> 21 | R16: =+'Chemical & Fertilizer Costs'!H$10 -> 0.809375 | S16: =+R16*Q16 -> 16.996875 | T16: =+S16+P16+N16+M16+L16+K16 -> 16.996875 | U16: 16.996875 | X16: Harvest labor
B17: Captan | C17: lb. | Q17: =+IF('General Budget Assumptions'!C$3="Conventional Fungicide Program",'Chemical & Fertilizer Costs'!F$34,0) -> 2.5 | R17: =+'Chemical & Fertilizer Costs'!H$9 -> 6.736 | S17: =R17*Q17 -> 16.84 | T17: =+S17+P17+N17+M17+L17+K17 -> 16.84 | U17: 16.84 | X17: Special labor | Y17: hour | Z17: =+Labor_Fuel_Interest!$C$11 -> 13.89 | AA17: =+O$65 -> 82.5 | AB17: =+Z17*AA17 -> 1145.925
B18: Irrigation | H18: Apr | M18: 35.4 | N18: 27.1 | O18: 0.05 | P18: =+O18*Labor_Fuel_Interest!$C$10 -> 0.871 | T18: =+S18+P18+N18+M18+L18+K18 -> 63.371 | U18: 36.271 | X18: Hand labor
B19: Hoeing | G19: 1 | H19: May | U19: 0 | X19: Special labor | Y19: hour | Z19: =+Labor_Fuel_Interest!$C$11 -> 13.89 | AA19: =+O$20+O$29+O$39 -> 33 | AB19: =+Z19*AA19 -> 458.37
B20: hand labor | C20: hour | O20: 10 | P20: =+O20*Labor_Fuel_Interest!$C$11 -> 138.9 | T20: =+S20+P20+N20+M20+L20+K20 -> 138.9 | U20: 138.9 | X20: Irrigation labor | AB20: =+Z20*AA20 -> 0
B21: Mow between Rows | E21: =+IF(D21="MFWD 50hp", Equipment!$U$5, IF('Blackberry Budget Y5'!D21="MFWD 50hp", Equipment!$U$6, IF(D21="4*4", Equipment!$U$7, " "))) ->  | H21: May | U21: 0 | X21: Special labor | Y21: hour | Z21: =+Labor_Fuel_Interest!$C$10 -> 17.42 | AA21: =+O$18+O$23+O$33+O$42+O$54+O$57+O$60 -> 0.35 | AB21: =+Z21*AA21 -> 6.097
B22: Rotary cutter | C22: 6 ft | D22: MFWD 50hp | E22: 4 | F22: =+Equipment!$I$25 -> 0.572 | G22: 0.5 | I22: =+$G$8*Equipment!$M$25 -> 0.24596 | J22: =+G22*Equipment!$K$25 -> 2.1168576 | K22: =+SUM(I22:J22) -> 2.3628176 | L22: =+G22*Equipment!$P$25 -> 1.6302 | M22: =+G22*Equipment!$L$25 -> 0.215 | N22: =+G22*Equipment!$O$25 -> 0.63 | O22: =+F22*G22 -> 0.286 | P22: =+O22*Labor_Fuel_Interest!$C$10 -> 4.98212 | T22: =+S22+P22+N22+M22+L22+K22 -> 9.8201376 | U22: =+(K22+M22+P22+S22) -> 7.5599376 | X22: Pruning/Cane removal Labor
B23: Irrigation | H23: May | M23: 35.4 | N23: 27.1 | O23: 0.05 | P23: =+O23*Labor_Fuel_Interest!$C$10 -> 0.871 | T23: =+S23+P23+N23+M23+L23+K23 -> 63.371 | U23: 36.271 | X23: Special labor | Y23: hour | Z23: =+Labor_Fuel_Interest!$C$11 -> 13.89 | AA23: =+O$32+O$51 -> 27 | AB23: =+Z23*AA23 -> 375.03
B24: Disease management | U24: 0 | X24: Irrigation variable cost | Y24: acre | Z24: =+M$18+M$23+M$33+M$42+M$54+M$57+M$60 -> 247.8 | AA24: 1 | AB24: =+Z24*AA24 -> 247.8
B25: Sprayer (Air Blast) | D25: MFWD 50hp | E25: 4 | F25: =+Equipment!$I$35 -> 0.245 | G25: 0.5 | H25: May | I25: =+IF('General Budget Assumptions'!$C$3="None",0,G$25*Equipment!$M$35) -> 0.10535 | J25: =+IF('General Budget Assumptions'!$C$3="None",0,G$25*Equipment!$K$35) -> 0.906696 | K25: =IF('General Budget Assumptions'!$C$3="None",0,SUM(I25:J25)) -> 1.012046 | L25: =+IF('General Budget Assumptions'!$C$3="None",0,G$25*Equipment!$P$35) -> 0.69825 | M25: =+IF('General Budget Assumptions'!$C$3="None",0,G$25*Equipment!$L$35) -> 5.035 | N25: =+IF('General Budget Assumptions'!$C$3="None",0,G$25*Equipment!$O$35) -> 7.355 | O25: =+IF('General Budget Assumptions'!$C$3="None",0,F25*G25) -> 0.1225 | P25: =+IF('General Budget Assumptions'!$C$3="None",0,O25*Labor_Fuel_Interest!$C$10) -> 2.13395 | T25: =+IF('General Budget Assumptions'!C$3="Conventional Fungicide Program",K25+L25+M25+N25+P25+S25,0) -> 16.234246 | U25: =+(K25+M25+P25+S25) -> 8.180996 | X25: Diesel Fuel
B26: Quilt Xcel | C26: fl oz | Q26: =+IF('General Budget Assumptions'!C$3="Conventional Fungicide Program",'Chemical & Fertilizer Costs'!F$44,0) -> 17.5 | R26: ='Chemical & Fertilizer Costs'!H$7 -> 1.245260417 | S26: =+R26*Q26 -> 21.79205729 | T26: =+S26+P26+N26+M26+L26+K26 -> 21.79205729 | U26: =+(K26+M26+P26+S26) -> 21.79205729 | X26: Tractors | Y26: gal | Z26: =+Labor_Fuel_Interest!$E$4 -> 2.88 | AA26: =(J$8+J$10+J$12+J$15+J$22+J$25+J$31+J$35+J$41+J$44+J$53+J$56+J$59+J$48)/Z26 -> 9.31368 | AB26: =+Z26*AA26 -> 26.8233984
B27: Captan | C27: lb. | Q27: =+IF('General Budget Assumptions'!C$3="Conventional Fungicide Program",'Chemical & Fertilizer Costs'!F$34,0) -> 2.5 | R27: =+'Chemical & Fertilizer Costs'!H$9 -> 6.736 | S27: =R27*Q27 -> 16.84 | T27: =+S27+P27+N27+M27+L27+K27 -> 16.84 | U27: 16.84 | X27: Repair & Maintenance
B28: Hoeing | G28: 1 | H28: Jun | U28: 0 | X28: Implements | Y28: acre | Z28: =+M$61-(M$18+M$23+M$33+M$42+M$54+M$57+M$60) -> 23.97 | AA28: 1 | AB28: =+Z28*AA28 -> 23.97
B29: hand labor | C29: hour | O29: 10 | P29: =+O29*Labor_Fuel_Interest!$C$11 -> 138.9 | T29: =+S29+P29+N29+M29+L29+K29 -> 138.9 | U29: 138.9 | X29: Tractors | Y29: acre | Z29: =+I$61 -> 3.11664 | AA29: 1 | AB29: =+Z29*AA29 -> 3.11664
B30: Mow between Rows | E30: =+IF(D30="MFWD 50hp", Equipment!$U$5, IF('Blackberry Budget Y5'!D30="MFWD 50hp", Equipment!$U$6, IF(D30="4*4", Equipment!$U$7, " "))) ->  | H30: Jun | U30: 0 | X30: Post-harvest Expenses
B31: Rotary cutter | C31: 6 ft | D31: MFWD 50hp | E31: 4 | F31: =+Equipment!$I$25 -> 0.572 | G31: 0.5 | I31: =+$G$8*Equipment!$M$25 -> 0.24596 | J31: =+G31*Equipment!$K$25 -> 2.1168576 | K31: =+SUM(I31:J31) -> 2.3628176 | L31: =+G31*Equipment!$P$25 -> 1.6302 | M31: =+G31*Equipment!$L$25 -> 0.215 | N31: =+G31*Equipment!$O$25 -> 0.63 | O31: =+F31*G31 -> 0.286 | P31: =+O31*Labor_Fuel_Interest!$C$10 -> 4.98212 | T31: =+S31+P31+N31+M31+L31+K31 -> 9.8201376 | U31: =+(K31+M31+P31+S31) -> 7.5599376 | X31: Plastic clamshell containers (qt) | Y31: each | Z31: =+R$66 -> 0.1491388889 | AA31: =+Q$66 -> 2500 | AB31: =+Z31*AA31 -> 372.8472222
B32: Topping Blackberries/Pruning | C32: hour | G32: 1 | H32: Jun | O32: 7 | P32: =+O32*Labor_Fuel_Interest!$C$11 -> 97.23 | T32: =+S32+P32+N32+M32+L32+K32 -> 97.23 | U32: 97.23 | X32: Electricity | Y32: acre | Z32: =+M$67 -> 36.6 | AA32: 1 | AB32: =+Z32*AA32 -> 36.6
B33: Irrigation | H33: Jun | M33: 35.4 | N33: 27.1 | O33: 0.05 | P33: =+O33*Labor_Fuel_Interest!$C$10 -> 0.871 | T33: =+S33+P33+N33+M33+L33+K33 -> 63.371 | U33: 36.271 | X33: Marketing (10% of gross revenue) | Y33: acre | Z33: =+T$68 -> 2998.75 | AA33: 1 | AB33: =+Z33*AA33 -> 2998.75
B34: Disease management | U34: 0 | X34: Interest on OP. CAP. | Y34: acre | Z34: =+T$62 -> 45.25842655 | AA34: 1 | AB34: =+Z34*AA34 -> 45.25842655
B35: Sprayer (Air Blast) | D35: MFWD 50hp | E35: 4 | F35: =+Equipment!$I$35 -> 0.245 | G35: 0.5 | H35: Jun | I35: =+IF('General Budget Assumptions'!$C$3="None",0,G$35*Equipment!$M$35) -> 0.10535 | J35: =+IF('General Budget Assumptions'!$C$3="None",0,G$35*Equipment!$K$35) -> 0.906696 | K35: =IF('General Budget Assumptions'!$C$3="None",0,SUM(I35:J35)) -> 1.012046 | L35: =+IF('General Budget Assumptions'!$C$3="None",0,G$35*Equipment!$P$35) -> 0.69825 | M35: =+IF('General Budget Assumptions'!$C$3="None",0,G$35*Equipment!$L$35) -> 5.035 | N35: =+IF('General Budget Assumptions'!$C$3="None",0,G$35*Equipment!$O$35) -> 7.355 | O35: =+IF('General Budget Assumptions'!$C$3="None",0,F35*G35) -> 0.1225 | P35: =+IF('General Budget Assumptions'!$C$3="None",0,O35*Labor_Fuel_Interest!$C$10) -> 2.13395 | T35: =+IF('General Budget Assumptions'!C$3="Conventional Fungicide Program",K35+L35+M35+N35+P35+S35,0) -> 16.234246 | U35: =+(K35+M35+P35+S35) -> 8.180996 | X35: Total Direct Expenses | AB35: =+SUM(AB7:AB34) -> 6047.650298 | AC35: =+SUM(AC7:AC34) -> 0
B36: Luna Tranquility | C36: fl oz | Q36: =+IF('General Budget Assumptions'!C$3="Conventional Fungicide Program",'Chemical & Fertilizer Costs'!F$37,0) -> 20 | R36: ='Chemical & Fertilizer Costs'!H$8 -> 3.24984375 | S36: =+R36*Q36 -> 64.996875 | T36: =+S36+P36+N36+M36+L36+K36 -> 64.996875 | U36: =+(K36+M36+P36+S36) -> 64.996875
B37: Captan | C37: lb. | Q37: =+IF('General Budget Assumptions'!C$3="Conventional Fungicide Program",'Chemical & Fertilizer Costs'!F$34,0) -> 2.5 | R37: =+'Chemical & Fertilizer Costs'!H$9 -> 6.736 | S37: =R37*Q37 -> 16.84 | T37: =+S37+P37+N37+M37+L37+K37 -> 16.84 | U37: 16.84 | X37: Fixed Expenses
B38: Hoeing | G38: 1 | H38: Jul | U38: 0 | X38: Implements/Refrigerator | Y38: acre | Z38: =+N$61+N$67-(N$18+N$23+N$33+N$42+N$54+N$57+N$60) -> 1143.47 | AA38: 1 | AB38: =+Z38*AA38 -> 1143.47
B39: hand labor | C39: hour | O39: 13 | P39: =+O39*Labor_Fuel_Interest!$C$11 -> 180.57 | T39: =+S39+P39+N39+M39+L39+K39 -> 180.57 | U39: 180.57 | X39: Tractors | Y39: acre | Z39: =+L$61 -> 20.6568 | AA39: 1 | AB39: =+Z39*AA39 -> 20.6568
B40: Mow between Rows | E40: =+IF(D40="MFWD 50hp", Equipment!$U$5, IF('Blackberry Budget Y5'!D40="MFWD 50hp", Equipment!$U$6, IF(D40="4*4", Equipment!$U$7, " "))) ->  | H40: Jul | U40: 0 | X40: Irrigation set-up | Y40: acre | Z40: =+N$18+N$23+N$33+N$42+N$54+N$57+N$60 -> 189.7 | AA40: 1 | AB40: =+Z40*AA40 -> 189.7
B41: Rotary cutter | C41: 6 ft | D41: MFWD 50hp | E41: 4 | F41: =+Equipment!$I$25 -> 0.572 | G41: 0.5 | I41: =+$G$8*Equipment!$M$25 -> 0.24596 | J41: =+G41*Equipment!$K$25 -> 2.1168576 | K41: =+SUM(I41:J41) -> 2.3628176 | L41: =+G41*Equipment!$P$25 -> 1.6302 | M41: =+G41*Equipment!$L$25 -> 0.215 | N41: =+G41*Equipment!$O$25 -> 0.63 | O41: =+F41*G41 -> 0.286 | P41: =+O41*Labor_Fuel_Interest!$C$10 -> 4.98212 | T41: =+S41+P41+N41+M41+L41+K41 -> 9.8201376 | U41: =+(K41+M41+P41+S41) -> 7.5599376
B42: Irrigation | H42: Jul | M42: 35.4 | N42: 27.1 | O42: 0.05 | P42: =+O42*Labor_Fuel_Interest!$C$10 -> 0.871 | T42: =+S42+P42+N42+M42+L42+K42 -> 63.371 | U42: 36.271 | X42: Total Fixed Expenses | AB42: =+SUM(AB38:AB41) -> 1353.8268 | AC42: =+SUM(AC38:AC41) -> 0
B43: Disease management | U43: 0
B44: Sprayer (Air Blast) | D44: MFWD 50hp | E44: 4 | F44: =+Equipment!$I$35 -> 0.245 | G44: 0.5 | H44: Jul | I44: =+IF('General Budget Assumptions'!$C$3="None",0,G$44*Equipment!$M$35) -> 0.10535 | J44: =+IF('General Budget Assumptions'!$C$3="None",0,G$44*Equipment!$K$35) -> 0.906696 | K44: =IF('General Budget Assumptions'!$C$3="None",0,SUM(I44:J44)) -> 1.012046 | L44: =+IF('General Budget Assumptions'!$C$3="None",0,G$44*Equipment!$P$35) -> 0.69825 | M44: =+IF('General Budget Assumptions'!$C$3="None",0,G$44*Equipment!$L$35) -> 5.035 | N44: =+IF('General Budget Assumptions'!$C$3="None",0,G$44*Equipment!$O$35) -> 7.355 | O44: =+IF('General Budget Assumptions'!$C$3="None",0,F44*G44) -> 0.1225 | P44: =+IF('General Budget Assumptions'!$C$3="None",0,O44*Labor_Fuel_Interest!$C$10) -> 2.13395 | T44: =+IF('General Budget Assumptions'!C$3="Conventional Fungicide Program",K44+L44+M44+N44+P44+S44,0) -> 16.234246 | U44: =+(K44+M44+P44+S44) -> 8.180996 | X44: Total Specified Expenses | AB44: =+SUM(AB35+AB42) -> 7401.477098 | AC44: =+SUM(AC35+AC42) -> 0
B45: Quilt Xcel | C45: fl oz | Q45: =+IF('General Budget Assumptions'!C$3="Conventional Fungicide Program",'Chemical & Fertilizer Costs'!F$44,0) -> 17.5 | R45: ='Chemical & Fertilizer Costs'!H$7 -> 1.245260417 | S45: =+R45*Q45 -> 21.79205729 | T45: =+S45+P45+N45+M45+L45+K45 -> 21.79205729 | U45: =+(K45+M45+P45+S45) -> 21.79205729
B46: Captan | C46: lb. | Q46: =+IF('General Budget Assumptions'!C$3="Conventional Fungicide Program",'Chemical & Fertilizer Costs'!F$34,0) -> 2.5 | R46: =+'Chemical & Fertilizer Costs'!H$9 -> 6.736 | S46: =R46*Q46 -> 16.84 | T46: =+S46+P46+N46+M46+L46+K46 -> 16.84 | U46: 16.84
B47: Apply fertilizer | H47: Jul | U47: 0
B48: Side dresser | C48: 1R 3ft | D48: MFWD 50hp | E48: 4 | F48: =+Equipment!$I$27 -> 0.846 | G48: 0.5 | I48: =+G48*Equipment!$M$27 -> 0.36378 | J48: =+G48*Equipment!$K$27 -> 3.1308768 | K48: =SUM(I48:J48) -> 3.4946568 | L48: =+G48*Equipment!$P$27 -> 2.4111 | M48: =+G48*Equipment!$L$27 -> 1.055 | N48: =+G48*Equipment!$O$27 -> 4.505 | O48: =+F48*G48 -> 0.423 | P48: =+Labor_Fuel_Interest!$C$10*O48 -> 7.36866 | T48: =+S48+P48+N48+M48+L48+K48 -> 18.8344168 | U48: 11.9183168
B49: Urea | C49: lb. | Q49: 65 | R49: =+'Chemical & Fertilizer Costs'!$F$25 -> 0.3922666667 | S49: =+R49*Q49 -> 25.49733333 | T49: =+S49+P49+N49+M49+L49+K49 -> 25.49733333 | U49: 25.49733333
B50: Cane Removal
B51: hand labor | O51: 20 | P51: =+O51*Labor_Fuel_Interest!$C$11 -> 277.8 | T51: =+S51+P51+N51+M51+L51+K51 -> 277.8 | U51: 277.8
B52: Mow between Rows | E52: =+IF(D52="MFWD 50hp", Equipment!$U$5, IF('Blackberry Budget Y5'!D52="MFWD 50hp", Equipment!$U$6, IF(D52="4*4", Equipment!$U$7, " "))) ->  | H52: Aug | U52: 0
B53: Rotary cutter | C53: 6 ft | D53: MFWD 50hp | E53: 4 | F53: =+Equipment!$I$25 -> 0.572 | G53: 0.5 | I53: =+$G$8*Equipment!$M$25 -> 0.24596 | J53: =+G53*Equipment!$K$25 -> 2.1168576 | K53: =+SUM(I53:J53) -> 2.3628176 | L53: =+G53*Equipment!$P$25 -> 1.6302 | M53: =+G53*Equipment!$L$25 -> 0.215 | N53: =+G53*Equipment!$O$25 -> 0.63 | O53: =+F53*G53 -> 0.286 | P53: =+O53*Labor_Fuel_Interest!$C$10 -> 4.98212 | T53: =+S53+P53+N53+M53+L53+K53 -> 9.8201376 | U53: =+(K53+M53+P53+S53) -> 7.5599376
B54: Irrigation | H54: Aug | M54: 35.4 | N54: 27.1 | O54: 0.05 | P54: =+O54*Labor_Fuel_Interest!$C$10 -> 0.871 | T54: =+S54+P54+N54+M54+L54+K54 -> 63.371 | U54: 36.271
B55: Mow between Rows | E55: =+IF(D55="MFWD 50hp", Equipment!$U$5, IF('Blackberry Budget Y5'!D55="MFWD 50hp", Equipment!$U$6, IF(D55="4*4", Equipment!$U$7, " "))) ->  | H55: Sep | U55: 0
B56: Rotary cutter | C56: 6 ft | D56: MFWD 50hp | E56: 4 | F56: =+Equipment!$I$25 -> 0.572 | G56: 0.5 | I56: =+$G$8*Equipment!$M$25 -> 0.24596 | J56: =+G56*Equipment!$K$25 -> 2.1168576 | K56: =+SUM(I56:J56) -> 2.3628176 | L56: =+G56*Equipment!$P$25 -> 1.6302 | M56: =+G56*Equipment!$L$25 -> 0.215 | N56: =+G56*Equipment!$O$25 -> 0.63 | O56: =+F56*G56 -> 0.286 | P56: =+O56*Labor_Fuel_Interest!$C$10 -> 4.98212 | T56: =+S56+P56+N56+M56+L56+K56 -> 9.8201376 | U56: =+(K56+M56+P56+S56) -> 7.5599376
B57: Irrigation | H57: Sep | M57: 35.4 | N57: 27.1 | O57: 0.05 | P57: =+O57*Labor_Fuel_Interest!$C$10 -> 0.871 | T57: =+S57+P57+N57+M57+L57+K57 -> 63.371 | U57: =+(K57+M57+P57+S57) -> 36.271
B58: Mow between Rows | E58: =+IF(D58="MFWD 50hp", Equipment!$U$5, IF('Blackberry Budget Y5'!D58="MFWD 50hp", Equipment!$U$6, IF(D58="4*4", Equipment!$U$7, " "))) ->  | H58: Oct | U58: 0
B59: Rotary cutter | C59: 6 ft | D59: MFWD 50hp | E59: 4 | F59: =+Equipment!$I$25 -> 0.572 | G59: 0.5 | I59: =+$G$8*Equipment!$M$25 -> 0.24596 | J59: =+G59*Equipment!$K$25 -> 2.1168576 | K59: =+SUM(I59:J59) -> 2.3628176 | L59: =+G59*Equipment!$P$25 -> 1.6302 | M59: =+G59*Equipment!$L$25 -> 0.215 | N59: =+G59*Equipment!$O$25 -> 0.63 | O59: =+F59*G59 -> 0.286 | P59: =+O59*Labor_Fuel_Interest!$C$10 -> 4.98212 | T59: =+S59+P59+N59+M59+L59+K59 -> 9.8201376 | U59: =+(K59+M59+P59+S59) -> 7.5599376
B60: Irrigation | H60: Oct | M60: 35.4 | N60: 27.1 | O60: 0.05 | P60: =+O60*Labor_Fuel_Interest!$C$10 -> 0.871 | T60: =+S60+P60+N60+M60+L60+K60 -> 63.371 | U60: =+(K60+M60+P60+S60) -> 36.271
B61: Pre-harvest costs | I61: =+SUM(I7:I60) -> 3.11664 | J61: 26.8233984 | K61: 29.9400384 | L61: 20.6568 | M61: 271.77 | N61: 233.17 | O61: 63.974 | P61: 902.62708 | S61: =+SUM(S7:S60) -> 243.9325313 | T61: =+SUM(T7:T60) -> 1702.09645 | U61: =SUM(U7:U60) -> 1448.26965
B62: Interest on Operating Capital | T62: =+(U61*Labor_Fuel_Interest!$C$15)/2 -> 45.25842655
B63: Pre-harvest cost + Interest | T63: =+SUM(T61:T62) -> 1747.354876
B64: HARVESTING
B65: Picking | O65: =+IF('General Budget Assumptions'!C$4="100% Ready_Picked_Retail",165, IF('General Budget Assumptions'!C$4="50%PYO 50%Ready_Picked",(165*0.5),(165*0.25))) -> 82.5 | P65: =+O65*Labor_Fuel_Interest!C$11 -> 1145.925 | T65: =+S65+P65+N65+M65+L65+K65 -> 1145.925
B66: Plastic clamshell containers (qt) | Q66: =+IF('General Budget Assumptions'!C$4="100% Ready_Picked_Retail",Yield!B$6, IF('General Budget Assumptions'!C$4="50%PYO 50%Ready_Picked",(Yield!B$6*0.5),(Yield!B$6*0.25))) -> 2500 | R66: =+Marketing!B6 -> 0.1491388889 | S66: =+Q66*R66 -> 372.8472222 | T66: =+S66+P66+N66+M66+L66+K66 -> 372.8472222
B67: Refrigeration | M67: =30*1.22 -> 36.6 | N67: 1100 | T67: =+S67+P67+N67+M67+L67+K67 -> 1136.6
B68: Marketing | Q68: 1 | R68: =IF('General Budget Assumptions'!C$4="100% Ready_Picked_Retail",(Yield!B$6*'Blackberry Prices'!C$4),IF('General Budget Assumptions'!C$4="50%PYO 50%Ready_Picked", ((0.5*Yield!B$6*'Blackberry Prices'!C$4)+(0.5*Yield!B$6*'Blackberry Prices'!B$4)), ((0.75*Yield!B$6*'Blackberry Prices'!B$4)+(0.25*Yield!B$6*'Blackberry Prices'!C$4))))*0.1 -> 2998.75 | S68: =+Q68*R68 -> 2998.75 | T68: =+S68+P68+N68+M68+L68+K68 -> 2998.75
B69: Harvest totals | T69: =SUM(T65:T68) -> 5654.122222
B70: Totals | T70: =+T$63+T$69 -> 7401.477098
B200: Blackberry Enterprise Budget Year 5
B201: Operation / Operating Input | C201: Size/ Unit | D201: Power Unit Size | E201: # | F201: Perf Rate | G201: Times Over | H201: Month | I201: Power unit cost | M201: Equipment Cost | O201: Alloc Labor | Q201: Operating / Durable Input | T201: Total Cost
I202: R&M | J202: Fuel | K202: Direct | L202: Fixed | M202: Direct | N202: Fixed | O202: Hours | P202: Cost | Q202: Amount | R202: Price | S202: Cost
B204: Mow between Rows | E204: =+IF(D204="MFWD 50hp", Equipment!$U$5, IF('Blackberry Budget Y5'!D204="MFWD 50hp", Equipment!$U$6, IF(D204="4*4", Equipment!$U$7, " "))) ->  | H204: Mar
B205: Rotary cutter | C205: 6 ft | D205: MFWD 50hp | E205: 4 | F205: =+Equipment!$I$25 -> 0.572 | G205: 0.5 | I205: =+$G$8*Equipment!$M$25 -> 0.24596 | J205: =+G205*Equipment!$K$25 -> 2.1168576 | K205: =+SUM(I205:J205) -> 2.3628176 | L205: =+G205*Equipment!$P$25 -> 1.6302 | M205: =+G205*Equipment!$L$25 -> 0.215 | N205: =+G205*Equipment!$O$25 -> 0.63 | O205: =+F205*G205 -> 0.286 | P205: =+O205*Labor_Fuel_Interest!$C$10 -> 4.98212 | T205: =+S205+P205+N205+M205+L205+K205 -> 9.8201376
B206: Mow between Rows | E206: =+IF(D206="MFWD 50hp", Equipment!$U$5, IF('Blackberry Budget Y5'!D206="MFWD 50hp", Equipment!$U$6, IF(D206="4*4", Equipment!$U$7, " "))) ->  | H206: Apr
B207: Rotary cutter | C207: 6 ft | D207: MFWD 50hp | E207: 4 | F207: =+Equipment!$I$25 -> 0.572 | G207: 0.5 | I207: =+$G$8*Equipment!$M$25 -> 0.24596 | J207: =+G207*Equipment!$K$25 -> 2.1168576 | K207: =+SUM(I207:J207) -> 2.3628176 | L207: =+G207*Equipment!$P$25 -> 1.6302 | M207: =+G207*Equipment!$L$25 -> 0.215 | N207: =+G207*Equipment!$O$25 -> 0.63 | O207: =+F207*G207 -> 0.286 | P207: =+O207*Labor_Fuel_Interest!$C$10 -> 4.98212 | T207: =+S207+P207+N207+M207+L207+K207 -> 9.8201376
B208: Apply fertilizer | H208: Apr
B209: Side dresser | C209: 1R 3ft | D209: MFWD 50hp | E209: 4 | F209: =+Equipment!$I$27 -> 0.846 | G209: 0.5 | I209: =+G209*Equipment!$M$27 -> 0.36378 | J209: =+G209*Equipment!$K$27 -> 3.1308768 | K209: =SUM(I209:J209) -> 3.4946568 | L209: =+G209*Equipment!$P$27 -> 2.4111 | M209: =+G209*Equipment!$L$27 -> 1.055 | N209: =+G209*Equipment!$O$27 -> 4.505 | O209: =+F209*G209 -> 0.423 | P209: =+Labor_Fuel_Interest!$C$10*O209 -> 7.36866 | T209: =+S209+P209+N209+M209+L209+K209 -> 18.8344168
B210: Urea | C210: lb. | Q210: 65 | R210: =+'Chemical & Fertilizer Costs'!$F$25 -> 0.3922666667 | S210: =+R210*Q210 -> 25.49733333 | T210: =+S210+P210+N210+M210+L210+K210 -> 25.49733333
B211: Disease management
B212: Sprayer (Air Blast) | D212: MFWD 50hp | E212: 4 | F212: =+Equipment!$I$35 -> 0.245 | G212: 0.5 | H212: Apr | I212: =+IF('General Budget Assumptions'!$C$3="None",0,G$15*Equipment!$M$35) -> 0.10535 | J212: =+IF('General Budget Assumptions'!$C$3="none",0,G212*Equipment!$K$35) -> 0.906696 | K212: =IF('General Budget Assumptions'!$C$3="none",0,SUM(I212:J212)) -> 1.012046 | L212: =+IF('General Budget Assumptions'!$C$3="none",0,G212*Equipment!$P$35) -> 0.69825 | M212: =+IF('General Budget Assumptions'!$C$3="none",0,G212*Equipment!$L$35) -> 5.035 | N212: =+IF('General Budget Assumptions'!$C$3="none",0,G212*Equipment!$O$35) -> 7.355 | O212: =+IF('General Budget Assumptions'!$C$3="none",0,F212*G212) -> 0.1225 | P212: =+IF('General Budget Assumptions'!$C$3="none",0,O212*Labor_Fuel_Interest!$C$10) -> 2.13395 | T212: =+IF('General Budget Assumptions'!C$3="Conventional Fungicide Program",K212+L212+M212+N212+P212+S212,0) -> 16.234246
B213: Pristine | C213: oz | Q213: =+IF('General Budget Assumptions'!C$3="Conventional Fungicide Program",'Chemical & Fertilizer Costs'!F$41,0) -> 21 | R213: =+'Chemical & Fertilizer Costs'!H$10 -> 0.809375 | S213: =+R213*Q213 -> 16.996875 | T213: =+S213+P213+N213+M213+L213+K213 -> 16.996875
B214: Captan | C214: lb. | Q214: =+IF('General Budget Assumptions'!C$3="Conventional Fungicide Program",'Chemical & Fertilizer Costs'!F$34,0) -> 2.5 | R214: =+'Chemical & Fertilizer Costs'!H$9 -> 6.736 | S214: =R214*Q214 -> 16.84 | T214: =+S214+P214+N214+M214+L214+K214 -> 16.84
B215: Irrigation | H215: Apr | M215: 35.4 | N215: 27.1 | O215: 0.05 | P215: =+O215*Labor_Fuel_Interest!$C$10 -> 0.871 | T215: =+S215+P215+N215+M215+L215+K215 -> 63.371
B216: Hoeing | G216: 1 | H216: May
B217: hand labor | C217: hour | O217: 10 | P217: =+O217*Labor_Fuel_Interest!$C$11 -> 138.9 | T217: =+S217+P217+N217+M217+L217+K217 -> 138.9
B218: Mow between Rows | E218: =+IF(D218="MFWD 50hp", Equipment!$U$5, IF('Blackberry Budget Y5'!D218="MFWD 50hp", Equipment!$U$6, IF(D218="4*4", Equipment!$U$7, " "))) ->  | H218: May
B219: Rotary cutter | C219: 6 ft | D219: MFWD 50hp | E219: 4 | F219: =+Equipment!$I$25 -> 0.572 | G219: 0.5 | I219: =+$G$8*Equipment!$M$25 -> 0.24596 | J219: =+G219*Equipment!$K$25 -> 2.1168576 | K219: =+SUM(I219:J219) -> 2.3628176 | L219: =+G219*Equipment!$P$25 -> 1.6302 | M219: =+G219*Equipment!$L$25 -> 0.215 | N219: =+G219*Equipment!$O$25 -> 0.63 | O219: =+F219*G219 -> 0.286 | P219: =+O219*Labor_Fuel_Interest!$C$10 -> 4.98212 | T219: =+S219+P219+N219+M219+L219+K219 -> 9.8201376
B220: Irrigation | H220: May | M220: 35.4 | N220: 27.1 | O220: 0.05 | P220: =+O220*Labor_Fuel_Interest!$C$10 -> 0.871 | T220: =+S220+P220+N220+M220+L220+K220 -> 63.371
B221: Disease management
B222: Sprayer (Air Blast) | D222: MFWD 50hp | E222: 4 | F222: =+Equipment!$I$35 -> 0.245 | G222: 0.5 | H222: May | I222: =+IF('General Budget Assumptions'!$C$3="None",0,G$25*Equipment!$M$35) -> 0.10535 | J222: =+IF('General Budget Assumptions'!$C$3="None",0,G$25*Equipment!$K$35) -> 0.906696 | K222: =IF('General Budget Assumptions'!$C$3="None",0,SUM(I222:J222)) -> 1.012046 | L222: =+IF('General Budget Assumptions'!$C$3="None",0,G$25*Equipment!$P$35) -> 0.69825 | M222: =+IF('General Budget Assumptions'!$C$3="None",0,G$25*Equipment!$L$35) -> 5.035 | N222: =+IF('General Budget Assumptions'!$C$3="None",0,G$25*Equipment!$O$35) -> 7.355 | O222: =+IF('General Budget Assumptions'!$C$3="None",0,F222*G222) -> 0.1225 | P222: =+IF('General Budget Assumptions'!$C$3="None",0,O222*Labor_Fuel_Interest!$C$10) -> 2.13395 | T222: =+IF('General Budget Assumptions'!C$3="Conventional Fungicide Program",K222+L222+M222+N222+P222+S222,0) -> 16.234246
B223: Quilt Xcel | C223: fl oz | Q223: =+IF('General Budget Assumptions'!C$3="Conventional Fungicide Program",'Chemical & Fertilizer Costs'!F$44,0) -> 17.5 | R223: ='Chemical & Fertilizer Costs'!H$7 -> 1.245260417 | S223: =+R223*Q223 -> 21.79205729 | T223: =+S223+P223+N223+M223+L223+K223 -> 21.79205729
B224: Captan | C224: lb. | Q224: =+IF('General Budget Assumptions'!C$3="Conventional Fungicide Program",'Chemical & Fertilizer Costs'!F$34,0) -> 2.5 | R224: =+'Chemical & Fertilizer Costs'!H$9 -> 6.736 | S224: =R224*Q224 -> 16.84 | T224: =+S224+P224+N224+M224+L224+K224 -> 16.84
B225: Hoeing | G225: 1 | H225: Jun
B226: hand labor | C226: hour | O226: 10 | P226: =+O226*Labor_Fuel_Interest!$C$11 -> 138.9 | T226: =+S226+P226+N226+M226+L226+K226 -> 138.9
B227: Mow between Rows | E227: =+IF(D227="MFWD 50hp", Equipment!$U$5, IF('Blackberry Budget Y5'!D227="MFWD 50hp", Equipment!$U$6, IF(D227="4*4", Equipment!$U$7, " "))) ->  | H227: Jun
B228: Rotary cutter | C228: 6 ft | D228: MFWD 50hp | E228: 4 | F228: =+Equipment!$I$25 -> 0.572 | G228: 0.5 | I228: =+$G$8*Equipment!$M$25 -> 0.24596 | J228: =+G228*Equipment!$K$25 -> 2.1168576 | K228: =+SUM(I228:J228) -> 2.3628176 | L228: =+G228*Equipment!$P$25 -> 1.6302 | M228: =+G228*Equipment!$L$25 -> 0.215 | N228: =+G228*Equipment!$O$25 -> 0.63 | O228: =+F228*G228 -> 0.286 | P228: =+O228*Labor_Fuel_Interest!$C$10 -> 4.98212 | T228: =+S228+P228+N228+M228+L228+K228 -> 9.8201376
B229: Topping Blackberries/Pruning | C229: hour | G229: 1 | H229: Jun | O229: 7 | P229: =+O229*Labor_Fuel_Interest!$C$11 -> 97.23 | T229: =+S229+P229+N229+M229+L229+K229 -> 97.23
B230: Irrigation | H230: Jun | M230: 35.4 | N230: 27.1 | O230: 0.05 | P230: =+O230*Labor_Fuel_Interest!$C$10 -> 0.871 | T230: =+S230+P230+N230+M230+L230+K230 -> 63.371
B231: Disease management
B232: Sprayer (Air Blast) | D232: MFWD 50hp | E232: 4 | F232: =+Equipment!$I$35 -> 0.245 | G232: 0.5 | H232: Jun | I232: =+IF('General Budget Assumptions'!$C$3="None",0,G$35*Equipment!$M$35) -> 0.10535 | J232: =+IF('General Budget Assumptions'!$C$3="None",0,G$35*Equipment!$K$35) -> 0.906696 | K232: =IF('General Budget Assumptions'!$C$3="None",0,SUM(I232:J232)) -> 1.012046 | L232: =+IF('General Budget Assumptions'!$C$3="None",0,G$35*Equipment!$P$35) -> 0.69825 | M232: =+IF('General Budget Assumptions'!$C$3="None",0,G$35*Equipment!$L$35) -> 5.035 | N232: =+IF('General Budget Assumptions'!$C$3="None",0,G$35*Equipment!$O$35) -> 7.355 | O232: =+IF('General Budget Assumptions'!$C$3="None",0,F232*G232) -> 0.1225 | P232: =+IF('General Budget Assumptions'!$C$3="None",0,O232*Labor_Fuel_Interest!$C$10) -> 2.13395 | T232: =+IF('General Budget Assumptions'!C$3="Conventional Fungicide Program",K232+L232+M232+N232+P232+S232,0) -> 16.234246
B233: Luna Tranquility | C233: fl oz | Q233: =+IF('General Budget Assumptions'!C$3="Conventional Fungicide Program",'Chemical & Fertilizer Costs'!F$37,0) -> 20 | R233: ='Chemical & Fertilizer Costs'!H$8 -> 3.24984375 | S233: =+R233*Q233 -> 64.996875 | T233: =+S233+P233+N233+M233+L233+K233 -> 64.996875
B234: Captan | C234: lb. | Q234: =+IF('General Budget Assumptions'!C$3="Conventional Fungicide Program",'Chemical & Fertilizer Costs'!F$34,0) -> 2.5 | R234: =+'Chemical & Fertilizer Costs'!H$9 -> 6.736 | S234: =R234*Q234 -> 16.84 | T234: =+S234+P234+N234+M234+L234+K234 -> 16.84
B235: Hoeing | G235: 1 | H235: Jul
B236: hand labor | C236: hour | O236: 13 | P236: =+O236*Labor_Fuel_Interest!$C$11 -> 180.57 | T236: =+S236+P236+N236+M236+L236+K236 -> 180.57
B237: Mow between Rows | E237: =+IF(D237="MFWD 50hp", Equipment!$U$5, IF('Blackberry Budget Y5'!D237="MFWD 50hp", Equipment!$U$6, IF(D237="4*4", Equipment!$U$7, " "))) ->  | H237: Jul
B238: Rotary cutter | C238: 6 ft | D238: MFWD 50hp | E238: 4 | F238: =+Equipment!$I$25 -> 0.572 | G238: 0.5 | I238: =+$G$8*Equipment!$M$25 -> 0.24596 | J238: =+G238*Equipment!$K$25 -> 2.1168576 | K238: =+SUM(I238:J238) -> 2.3628176 | L238: =+G238*Equipment!$P$25 -> 1.6302 | M238: =+G238*Equipment!$L$25 -> 0.215 | N238: =+G238*Equipment!$O$25 -> 0.63 | O238: =+F238*G238 -> 0.286 | P238: =+O238*Labor_Fuel_Interest!$C$10 -> 4.98212 | T238: =+S238+P238+N238+M238+L238+K238 -> 9.8201376
B239: Irrigation | H239: Jul | M239: 35.4 | N239: 27.1 | O239: 0.05 | P239: =+O239*Labor_Fuel_Interest!$C$10 -> 0.871 | T239: =+S239+P239+N239+M239+L239+K239 -> 63.371
B240: Disease management
B241: Sprayer (Air Blast) | D241: MFWD 50hp | E241: 4 | F241: =+Equipment!$I$35 -> 0.245 | G241: 0.5 | H241: Jul | I241: =+IF('General Budget Assumptions'!$C$3="None",0,G$44*Equipment!$M$35) -> 0.10535 | J241: =+IF('General Budget Assumptions'!$C$3="None",0,G$44*Equipment!$K$35) -> 0.906696 | K241: =IF('General Budget Assumptions'!$C$3="None",0,SUM(I241:J241)) -> 1.012046 | L241: =+IF('General Budget Assumptions'!$C$3="None",0,G$44*Equipment!$P$35) -> 0.69825 | M241: =+IF('General Budget Assumptions'!$C$3="None",0,G$44*Equipment!$L$35) -> 5.035 | N241: =+IF('General Budget Assumptions'!$C$3="None",0,G$44*Equipment!$O$35) -> 7.355 | O241: =+IF('General Budget Assumptions'!$C$3="None",0,F241*G241) -> 0.1225 | P241: =+IF('General Budget Assumptions'!$C$3="None",0,O241*Labor_Fuel_Interest!$C$10) -> 2.13395 | T241: =+IF('General Budget Assumptions'!C$3="Conventional Fungicide Program",K241+L241+M241+N241+P241+S241,0) -> 16.234246
B242: Quilt Xcel | C242: fl oz | Q242: =+IF('General Budget Assumptions'!C$3="Conventional Fungicide Program",'Chemical & Fertilizer Costs'!F$44,0) -> 17.5 | R242: ='Chemical & Fertilizer Costs'!H$7 -> 1.245260417 | S242: =+R242*Q242 -> 21.79205729 | T242: =+S242+P242+N242+M242+L242+K242 -> 21.79205729
B243: Captan | C243: lb. | Q243: =+IF('General Budget Assumptions'!C$3="Conventional Fungicide Program",'Chemical & Fertilizer Costs'!F$34,0) -> 2.5 | R243: =+'Chemical & Fertilizer Costs'!H$9 -> 6.736 | S243: =R243*Q243 -> 16.84 | T243: =+S243+P243+N243+M243+L243+K243 -> 16.84
B244: Apply fertilizer | H244: Jul
B245: Side dresser | C245: 1R 3ft | D245: MFWD 50hp | E245: 4 | F245: =+Equipment!$I$27 -> 0.846 | G245: 0.5 | I245: =+G245*Equipment!$M$27 -> 0.36378 | J245: =+G245*Equipment!$K$27 -> 3.1308768 | K245: =SUM(I245:J245) -> 3.4946568 | L245: =+G245*Equipment!$P$27 -> 2.4111 | M245: =+G245*Equipment!$L$27 -> 1.055 | N245: =+G245*Equipment!$O$27 -> 4.505 | O245: =+F245*G245 -> 0.423 | P245: =+Labor_Fuel_Interest!$C$10*O245 -> 7.36866 | T245: =+S245+P245+N245+M245+L245+K245 -> 18.8344168
B246: Urea | C246: lb. | Q246: 65 | R246: =+'Chemical & Fertilizer Costs'!$F$25 -> 0.3922666667 | S246: =+R246*Q246 -> 25.49733333 | T246: =+S246+P246+N246+M246+L246+K246 -> 25.49733333
B247: Cane Removal
B248: hand labor | O248: 20 | P248: =+O248*Labor_Fuel_Interest!$C$11 -> 277.8 | T248: =+S248+P248+N248+M248+L248+K248 -> 277.8
B249: Mow between Rows | E249: =+IF(D249="MFWD 50hp", Equipment!$U$5, IF('Blackberry Budget Y5'!D249="MFWD 50hp", Equipment!$U$6, IF(D249="4*4", Equipment!$U$7, " "))) ->  | H249: Aug
B250: Rotary cutter | C250: 6 ft | D250: MFWD 50hp | E250: 4 | F250: =+Equipment!$I$25 -> 0.572 | G250: 0.5 | I250: =+$G$8*Equipment!$M$25 -> 0.24596 | J250: =+G250*Equipment!$K$25 -> 2.1168576 | K250: =+SUM(I250:J250) -> 2.3628176 | L250: =+G250*Equipment!$P$25 -> 1.6302 | M250: =+G250*Equipment!$L$25 -> 0.215 | N250: =+G250*Equipment!$O$25 -> 0.63 | O250: =+F250*G250 -> 0.286 | P250: =+O250*Labor_Fuel_Interest!$C$10 -> 4.98212 | T250: =+S250+P250+N250+M250+L250+K250 -> 9.8201376
B251: Irrigation | H251: Aug | M251: 35.4 | N251: 27.1 | O251: 0.05 | P251: =+O251*Labor_Fuel_Interest!$C$10 -> 0.871 | T251: =+S251+P251+N251+M251+L251+K251 -> 63.371
B252: Mow between Rows | E252: =+IF(D252="MFWD 50hp", Equipment!$U$5, IF('Blackberry Budget Y5'!D252="MFWD 50hp", Equipment!$U$6, IF(D252="4*4", Equipment!$U$7, " "))) ->  | H252: Sep
B253: Rotary cutter | C253: 6 ft | D253: MFWD 50hp | E253: 4 | F253: =+Equipment!$I$25 -> 0.572 | G253: 0.5 | I253: =+$G$8*Equipment!$M$25 -> 0.24596 | J253: =+G253*Equipment!$K$25 -> 2.1168576 | K253: =+SUM(I253:J253) -> 2.3628176 | L253: =+G253*Equipment!$P$25 -> 1.6302 | M253: =+G253*Equipment!$L$25 -> 0.215 | N253: =+G253*Equipment!$O$25 -> 0.63 | O253: =+F253*G253 -> 0.286 | P253: =+O253*Labor_Fuel_Interest!$C$10 -> 4.98212 | T253: =+S253+P253+N253+M253+L253+K253 -> 9.8201376
B254: Irrigation | H254: Sep | M254: 35.4 | N254: 27.1 | O254: 0.05 | P254: =+O254*Labor_Fuel_Interest!$C$10 -> 0.871 | T254: =+S254+P254+N254+M254+L254+K254 -> 63.371
B255: Mow between Rows | E255: =+IF(D255="MFWD 50hp", Equipment!$U$5, IF('Blackberry Budget Y5'!D255="MFWD 50hp", Equipment!$U$6, IF(D255="4*4", Equipment!$U$7, " "))) ->  | H255: Oct
B256: Rotary cutter | C256: 6 ft | D256: MFWD 50hp | E256: 4 | F256: =+Equipment!$I$25 -> 0.572 | G256: 0.5 | I256: =+$G$8*Equipment!$M$25 -> 0.24596 | J256: =+G256*Equipment!$K$25 -> 2.1168576 | K256: =+SUM(I256:J256) -> 2.3628176 | L256: =+G256*Equipment!$P$25 -> 1.6302 | M256: =+G256*Equipment!$L$25 -> 0.215 | N256: =+G256*Equipment!$O$25 -> 0.63 | O256: =+F256*G256 -> 0.286 | P256: =+O256*Labor_Fuel_Interest!$C$10 -> 4.98212 | T256: =+S256+P256+N256+M256+L256+K256 -> 9.8201376
B257: Irrigation | H257: Oct | M257: 35.4 | N257: 27.1 | O257: 0.05 | P257: =+O257*Labor_Fuel_Interest!$C$10 -> 0.871 | T257: =+S257+P257+N257+M257+L257+K257 -> 63.371
B258: Pre-harvest costs | I258: =+SUM(I204:I257) -> 3.11664 | J258: 26.8233984 | K258: 29.9400384 | L258: 20.6568 | M258: 271.77 | N258: 233.17 | O258: 63.974 | P258: 902.62708 | S258: =+SUM(S204:S257) -> 243.9325313 | T258: =+SUM(T204:T257) -> 1702.09645
B259: Interest on Operating Capital | T259: =+(U258*Labor_Fuel_Interest!$C$15)/2 -> 0
B260: Pre-harvest cost + Interest | T260: =+SUM(T258:T259) -> 1702.09645
B261: HARVESTING
B262: Picking | O262: =+IF('General Budget Assumptions'!C$4="100% Ready_Picked_Retail",165, IF('General Budget Assumptions'!C$4="50%PYO 50%Ready_Picked",(165*0.5),(165*0.25))) -> 82.5 | P262: =+O262*Labor_Fuel_Interest!C$11 -> 1145.925 | T262: =+S262+P262+N262+M262+L262+K262 -> 1145.925
B263: Plastic clamshell containers (qt) | Q263: =+IF('General Budget Assumptions'!C$4="100% Ready_Picked_Retail",Yield!B$6, IF('General Budget Assumptions'!C$4="50%PYO 50%Ready_Picked",(Yield!B$6*0.5),(Yield!B$6*0.25))) -> 2500 | R263: =+Marketing!B203 -> 0 | S263: =+Q263*R263 -> 0 | T263: =+S263+P263+N263+M263+L263+K263 -> 0
B264: Refrigeration | M264: =30*1.22 -> 36.6 | N264: 1100 | T264: =+S264+P264+N264+M264+L264+K264 -> 1136.6
B265: Marketing | Q265: 1 | R265: =IF('General Budget Assumptions'!C$4="100% Ready_Picked_Retail",(Yield!B$6*'Blackberry Prices'!C$4),IF('General Budget Assumptions'!C$4="50%PYO 50%Ready_Picked", ((0.5*Yield!B$6*'Blackberry Prices'!C$4)+(0.5*Yield!B$6*'Blackberry Prices'!B$4)), ((0.75*Yield!B$6*'Blackberry Prices'!B$4)+(0.25*Yield!B$6*'Blackberry Prices'!C$4))))*0.1 -> 2998.75 | S265: =+Q265*R265 -> 2998.75 | T265: =+S265+P265+N265+M265+L265+K265 -> 2998.75
B266: Harvest totals | T266: =SUM(T262:T265) -> 5281.275
B267: Totals | T267: =+T$63+T$69 -> 7401.477098

Sheet Summary Y5
B3: Blackberry Enterprise Budget Year 1 | X3: Summary Budget Year 5
B4: Operation / Operating Input | C4: Size/ Unit | D4: Power Unit Size | E4: # | F4: Perf Rate | G4: Times Over | H4: Month | I4: Power unit cost | M4: Equipment Cost | O4: Alloc Labor | Q4: Operating / Durable Input | T4: total cost | X4: Items | Y4: Unit | Z4: Price | AA4: Quantity | AB4: Amount | AC4: Your Farm
I5: R&M | J5: Fuel | K5: Direct | L5: Fixed | M5: Direct | N5: Fixed | O5: Hours | P5: Cost | Q5: Amount | R5: Price | S5: Cost
X6: Direct expenses
B7: Mow between Rows | E7: =+IF(D7="MFWD 50hp", Equipment!$U$5, IF('Summary Y5'!D7="MFWD 50hp", Equipment!$U$6, IF(D7="4*4", Equipment!$U$7, " "))) ->  | H7: Mar | X7: Fertilizer
B8: Rotary cutter | C8: 6 ft | D8: MFWD 50hp | E8: 4 | F8: =+Equipment!$I$25 -> 0.572 | G8: 0.5 | I8: =+$G$8*Equipment!$M$25 -> 0.24596 | J8: =+G8*Equipment!$K$25 -> 2.1168576 | K8: =+SUM(I8:J8) -> 2.3628176 | L8: =+G8*Equipment!$P$25 -> 1.6302 | M8: =+G8*Equipment!$L$25 -> 0.215 | N8: =+G8*Equipment!$O$25 -> 0.63 | O8: =+F8*G8 -> 0.286 | P8: =+O8*Labor_Fuel_Interest!$C$10 -> 4.98212 | T8: =+S8+P8+N8+M8+L8+K8 -> 9.8201376 | U8: =+(K8+M8+P8+S8) -> 7.5599376 | X8: Urea | Y8: lb. | Z8: =+'Blackberry Budget Y4'!R$13 -> 0.3922666667 | AA8: =+'Blackberry Budget Y4'!Q$13+'Blackberry Budget Y4'!Q$49 -> 130 | AB8: =+Z8*AA8 -> 50.99466667
B9: Mow between Rows | E9: =+IF(D9="MFWD 50hp", Equipment!$U$5, IF('Summary Y5'!D9="MFWD 50hp", Equipment!$U$6, IF(D9="4*4", Equipment!$U$7, " "))) ->  | H9: Apr | U9: =+(K9+M9+P9+S9) -> 0 | X9: Chemicals
B10: Rotary cutter | C10: 6 ft | D10: MFWD 50hp | E10: 4 | F10: =+Equipment!$I$25 -> 0.572 | G10: 0.5 | I10: =+$G$8*Equipment!$M$25 -> 0.24596 | J10: =+G10*Equipment!$K$25 -> 2.1168576 | K10: =+SUM(I10:J10) -> 2.3628176 | L10: =+G10*Equipment!$P$25 -> 1.6302 | M10: =+G10*Equipment!$L$25 -> 0.215 | N10: =+G10*Equipment!$O$25 -> 0.63 | O10: =+F10*G10 -> 0.286 | P10: =+O10*Labor_Fuel_Interest!$C$10 -> 4.98212 | T10: =+S10+P10+N10+M10+L10+K10 -> 9.8201376 | U10: =+(K10+M10+P10+S10) -> 7.5599376 | X10: Pristine | Y10: oz | Z10: =+'Blackberry Budget Y4'!R$16 -> 0.809375 | AA10: =+'Blackberry Budget Y4'!Q$16 -> 21 | AB10: =+Z10*AA10 -> 16.996875
B11: Apply fertilizer | H11: Apr | U11: 0 | X11: Captane | Y11: lb. | Z11: =+'Blackberry Budget Y4'!R$17 -> 6.736 | AA11: =+'Blackberry Budget Y4'!Q$17+'Blackberry Budget Y4'!Q$27+'Blackberry Budget Y4'!Q$37+'Blackberry Budget Y4'!Q$46 -> 10 | AB11: 67.36
B12: Side dresser | C12: 1R 3ft | D12: MFWD 50hp | E12: 4 | F12: =+Equipment!$I$27 -> 0.846 | G12: 0.5 | I12: =+G12*Equipment!$M$27 -> 0.36378 | J12: =+G12*Equipment!$K$27 -> 3.1308768 | K12: =SUM(I12:J12) -> 3.4946568 | L12: =+G12*Equipment!$P$27 -> 2.4111 | M12: =+G12*Equipment!$L$27 -> 1.055 | N12: =+G12*Equipment!$O$27 -> 4.505 | O12: =+F12*G12 -> 0.423 | P12: =+Labor_Fuel_Interest!$C$10*O12 -> 7.36866 | T12: =+S12+P12+N12+M12+L12+K12 -> 18.8344168 | U12: 11.9183168 | X12: Quilt Xcel | Y12: fl oz | Z12: =+'Blackberry Budget Y4'!R$26 -> 1.245260417 | AA12: =+'Blackberry Budget Y4'!Q$26+'Blackberry Budget Y4'!Q$45 -> 35 | AB12: 43.58411458
B13: Urea | C13: lb. | Q13: 65 | R13: =+'Chemical & Fertilizer Costs'!$F$25 -> 0.3922666667 | S13: =+R13*Q13 -> 25.49733333 | T13: =+S13+P13+N13+M13+L13+K13 -> 25.49733333 | U13: 25.49733333 | X13: Luna Tranquility | Y13: fl oz | Z13: =+'Blackberry Budget Y4'!R$36 -> 3.24984375 | AA13: =+'Blackberry Budget Y4'!Q$36 -> 20 | AB13: 64.996875
B14: Disease management | U14: 0 | X14: Operator labor
B15: Sprayer (Air Blast) | D15: MFWD 50hp | E15: 4 | F15: =+Equipment!$I$35 -> 0.245 | G15: 0.5 | H15: Apr | I15: =+G15*Equipment!$M$35 -> 0.10535 | J15: =+G15*Equipment!$K$35 -> 0.906696 | K15: =SUM(I15:J15) -> 1.012046 | L15: =+G15*Equipment!$P$35 -> 0.69825 | M15: =+G15*Equipment!$L$35 -> 5.035 | N15: =+G15*Equipment!$O$35 -> 7.355 | O15: =+F15*G15 -> 0.1225 | P15: =+O15*Labor_Fuel_Interest!$C$10 -> 2.13395 | T15: =+K15+L15+M15+N15+P15+S15 -> 16.234246 | U15: =+(K15+M15+P15+S15) -> 8.180996 | X15: Tractors | Y15: hour | Z15: =+Labor_Fuel_Interest!$C$10 -> 17.42 | AA15: =+'Blackberry Budget Y4'!O$8+'Blackberry Budget Y4'!O$10+'Blackberry Budget Y4'!O$12+'Blackberry Budget Y4'!O$15+'Blackberry Budget Y4'!O$22+'Blackberry Budget Y4'!O$25+'Blackberry Budget Y4'!O$31+'Blackberry Budget Y4'!O$35+'Blackberry Budget Y4'!O$41+'Blackberry Budget Y4'!O$44+'Blackberry Budget Y4'!O$53+'Blackberry Budget Y4'!O$56+'Blackberry Budget Y4'!O$59+'Blackberry Budget Y4'!O$48 -> 3.624 | AB15: =+Z15*AA15 -> 63.13008
B16: Pristine | C16: oz | Q16: =+'Chemical & Fertilizer Costs'!F$41 -> 21 | R16: =+'Chemical & Fertilizer Costs'!H$10 -> 0.809375 | S16: =+R16*Q16 -> 16.996875 | T16: =+S16+P16+N16+M16+L16+K16 -> 16.996875 | U16: 16.996875 | X16: Harvest labor
B17: Captan | C17: lb. | Q17: =+'Chemical & Fertilizer Costs'!F$34 -> 2.5 | R17: =+'Chemical & Fertilizer Costs'!H$9 -> 6.736 | S17: =R17*Q17 -> 16.84 | T17: =+S17+P17+N17+M17+L17+K17 -> 16.84 | U17: 16.84 | X17: Special labor | Y17: hour | Z17: =+Labor_Fuel_Interest!$C$11 -> 13.89 | AA17: =+'Blackberry Budget Y4'!O$65 -> 82.5 | AB17: =+Z17*AA17 -> 1145.925
B18: Irrigation | H18: Apr | M18: 35.4 | N18: 27.1 | O18: 0.05 | P18: =+O18*Labor_Fuel_Interest!$C$10 -> 0.871 | T18: =+S18+P18+N18+M18+L18+K18 -> 63.371 | U18: 36.271 | X18: Hand labor
B19: Hoeing | G19: 1 | H19: May | U19: 0 | X19: Special labor | Y19: hour | Z19: =+Labor_Fuel_Interest!$C$11 -> 13.89 | AA19: =+'Blackberry Budget Y4'!O$20+'Blackberry Budget Y4'!O$29+'Blackberry Budget Y4'!O$39 -> 33 | AB19: =+Z19*AA19 -> 458.37
B20: hand labor | C20: hour | O20: 10 | P20: =+O20*Labor_Fuel_Interest!$C$11 -> 138.9 | T20: =+S20+P20+N20+M20+L20+K20 -> 138.9 | U20: 138.9 | X20: Irrigation labor | AB20: =+Z20*AA20 -> 0
B21: Mow between Rows | E21: =+IF(D21="MFWD 50hp", Equipment!$U$5, IF('Summary Y5'!D21="MFWD 50hp", Equipment!$U$6, IF(D21="4*4", Equipment!$U$7, " "))) ->  | H21: May | U21: 0 | X21: Special labor | Y21: hour | Z21: =+Labor_Fuel_Interest!$C$10 -> 17.42 | AA21: =+'Blackberry Budget Y4'!O$18+'Blackberry Budget Y4'!O$23+'Blackberry Budget Y4'!O$33+'Blackberry Budget Y4'!O$42+'Blackberry Budget Y4'!O$54+'Blackberry Budget Y4'!O$57+'Blackberry Budget Y4'!O$60 -> 0.35 | AB21: =+Z21*AA21 -> 6.097
B22: Rotary cutter | C22: 6 ft | D22: MFWD 50hp | E22: 4 | F22: =+Equipment!$I$25 -> 0.572 | G22: 0.5 | I22: =+$G$8*Equipment!$M$25 -> 0.24596 | J22: =+G22*Equipment!$K$25 -> 2.1168576 | K22: =+SUM(I22:J22) -> 2.3628176 | L22: =+G22*Equipment!$P$25 -> 1.6302 | M22: =+G22*Equipment!$L$25 -> 0.215 | N22: =+G22*Equipment!$O$25 -> 0.63 | O22: =+F22*G22 -> 0.286 | P22: =+O22*Labor_Fuel_Interest!$C$10 -> 4.98212 | T22: =+S22+P22+N22+M22+L22+K22 -> 9.8201376 | U22: =+(K22+M22+P22+S22) -> 7.5599376 | X22: Pruning/Cane removal Labor
B23: Irrigation | H23: May | M23: 35.4 | N23: 27.1 | O23: 0.05 | P23: =+O23*Labor_Fuel_Interest!$C$10 -> 0.871 | T23: =+S23+P23+N23+M23+L23+K23 -> 63.371 | U23: 36.271 | X23: Special labor | Y23: hour | Z23: =+Labor_Fuel_Interest!$C$11 -> 13.89 | AA23: =+'Blackberry Budget Y4'!O$32+'Blackberry Budget Y4'!O$51 -> 27 | AB23: =+Z23*AA23 -> 375.03
B24: Disease management | U24: 0 | X24: Irrigation variable cost | Y24: acre | Z24: =+'Blackberry Budget Y4'!M$18+'Blackberry Budget Y4'!M$23+'Blackberry Budget Y4'!M$33+'Blackberry Budget Y4'!M$42+'Blackberry Budget Y4'!M$54+'Blackberry Budget Y4'!M$57+'Blackberry Budget Y4'!M$60 -> 247.8 | AA24: 1 | AB24: =+Z24*AA24 -> 247.8
B25: Sprayer (Air Blast) | D25: MFWD 50hp | E25: 4 | F25: =+Equipment!$I$35 -> 0.245 | G25: 0.5 | H25: May | I25: =+G25*Equipment!$M$35 -> 0.10535 | J25: =+G25*Equipment!$K$35 -> 0.906696 | K25: =SUM(I25:J25) -> 1.012046 | L25: =+G25*Equipment!$P$35 -> 0.69825 | M25: =+G25*Equipment!$L$35 -> 5.035 | N25: =+G25*Equipment!$O$35 -> 7.355 | O25: =+F25*G25 -> 0.1225 | P25: =+O25*Labor_Fuel_Interest!$C$10 -> 2.13395 | T25: =+K25+L25+M25+N25+P25+S25 -> 16.234246 | U25: =+(K25+M25+P25+S25) -> 8.180996 | X25: Diesel Fuel
B26: Quilt Xcel | C26: fl oz | Q26: =+'Chemical & Fertilizer Costs'!F$44 -> 17.5 | R26: ='Chemical & Fertilizer Costs'!H$7 -> 1.245260417 | S26: =+R26*Q26 -> 21.79205729 | T26: =+S26+P26+N26+M26+L26+K26 -> 21.79205729 | U26: =+(K26+M26+P26+S26) -> 21.79205729 | X26: Tractors | Y26: gal | Z26: =+Labor_Fuel_Interest!$E$4 -> 2.88 | AA26: =('Blackberry Budget Y4'!J$8+'Blackberry Budget Y4'!J$10+'Blackberry Budget Y4'!J$12+'Blackberry Budget Y4'!J$15+'Blackberry Budget Y4'!J$22+'Blackberry Budget Y4'!J$25+'Blackberry Budget Y4'!J$31+'Blackberry Budget Y4'!J$35+'Blackberry Budget Y4'!J$41+'Blackberry Budget Y4'!J$44+'Blackberry Budget Y4'!J$53+'Blackberry Budget Y4'!J$56+'Blackberry Budget Y4'!J$59+'Blackberry Budget Y4'!J$48)/'Blackberry Budget Y4'!Z$26 -> 9.31368 | AB26: =+Z26*AA26 -> 26.8233984
B27: Captan | C27: lb. | Q27: =+'Chemical & Fertilizer Costs'!F$34 -> 2.5 | R27: =+'Chemical & Fertilizer Costs'!H$9 -> 6.736 | S27: =R27*Q27 -> 16.84 | T27: =+S27+P27+N27+M27+L27+K27 -> 16.84 | U27: 16.84 | X27: Repair & Maintenance
B28: Hoeing | G28: 1 | H28: Jun | U28: 0 | X28: Implements | Y28: acre | Z28: =+'Blackberry Budget Y4'!M$61-('Blackberry Budget Y4'!M$18+'Blackberry Budget Y4'!M$23+'Blackberry Budget Y4'!M$33+'Blackberry Budget Y4'!M$42+'Blackberry Budget Y4'!M$54+'Blackberry Budget Y4'!M$57+'Blackberry Budget Y4'!M$60) -> 23.97 | AA28: 1 | AB28: =+Z28*AA28 -> 23.97
B29: hand labor | C29: hour | O29: 10 | P29: =+O29*Labor_Fuel_Interest!$C$11 -> 138.9 | T29: =+S29+P29+N29+M29+L29+K29 -> 138.9 | U29: 138.9 | X29: Tractors | Y29: acre | Z29: =+'Blackberry Budget Y4'!I$61 -> 3.11664 | AA29: 1 | AB29: =+Z29*AA29 -> 3.11664
B30: Mow between Rows | E30: =+IF(D30="MFWD 50hp", Equipment!$U$5, IF('Summary Y5'!D30="MFWD 50hp", Equipment!$U$6, IF(D30="4*4", Equipment!$U$7, " "))) ->  | H30: Jun | U30: 0 | X30: Post-harvest Expenses
B31: Rotary cutter | C31: 6 ft | D31: MFWD 50hp | E31: 4 | F31: =+Equipment!$I$25 -> 0.572 | G31: 0.5 | I31: =+$G$8*Equipment!$M$25 -> 0.24596 | J31: =+G31*Equipment!$K$25 -> 2.1168576 | K31: =+SUM(I31:J31) -> 2.3628176 | L31: =+G31*Equipment!$P$25 -> 1.6302 | M31: =+G31*Equipment!$L$25 -> 0.215 | N31: =+G31*Equipment!$O$25 -> 0.63 | O31: =+F31*G31 -> 0.286 | P31: =+O31*Labor_Fuel_Interest!$C$10 -> 4.98212 | T31: =+S31+P31+N31+M31+L31+K31 -> 9.8201376 | U31: =+(K31+M31+P31+S31) -> 7.5599376 | X31: Plastic clamshell containers (qt) | Y31: each | Z31: =+'Blackberry Budget Y4'!R$66 -> 0.1491388889 | AA31: =+'Blackberry Budget Y4'!Q$66 -> 2500 | AB31: =+Z31*AA31 -> 372.8472222
B32: Topping Blackberries/Pruning | C32: hour | G32: 1 | H32: Jun | O32: 7 | P32: =+O32*Labor_Fuel_Interest!$C$11 -> 97.23 | T32: =+S32+P32+N32+M32+L32+K32 -> 97.23 | U32: 97.23 | X32: Electricity | Y32: acre | Z32: =+'Blackberry Budget Y4'!M$67 -> 36.6 | AA32: 1 | AB32: =+Z32*AA32 -> 36.6
B33: Irrigation | H33: Jun | M33: 35.4 | N33: 27.1 | O33: 0.05 | P33: =+O33*Labor_Fuel_Interest!$C$10 -> 0.871 | T33: =+S33+P33+N33+M33+L33+K33 -> 63.371 | U33: 36.271 | X33: Marketing (10% of gross revenue) | Y33: acre | Z33: =+'Blackberry Budget Y4'!T$68 -> 2998.75 | AA33: 1 | AB33: =+Z33*AA33 -> 2998.75
B34: Disease management | U34: 0 | X34: Interest on OP. CAP. | Y34: acre | Z34: =+'Blackberry Budget Y4'!T$62 -> 45.25842655 | AA34: 1 | AB34: =+Z34*AA34 -> 45.25842655
B35: Sprayer (Air Blast) | D35: MFWD 50hp | E35: 4 | F35: =+Equipment!$I$35 -> 0.245 | G35: 0.5 | H35: Jun | I35: =+G35*Equipment!$M$35 -> 0.10535 | J35: =+G35*Equipment!$K$35 -> 0.906696 | K35: =SUM(I35:J35) -> 1.012046 | L35: =+G35*Equipment!$P$35 -> 0.69825 | M35: =+G35*Equipment!$L$35 -> 5.035 | N35: =+G35*Equipment!$O$35 -> 7.355 | O35: =+F35*G35 -> 0.1225 | P35: =+O35*Labor_Fuel_Interest!$C$10 -> 2.13395 | T35: =+K35+L35+M35+N35+P35+S35 -> 16.234246 | U35: =+(K35+M35+P35+S35) -> 8.180996 | X35: Total Direct Expenses | AB35: =+SUM(AB7:AB34) -> 6047.650298 | AC35: =+SUM(AC7:AC34) -> 0
B36: Luna Tranquility | C36: fl oz | Q36: =+'Chemical & Fertilizer Costs'!F$37 -> 20 | R36: ='Chemical & Fertilizer Costs'!H$8 -> 3.24984375 | S36: =+R36*Q36 -> 64.996875 | T36: =+S36+P36+N36+M36+L36+K36 -> 64.996875 | U36: =+(K36+M36+P36+S36) -> 64.996875
B37: Captan | C37: lb. | Q37: =+'Chemical & Fertilizer Costs'!F$34 -> 2.5 | R37: =+'Chemical & Fertilizer Costs'!H$9 -> 6.736 | S37: =R37*Q37 -> 16.84 | T37: =+S37+P37+N37+M37+L37+K37 -> 16.84 | U37: 16.84 | X37: Fixed Expenses
B38: Hoeing | G38: 1 | H38: Jul | U38: 0 | X38: Implements/Refrigerator | Y38: acre | Z38: =+'Blackberry Budget Y4'!N$61+'Blackberry Budget Y4'!N$67-('Blackberry Budget Y4'!N$18+'Blackberry Budget Y4'!N$23+'Blackberry Budget Y4'!N$33+'Blackberry Budget Y4'!N$42+'Blackberry Budget Y4'!N$54+'Blackberry Budget Y4'!N$57+'Blackberry Budget Y4'!N$60) -> 1143.47 | AA38: 1 | AB38: =+Z38*AA38 -> 1143.47
B39: hand labor | C39: hour | O39: 13 | P39: =+O39*Labor_Fuel_Interest!$C$11 -> 180.57 | T39: =+S39+P39+N39+M39+L39+K39 -> 180.57 | U39: 180.57 | X39: Tractors | Y39: acre | Z39: =+'Blackberry Budget Y4'!L$61 -> 20.6568 | AA39: 1 | AB39: =+Z39*AA39 -> 20.6568
